{"text_format":"1","workbook":"xlsx","n_sheets":9,"sheets":["Info","Trial","Instructions","StockCodes","Movements","StockCount","Dashboard","Sales","Profitability"],"not_rendered":{"charts":7,"images":2,"macros":1,"external_links":0,"defined_names":41,"comments":0,"pivot_tables":0},"unopened":[],"bounds":{"document_bytes":16777216,"sheet_cells":100000,"rows_first":2000,"rows_last":500,"rows_between":2000,"halvings":0,"cell_chars":16384,"cell_head_chars":4096},"cells_cut":0,"cells_raw":0,"read":"whole","date_system":"1900"}

{"sheet":"Info","index":0,"n_rows":0,"n_cols":0,"rows_kept":0,"cut":false,"hidden":false,"merged":[]}

{"sheet":"Trial","index":1,"n_rows":0,"n_cols":0,"rows_kept":0,"cut":false,"hidden":true,"merged":[]}

{"sheet":"Instructions","index":2,"n_rows":242,"n_cols":1,"rows_kept":242,"cut":false,"hidden":true,"merged":[]}
["Excel Skills | Inventory Control Template | Usage Based"]
["Instructions"]
["www.excel-skills.com"]
[]
["This unique template enables users to analyse the profitability of a business by comparing sales to inventory usage. In many business environments, it is impractical to perform accurate calculations of cost of sales and it is a lot more feasible to compare inventory usage to sales. The functionality included in this template enables users to control inventory by creating stock codes for all individual inventory items; recording inventory purchases, usage and adjustments; performing physical stock counts and analysing stock take variances; calculating stock valuations and measuring sales, cost of sales & gross profits based on any user defined date range. All inventory valuations are performed on an average cost basis."]
[]
["The following sheets are included in this template:"]
["StockCodes - this sheet can be used to create unique stock codes for all inventory items and also includes inventory valuation and inventory movement calculations by stock code."]
["Movements - all inventory movement transactions should be recorded on this sheet."]
["StockCount - this sheet can be used to perform a physical stock count and to analyse stock take variances. Physical stock count quantities are measured against theoretical stock balances and once the accuracy of the stock take variances has been established, the calculated stock variances can be recorded as stock adjustments on the Movements sheet in order to adjust the theoretical stock quantities to the physical stock count quantities."]
["Dashboard - the inventory dashboard is automatically updated based on the stock code and dates selected in the filter section of the dashboard. You can select an individual stock code or clear the contents of the list box to view calculations for all stock items. The dashboard also includes a unique interactive report where you can select the basis of balances or movements, select amounts, costs or quantities and view all transaction types or any of purchases, usage and adjustments individually. The dashboard also contains stats of the top products by transaction type as well as purchase price variance stats. Aside from the filter and report selections, no user input is required on this sheet and all workings are included below the dashboard."]
["Sales - record daily sales totals if you want to measure stock usage against sales in order to analyse profitability. Cost of sales for the purpose of this analysis is defined as the total of stock usage and stock adjustments. The profitability features of this template is therefore not appropriate for businesses which carry a significant amount of finished product stock as sales and usage would not always be comparable."]
["Profitability - the calculations on this sheet enable users to compare inventory usage and inventory adjustments to sales. The total inventory usage and adjustments are included in the cost of sales total and deducted from the sales total in order to calculate the appropriate gross profit amounts and percentages. A daily sales analysis for the specified calendar month and a monthly analysis for the last 12 months are also included on this sheet and can be calculated for any user defined period by simply entering the appropriate \"From\" and \"To\" dates at the top of the sheet."]
[]
["Note: If you do not want to use the profitability calculations to measure sales against inventory usage, you can safely delete the Sales and Profitability sheets without it having any effect on the other sheets. You can then use the template only for controlling inventory on hand and analysing inventory movements."]
[]
["Stock Codes"]
[]
["Create & Maintain Stock Codes"]
[]
["A unique stock code needs to be created on the StockCodes sheet for all inventory items that you want to include in the template. The stock codes created on this sheet are included in list boxes in the stock code columns on the other sheets and users are therefore required to create the appropriate stock code before the code will be available for selection on the other sheets."]
[]
["A stock code convention that makes sense in the context of your business should be used and the stock code convention should make it easy to identify stock items based on the stock code that is assigned to each stock item. Refer to the sample data on the StockCodes sheet - we have used a code convention which starts with two letters followed by four numbers."]
[]
["The two letters are used to identify the type of stock - for example, RM refers to raw materials and PM refers to packaging material. The four numbers that are included in the stock code convention provides for sufficient unique stock codes to be created for each type of stock."]
[]
["Stock codes should not be duplicated - if a stock code is duplicated on the StockCodes sheet, it may result in inaccurate inventory valuation calculations. If a stock code is duplicated on the StockCodes sheet, an error will be reflected in the error code column. All the error codes reflected in this column should be rectified before reviewing the data. Refer to the Error Codes section of the instructions for more information on the different types of error codes which may be encountered when using the template."]
[]
["Our sample stock code convention is by no means a template requirement. You can use any stock code convention as long as only unique stock codes are created and you are able to easily identify the stock codes for each stock item."]
[]
["The StockCodes sheet contains the following user input columns:"]
["Stock Code - enter a unique stock code in accordance with the stock code convention which is suitable for your type of business."]
["Description - enter a description of the stock item. This description should enable users to easily distinguish between stock items."]
["UOM - the unit of measure (UOM) refers to the stock measurement which is used when ordering, using and counting stock. Stock usage and counting units of measure carry more weight than stock ordering units of measure. For example, if it is easier to record the usage and stock count of an inventory item in kilogram and the product is purchased from a supplier in bags, the unit of measure should be specified as kilogram. When the product is purchased from the supplier, the quantity that is purchased then simply needs to be converted to kilogram when recording the stock purchase transaction on the Movements sheet."]
["Opening Quantity - enter the opening stock quantity. This is the stock quantity on hand on the date that you start using the template for recording inventory transactions. All subsequent inventory movements should be recorded on the Movements sheet."]
["Opening Cost - enter the cost of the opening stock quantity recorded in column D. The cost is multiplied by the opening stock quantity in order to calculate an opening stock valuation."]
[]
["Note: The contents on the StockCodes sheet have been included in an Excel data table. All the columns on the StockCodes sheet with yellow column headings require user input. The columns with light blue column headings contain formulas which are automatically copied for all new stock codes created on this sheet."]
[]
["Inventory Valuation & Movement Reports"]
[]
["The calculated columns on the StockCodes sheet enable users to view a stock valuation and movement report for each individual stock item which is automatically calculated based on the inventory transactions recorded on the Movements sheet. The last 9 columns are only used in the dashboard calculations on the Dashboard sheet and are therefore not included in the print range."]
[]
["The inventory valuation report on the StockCodes sheet consists of the quantity on hand, average cost and inventory valuation for each individual stock item (columns H to J). The inventory movement report consists of the opening quantity2, purchases quantity, usages quantity, adjustments quantity, opening value2, purchases value, usages value and adjustments value (columns K to R). The total of the quantity movements should equal the quantity on hand in column H and the total of the value movements should equal the inventory valuation in column J."]
[]
["The inventory valuation and movement calculations are based on the \"From\" and \"To\" dates that are specified in cells H2 and H3 respectively. If both of these cells contain valid dates, the inventory valuations are calculated based on the \"To\" date that is specified in cell H3, the opening quantities and values include all transactions that are dated before the \"From\" date in cell H2 and the inventory movements include all transactions between the \"From\" and \"To\" dates."]
[]
["If only a \"From\" date is specified and the \"To\" date cell is left blank, the opening balances include all transactions before the \"From\" date and the inventory valuation and movement calculations include all transactions after the \"From\" date and on or before the end of the current month (which is determined by the current system date). If only a \"To\" date is specified, the opening balances include only the opening quantities and values that are calculated based on the user input in column D and E and the inventory valuation and movement calculations include all transactions that are dated on or before the \"To\" date specified."]
[]
["If both the \"From\" and \"To\" date cells are left blank, the opening balances are calculated based on the user input in columns D and E and the inventory valuation and movement calculations include all the transactions that are included on the Movements sheet and dated on or before the end of the current month (which is determined by the current system date)."]
[]
["Note: The StockCodes sheet functionality enables users to display an inventory valuation and movement report for any user defined date range. Users are therefore not only able to calculate a current inventory valuation by stock code, but are also able to view the inventory valuations or movements for any previous reporting periods."]
[]
["Note: All the amount columns on the StockCodes sheet also include a subtotal above the column heading (formatted in italic) which displays a total for all the stock codes which are visible on the sheet. If the Filter feature is used to filter the data on this sheet, these calculations will be based only on the filtered data."]
[]
["Note: The Error Code column will contain an error code if there is a problem with the data which has been entered in any of the user input columns. If this column therefore contains any error codes, these user input errors need to be resolved before viewing the data on this sheet. Refer to the Error Codes section of the instructions for guidance on the different error codes which may be encountered when using this template."]
[]
["Opening Stock"]
[]
["The opening stock values which are calculated in column G are calculated by multiplying the opening stock quantities and costs in columns D and E. These are the opening stock quantities on hand before the first inventory movement is recorded and are therefore added to the movements to calculate stock on hand."]
[]
["Dashboard Calculations"]
[]
["The calculations in columns S to AA on the StockCodes sheet are used in the inventory dashboard calculations on the Dashboard sheet. These columns are therefore not included in the print range on the StockCodes sheet. The only difference between these calculations and some of the inventory movement calculations is that the dashboard calculations are based on the selected date range on the Dashboard sheet which may be different from the selected date range on the StockCodes sheet."]
[]
["Inventory Purchases"]
[]
["All inventory purchase transactions should be recorded on the Movements sheet. The contents on this sheet have been included in an Excel data table. The columns with yellow column headings require user input and the columns with light blue column headings contain formulas which are automatically copied for all new transactions added to the sheet."]
[]
["The following columns require user input:"]
["Transaction Date: enter the delivery date of the stock purchased in column A. All dates should be entered in accordance with your regional date settings. We've added data validation to column A to ensure that only valid dates are entered in this column. The date on which the supplier delivers the inventory to your business premises should be recorded in this column because the inventory is added to the theoretical inventory balance on this date. If the inventory has not been delivered yet, the physical stock on hand will not agree to the theoretical stock balance."]
["Transaction Type: select the Purchase transaction type in column B."]
["Supplier Name: enter the name of the appropriate supplier in column C."]
["Document Number: enter the supplier invoice number or other unique reference number in column D. The reference that you enter in this column should enable you to trace the transaction back to its supporting documentation."]
["Stock Code: select the appropriate stock code from the list box in column E. All stock codes need to be created on the StockCodes sheet before being available for selection. Refer to the stock description which is displayed in column I to ensure that the correct stock code has been selected."]
["Transaction Quantity: enter the purchased quantity in column F. The purchased quantity should be recorded in the unit of measure which is displayed in column J."]
["Invoice Amount: enter the total invoice amount which relates to the stock code selected in column E. This amount should be entered exclusive of sales tax if the business is registered for sales tax purposes and inclusive of sales tax if it is not registered. If the business is registered for sales tax purposes, the sales tax can be claimed back from the appropriate tax authorities and should therefore not form part of the inventory cost."]
[]
["Note: If a supplier invoice includes multiple stock codes, each stock code needs to be recorded individually on the Movements sheet. A single supplier invoice could therefore consist of multiple stock purchase transactions on the Movements sheet."]
[]
["Note: If stock is delivered by a supplier which is not the same supplier as the one from which the stock is ordered, the supplier invoice for the delivery cost will have to be recorded separately to include the delivery cost in the average cost calculation. When you record the information from the delivery invoice, it is important that the stock quantity should be entered as a nil value, otherwise the quantity may be included twice in the calculation of the stock quantity on hand. It may also be necessary to allocate the delivery cost to more than one stock code if multiple stock items have been included in the same delivery."]
[]
["The calculated columns on the Movements sheet consist of the error code, stock description, unit of measure (UOM), previous quantity on hand, new quantity on hand, previous average cost, new average cost, transaction value, purchase price per unit, unit price variance, purchase price variance percentage, total price variance and the stock movement date. The values in all of these calculated columns are calculated automatically based on the values recorded in the user input columns."]
[]
["The stock description is included to enable users to view a description of the stock code selected in column E and the UOM is included to indicate which unit of measure should be used when entering transaction quantities. The previous and new quantity on hand calculations reflect the quantity of stock on hand before and after taking the purchase transaction into account."]
[]
["Note: The quantity on hand calculations reflect the quantity of stock on hand before and after recording a transaction. These calculations play an important role in calculating the previous and new average costs in columns M & N and can also be used to identify stock transaction recording errors - if either the quantity on hand before or after recording a transaction is negative, it means that an error has been made in the recording of previous stock movement transactions. Should this be the case, an error code will be reflected in column H which indicates that the previous inventory movement transactions for the affected stock code need to be investigated."]
[]
["The previous and new average cost calculations are based on all the stock purchase transactions for the particular stock code as well as the quantity on hand at the time of purchasing stock. These calculations are only affected by stock purchase transactions because stock unit costs can only change when the purchase price of new stock items differ from the current average cost. The previous and new average costs will therefore be the same when recording stock usage or stock adjustment type transactions."]
[]
["The transaction value for stock purchase transactions will equal the invoice total for the particular stock item in column G. Stock usage and adjustment type transactions are valued based on the current average cost on the date of recording the transaction."]
[]
["The purchase price per unit is calculated by dividing the invoice total in column G by the transaction quantity in column F and this price is deducted from the previous average cost in column M in order to calculate the per unit purchase price variance in column Q, the purchase price variance percentage in column R and the total price variance in column S. The price variance values in these three columns can be used to analyse buying trends and movements in the prices charged by suppliers."]
[]
["Note: Purchase price variances are only applicable to stock purchase transactions. These columns will therefore all contain nil values when recording stock usage or adjustment type transactions."]
[]
["The movement date in column T is determined based on the transaction date in column A and the relative row position of the transaction which is applied to the transaction date as a time value. This means that where two transactions are entered with the same transaction date, the transaction which is entered first on the Movements sheet will be deemed to have occurred before any subsequent transactions."]
[]
["It is therefore important to record transactions in the correct sequence when the transaction dates are the same. For example, if a stock purchase transaction occurs at the beginning of the day and a usage or adjustment transaction needs to be recorded on the same day, the purchase transaction should be recorded before recording the usage or adjustment transactions otherwise the average cost which will be calculated for the usage or adjustment transactions may not be accurate."]
[]
["Average Cost Calculations"]
[]
["All the inventory valuation calculations in this template are based on an average cost calculation methodology. When you use the average cost basis for inventory valuation purposes, a revaluation of the appropriate stock item is required after each stock purchase. The revaluation is based on the stock quantity on hand at the time of the purchase, the average cost of stock on hand, the stock quantity purchased and the purchase price per unit which is charged by the appropriate supplier."]
[]
["The stock on hand at the time of the purchase is valued at the average cost that was calculated after the previous stock purchase and the stock quantity purchased is valued at the supplier invoice value (excluding sales tax if applicable) for the particular stock code. This principle is best illustrated through an example."]
[]
["A company purchases 100 units of a product at a cost of $10.00 per unit. The supplier invoice value is therefore $1,000. The company then uses 50 units before purchasing another 100 units, this time at $20.00 per unit."]
[]
["The initial average cost is therefore $10.00 per unit and the stock on hand at the time of the next purchase is valued at $500.00 (50 units x $10.00 per unit). After purchasing additional stock, there are 150 units in stock at a cost of $2,500 (the remaining $500.00 plus the new supplier invoice total of $2,000.00). The new average cost is therefore $16.67 per unit - the stock item in our example should therefore be valued at $16.67 per unit and all stock usage or adjustment transactions should be recorded at an average cost of $16.67 per unit."]
[]
["Note: A common misconception of average cost is that it is calculated based on historic purchase prices and that it is therefore not a very accurate method of inventory valuation. As we illustrated in the above example, this is actually not the case. Previous stock purchases and the prices at which these stock purchase transactions occurred only influence the average cost calculation to the extent of the inventory quantities still on hand at the time of the next purchase. Under most circumstances, the inventory on hand is valued at a cost that consists mainly of the most recent purchase price resulting in a reasonably accurate valuation of inventory and also therefore accurate recording of cost of sales or inventory usage."]
[]
["Another important point to emphasize is that the average cost calculation will only be accurate if the stock quantity on hand at the time of the purchase is calculated accurately. The quantity on hand could be inaccurate if errors are made when recording stock purchase, usage or adjustment transactions. In order to identify possible errors, we have included error codes on the sheet in order to highlight possible stock inaccuracies. If an error code is therefore reflected in the Error Code column, the error should be investigated and resolved in order to prevent inaccurate average costs being calculated and used in the valuation of inventory."]
[]
["Note: Good stock returns can be recorded as negative purchase transactions on the same basis as recording the initial purchases of the affected stock items but just with a negative quantity in column F. These transactions will therefore also affect the average cost calculations of the returned stock items."]
[]
["Inventory Usage"]
[]
["All inventory usage transactions should be recorded by entering the appropriate negative quantities on the Movements sheet. The user input required on this sheet includes the transaction date, transaction type, stock code and quantity used. The other user input columns (supplier name, document number and invoice total) are not required when entering stock usage transactions and can either be left blank or you can enter a default value in these columns. The invoice amount should equal a nil value when entering stock usage transactions."]
[]
["We recommend implementing a system whereby the inventory used on a daily basis is recorded independently and then recorded on this sheet at the end of the day or the beginning of the next day. There are significant benefits to controlling stock on a daily basis and the recording of daily stock usage forms an integral part of this process. If there are factors which result in daily stock usage measurement being impractical, this template can also be used to record and analyse weekly stock usage."]
[]
["Another method of controlling inventory usage is to simply perform a physical stock count and to record the difference between the theoretical stock on hand and the stock count quantities as usage on the stock count date. If a system like this is in place, inventory usage is not recorded independently and the theoretical stock balance will therefore only consist of the stock quantities that have been purchased. The resulting stock variances therefore represent the inventory used since the previous stock count."]
[]
["The disadvantage of using a stock count system to record usage is that there is no reference point for identifying stock items and areas which result in losses because the transaction cycle is in effect incomplete. It will therefore be extremely difficult to investigate and to explain inventory usage in excess of expectations."]
[]
["The recording of inventory usage on a regular basis (daily or weekly) enables users to calculate accurate theoretical stock balances which can be compared to physical count quantities. This system makes it a lot easier to identify and investigate problem stock items and areas and enables users to limit excess stock usage a lot more effectively."]
[]
["All the user input and calculated columns on the Movements sheet have been covered in the Inventory Purchases section of the instructions. We will therefore only point out differences between the recording of stock purchase and stock usage transactions in this section of the instructions."]
["Transaction Date: the date on which the appropriate stock item has been used should be entered in column A."]
["Transaction Type: select the Usage transaction type from the list box in column B."]
["Supplier Name, Document Number: these columns can be left blank when entering usage type transactions or you can enter a default value like \"None\" or \"N/A\"."]
["Stock Code: select the appropriate stock code from the list box in column E. All stock codes need to be created on the StockCodes sheet before being available for selection."]
["Transaction Quantity: enter the quantity of stock that has been used as a negative value in column F. The usage quantity should be recorded in the unit of measure which is displayed in column J. If a usage transaction type is selected in column B and a positive value is entered in this column, an error code will be displayed in the Error Code column. Refer to the Error Codes section of the instructions for guidance on how to resolve user input errors."]
["Invoice Amount: enter a nil value in this column when recording stock usage transactions."]
[]
["Note: The previous and new average costs calculated for stock usage transactions will be the same. This is because average unit costs will only change when purchasing stock at a different price from the ruling average cost at the time. The transaction value for stock usage transactions is therefore calculated by multiplying the transaction quantity by the average cost per unit."]
[]
["Note: The average cost calculations will only be completely accurate if there are no error messages in column H on the Movements sheet. It is therefore imperative that users ensure that all the user input errors reflected in this column are resolved before viewing any of the inventory movement or valuation data in this template."]
[]
["Note: A stock usage transaction may result in an error if the transaction quantity entered in column F is greater than the previous quantity on hand in column K. If this is the case, the new quantity on hand will be a negative value and an error code will be reflected in column H. The most recent transactions for the affected stock code need to be investigated in order to resolve the error and if no explanation can be found, a positive stock adjustment should be recorded in a row above the usage transaction (and by using the same transaction date) in order to adjust the quantity on hand upwards so that the new quantity on hand (after taking the effect of the usage transaction into account) does not go into a negative stock position."]
[]
["Inventory Adjustments"]
[]
["All inventory adjustments also need to be recorded on the Movements sheet. Inventory adjustments consist mainly of stock take variances but could also include manual adjustments which are required to correct the quantity on hand of a particular stock item. Inventory adjustments are recorded in exactly the same way as usage transactions, except for selecting an \"Adjustment\" transaction type in column B on the Movements sheet and being able to record both positive and negative values for inventory adjustments. Note that positive adjustments increase the quantity on hand, while negative adjustments decrease the quantity on hand."]
[]
["Stock Count Variances"]
[]
["All stock count variances should be recorded on the Movements sheet based on the stock variances calculated on the StockCount sheet. Positive quantity variances result in an increase in the appropriate stock item's theoretical quantity on hand, while negative quantity variances result in a decrease in the appropriate stock item's theoretical quantity on hand (thereby effectively writing off the particular stock variance)."]
[]
["Stock adjustments which result from a stock take can be recorded on the Movements sheet by copying the appropriate count date into column A, selecting the \"Adjustment\" transaction type in column B, copying the appropriate stock codes into column E (from the StockCount sheet), copying the appropriate adjustment quantities into column F (from column J on the StockCount sheet) and entering a nil value in the Invoice Amount column."]
[]
["Note: The supplier name and document number columns can be left blank when recording stock adjustment type transactions or you can enter a default value in these columns. Refer to the Inventory Purchases and Inventory Usage sections of the instructions for guidance on the calculations in the calculated columns (the columns with light blue column headings)."]
[]
["Stock Count"]
[]
["The StockCount sheet can be used to record stock count quantities, compare the quantities counted to theoretical stock quantities, calculate and review stock quantity variances and compare a theoretical stock valuation to a stock count valuation. This stock count feature only requires limited user input - simply enter the appropriate stock count date in cell K1, copy the stock codes that need to be included in the stock count into column A and record the quantities counted in column E. A stock variance report is automatically compiled based on the data entered by the user."]
[]
["Note: The contents on the StockCount sheet have been included in an Excel table. The columns with yellow column headings require user input and the columns with light blue column headings contain formulas which are automatically copied for all the stock codes added to the StockCount sheet."]
[]
["The StockCount sheet can be prepared for a stock count by copying the stock codes that you want to include in the stock count from the StockCodes sheet and pasting the stock codes into column A. All the formulas in the columns with light blue column headings are then automatically copied into all the rows that contain a stock code. The counted quantities in column E then need to be replaced by a nil value."]
[]
["The calculation of all theoretical stock balances is based on the stock count date entered in cell K1. All the transactions recorded on the Movements sheets and dated on or before this date are included in the theoretical stock balances. It is imperative that you specify the correct stock count date in cell K1, otherwise the stock variance report will not be calculated accurately."]
[]
["After preparing the StockCount sheet for the stock count, the stock quantities counted need to be recorded in column E. All the stock quantity and value variance calculations will be updated automatically and can then be reviewed and recounted until you are satisfied that the physical stock count has been performed and recorded accurately. The stock count variances can then be copied to the Movements sheet and recorded as stock adjustment transactions in order to adjust the theoretical stock quantities to the quantities counted."]
[]
["Note: After copying the stock count variances to the Movements sheet and recoding the appropriate stock adjustment transactions, the theoretical stock quantities on the StockCount sheet are automatically updated and all the stock variances should be nil. If you therefore want to print a stock variance report for recordkeeping purposes, you should do so before recording the stock adjustment entries on the Movements sheet."]
[]
["If stock items are received from a supplier on the day of the stock count, you should consider whether these items will be included in the physical stock count. If the items are not going to be counted, you should not record the purchase transaction before the stock count has been completed and these stock items should also not be included in the physical stock count."]
[]
["Proper cut off also needs to be applied to stock usage transactions. Stock usage transactions should be recorded for all stock items used before the physical stock count commences in order to ensure that all stock variances are calculated accurately."]
[]
["Note: The same stock count procedures can be followed for cycle counts (counts where only selected stock items are physically counted). Only the appropriate stock codes then need to be added to the StockCount sheet, but you still have to ensure that proper cut off is applied for all cycle counts (all the appropriate purchase and usage transactions must be recorded before the physical stock count commences)."]
[]
["Note: If you change the count date in cell K1, the theoretical stock balances will also change based on the date entered in this cell. All the transactions recorded on the Movements sheet and dated on or before the count date will be included in the theoretical stock balance calculation."]
[]
["Dashboard"]
[]
["The inventory dashboard on the Dashboard sheet is calculated automatically from the movements entered on the Movements sheet. All you need to do is select the appropriate stock code and from and to dates in the filter section of the dashboard. All the calculations are then automatically updated."]
[]
["The dashboard calculations and charts can be compiled for an individual stock code by simply selecting the appropriate stock code in the dashboard filter section or you can show the data for all stock codes by simply clearing the stock code section (pressing delete on the keyboard)."]
[]
["If you do not specify a From date in the filter section, all inventory transactions from the first date captured on the Movements sheet will be included in the dashboard calculations. If you do not specify a To date in the dashboard filter section, all stock movements on or before the current system date will be included in the dashboard calculations."]
[]
["Our unique inventory dashboard also includes a comprehensive interactive inventory movement report section which consists of three charts - a 90-day daily chart, a 13-week weekly chart and a 12-month monthly chart displaying inventory movements for the selected stock code and selected date range."]
[]
["The interactive inventory report contains selections for the basis, measurement and type. The basis selection contains options for displaying balances or movements. The measurement section contains options for displaying quantities, costs or amounts. The type selection contains options for all, purchase, usage or adjustment which refers to the transaction types to display."]
[]
["Note: The default options for the interactive report selections is to display movement amounts for all transactions. This is therefore the settings which are applied when no selections are active."]
[]
["Note: The daily report can be amended to include less than 90 days by simply specifying a new value in cell C72 on the Dashboard sheet. If the chart does not update automatically, just change one of the selections and it should update the new days setting. We do not recommend making changes to the weekly or monthly charts."]
[]
["The inventory dashboard also includes top product sections which displays the top 5 products in terms of value for each of the main transaction types as well as the purchase price variances."]
[]
["Only the dashboard itself is included in the print range on the Dashboard sheet. The calculations below the dashboard which are used to compile the automated calculations will therefore not be printed."]
[]
["Sales"]
[]
["All inventory related sales amounts need to be recorded on the Sales sheet in order to facilitate a comparison between sales and cost of sales (the sum of inventory usage & adjustments) and the calculation of gross profit amounts and percentages. We recommend recording sales values on a daily basis but note that you will only be able to calculate and analyse gross profit amounts and percentages on a daily basis if daily stock usage transactions are recorded on the Movements sheet."]
[]
["Note: The layout of the Sales sheet can be amended if you want to align the columns with data from another Excel template or data source but the existing columns should not be deleted because this may result in errors in the template calculations."]
[]
["Note: The recording of daily sales amounts is only necessary if you want to measure stock usage against sales in order to analyse profitability. Cost of sales for the purpose of this analysis is defined as the total of stock usage and stock adjustments. The profitability features of this template is therefore not appropriate for businesses which carry a significant amount of finished product stock as sales and usage would not always be comparable. If you only want to use the template to control inventory quantities on hand and analyse inventory movements, you can delete the Sales and Profitability sheets."]
[]
["Profitability Report"]
[]
["The Profitability sheet includes an automated calculation of sales, cost of sales and gross profits which can be compiled for any user defined date range by simply entering the appropriate \"From\" and \"To\" dates in cells E2 and E3. The sales amounts are calculated based on the sales values recorded on the Sales sheet and the cost of sales amounts are calculated based on the inventory usage and inventory adjustment transactions recorded on the Movements sheet."]
[]
["The sales analysis on the Profitability sheet is automatically compiled for the date range between the \"From\" and \"To\" date, a month-to-date and year-to-date period, a daily date range for the last calendar month included in the date range and a 12-month date range for the last calendar year (also includes a chart with the monthly sales values and gross profit percentages)."]
[]
["Note: If you clear the contents of the \"To\" date cell, all the calculations on the Profitability sheet will be based on a date range which includes all transactions up to the end of the current month (based on the current system date on your computer)."]
[]
["Roll Forward"]
[]
["This template can be rolled forward for subsequent periods if the calculation speed slows down too much because of adding thousands of transactions to the template. We recommend completing the following steps in order to roll the template forward:"]
["■ Save a copy of the template under a new file name."]
["■ Delete all the inventory purchase, usage and adjustment transactions from the Movements sheets in the new file but make sure that you retain the formulas in the calculated columns on these sheets in at least two rows."]
["■ Clear the \"From\" and \"To\" dates from the StockCodes sheet in the existing template to ensure that all transactions are included in the inventory quantity on hand and valuation columns."]
["■ Copy the quantities on hand from column H on the StockCodes sheet in the existing template and paste these quantities into column D (opening quantities) on the StockCodes sheet in the new template."]
["■ Copy the average costs from column I on the StockCodes sheet in the existing template and paste these values into column E (opening cost) on the StockCode sheet in the new template."]
["■ Make sure that the inventory valuations in column J in both templates agree."]
["■ All future transactions can now be recorded in the new version of the template and the old version can be retained if you want to refer back to historical inventory transactions."]
[]
["Error Codes"]
[]
["The following error codes may result from inaccurate user input and will be displayed in the Error Code columns of the appropriate sheet. The heading of the affected input column will also be highlighted in orange:"]
[]
["■ E1 - this error code means that a duplicated stock code has been entered in the appropriate row. The error can be corrected by simply deleting one of the duplicated entries."]
["■ E2 - this error code means that the stock code specified is invalid. Stock codes must be created on the StockCodes sheet before being used on any of the other sheets and the error can therefore be corrected by simply creating the appropriate stock code on the StockCodes sheet. If a stock code has been deleted, this error code will be displayed in all the rows on the other sheets which still refer to the stock code. These entries must be deleted or a valid stock code needs to be selected."]
["■ E3 - this error code means that an invalid transaction type has been selected. The transaction types which can be used in this template are limited to the types provided in the appropriate list box. This error is also displayed if a transaction has been entered without specifying a transaction type."]
["■ E4 - removed."]
["■ E5 - this error code indicates that the quantity on hand before or after recording a transaction is negative. When the quantity on hand for a particular stock code goes into a negative value, it indicates that an error has been made in recording or not recording some of the previous inventory movement transactions. These errors should be investigated and resolved by correcting previous stock movement entries. If after investigating the error, no solution is found the quantity on hand should be adjusted by entering a positive adjustment type entry in the row above the transaction which contains the error (and using the same transaction date) otherwise the average cost calculation for the affected stock item may not be accurate."]
[]
["Note: Input errors may result in inaccurate template calculations and it is therefore imperative that all errors are resolved before reviewing the inventory movement or inventory valuation data."]
[]
["Help & Customization"]
[]
["If you experience any difficulty while using this template and you are not able to find the appropriate guidance in these instructions, please e-mail us at support@excel-skills.com for assistance. This template has been designed with flexibility in mind to ensure that it can be used in most business environments. If however you need an Excel based template that is customized specifically for your business requirements, please e-mail our Support function and provide a brief explanation of your requirements."]
[]
["© Copyright"]
[]
["This template remains the intellectual property of www.excel-skills.com and is protected by international copyright laws. Any publication or distribution of this template outside the scope of the permitted use of the template is expressly prohibited. In terms of the permitted use of this template, only the distribution of the template to persons within the same organisation as the registered user or persons outside the organisation who can reasonably be expected to require access to the template as a direct result of the use of the template by the registered user is allowed. Subsequent distribution of the template by parties outside of the organisation is however expressly prohibited and represents an infringement of international copyright laws."]

{"sheet":"StockCodes","index":3,"n_rows":13,"n_cols":27,"rows_kept":13,"cut":false,"hidden":true,"merged":[]}
["Stock Codes",null,null,null,null,null,null,null,{"$f":"IF(AND(ISBLANK(H3)=FALSE,H3<H2),\"Error! The From date cannot be after the To date!\",\"\")","v":""}]
["Set-up and Reporting",null,null,null,null,null,"From Date",null,{"$f":"IF(ISBLANK(H2)=TRUE,IF(MIN(MoveDate)=0,DATE(YEAR($I$3),MONTH($I$3),1),DATE(YEAR(MIN(MoveDate)),MONTH(MIN(MoveDate)),1)),H2)","v":"2021-07-01"},null,null,null,null,null,null,null,null,null,{"$f":"Dashboard!C55","v":"2021-07-01"}]
["© www.excel-skills.com",null,null,null,null,null,"To Date","2021-08-31",{"$f":"IF(ISBLANK(H3)=TRUE,DATE(YEAR(TODAY()),MONTH(TODAY())+1,0),H3)","v":"2021-08-31"},null,null,null,null,null,null,null,null,null,{"$f":"Dashboard!D55","v":"2021-08-31"}]
[null,null,null,null,null,null,{"$f":"SUBTOTAL(109,StockCode[[#Data],[Opening Value]])","v":18190},null,null,{"$f":"SUBTOTAL(109,StockCode[[#Data],[Inventory Valuation]])","v":31558.063491967641},null,null,null,null,{"$f":"SUBTOTAL(109,StockCode[[#Data],[Opening Value2]])","v":18190},{"$f":"SUBTOTAL(109,StockCode[[#Data],[Purchases Value]])","v":212244.6},{"$f":"SUBTOTAL(109,StockCode[[#Data],[Usages Value]])","v":-187979.80578980056},{"$f":"SUBTOTAL(109,StockCode[[#Data],[Adjustments Value]])","v":-10896.7307182318}]
["Stock Code","Stock Description","UOM","Opening Quantity","Opening Cost","Error Code","Opening Value","Quantity on Hand","Average Cost","Inventory Valuation","Opening Quantity2","Purchases Quantity","Usages Quantity","Adjustments Quantity","Opening Value2","Purchases Value","Usages Value","Adjustments Value","Dash Purch Qty","Dash Usage Qty","Dash Adjust Qty","Dash Purch Value","Dash Usage Value","Dash Adjust Value","Dash Adjust AB Value","Dash Price Value","Dash ABS Price"]
["PM2000","Plastic Wrap","Rolls",2,20,{"$f":"IF(AND(ISBLANK(A6)=FALSE,COUNTIF(StockCodeOnly,A6)>1)=TRUE,\"E1\",\"-\")","v":"-"},{"$f":"D6*E6","v":40},{"$f":"SUMIFS(MoveQty,MoveCode,$A6,MoveDate,\"<\"&$I$3+1)+D6","v":8.5},{"$f":"IF(H6=0,0,J6/H6)","v":20.54496057604862},{"$f":"SUMIFS(MoveAmount,MoveCode,$A6,MoveDate,\"<\"&$I$3+1)+(D6*E6)","v":174.63216489641326},{"$f":"D6+SUMIFS(MoveQty,MoveCode,$A6,MoveDate,\"<\"&$I$2)","v":2},{"$f":"SUMIFS(MoveQty,MoveCode,$A6,MoveDate,\">=\"&$I$2,MoveDate,\"<\"&$I$3+1,MoveType,\"Purchase\")","v":34},{"$f":"SUMIFS(MoveQty,MoveCode,$A6,MoveDate,\">=\"&$I$2,MoveDate,\"<\"&$I$3+1,MoveType,\"Usage\")","v":-26.22},{"$f":"SUMIFS(MoveQty,MoveCode,$A6,MoveDate,\">=\"&$I$2,MoveDate,\"<\"&$I$3+1,MoveType,\"Adjustment\")","v":-1.2800000000000007},{"$f":"(D6*E6)+SUMIFS(MoveAmount,MoveCode,$A6,MoveDate,\"<\"&$I$2)","v":40},{"$f":"SUMIFS(MoveAmount,MoveCode,$A6,MoveDate,\">=\"&$I$2,MoveDate,\"<\"&$I$3+1,MoveType,\"Purchase\")","v":700},{"$f":"SUMIFS(MoveAmount,MoveCode,$A6,MoveDate,\">=\"&$I$2,MoveDate,\"<\"&$I$3+1,MoveType,\"Usage\")","v":-539.11090111046724},{"$f":"SUMIFS(MoveAmount,MoveCode,$A6,MoveDate,\">=\"&$I$2,MoveDate,\"<\"&$I$3+1,MoveType,\"Adjustment\")","v":-26.25693399311951},{"$f":"SUMIFS(MoveQty,MoveCode,$A6,MoveDate,\">=\"&$S$2,MoveDate,\"<\"&$S$3+1,MoveType,\"Purchase\")","v":34},{"$f":"-SUMIFS(MoveQty,MoveCode,$A6,MoveDate,\">=\"&$S$2,MoveDate,\"<\"&$S$3+1,MoveType,\"Usage\")","v":26.22},{"$f":"SUMIFS(MoveQty,MoveCode,$A6,MoveDate,\">=\"&$S$2,MoveDate,\"<\"&$S$3+1,MoveType,\"Adjustment\")","v":-1.2800000000000007},{"$f":"SUMIFS(MoveAmount,MoveCode,$A6,MoveDate,\">=\"&$S$2,MoveDate,\"<\"&$S$3+1,MoveType,\"Purchase\")","v":700},{"$f":"-SUMIFS(MoveAmount,MoveCode,$A6,MoveDate,\">=\"&$S$2,MoveDate,\"<\"&$S$3+1,MoveType,\"Usage\")","v":539.11090111046724},{"$f":"SUMIFS(MoveAmount,MoveCode,$A6,MoveDate,\">=\"&$S$2,MoveDate,\"<\"&$S$3+1,MoveType,\"Adjustment\")","v":-26.25693399311951},{"$f":"ABS(X6)","v":26.25693399311951},{"$f":"SUMIFS(MovePrice,MoveCode,$A6,MoveDate,\">=\"&$S$2,MoveDate,\"<\"&$S$3+1,MoveType,\"Purchase\")","v":-0.71510340683592943},{"$f":"ABS(Z6)","v":0.71510340683592943}]
["PM2005","Labels",1000,1,350,"-",350,0,0,0,1,14,-14.06,-0.94,350,6470,-6397.1288185322246,-422.87118146777533,{"$f":"SUMIFS(MoveQty,MoveCode,$A7,MoveDate,\">=\"&$S$2,MoveDate,\"<\"&$S$3+1,MoveType,\"Purchase\")","v":14},{"$f":"-SUMIFS(MoveQty,MoveCode,$A7,MoveDate,\">=\"&$S$2,MoveDate,\"<\"&$S$3+1,MoveType,\"Usage\")","v":14.06},{"$f":"SUMIFS(MoveQty,MoveCode,$A7,MoveDate,\">=\"&$S$2,MoveDate,\"<\"&$S$3+1,MoveType,\"Adjustment\")","v":-0.94},{"$f":"SUMIFS(MoveAmount,MoveCode,$A7,MoveDate,\">=\"&$S$2,MoveDate,\"<\"&$S$3+1,MoveType,\"Purchase\")","v":6470},{"$f":"-SUMIFS(MoveAmount,MoveCode,$A7,MoveDate,\">=\"&$S$2,MoveDate,\"<\"&$S$3+1,MoveType,\"Usage\")","v":6397.1288185322246},{"$f":"SUMIFS(MoveAmount,MoveCode,$A7,MoveDate,\">=\"&$S$2,MoveDate,\"<\"&$S$3+1,MoveType,\"Adjustment\")","v":-422.87118146777533},422.87118146777533,{"$f":"SUMIFS(MovePrice,MoveCode,$A7,MoveDate,\">=\"&$S$2,MoveDate,\"<\"&$S$3+1,MoveType,\"Purchase\")","v":-506.07857025502551},506.07857025502551]
["PM2015","Boxes","Units",600,1.2,"-",720,17.999999999999886,1.0247813316781973,18.446063970207433,600,4400,-4972.6400000000003,-9.3600000000000065,720,4560,-5251.7059873920171,-9.8479486377748504,{"$f":"SUMIFS(MoveQty,MoveCode,$A8,MoveDate,\">=\"&$S$2,MoveDate,\"<\"&$S$3+1,MoveType,\"Purchase\")","v":4400},{"$f":"-SUMIFS(MoveQty,MoveCode,$A8,MoveDate,\">=\"&$S$2,MoveDate,\"<\"&$S$3+1,MoveType,\"Usage\")","v":4972.6400000000003},{"$f":"SUMIFS(MoveQty,MoveCode,$A8,MoveDate,\">=\"&$S$2,MoveDate,\"<\"&$S$3+1,MoveType,\"Adjustment\")","v":-9.3600000000000065},{"$f":"SUMIFS(MoveAmount,MoveCode,$A8,MoveDate,\">=\"&$S$2,MoveDate,\"<\"&$S$3+1,MoveType,\"Purchase\")","v":4560},{"$f":"-SUMIFS(MoveAmount,MoveCode,$A8,MoveDate,\">=\"&$S$2,MoveDate,\"<\"&$S$3+1,MoveType,\"Usage\")","v":5251.7059873920171},{"$f":"SUMIFS(MoveAmount,MoveCode,$A8,MoveDate,\">=\"&$S$2,MoveDate,\"<\"&$S$3+1,MoveType,\"Adjustment\")","v":-9.8479486377748504},9.8479486377748504,{"$f":"SUMIFS(MovePrice,MoveCode,$A8,MoveDate,\">=\"&$S$2,MoveDate,\"<\"&$S$3+1,MoveType,\"Purchase\")","v":191.92091908510588},191.92091908510588]
["RM1000","Meat","Kg",300,50,"-",15000,600,50.450891015539931,30270.534609323957,300,3760,-3240,-220,15000,185840,-159696.72557233815,-10872.739818337881,{"$f":"SUMIFS(MoveQty,MoveCode,$A9,MoveDate,\">=\"&$S$2,MoveDate,\"<\"&$S$3+1,MoveType,\"Purchase\")","v":3760},{"$f":"-SUMIFS(MoveQty,MoveCode,$A9,MoveDate,\">=\"&$S$2,MoveDate,\"<\"&$S$3+1,MoveType,\"Usage\")","v":3240},{"$f":"SUMIFS(MoveQty,MoveCode,$A9,MoveDate,\">=\"&$S$2,MoveDate,\"<\"&$S$3+1,MoveType,\"Adjustment\")","v":-220},{"$f":"SUMIFS(MoveAmount,MoveCode,$A9,MoveDate,\">=\"&$S$2,MoveDate,\"<\"&$S$3+1,MoveType,\"Purchase\")","v":185840},{"$f":"-SUMIFS(MoveAmount,MoveCode,$A9,MoveDate,\">=\"&$S$2,MoveDate,\"<\"&$S$3+1,MoveType,\"Usage\")","v":159696.72557233815},{"$f":"SUMIFS(MoveAmount,MoveCode,$A9,MoveDate,\">=\"&$S$2,MoveDate,\"<\"&$S$3+1,MoveType,\"Adjustment\")","v":-10872.739818337881},10872.739818337881,{"$f":"SUMIFS(MovePrice,MoveCode,$A9,MoveDate,\">=\"&$S$2,MoveDate,\"<\"&$S$3+1,MoveType,\"Purchase\")","v":1239.3677980620982},1239.3677980620982]
["RM1005","Bread Rolls","Dozen",50,36,"-",1800,10,41.736348781687958,417.36348781687957,50,314,-350.72,-3.2800000000000007,1800,13080,-14327.241695807948,-135.39481637517406,{"$f":"SUMIFS(MoveQty,MoveCode,$A10,MoveDate,\">=\"&$S$2,MoveDate,\"<\"&$S$3+1,MoveType,\"Purchase\")","v":314},{"$f":"-SUMIFS(MoveQty,MoveCode,$A10,MoveDate,\">=\"&$S$2,MoveDate,\"<\"&$S$3+1,MoveType,\"Usage\")","v":350.72},{"$f":"SUMIFS(MoveQty,MoveCode,$A10,MoveDate,\">=\"&$S$2,MoveDate,\"<\"&$S$3+1,MoveType,\"Adjustment\")","v":-3.2800000000000007},{"$f":"SUMIFS(MoveAmount,MoveCode,$A10,MoveDate,\">=\"&$S$2,MoveDate,\"<\"&$S$3+1,MoveType,\"Purchase\")","v":13080},{"$f":"-SUMIFS(MoveAmount,MoveCode,$A10,MoveDate,\">=\"&$S$2,MoveDate,\"<\"&$S$3+1,MoveType,\"Usage\")","v":14327.241695807948},{"$f":"SUMIFS(MoveAmount,MoveCode,$A10,MoveDate,\">=\"&$S$2,MoveDate,\"<\"&$S$3+1,MoveType,\"Adjustment\")","v":-135.39481637517406},135.39481637517406,{"$f":"SUMIFS(MovePrice,MoveCode,$A10,MoveDate,\">=\"&$S$2,MoveDate,\"<\"&$S$3+1,MoveType,\"Purchase\")","v":-479.73982629394027},479.73982629394027]
["RM1010","Lettuce","Kg",10,5,"-",50,1.0000000000000018,5.0792173841536918,5.0792173841537007,10,64,-72.12,-0.88,50,336,-376.42596802917603,-4.4948145866702554,{"$f":"SUMIFS(MoveQty,MoveCode,$A11,MoveDate,\">=\"&$S$2,MoveDate,\"<\"&$S$3+1,MoveType,\"Purchase\")","v":64},{"$f":"-SUMIFS(MoveQty,MoveCode,$A11,MoveDate,\">=\"&$S$2,MoveDate,\"<\"&$S$3+1,MoveType,\"Usage\")","v":72.12},{"$f":"SUMIFS(MoveQty,MoveCode,$A11,MoveDate,\">=\"&$S$2,MoveDate,\"<\"&$S$3+1,MoveType,\"Adjustment\")","v":-0.88},{"$f":"SUMIFS(MoveAmount,MoveCode,$A11,MoveDate,\">=\"&$S$2,MoveDate,\"<\"&$S$3+1,MoveType,\"Purchase\")","v":336},{"$f":"-SUMIFS(MoveAmount,MoveCode,$A11,MoveDate,\">=\"&$S$2,MoveDate,\"<\"&$S$3+1,MoveType,\"Usage\")","v":376.42596802917603},{"$f":"SUMIFS(MoveAmount,MoveCode,$A11,MoveDate,\">=\"&$S$2,MoveDate,\"<\"&$S$3+1,MoveType,\"Adjustment\")","v":-4.4948145866702554},4.4948145866702554,{"$f":"SUMIFS(MovePrice,MoveCode,$A11,MoveDate,\">=\"&$S$2,MoveDate,\"<\"&$S$3+1,MoveType,\"Purchase\")","v":-5.242902385796981},5.242902385796981]
["RM1020","Gurkins","Kg",10,8,"-",80,77.739999999999995,8.345286455016522,648.76256901298439,10,26,-33.519999999999996,75.260000000000005,80,252.60000000000002,-272.66931078463671,588.83187979762113,{"$f":"SUMIFS(MoveQty,MoveCode,$A12,MoveDate,\">=\"&$S$2,MoveDate,\"<\"&$S$3+1,MoveType,\"Purchase\")","v":26},{"$f":"-SUMIFS(MoveQty,MoveCode,$A12,MoveDate,\">=\"&$S$2,MoveDate,\"<\"&$S$3+1,MoveType,\"Usage\")","v":33.519999999999996},{"$f":"SUMIFS(MoveQty,MoveCode,$A12,MoveDate,\">=\"&$S$2,MoveDate,\"<\"&$S$3+1,MoveType,\"Adjustment\")","v":75.260000000000005},{"$f":"SUMIFS(MoveAmount,MoveCode,$A12,MoveDate,\">=\"&$S$2,MoveDate,\"<\"&$S$3+1,MoveType,\"Purchase\")","v":252.60000000000002},{"$f":"-SUMIFS(MoveAmount,MoveCode,$A12,MoveDate,\">=\"&$S$2,MoveDate,\"<\"&$S$3+1,MoveType,\"Usage\")","v":272.66931078463671},{"$f":"SUMIFS(MoveAmount,MoveCode,$A12,MoveDate,\">=\"&$S$2,MoveDate,\"<\"&$S$3+1,MoveType,\"Adjustment\")","v":588.83187979762113},588.83187979762113,{"$f":"SUMIFS(MovePrice,MoveCode,$A12,MoveDate,\">=\"&$S$2,MoveDate,\"<\"&$S$3+1,MoveType,\"Purchase\")","v":-44.813021967953631},44.813021967953631]
["RM1025","Onions","Kg",15,10,"-",150,0.99999999999999822,23.24537956304809,23.245379563048047,15,74,-87.06,-0.94,150,1006,-1118.7975358059257,-13.957084631026166,{"$f":"SUMIFS(MoveQty,MoveCode,$A13,MoveDate,\">=\"&$S$2,MoveDate,\"<\"&$S$3+1,MoveType,\"Purchase\")","v":74},{"$f":"-SUMIFS(MoveQty,MoveCode,$A13,MoveDate,\">=\"&$S$2,MoveDate,\"<\"&$S$3+1,MoveType,\"Usage\")","v":87.06},{"$f":"SUMIFS(MoveQty,MoveCode,$A13,MoveDate,\">=\"&$S$2,MoveDate,\"<\"&$S$3+1,MoveType,\"Adjustment\")","v":-0.94},{"$f":"SUMIFS(MoveAmount,MoveCode,$A13,MoveDate,\">=\"&$S$2,MoveDate,\"<\"&$S$3+1,MoveType,\"Purchase\")","v":1006},{"$f":"-SUMIFS(MoveAmount,MoveCode,$A13,MoveDate,\">=\"&$S$2,MoveDate,\"<\"&$S$3+1,MoveType,\"Usage\")","v":1118.7975358059257},{"$f":"SUMIFS(MoveAmount,MoveCode,$A13,MoveDate,\">=\"&$S$2,MoveDate,\"<\"&$S$3+1,MoveType,\"Adjustment\")","v":-13.957084631026166},13.957084631026166,{"$f":"SUMIFS(MovePrice,MoveCode,$A13,MoveDate,\">=\"&$S$2,MoveDate,\"<\"&$S$3+1,MoveType,\"Purchase\")","v":-409.80759601286627},409.80759601286627]

{"sheet":"Movements","index":4,"n_rows":148,"n_cols":20,"rows_kept":148,"cut":false,"hidden":true,"merged":[]}
["Stock Movements"]
["Record Inventory Movement Transactions"]
["© www.excel-skills.com",null,null,null,null,null,{"$f":"SUBTOTAL(109,InvMovement[[#Data],[Invoice Amount]])","v":212244.59999999998},null,null,null,null,null,null,null,{"$f":"SUBTOTAL(109,InvMovement[[#Data],[Transaction Value]])","v":13368.063491967647},null,{"$f":"SUBTOTAL(109,InvMovement[[#Data],[Unit Price Variance]])","v":-228.22167782027199}]
["Transaction Date","Transaction Type","Supplier Name","Document Number","Stock Code","Transaction Quantity","Invoice Amount","Error Code","Stock Description","UOM","Quantity on Hand: Prev","Quantity on Hand: New","Average Cost: Prev","Average Cost: New","Transaction Value","Purchase Price per Unit","Unit Price Variance","Price Variance %","Total Price Variance","Movement Date"]
["2021-07-07","Purchase","XY Packaging","IN0009","PM2000",5,105,{"$f":"IF(AND(ISBLANK(E5)=FALSE,ISNA(VLOOKUP(E5,StockCodeOnly,1,0))=TRUE),\"E2\",IF(AND(ISBLANK(B5)=FALSE,B5<>\"Purchase\",B5<>\"Usage\",B5<>\"Adjustment\"),\"E3\",IF(AND(B5=\"Usage\",F5>0),\"E4\",IF(OR(K5<0,L5<0),\"E5\",\"-\"))))","v":"-"},{"$f":"IF(ISNA(VLOOKUP($E5,StockCode[],COLUMN(StockCodes!$B$3),0))=TRUE,\"Invalid Stock Code\",VLOOKUP($E5,StockCode[],COLUMN(StockCodes!$B$3),0))","v":"Plastic Wrap"},{"$f":"IF(ISNA(VLOOKUP($E5,StockCode[],COLUMN(StockCodes!$C$3),0))=TRUE,\"-\",VLOOKUP($E5,StockCode[],COLUMN(StockCodes!$C$3),0))","v":"Rolls"},{"$f":"SUMIFS(StockOpenQty,StockCodeOnly,$E5)+SUMIFS(MoveQty,MoveDate,\"<\"&$T5,MoveCode,$E5)","v":2},{"$f":"K5+F5","v":7},{"$f":"IF($K5=0,0,((SUMIFS(StockOpenQty,StockCodeOnly,$E5)*SUMIFS(StockOpenCost,StockCodeOnly,$E5))+SUMIFS(MoveAmount,MoveDate,\"<\"&$T5,MoveCode,$E5))/$K5)","v":20},{"$f":"IF(B5<>\"Purchase\",M5,IF(L5=0,0,((K5*M5)+G5)/(F5+K5)))","v":20.714285714285715},{"$f":"IF(B5=\"Purchase\",G5,N5*F5)","v":105},{"$f":"IF(B5<>\"Purchase\",0,IF(F5=0,0,G5/F5))","v":21},{"$f":"IF(B5<>\"Purchase\",0,IF(K5=0,0,M5-P5))","v":-1},{"$f":"IF(B5<>\"Purchase\",0,IF(M5=0,0,Q5/M5))","v":-0.05},{"$f":"Q5*F5","v":-5},{"$f":"IF(ISBLANK($A5)=TRUE,TODAY()+((ROW($A5)-(86400*ROUNDDOWN(ROW($A5)/86400,0)))/86400),$A5+((ROW($A5)-(86400*ROUNDDOWN(ROW($A5)/86400,0)))/86400))","v":"2021-07-07T00:00:05"}]
["2021-07-07","Purchase","QS Printers",76868,"PM2005",2,750,"-",{"$f":"IF(ISNA(VLOOKUP($E6,StockCode[],COLUMN(StockCodes!$B$3),0))=TRUE,\"Invalid Stock Code\",VLOOKUP($E6,StockCode[],COLUMN(StockCodes!$B$3),0))","v":"Labels"},{"$f":"IF(ISNA(VLOOKUP($E6,StockCode[],COLUMN(StockCodes!$C$3),0))=TRUE,\"-\",VLOOKUP($E6,StockCode[],COLUMN(StockCodes!$C$3),0))","v":1000},1,3,{"$f":"IF($K6=0,0,((SUMIFS(StockOpenQty,StockCodeOnly,$E6)*SUMIFS(StockOpenCost,StockCodeOnly,$E6))+SUMIFS(MoveAmount,MoveDate,\"<\"&$T6,MoveCode,$E6))/$K6)","v":350},366.66666666666669,750,375,-25,-7.1428571428571425E-2,-50,"2021-07-07T00:00:06"]
["2021-07-07","Purchase","ABC Packaging","INV999","PM2015",700,700,"-",{"$f":"IF(ISNA(VLOOKUP($E7,StockCode[],COLUMN(StockCodes!$B$3),0))=TRUE,\"Invalid Stock Code\",VLOOKUP($E7,StockCode[],COLUMN(StockCodes!$B$3),0))","v":"Boxes"},{"$f":"IF(ISNA(VLOOKUP($E7,StockCode[],COLUMN(StockCodes!$C$3),0))=TRUE,\"-\",VLOOKUP($E7,StockCode[],COLUMN(StockCodes!$C$3),0))","v":"Units"},600,1300,{"$f":"IF($K7=0,0,((SUMIFS(StockOpenQty,StockCodeOnly,$E7)*SUMIFS(StockOpenCost,StockCodeOnly,$E7))+SUMIFS(MoveAmount,MoveDate,\"<\"&$T7,MoveCode,$E7))/$K7)","v":1.2},1.0923076923076922,700,1,0.19999999999999996,0.16666666666666663,139.99999999999997,"2021-07-07T00:00:07"]
["2021-07-07","Purchase","WW Butchery",5765765,"RM1000",400,21760,"-",{"$f":"IF(ISNA(VLOOKUP($E8,StockCode[],COLUMN(StockCodes!$B$3),0))=TRUE,\"Invalid Stock Code\",VLOOKUP($E8,StockCode[],COLUMN(StockCodes!$B$3),0))","v":"Meat"},{"$f":"IF(ISNA(VLOOKUP($E8,StockCode[],COLUMN(StockCodes!$C$3),0))=TRUE,\"-\",VLOOKUP($E8,StockCode[],COLUMN(StockCodes!$C$3),0))","v":"Kg"},300,700,{"$f":"IF($K8=0,0,((SUMIFS(StockOpenQty,StockCodeOnly,$E8)*SUMIFS(StockOpenCost,StockCodeOnly,$E8))+SUMIFS(MoveAmount,MoveDate,\"<\"&$T8,MoveCode,$E8))/$K8)","v":50},52.514285714285712,21760,54.4,-4.3999999999999986,-8.7999999999999967E-2,-1759.9999999999995,"2021-07-07T00:00:08"]
["2021-07-07","Purchase","Aurora Bakery",67887,"RM1005",45,1800,"-",{"$f":"IF(ISNA(VLOOKUP($E9,StockCode[],COLUMN(StockCodes!$B$3),0))=TRUE,\"Invalid Stock Code\",VLOOKUP($E9,StockCode[],COLUMN(StockCodes!$B$3),0))","v":"Bread Rolls"},{"$f":"IF(ISNA(VLOOKUP($E9,StockCode[],COLUMN(StockCodes!$C$3),0))=TRUE,\"-\",VLOOKUP($E9,StockCode[],COLUMN(StockCodes!$C$3),0))","v":"Dozen"},50,95,{"$f":"IF($K9=0,0,((SUMIFS(StockOpenQty,StockCodeOnly,$E9)*SUMIFS(StockOpenCost,StockCodeOnly,$E9))+SUMIFS(MoveAmount,MoveDate,\"<\"&$T9,MoveCode,$E9))/$K9)","v":36},37.89473684210526,1800,40,-4,-0.1111111111111111,-180,"2021-07-07T00:00:09"]
["2021-07-07","Purchase","Fruit & Veg","IN0009","RM1010",11,59,"-",{"$f":"IF(ISNA(VLOOKUP($E10,StockCode[],COLUMN(StockCodes!$B$3),0))=TRUE,\"Invalid Stock Code\",VLOOKUP($E10,StockCode[],COLUMN(StockCodes!$B$3),0))","v":"Lettuce"},{"$f":"IF(ISNA(VLOOKUP($E10,StockCode[],COLUMN(StockCodes!$C$3),0))=TRUE,\"-\",VLOOKUP($E10,StockCode[],COLUMN(StockCodes!$C$3),0))","v":"Kg"},10,21,{"$f":"IF($K10=0,0,((SUMIFS(StockOpenQty,StockCodeOnly,$E10)*SUMIFS(StockOpenCost,StockCodeOnly,$E10))+SUMIFS(MoveAmount,MoveDate,\"<\"&$T10,MoveCode,$E10))/$K10)","v":5},5.1904761904761907,59,5.3636363636363633,-0.36363636363636331,-7.2727272727272668E-2,-3.9999999999999964,"2021-07-07T00:00:10"]
["2021-07-07","Purchase","Fruit & Veg",76868,"RM1020",9,75,"-",{"$f":"IF(ISNA(VLOOKUP($E11,StockCode[],COLUMN(StockCodes!$B$3),0))=TRUE,\"Invalid Stock Code\",VLOOKUP($E11,StockCode[],COLUMN(StockCodes!$B$3),0))","v":"Gurkins"},{"$f":"IF(ISNA(VLOOKUP($E11,StockCode[],COLUMN(StockCodes!$C$3),0))=TRUE,\"-\",VLOOKUP($E11,StockCode[],COLUMN(StockCodes!$C$3),0))","v":"Kg"},10,19,{"$f":"IF($K11=0,0,((SUMIFS(StockOpenQty,StockCodeOnly,$E11)*SUMIFS(StockOpenCost,StockCodeOnly,$E11))+SUMIFS(MoveAmount,MoveDate,\"<\"&$T11,MoveCode,$E11))/$K11)","v":8},8.1578947368421044,75,8.3333333333333339,-0.33333333333333393,-4.1666666666666741E-2,-3.0000000000000053,"2021-07-07T00:00:11"]
["2021-07-07","Purchase","Fruit & Veg","INV999","RM1025",20,0,"-",{"$f":"IF(ISNA(VLOOKUP($E12,StockCode[],COLUMN(StockCodes!$B$3),0))=TRUE,\"Invalid Stock Code\",VLOOKUP($E12,StockCode[],COLUMN(StockCodes!$B$3),0))","v":"Onions"},{"$f":"IF(ISNA(VLOOKUP($E12,StockCode[],COLUMN(StockCodes!$C$3),0))=TRUE,\"-\",VLOOKUP($E12,StockCode[],COLUMN(StockCodes!$C$3),0))","v":"Kg"},15,35,{"$f":"IF($K12=0,0,((SUMIFS(StockOpenQty,StockCodeOnly,$E12)*SUMIFS(StockOpenCost,StockCodeOnly,$E12))+SUMIFS(MoveAmount,MoveDate,\"<\"&$T12,MoveCode,$E12))/$K12)","v":10},4.2857142857142856,0,0,10,1,200,"2021-07-07T00:00:12"]
["2021-07-09","Usage","None","None","PM2000",-1.1100000000000001,0,"-",{"$f":"IF(ISNA(VLOOKUP($E13,StockCode[],COLUMN(StockCodes!$B$3),0))=TRUE,\"Invalid Stock Code\",VLOOKUP($E13,StockCode[],COLUMN(StockCodes!$B$3),0))","v":"Plastic Wrap"},{"$f":"IF(ISNA(VLOOKUP($E13,StockCode[],COLUMN(StockCodes!$C$3),0))=TRUE,\"-\",VLOOKUP($E13,StockCode[],COLUMN(StockCodes!$C$3),0))","v":"Rolls"},7,5.89,{"$f":"IF($K13=0,0,((SUMIFS(StockOpenQty,StockCodeOnly,$E13)*SUMIFS(StockOpenCost,StockCodeOnly,$E13))+SUMIFS(MoveAmount,MoveDate,\"<\"&$T13,MoveCode,$E13))/$K13)","v":20.714285714285715},20.714285714285715,-22.992857142857147,0,0,0,0,"2021-07-09T00:00:13"]
["2021-07-09","Usage","None","None","PM2005",-0.53,0,"-",{"$f":"IF(ISNA(VLOOKUP($E14,StockCode[],COLUMN(StockCodes!$B$3),0))=TRUE,\"Invalid Stock Code\",VLOOKUP($E14,StockCode[],COLUMN(StockCodes!$B$3),0))","v":"Labels"},{"$f":"IF(ISNA(VLOOKUP($E14,StockCode[],COLUMN(StockCodes!$C$3),0))=TRUE,\"-\",VLOOKUP($E14,StockCode[],COLUMN(StockCodes!$C$3),0))","v":1000},3,2.4699999999999998,{"$f":"IF($K14=0,0,((SUMIFS(StockOpenQty,StockCodeOnly,$E14)*SUMIFS(StockOpenCost,StockCodeOnly,$E14))+SUMIFS(MoveAmount,MoveDate,\"<\"&$T14,MoveCode,$E14))/$K14)","v":366.66666666666669},366.66666666666669,-194.33333333333334,0,0,0,0,"2021-07-09T00:00:14"]
["2021-07-09","Usage","None","None","PM2015",-526.32000000000005,0,"-",{"$f":"IF(ISNA(VLOOKUP($E15,StockCode[],COLUMN(StockCodes!$B$3),0))=TRUE,\"Invalid Stock Code\",VLOOKUP($E15,StockCode[],COLUMN(StockCodes!$B$3),0))","v":"Boxes"},{"$f":"IF(ISNA(VLOOKUP($E15,StockCode[],COLUMN(StockCodes!$C$3),0))=TRUE,\"-\",VLOOKUP($E15,StockCode[],COLUMN(StockCodes!$C$3),0))","v":"Units"},1300,773.68,{"$f":"IF($K15=0,0,((SUMIFS(StockOpenQty,StockCodeOnly,$E15)*SUMIFS(StockOpenCost,StockCodeOnly,$E15))+SUMIFS(MoveAmount,MoveDate,\"<\"&$T15,MoveCode,$E15))/$K15)","v":1.0923076923076922},1.0923076923076922,-574.90338461538465,0,0,0,0,"2021-07-09T00:00:15"]
["2021-07-09","Usage","None","None","RM1000",-250,0,"-",{"$f":"IF(ISNA(VLOOKUP($E16,StockCode[],COLUMN(StockCodes!$B$3),0))=TRUE,\"Invalid Stock Code\",VLOOKUP($E16,StockCode[],COLUMN(StockCodes!$B$3),0))","v":"Meat"},{"$f":"IF(ISNA(VLOOKUP($E16,StockCode[],COLUMN(StockCodes!$C$3),0))=TRUE,\"-\",VLOOKUP($E16,StockCode[],COLUMN(StockCodes!$C$3),0))","v":"Kg"},700,450,{"$f":"IF($K16=0,0,((SUMIFS(StockOpenQty,StockCodeOnly,$E16)*SUMIFS(StockOpenCost,StockCodeOnly,$E16))+SUMIFS(MoveAmount,MoveDate,\"<\"&$T16,MoveCode,$E16))/$K16)","v":52.514285714285712},52.514285714285712,-13128.571428571428,0,0,0,0,"2021-07-09T00:00:16"]
["2021-07-09","Usage","None","None","RM1005",-43.86,0,"-",{"$f":"IF(ISNA(VLOOKUP($E17,StockCode[],COLUMN(StockCodes!$B$3),0))=TRUE,\"Invalid Stock Code\",VLOOKUP($E17,StockCode[],COLUMN(StockCodes!$B$3),0))","v":"Bread Rolls"},{"$f":"IF(ISNA(VLOOKUP($E17,StockCode[],COLUMN(StockCodes!$C$3),0))=TRUE,\"-\",VLOOKUP($E17,StockCode[],COLUMN(StockCodes!$C$3),0))","v":"Dozen"},95,51.14,{"$f":"IF($K17=0,0,((SUMIFS(StockOpenQty,StockCodeOnly,$E17)*SUMIFS(StockOpenCost,StockCodeOnly,$E17))+SUMIFS(MoveAmount,MoveDate,\"<\"&$T17,MoveCode,$E17))/$K17)","v":37.89473684210526},37.89473684210526,-1662.0631578947366,0,0,0,0,"2021-07-09T00:00:17"]
["2021-07-09","Usage","None","None","RM1010",-5.56,0,"-",{"$f":"IF(ISNA(VLOOKUP($E18,StockCode[],COLUMN(StockCodes!$B$3),0))=TRUE,\"Invalid Stock Code\",VLOOKUP($E18,StockCode[],COLUMN(StockCodes!$B$3),0))","v":"Lettuce"},{"$f":"IF(ISNA(VLOOKUP($E18,StockCode[],COLUMN(StockCodes!$C$3),0))=TRUE,\"-\",VLOOKUP($E18,StockCode[],COLUMN(StockCodes!$C$3),0))","v":"Kg"},21,15.440000000000001,{"$f":"IF($K18=0,0,((SUMIFS(StockOpenQty,StockCodeOnly,$E18)*SUMIFS(StockOpenCost,StockCodeOnly,$E18))+SUMIFS(MoveAmount,MoveDate,\"<\"&$T18,MoveCode,$E18))/$K18)","v":5.1904761904761907},5.1904761904761907,-28.859047619047619,0,0,0,0,"2021-07-09T00:00:18"]
["2021-07-09","Usage","None","None","RM1020",-5.26,0,"-",{"$f":"IF(ISNA(VLOOKUP($E19,StockCode[],COLUMN(StockCodes!$B$3),0))=TRUE,\"Invalid Stock Code\",VLOOKUP($E19,StockCode[],COLUMN(StockCodes!$B$3),0))","v":"Gurkins"},{"$f":"IF(ISNA(VLOOKUP($E19,StockCode[],COLUMN(StockCodes!$C$3),0))=TRUE,\"-\",VLOOKUP($E19,StockCode[],COLUMN(StockCodes!$C$3),0))","v":"Kg"},19,13.74,{"$f":"IF($K19=0,0,((SUMIFS(StockOpenQty,StockCodeOnly,$E19)*SUMIFS(StockOpenCost,StockCodeOnly,$E19))+SUMIFS(MoveAmount,MoveDate,\"<\"&$T19,MoveCode,$E19))/$K19)","v":8.1578947368421044},8.1578947368421044,-42.910526315789468,0,0,0,0,"2021-07-09T00:00:19"]
["2021-07-09","Usage","None","None","RM1025",-10.53,0,"-",{"$f":"IF(ISNA(VLOOKUP($E20,StockCode[],COLUMN(StockCodes!$B$3),0))=TRUE,\"Invalid Stock Code\",VLOOKUP($E20,StockCode[],COLUMN(StockCodes!$B$3),0))","v":"Onions"},{"$f":"IF(ISNA(VLOOKUP($E20,StockCode[],COLUMN(StockCodes!$C$3),0))=TRUE,\"-\",VLOOKUP($E20,StockCode[],COLUMN(StockCodes!$C$3),0))","v":"Kg"},35,24.47,{"$f":"IF($K20=0,0,((SUMIFS(StockOpenQty,StockCodeOnly,$E20)*SUMIFS(StockOpenCost,StockCodeOnly,$E20))+SUMIFS(MoveAmount,MoveDate,\"<\"&$T20,MoveCode,$E20))/$K20)","v":4.2857142857142856},4.2857142857142856,-45.128571428571426,0,0,0,0,"2021-07-09T00:00:20"]
["2021-07-14","Purchase","XY Packaging","IN0009","PM2000",6,125,"-",{"$f":"IF(ISNA(VLOOKUP($E21,StockCode[],COLUMN(StockCodes!$B$3),0))=TRUE,\"Invalid Stock Code\",VLOOKUP($E21,StockCode[],COLUMN(StockCodes!$B$3),0))","v":"Plastic Wrap"},{"$f":"IF(ISNA(VLOOKUP($E21,StockCode[],COLUMN(StockCodes!$C$3),0))=TRUE,\"-\",VLOOKUP($E21,StockCode[],COLUMN(StockCodes!$C$3),0))","v":"Rolls"},5.89,11.89,{"$f":"IF($K21=0,0,((SUMIFS(StockOpenQty,StockCodeOnly,$E21)*SUMIFS(StockOpenCost,StockCodeOnly,$E21))+SUMIFS(MoveAmount,MoveDate,\"<\"&$T21,MoveCode,$E21))/$K21)","v":20.714285714285715},20.774360206656254,125,20.833333333333332,-0.11904761904761685,-5.7471264367815024E-3,-0.71428571428570109,"2021-07-14T00:00:21"]
["2021-07-14","Purchase","QS Printers",76868,"PM2005",2,750,"-",{"$f":"IF(ISNA(VLOOKUP($E22,StockCode[],COLUMN(StockCodes!$B$3),0))=TRUE,\"Invalid Stock Code\",VLOOKUP($E22,StockCode[],COLUMN(StockCodes!$B$3),0))","v":"Labels"},{"$f":"IF(ISNA(VLOOKUP($E22,StockCode[],COLUMN(StockCodes!$C$3),0))=TRUE,\"-\",VLOOKUP($E22,StockCode[],COLUMN(StockCodes!$C$3),0))","v":1000},2.4699999999999998,4.47,{"$f":"IF($K22=0,0,((SUMIFS(StockOpenQty,StockCodeOnly,$E22)*SUMIFS(StockOpenCost,StockCodeOnly,$E22))+SUMIFS(MoveAmount,MoveDate,\"<\"&$T22,MoveCode,$E22))/$K22)","v":366.66666666666669},370.39522744220727,750,375,-8.3333333333333144,-2.2727272727272676E-2,-16.666666666666629,"2021-07-14T00:00:22"]
["2021-07-14","Purchase","ABC Packaging","INV999","PM2015",600,595,"-",{"$f":"IF(ISNA(VLOOKUP($E23,StockCode[],COLUMN(StockCodes!$B$3),0))=TRUE,\"Invalid Stock Code\",VLOOKUP($E23,StockCode[],COLUMN(StockCodes!$B$3),0))","v":"Boxes"},{"$f":"IF(ISNA(VLOOKUP($E23,StockCode[],COLUMN(StockCodes!$C$3),0))=TRUE,\"-\",VLOOKUP($E23,StockCode[],COLUMN(StockCodes!$C$3),0))","v":"Units"},773.68,1373.6799999999998,{"$f":"IF($K23=0,0,((SUMIFS(StockOpenQty,StockCodeOnly,$E23)*SUMIFS(StockOpenCost,StockCodeOnly,$E23))+SUMIFS(MoveAmount,MoveDate,\"<\"&$T23,MoveCode,$E23))/$K23)","v":1.0923076923076924},1.0483494084390947,595,0.9916666666666667,0.10064102564102573,9.2136150234741851E-2,60.384615384615437,"2021-07-14T00:00:23"]
["2021-07-14","Purchase","WW Butchery",5765765,"RM1000",600,24320,"-",{"$f":"IF(ISNA(VLOOKUP($E24,StockCode[],COLUMN(StockCodes!$B$3),0))=TRUE,\"Invalid Stock Code\",VLOOKUP($E24,StockCode[],COLUMN(StockCodes!$B$3),0))","v":"Meat"},{"$f":"IF(ISNA(VLOOKUP($E24,StockCode[],COLUMN(StockCodes!$C$3),0))=TRUE,\"-\",VLOOKUP($E24,StockCode[],COLUMN(StockCodes!$C$3),0))","v":"Kg"},450,1050,{"$f":"IF($K24=0,0,((SUMIFS(StockOpenQty,StockCodeOnly,$E24)*SUMIFS(StockOpenCost,StockCodeOnly,$E24))+SUMIFS(MoveAmount,MoveDate,\"<\"&$T24,MoveCode,$E24))/$K24)","v":52.51428571428572},45.668027210884354,24320,40.533333333333331,11.980952380952388,0.22814653608995297,7188.571428571433,"2021-07-14T00:00:24"]
["2021-07-14","Purchase","Aurora Bakery",67887,"RM1005",40,1800,"-",{"$f":"IF(ISNA(VLOOKUP($E25,StockCode[],COLUMN(StockCodes!$B$3),0))=TRUE,\"Invalid Stock Code\",VLOOKUP($E25,StockCode[],COLUMN(StockCodes!$B$3),0))","v":"Bread Rolls"},{"$f":"IF(ISNA(VLOOKUP($E25,StockCode[],COLUMN(StockCodes!$C$3),0))=TRUE,\"-\",VLOOKUP($E25,StockCode[],COLUMN(StockCodes!$C$3),0))","v":"Dozen"},51.14,91.14,{"$f":"IF($K25=0,0,((SUMIFS(StockOpenQty,StockCodeOnly,$E25)*SUMIFS(StockOpenCost,StockCodeOnly,$E25))+SUMIFS(MoveAmount,MoveDate,\"<\"&$T25,MoveCode,$E25))/$K25)","v":37.894736842105267},41.013131908111291,1800,45,-7.1052631578947327,-0.18749999999999986,-284.21052631578931,"2021-07-14T00:00:25"]
["2021-07-14","Purchase","Fruit & Veg","IN0009","RM1010",10,49,"-",{"$f":"IF(ISNA(VLOOKUP($E26,StockCode[],COLUMN(StockCodes!$B$3),0))=TRUE,\"Invalid Stock Code\",VLOOKUP($E26,StockCode[],COLUMN(StockCodes!$B$3),0))","v":"Lettuce"},{"$f":"IF(ISNA(VLOOKUP($E26,StockCode[],COLUMN(StockCodes!$C$3),0))=TRUE,\"-\",VLOOKUP($E26,StockCode[],COLUMN(StockCodes!$C$3),0))","v":"Kg"},15.440000000000001,25.44,{"$f":"IF($K26=0,0,((SUMIFS(StockOpenQty,StockCodeOnly,$E26)*SUMIFS(StockOpenCost,StockCodeOnly,$E26))+SUMIFS(MoveAmount,MoveDate,\"<\"&$T26,MoveCode,$E26))/$K26)","v":5.1904761904761907},5.0762952979934113,49,4.9000000000000004,0.29047619047619033,5.5963302752293546E-2,2.9047619047619033,"2021-07-14T00:00:26"]
["2021-07-14","Purchase","Fruit & Veg",76868,"RM1020",2,16,"-",{"$f":"IF(ISNA(VLOOKUP($E27,StockCode[],COLUMN(StockCodes!$B$3),0))=TRUE,\"Invalid Stock Code\",VLOOKUP($E27,StockCode[],COLUMN(StockCodes!$B$3),0))","v":"Gurkins"},{"$f":"IF(ISNA(VLOOKUP($E27,StockCode[],COLUMN(StockCodes!$C$3),0))=TRUE,\"-\",VLOOKUP($E27,StockCode[],COLUMN(StockCodes!$C$3),0))","v":"Kg"},13.74,15.74,{"$f":"IF($K27=0,0,((SUMIFS(StockOpenQty,StockCodeOnly,$E27)*SUMIFS(StockOpenCost,StockCodeOnly,$E27))+SUMIFS(MoveAmount,MoveDate,\"<\"&$T27,MoveCode,$E27))/$K27)","v":8.1578947368421062},8.1378318732027015,16,8,0.1578947368421062,1.9354838709677531E-2,0.3157894736842124,"2021-07-14T00:00:27"]
["2021-07-14","Purchase","Fruit & Veg","INV999","RM1025",15,140,"-",{"$f":"IF(ISNA(VLOOKUP($E28,StockCode[],COLUMN(StockCodes!$B$3),0))=TRUE,\"Invalid Stock Code\",VLOOKUP($E28,StockCode[],COLUMN(StockCodes!$B$3),0))","v":"Onions"},{"$f":"IF(ISNA(VLOOKUP($E28,StockCode[],COLUMN(StockCodes!$C$3),0))=TRUE,\"-\",VLOOKUP($E28,StockCode[],COLUMN(StockCodes!$C$3),0))","v":"Kg"},24.47,39.47,{"$f":"IF($K28=0,0,((SUMIFS(StockOpenQty,StockCodeOnly,$E28)*SUMIFS(StockOpenCost,StockCodeOnly,$E28))+SUMIFS(MoveAmount,MoveDate,\"<\"&$T28,MoveCode,$E28))/$K28)","v":4.2857142857142856},6.2039885627420466,140,9.3333333333333339,-5.0476190476190483,-1.177777777777778,-75.714285714285722,"2021-07-14T00:00:28"]
["2021-07-16","Usage","None","None","PM2000",-2,0,"-",{"$f":"IF(ISNA(VLOOKUP($E29,StockCode[],COLUMN(StockCodes!$B$3),0))=TRUE,\"Invalid Stock Code\",VLOOKUP($E29,StockCode[],COLUMN(StockCodes!$B$3),0))","v":"Plastic Wrap"},{"$f":"IF(ISNA(VLOOKUP($E29,StockCode[],COLUMN(StockCodes!$C$3),0))=TRUE,\"-\",VLOOKUP($E29,StockCode[],COLUMN(StockCodes!$C$3),0))","v":"Rolls"},11.89,9.89,{"$f":"IF($K29=0,0,((SUMIFS(StockOpenQty,StockCodeOnly,$E29)*SUMIFS(StockOpenCost,StockCodeOnly,$E29))+SUMIFS(MoveAmount,MoveDate,\"<\"&$T29,MoveCode,$E29))/$K29)","v":20.774360206656254},20.774360206656254,-41.548720413312509,0,0,0,0,"2021-07-16T00:00:29"]
["2021-07-16","Usage","None","None","PM2005",-1,0,"-",{"$f":"IF(ISNA(VLOOKUP($E30,StockCode[],COLUMN(StockCodes!$B$3),0))=TRUE,\"Invalid Stock Code\",VLOOKUP($E30,StockCode[],COLUMN(StockCodes!$B$3),0))","v":"Labels"},{"$f":"IF(ISNA(VLOOKUP($E30,StockCode[],COLUMN(StockCodes!$C$3),0))=TRUE,\"-\",VLOOKUP($E30,StockCode[],COLUMN(StockCodes!$C$3),0))","v":1000},4.47,3.4699999999999998,{"$f":"IF($K30=0,0,((SUMIFS(StockOpenQty,StockCodeOnly,$E30)*SUMIFS(StockOpenCost,StockCodeOnly,$E30))+SUMIFS(MoveAmount,MoveDate,\"<\"&$T30,MoveCode,$E30))/$K30)","v":370.39522744220727},370.39522744220727,-370.39522744220727,0,0,0,0,"2021-07-16T00:00:30"]
["2021-07-16","Usage","None","None","PM2015",-635,0,"-",{"$f":"IF(ISNA(VLOOKUP($E31,StockCode[],COLUMN(StockCodes!$B$3),0))=TRUE,\"Invalid Stock Code\",VLOOKUP($E31,StockCode[],COLUMN(StockCodes!$B$3),0))","v":"Boxes"},{"$f":"IF(ISNA(VLOOKUP($E31,StockCode[],COLUMN(StockCodes!$C$3),0))=TRUE,\"-\",VLOOKUP($E31,StockCode[],COLUMN(StockCodes!$C$3),0))","v":"Units"},1373.6799999999998,738.67999999999984,{"$f":"IF($K31=0,0,((SUMIFS(StockOpenQty,StockCodeOnly,$E31)*SUMIFS(StockOpenCost,StockCodeOnly,$E31))+SUMIFS(MoveAmount,MoveDate,\"<\"&$T31,MoveCode,$E31))/$K31)","v":1.0483494084390945},1.0483494084390945,-665.70187435882497,0,0,0,0,"2021-07-16T00:00:31"]
["2021-07-16","Usage","None","None","RM1000",-350,0,"-",{"$f":"IF(ISNA(VLOOKUP($E32,StockCode[],COLUMN(StockCodes!$B$3),0))=TRUE,\"Invalid Stock Code\",VLOOKUP($E32,StockCode[],COLUMN(StockCodes!$B$3),0))","v":"Meat"},{"$f":"IF(ISNA(VLOOKUP($E32,StockCode[],COLUMN(StockCodes!$C$3),0))=TRUE,\"-\",VLOOKUP($E32,StockCode[],COLUMN(StockCodes!$C$3),0))","v":"Kg"},1050,700,{"$f":"IF($K32=0,0,((SUMIFS(StockOpenQty,StockCodeOnly,$E32)*SUMIFS(StockOpenCost,StockCodeOnly,$E32))+SUMIFS(MoveAmount,MoveDate,\"<\"&$T32,MoveCode,$E32))/$K32)","v":45.668027210884354},45.668027210884354,-15983.809523809525,0,0,0,0,"2021-07-16T00:00:32"]
["2021-07-16","Usage","None","None","RM1005",-56,0,"-",{"$f":"IF(ISNA(VLOOKUP($E33,StockCode[],COLUMN(StockCodes!$B$3),0))=TRUE,\"Invalid Stock Code\",VLOOKUP($E33,StockCode[],COLUMN(StockCodes!$B$3),0))","v":"Bread Rolls"},{"$f":"IF(ISNA(VLOOKUP($E33,StockCode[],COLUMN(StockCodes!$C$3),0))=TRUE,\"-\",VLOOKUP($E33,StockCode[],COLUMN(StockCodes!$C$3),0))","v":"Dozen"},91.14,35.14,{"$f":"IF($K33=0,0,((SUMIFS(StockOpenQty,StockCodeOnly,$E33)*SUMIFS(StockOpenCost,StockCodeOnly,$E33))+SUMIFS(MoveAmount,MoveDate,\"<\"&$T33,MoveCode,$E33))/$K33)","v":41.013131908111291},41.013131908111291,-2296.7353868542323,0,0,0,0,"2021-07-16T00:00:33"]
["2021-07-16","Usage","None","None","RM1010",-8,0,"-",{"$f":"IF(ISNA(VLOOKUP($E34,StockCode[],COLUMN(StockCodes!$B$3),0))=TRUE,\"Invalid Stock Code\",VLOOKUP($E34,StockCode[],COLUMN(StockCodes!$B$3),0))","v":"Lettuce"},{"$f":"IF(ISNA(VLOOKUP($E34,StockCode[],COLUMN(StockCodes!$C$3),0))=TRUE,\"-\",VLOOKUP($E34,StockCode[],COLUMN(StockCodes!$C$3),0))","v":"Kg"},25.44,17.440000000000001,{"$f":"IF($K34=0,0,((SUMIFS(StockOpenQty,StockCodeOnly,$E34)*SUMIFS(StockOpenCost,StockCodeOnly,$E34))+SUMIFS(MoveAmount,MoveDate,\"<\"&$T34,MoveCode,$E34))/$K34)","v":5.0762952979934113},5.0762952979934113,-40.61036238394729,0,0,0,0,"2021-07-16T00:00:34"]
["2021-07-16","Usage","None","None","RM1020",-3,0,"-",{"$f":"IF(ISNA(VLOOKUP($E35,StockCode[],COLUMN(StockCodes!$B$3),0))=TRUE,\"Invalid Stock Code\",VLOOKUP($E35,StockCode[],COLUMN(StockCodes!$B$3),0))","v":"Gurkins"},{"$f":"IF(ISNA(VLOOKUP($E35,StockCode[],COLUMN(StockCodes!$C$3),0))=TRUE,\"-\",VLOOKUP($E35,StockCode[],COLUMN(StockCodes!$C$3),0))","v":"Kg"},15.74,12.74,{"$f":"IF($K35=0,0,((SUMIFS(StockOpenQty,StockCodeOnly,$E35)*SUMIFS(StockOpenCost,StockCodeOnly,$E35))+SUMIFS(MoveAmount,MoveDate,\"<\"&$T35,MoveCode,$E35))/$K35)","v":8.1378318732027015},8.1378318732027015,-24.413495619608106,0,0,0,0,"2021-07-16T00:00:35"]
["2021-07-16","Usage","None","None","RM1025",-10,0,"-",{"$f":"IF(ISNA(VLOOKUP($E36,StockCode[],COLUMN(StockCodes!$B$3),0))=TRUE,\"Invalid Stock Code\",VLOOKUP($E36,StockCode[],COLUMN(StockCodes!$B$3),0))","v":"Onions"},{"$f":"IF(ISNA(VLOOKUP($E36,StockCode[],COLUMN(StockCodes!$C$3),0))=TRUE,\"-\",VLOOKUP($E36,StockCode[],COLUMN(StockCodes!$C$3),0))","v":"Kg"},39.47,29.47,{"$f":"IF($K36=0,0,((SUMIFS(StockOpenQty,StockCodeOnly,$E36)*SUMIFS(StockOpenCost,StockCodeOnly,$E36))+SUMIFS(MoveAmount,MoveDate,\"<\"&$T36,MoveCode,$E36))/$K36)","v":6.2039885627420466},6.2039885627420466,-62.039885627420468,0,0,0,0,"2021-07-16T00:00:36"]
["2021-07-21","Purchase","XY Packaging","IN0009","PM2000",4,78,{"$f":"IF(AND(ISBLANK(E37)=FALSE,ISNA(VLOOKUP(E37,StockCodeOnly,1,0))=TRUE),\"E2\",IF(AND(ISBLANK(B37)=FALSE,B37<>\"Purchase\",B37<>\"Usage\",B37<>\"Adjustment\"),\"E3\",IF(AND(B37=\"Usage\",F37>0),\"E4\",IF(OR(K37<0,L37<0),\"E5\",\"-\"))))","v":"-"},{"$f":"IF(ISNA(VLOOKUP($E37,StockCode[],COLUMN(StockCodes!$B$3),0))=TRUE,\"Invalid Stock Code\",VLOOKUP($E37,StockCode[],COLUMN(StockCodes!$B$3),0))","v":"Plastic Wrap"},{"$f":"IF(ISNA(VLOOKUP($E37,StockCode[],COLUMN(StockCodes!$C$3),0))=TRUE,\"-\",VLOOKUP($E37,StockCode[],COLUMN(StockCodes!$C$3),0))","v":"Rolls"},{"$f":"SUMIFS(StockOpenQty,StockCodeOnly,$E37)+SUMIFS(MoveQty,MoveDate,\"<\"&$T37,MoveCode,$E37)","v":9.89},{"$f":"K37+F37","v":13.89},{"$f":"IF($K37=0,0,((SUMIFS(StockOpenQty,StockCodeOnly,$E37)*SUMIFS(StockOpenCost,StockCodeOnly,$E37))+SUMIFS(MoveAmount,MoveDate,\"<\"&$T37,MoveCode,$E37))/$K37)","v":20.774360206656254},{"$f":"IF(B37<>\"Purchase\",M37,IF(L37=0,0,((K37*M37)+G37)/(F37+K37)))","v":20.407373826049703},{"$f":"IF(B37=\"Purchase\",G37,N37*F37)","v":78},{"$f":"IF(B37<>\"Purchase\",0,IF(F37=0,0,G37/F37))","v":19.5},{"$f":"IF(B37<>\"Purchase\",0,IF(K37=0,0,M37-P37))","v":1.2743602066562545},{"$f":"IF(B37<>\"Purchase\",0,IF(M37=0,0,Q37/M37))","v":6.1342933981087915E-2},{"$f":"Q37*F37","v":5.097440826625018},{"$f":"IF(ISBLANK($A37)=TRUE,TODAY()+((ROW($A37)-(86400*ROUNDDOWN(ROW($A37)/86400,0)))/86400),$A37+((ROW($A37)-(86400*ROUNDDOWN(ROW($A37)/86400,0)))/86400))","v":"2021-07-21T00:00:37"}]
["2021-07-21","Purchase","QS Printers",76868,"PM2005",2,800,"-",{"$f":"IF(ISNA(VLOOKUP($E38,StockCode[],COLUMN(StockCodes!$B$3),0))=TRUE,\"Invalid Stock Code\",VLOOKUP($E38,StockCode[],COLUMN(StockCodes!$B$3),0))","v":"Labels"},{"$f":"IF(ISNA(VLOOKUP($E38,StockCode[],COLUMN(StockCodes!$C$3),0))=TRUE,\"-\",VLOOKUP($E38,StockCode[],COLUMN(StockCodes!$C$3),0))","v":1000},3.4699999999999998,5.47,{"$f":"IF($K38=0,0,((SUMIFS(StockOpenQty,StockCodeOnly,$E38)*SUMIFS(StockOpenCost,StockCodeOnly,$E38))+SUMIFS(MoveAmount,MoveDate,\"<\"&$T38,MoveCode,$E38))/$K38)","v":370.39522744220733},381.21964154012056,800,400,-29.604772557792671,-7.9927521642842697E-2,-59.209545115585343,"2021-07-21T00:00:38"]
["2021-07-21","Purchase","ABC Packaging","INV999","PM2015",500,595,"-",{"$f":"IF(ISNA(VLOOKUP($E39,StockCode[],COLUMN(StockCodes!$B$3),0))=TRUE,\"Invalid Stock Code\",VLOOKUP($E39,StockCode[],COLUMN(StockCodes!$B$3),0))","v":"Boxes"},{"$f":"IF(ISNA(VLOOKUP($E39,StockCode[],COLUMN(StockCodes!$C$3),0))=TRUE,\"-\",VLOOKUP($E39,StockCode[],COLUMN(StockCodes!$C$3),0))","v":"Units"},738.68,1238.6799999999998,{"$f":"IF($K39=0,0,((SUMIFS(StockOpenQty,StockCodeOnly,$E39)*SUMIFS(StockOpenCost,StockCodeOnly,$E39))+SUMIFS(MoveAmount,MoveDate,\"<\"&$T39,MoveCode,$E39))/$K39)","v":1.0483494084390947},1.105527449402421,595,1.19,-0.1416505915609052,-0.13511772928055654,-70.825295780452606,"2021-07-21T00:00:39"]
["2021-07-21","Purchase","WW Butchery",5765765,"RM1000",500,23200,"-",{"$f":"IF(ISNA(VLOOKUP($E40,StockCode[],COLUMN(StockCodes!$B$3),0))=TRUE,\"Invalid Stock Code\",VLOOKUP($E40,StockCode[],COLUMN(StockCodes!$B$3),0))","v":"Meat"},{"$f":"IF(ISNA(VLOOKUP($E40,StockCode[],COLUMN(StockCodes!$C$3),0))=TRUE,\"-\",VLOOKUP($E40,StockCode[],COLUMN(StockCodes!$C$3),0))","v":"Kg"},700,1200,{"$f":"IF($K40=0,0,((SUMIFS(StockOpenQty,StockCodeOnly,$E40)*SUMIFS(StockOpenCost,StockCodeOnly,$E40))+SUMIFS(MoveAmount,MoveDate,\"<\"&$T40,MoveCode,$E40))/$K40)","v":45.668027210884354},45.973015873015875,23200,46.4,-0.73197278911564467,-1.6028123696597712E-2,-365.98639455782234,"2021-07-21T00:00:40"]
["2021-07-21","Purchase","Aurora Bakery",67887,"RM1005",40,1600,"-",{"$f":"IF(ISNA(VLOOKUP($E41,StockCode[],COLUMN(StockCodes!$B$3),0))=TRUE,\"Invalid Stock Code\",VLOOKUP($E41,StockCode[],COLUMN(StockCodes!$B$3),0))","v":"Bread Rolls"},{"$f":"IF(ISNA(VLOOKUP($E41,StockCode[],COLUMN(StockCodes!$C$3),0))=TRUE,\"-\",VLOOKUP($E41,StockCode[],COLUMN(StockCodes!$C$3),0))","v":"Dozen"},35.14,75.14,{"$f":"IF($K41=0,0,((SUMIFS(StockOpenQty,StockCodeOnly,$E41)*SUMIFS(StockOpenCost,StockCodeOnly,$E41))+SUMIFS(MoveAmount,MoveDate,\"<\"&$T41,MoveCode,$E41))/$K41)","v":41.013131908111298},40.47380164028521,1600,40,1.0131319081112977,2.4702622330359691E-2,40.525276324451909,"2021-07-21T00:00:41"]
["2021-07-21","Purchase","Fruit & Veg","IN0009","RM1010",7,42,"-",{"$f":"IF(ISNA(VLOOKUP($E42,StockCode[],COLUMN(StockCodes!$B$3),0))=TRUE,\"Invalid Stock Code\",VLOOKUP($E42,StockCode[],COLUMN(StockCodes!$B$3),0))","v":"Lettuce"},{"$f":"IF(ISNA(VLOOKUP($E42,StockCode[],COLUMN(StockCodes!$C$3),0))=TRUE,\"-\",VLOOKUP($E42,StockCode[],COLUMN(StockCodes!$C$3),0))","v":"Kg"},17.440000000000001,24.44,{"$f":"IF($K42=0,0,((SUMIFS(StockOpenQty,StockCodeOnly,$E42)*SUMIFS(StockOpenCost,StockCodeOnly,$E42))+SUMIFS(MoveAmount,MoveDate,\"<\"&$T42,MoveCode,$E42))/$K42)","v":5.0762952979934113},5.3408588378479989,42,6,-0.92370470200658872,-0.18196433575716453,-6.465932914046121,"2021-07-21T00:00:42"]
["2021-07-21","Purchase","Fruit & Veg",76868,"RM1020",1,12,"-",{"$f":"IF(ISNA(VLOOKUP($E43,StockCode[],COLUMN(StockCodes!$B$3),0))=TRUE,\"Invalid Stock Code\",VLOOKUP($E43,StockCode[],COLUMN(StockCodes!$B$3),0))","v":"Gurkins"},{"$f":"IF(ISNA(VLOOKUP($E43,StockCode[],COLUMN(StockCodes!$C$3),0))=TRUE,\"-\",VLOOKUP($E43,StockCode[],COLUMN(StockCodes!$C$3),0))","v":"Kg"},12.74,13.74,{"$f":"IF($K43=0,0,((SUMIFS(StockOpenQty,StockCodeOnly,$E43)*SUMIFS(StockOpenCost,StockCodeOnly,$E43))+SUMIFS(MoveAmount,MoveDate,\"<\"&$T43,MoveCode,$E43))/$K43)","v":8.1378318732027015},8.4189212565212816,12,12,-3.8621681267972985,-0.47459423922422656,-3.8621681267972985,"2021-07-21T00:00:43"]
["2021-07-21","Purchase","Fruit & Veg","INV999","RM1025",1,9,"-",{"$f":"IF(ISNA(VLOOKUP($E44,StockCode[],COLUMN(StockCodes!$B$3),0))=TRUE,\"Invalid Stock Code\",VLOOKUP($E44,StockCode[],COLUMN(StockCodes!$B$3),0))","v":"Onions"},{"$f":"IF(ISNA(VLOOKUP($E44,StockCode[],COLUMN(StockCodes!$C$3),0))=TRUE,\"-\",VLOOKUP($E44,StockCode[],COLUMN(StockCodes!$C$3),0))","v":"Kg"},29.47,30.47,{"$f":"IF($K44=0,0,((SUMIFS(StockOpenQty,StockCodeOnly,$E44)*SUMIFS(StockOpenCost,StockCodeOnly,$E44))+SUMIFS(MoveAmount,MoveDate,\"<\"&$T44,MoveCode,$E44))/$K44)","v":6.2039885627420466},6.2957513273386319,9,9,-2.7960114372579534,-0.45067965696283763,-2.7960114372579534,"2021-07-21T00:00:44"]
["2021-07-23","Usage","None","None","PM2000",-3,0,"-",{"$f":"IF(ISNA(VLOOKUP($E45,StockCode[],COLUMN(StockCodes!$B$3),0))=TRUE,\"Invalid Stock Code\",VLOOKUP($E45,StockCode[],COLUMN(StockCodes!$B$3),0))","v":"Plastic Wrap"},{"$f":"IF(ISNA(VLOOKUP($E45,StockCode[],COLUMN(StockCodes!$C$3),0))=TRUE,\"-\",VLOOKUP($E45,StockCode[],COLUMN(StockCodes!$C$3),0))","v":"Rolls"},13.89,10.89,{"$f":"IF($K45=0,0,((SUMIFS(StockOpenQty,StockCodeOnly,$E45)*SUMIFS(StockOpenCost,StockCodeOnly,$E45))+SUMIFS(MoveAmount,MoveDate,\"<\"&$T45,MoveCode,$E45))/$K45)","v":20.407373826049703},20.407373826049703,-61.222121478149106,0,0,0,0,"2021-07-23T00:00:45"]
["2021-07-23","Usage","None","None","PM2005",-2,0,"-",{"$f":"IF(ISNA(VLOOKUP($E46,StockCode[],COLUMN(StockCodes!$B$3),0))=TRUE,\"Invalid Stock Code\",VLOOKUP($E46,StockCode[],COLUMN(StockCodes!$B$3),0))","v":"Labels"},{"$f":"IF(ISNA(VLOOKUP($E46,StockCode[],COLUMN(StockCodes!$C$3),0))=TRUE,\"-\",VLOOKUP($E46,StockCode[],COLUMN(StockCodes!$C$3),0))","v":1000},5.47,3.4699999999999998,{"$f":"IF($K46=0,0,((SUMIFS(StockOpenQty,StockCodeOnly,$E46)*SUMIFS(StockOpenCost,StockCodeOnly,$E46))+SUMIFS(MoveAmount,MoveDate,\"<\"&$T46,MoveCode,$E46))/$K46)","v":381.21964154012056},381.21964154012056,-762.43928308024113,0,0,0,0,"2021-07-23T00:00:46"]
["2021-07-23","Usage","None","None","PM2015",-620,0,"-",{"$f":"IF(ISNA(VLOOKUP($E47,StockCode[],COLUMN(StockCodes!$B$3),0))=TRUE,\"Invalid Stock Code\",VLOOKUP($E47,StockCode[],COLUMN(StockCodes!$B$3),0))","v":"Boxes"},{"$f":"IF(ISNA(VLOOKUP($E47,StockCode[],COLUMN(StockCodes!$C$3),0))=TRUE,\"-\",VLOOKUP($E47,StockCode[],COLUMN(StockCodes!$C$3),0))","v":"Units"},1238.6799999999998,618.67999999999984,{"$f":"IF($K47=0,0,((SUMIFS(StockOpenQty,StockCodeOnly,$E47)*SUMIFS(StockOpenCost,StockCodeOnly,$E47))+SUMIFS(MoveAmount,MoveDate,\"<\"&$T47,MoveCode,$E47))/$K47)","v":1.1055274494024208},1.1055274494024208,-685.42701862950082,0,0,0,0,"2021-07-23T00:00:47"]
["2021-07-23","Usage","None","None","RM1000",-400,0,"-",{"$f":"IF(ISNA(VLOOKUP($E48,StockCode[],COLUMN(StockCodes!$B$3),0))=TRUE,\"Invalid Stock Code\",VLOOKUP($E48,StockCode[],COLUMN(StockCodes!$B$3),0))","v":"Meat"},{"$f":"IF(ISNA(VLOOKUP($E48,StockCode[],COLUMN(StockCodes!$C$3),0))=TRUE,\"-\",VLOOKUP($E48,StockCode[],COLUMN(StockCodes!$C$3),0))","v":"Kg"},1200,800,{"$f":"IF($K48=0,0,((SUMIFS(StockOpenQty,StockCodeOnly,$E48)*SUMIFS(StockOpenCost,StockCodeOnly,$E48))+SUMIFS(MoveAmount,MoveDate,\"<\"&$T48,MoveCode,$E48))/$K48)","v":45.973015873015875},45.973015873015875,-18389.20634920635,0,0,0,0,"2021-07-23T00:00:48"]
["2021-07-23","Usage","None","None","RM1005",-50,0,"-",{"$f":"IF(ISNA(VLOOKUP($E49,StockCode[],COLUMN(StockCodes!$B$3),0))=TRUE,\"Invalid Stock Code\",VLOOKUP($E49,StockCode[],COLUMN(StockCodes!$B$3),0))","v":"Bread Rolls"},{"$f":"IF(ISNA(VLOOKUP($E49,StockCode[],COLUMN(StockCodes!$C$3),0))=TRUE,\"-\",VLOOKUP($E49,StockCode[],COLUMN(StockCodes!$C$3),0))","v":"Dozen"},75.14,25.14,{"$f":"IF($K49=0,0,((SUMIFS(StockOpenQty,StockCodeOnly,$E49)*SUMIFS(StockOpenCost,StockCodeOnly,$E49))+SUMIFS(MoveAmount,MoveDate,\"<\"&$T49,MoveCode,$E49))/$K49)","v":40.47380164028521},40.47380164028521,-2023.6900820142605,0,0,0,0,"2021-07-23T00:00:49"]
["2021-07-23","Usage","None","None","RM1010",-12,0,"-",{"$f":"IF(ISNA(VLOOKUP($E50,StockCode[],COLUMN(StockCodes!$B$3),0))=TRUE,\"Invalid Stock Code\",VLOOKUP($E50,StockCode[],COLUMN(StockCodes!$B$3),0))","v":"Lettuce"},{"$f":"IF(ISNA(VLOOKUP($E50,StockCode[],COLUMN(StockCodes!$C$3),0))=TRUE,\"-\",VLOOKUP($E50,StockCode[],COLUMN(StockCodes!$C$3),0))","v":"Kg"},24.44,12.440000000000001,{"$f":"IF($K50=0,0,((SUMIFS(StockOpenQty,StockCodeOnly,$E50)*SUMIFS(StockOpenCost,StockCodeOnly,$E50))+SUMIFS(MoveAmount,MoveDate,\"<\"&$T50,MoveCode,$E50))/$K50)","v":5.3408588378479989},5.3408588378479989,-64.090306054175983,0,0,0,0,"2021-07-23T00:00:50"]
["2021-07-23","Usage","None","None","RM1020",-7,0,"-",{"$f":"IF(ISNA(VLOOKUP($E51,StockCode[],COLUMN(StockCodes!$B$3),0))=TRUE,\"Invalid Stock Code\",VLOOKUP($E51,StockCode[],COLUMN(StockCodes!$B$3),0))","v":"Gurkins"},{"$f":"IF(ISNA(VLOOKUP($E51,StockCode[],COLUMN(StockCodes!$C$3),0))=TRUE,\"-\",VLOOKUP($E51,StockCode[],COLUMN(StockCodes!$C$3),0))","v":"Kg"},13.74,6.74,{"$f":"IF($K51=0,0,((SUMIFS(StockOpenQty,StockCodeOnly,$E51)*SUMIFS(StockOpenCost,StockCodeOnly,$E51))+SUMIFS(MoveAmount,MoveDate,\"<\"&$T51,MoveCode,$E51))/$K51)","v":8.4189212565212816},8.4189212565212816,-58.932448795648973,0,0,0,0,"2021-07-23T00:00:51"]
["2021-07-23","Usage","None","None","RM1025",-14,0,"-",{"$f":"IF(ISNA(VLOOKUP($E52,StockCode[],COLUMN(StockCodes!$B$3),0))=TRUE,\"Invalid Stock Code\",VLOOKUP($E52,StockCode[],COLUMN(StockCodes!$B$3),0))","v":"Onions"},{"$f":"IF(ISNA(VLOOKUP($E52,StockCode[],COLUMN(StockCodes!$C$3),0))=TRUE,\"-\",VLOOKUP($E52,StockCode[],COLUMN(StockCodes!$C$3),0))","v":"Kg"},30.47,16.47,{"$f":"IF($K52=0,0,((SUMIFS(StockOpenQty,StockCodeOnly,$E52)*SUMIFS(StockOpenCost,StockCodeOnly,$E52))+SUMIFS(MoveAmount,MoveDate,\"<\"&$T52,MoveCode,$E52))/$K52)","v":6.2957513273386319},6.2957513273386319,-88.140518582740839,0,0,0,0,"2021-07-23T00:00:52"]
["2021-07-28","Purchase","XY Packaging","IN0009","PM2000",2,42,"-",{"$f":"IF(ISNA(VLOOKUP($E53,StockCode[],COLUMN(StockCodes!$B$3),0))=TRUE,\"Invalid Stock Code\",VLOOKUP($E53,StockCode[],COLUMN(StockCodes!$B$3),0))","v":"Plastic Wrap"},{"$f":"IF(ISNA(VLOOKUP($E53,StockCode[],COLUMN(StockCodes!$C$3),0))=TRUE,\"-\",VLOOKUP($E53,StockCode[],COLUMN(StockCodes!$C$3),0))","v":"Rolls"},10.89,12.89,{"$f":"IF($K53=0,0,((SUMIFS(StockOpenQty,StockCodeOnly,$E53)*SUMIFS(StockOpenCost,StockCodeOnly,$E53))+SUMIFS(MoveAmount,MoveDate,\"<\"&$T53,MoveCode,$E53))/$K53)","v":20.407373826049703},20.499325133101728,42,21,-0.59262617395029693,-2.9039805856538904E-2,-1.1852523479005939,"2021-07-28T00:00:53"]
["2021-07-28","Purchase","QS Printers",76868,"PM2005",1,410,"-",{"$f":"IF(ISNA(VLOOKUP($E54,StockCode[],COLUMN(StockCodes!$B$3),0))=TRUE,\"Invalid Stock Code\",VLOOKUP($E54,StockCode[],COLUMN(StockCodes!$B$3),0))","v":"Labels"},{"$f":"IF(ISNA(VLOOKUP($E54,StockCode[],COLUMN(StockCodes!$C$3),0))=TRUE,\"-\",VLOOKUP($E54,StockCode[],COLUMN(StockCodes!$C$3),0))","v":1000},3.4699999999999998,4.47,{"$f":"IF($K54=0,0,((SUMIFS(StockOpenQty,StockCodeOnly,$E54)*SUMIFS(StockOpenCost,StockCodeOnly,$E54))+SUMIFS(MoveAmount,MoveDate,\"<\"&$T54,MoveCode,$E54))/$K54)","v":381.21964154012051},387.65820047969089,410,410,-28.780358459879494,-7.5495476423007385E-2,-28.780358459879494,"2021-07-28T00:00:54"]
["2021-07-28","Purchase","ABC Packaging","INV999","PM2015",400,390,"-",{"$f":"IF(ISNA(VLOOKUP($E55,StockCode[],COLUMN(StockCodes!$B$3),0))=TRUE,\"Invalid Stock Code\",VLOOKUP($E55,StockCode[],COLUMN(StockCodes!$B$3),0))","v":"Boxes"},{"$f":"IF(ISNA(VLOOKUP($E55,StockCode[],COLUMN(StockCodes!$C$3),0))=TRUE,\"-\",VLOOKUP($E55,StockCode[],COLUMN(StockCodes!$C$3),0))","v":"Units"},618.67999999999995,1018.68,{"$f":"IF($K55=0,0,((SUMIFS(StockOpenQty,StockCodeOnly,$E55)*SUMIFS(StockOpenCost,StockCodeOnly,$E55))+SUMIFS(MoveAmount,MoveDate,\"<\"&$T55,MoveCode,$E55))/$K55)","v":1.1055274494024208},1.0542738862020358,390,0.97499999999999998,0.13052744940242078,0.11806803121259069,52.210979760968314,"2021-07-28T00:00:55"]
["2021-07-28","Purchase","WW Butchery",5765765,"RM1000",380,18300,"-",{"$f":"IF(ISNA(VLOOKUP($E56,StockCode[],COLUMN(StockCodes!$B$3),0))=TRUE,\"Invalid Stock Code\",VLOOKUP($E56,StockCode[],COLUMN(StockCodes!$B$3),0))","v":"Meat"},{"$f":"IF(ISNA(VLOOKUP($E56,StockCode[],COLUMN(StockCodes!$C$3),0))=TRUE,\"-\",VLOOKUP($E56,StockCode[],COLUMN(StockCodes!$C$3),0))","v":"Kg"},800,1180,{"$f":"IF($K56=0,0,((SUMIFS(StockOpenQty,StockCodeOnly,$E56)*SUMIFS(StockOpenCost,StockCodeOnly,$E56))+SUMIFS(MoveAmount,MoveDate,\"<\"&$T56,MoveCode,$E56))/$K56)","v":45.973015873015868},46.676620930858213,18300,48.157894736842103,-2.1848788638262349,-4.7525245458361641E-2,-830.25396825396922,"2021-07-28T00:00:56"]
["2021-07-28","Purchase","Aurora Bakery",67887,"RM1005",32,1340,"-",{"$f":"IF(ISNA(VLOOKUP($E57,StockCode[],COLUMN(StockCodes!$B$3),0))=TRUE,\"Invalid Stock Code\",VLOOKUP($E57,StockCode[],COLUMN(StockCodes!$B$3),0))","v":"Bread Rolls"},{"$f":"IF(ISNA(VLOOKUP($E57,StockCode[],COLUMN(StockCodes!$C$3),0))=TRUE,\"-\",VLOOKUP($E57,StockCode[],COLUMN(StockCodes!$C$3),0))","v":"Dozen"},25.14,57.14,{"$f":"IF($K57=0,0,((SUMIFS(StockOpenQty,StockCodeOnly,$E57)*SUMIFS(StockOpenCost,StockCodeOnly,$E57))+SUMIFS(MoveAmount,MoveDate,\"<\"&$T57,MoveCode,$E57))/$K57)","v":40.473801640285224},41.258511957241346,1340,41.875,-1.4011983597147761,-3.4619885034968059E-2,-44.838347510872836,"2021-07-28T00:00:57"]
["2021-07-28","Purchase","Fruit & Veg","IN0009","RM1010",4,18,"-",{"$f":"IF(ISNA(VLOOKUP($E58,StockCode[],COLUMN(StockCodes!$B$3),0))=TRUE,\"Invalid Stock Code\",VLOOKUP($E58,StockCode[],COLUMN(StockCodes!$B$3),0))","v":"Lettuce"},{"$f":"IF(ISNA(VLOOKUP($E58,StockCode[],COLUMN(StockCodes!$C$3),0))=TRUE,\"-\",VLOOKUP($E58,StockCode[],COLUMN(StockCodes!$C$3),0))","v":"Kg"},12.440000000000001,16.440000000000001,{"$f":"IF($K58=0,0,((SUMIFS(StockOpenQty,StockCodeOnly,$E58)*SUMIFS(StockOpenCost,StockCodeOnly,$E58))+SUMIFS(MoveAmount,MoveDate,\"<\"&$T58,MoveCode,$E58))/$K58)","v":5.3408588378479989},5.1362703128241547,18,4.5,0.84085883784799886,0.1574388807824787,3.3634353513919955,"2021-07-28T00:00:58"]
["2021-07-28","Purchase","Fruit & Veg",76868,"RM1020",1,3.8,"-",{"$f":"IF(ISNA(VLOOKUP($E59,StockCode[],COLUMN(StockCodes!$B$3),0))=TRUE,\"Invalid Stock Code\",VLOOKUP($E59,StockCode[],COLUMN(StockCodes!$B$3),0))","v":"Gurkins"},{"$f":"IF(ISNA(VLOOKUP($E59,StockCode[],COLUMN(StockCodes!$C$3),0))=TRUE,\"-\",VLOOKUP($E59,StockCode[],COLUMN(StockCodes!$C$3),0))","v":"Kg"},6.74,7.74,{"$f":"IF($K59=0,0,((SUMIFS(StockOpenQty,StockCodeOnly,$E59)*SUMIFS(StockOpenCost,StockCodeOnly,$E59))+SUMIFS(MoveAmount,MoveDate,\"<\"&$T59,MoveCode,$E59))/$K59)","v":8.4189212565212834},7.8221614042575514,3.8,3.8,4.6189212565212836,0.54863575935497366,4.6189212565212836,"2021-07-28T00:00:59"]
["2021-07-28","Purchase","Fruit & Veg","INV999","RM1025",1,9,"-",{"$f":"IF(ISNA(VLOOKUP($E60,StockCode[],COLUMN(StockCodes!$B$3),0))=TRUE,\"Invalid Stock Code\",VLOOKUP($E60,StockCode[],COLUMN(StockCodes!$B$3),0))","v":"Onions"},{"$f":"IF(ISNA(VLOOKUP($E60,StockCode[],COLUMN(StockCodes!$C$3),0))=TRUE,\"-\",VLOOKUP($E60,StockCode[],COLUMN(StockCodes!$C$3),0))","v":"Kg"},16.47,17.47,{"$f":"IF($K60=0,0,((SUMIFS(StockOpenQty,StockCodeOnly,$E60)*SUMIFS(StockOpenCost,StockCodeOnly,$E60))+SUMIFS(MoveAmount,MoveDate,\"<\"&$T60,MoveCode,$E60))/$K60)","v":6.2957513273386327},6.4505451838161001,9,9,-2.7042486726613673,-0.42953549656868656,-2.7042486726613673,"2021-07-28T00:01:00"]
["2021-07-30","Usage","None","None","PM2000",-7,0,"-",{"$f":"IF(ISNA(VLOOKUP($E61,StockCode[],COLUMN(StockCodes!$B$3),0))=TRUE,\"Invalid Stock Code\",VLOOKUP($E61,StockCode[],COLUMN(StockCodes!$B$3),0))","v":"Plastic Wrap"},{"$f":"IF(ISNA(VLOOKUP($E61,StockCode[],COLUMN(StockCodes!$C$3),0))=TRUE,\"-\",VLOOKUP($E61,StockCode[],COLUMN(StockCodes!$C$3),0))","v":"Rolls"},12.89,5.8900000000000006,{"$f":"IF($K61=0,0,((SUMIFS(StockOpenQty,StockCodeOnly,$E61)*SUMIFS(StockOpenCost,StockCodeOnly,$E61))+SUMIFS(MoveAmount,MoveDate,\"<\"&$T61,MoveCode,$E61))/$K61)","v":20.499325133101728},20.499325133101728,-143.49527593171209,0,0,0,0,"2021-07-30T00:01:01"]
["2021-07-30","Usage","None","None","PM2005",-4,0,"-",{"$f":"IF(ISNA(VLOOKUP($E62,StockCode[],COLUMN(StockCodes!$B$3),0))=TRUE,\"Invalid Stock Code\",VLOOKUP($E62,StockCode[],COLUMN(StockCodes!$B$3),0))","v":"Labels"},{"$f":"IF(ISNA(VLOOKUP($E62,StockCode[],COLUMN(StockCodes!$C$3),0))=TRUE,\"-\",VLOOKUP($E62,StockCode[],COLUMN(StockCodes!$C$3),0))","v":1000},4.47,0.46999999999999975,{"$f":"IF($K62=0,0,((SUMIFS(StockOpenQty,StockCodeOnly,$E62)*SUMIFS(StockOpenCost,StockCodeOnly,$E62))+SUMIFS(MoveAmount,MoveDate,\"<\"&$T62,MoveCode,$E62))/$K62)","v":387.65820047969089},387.65820047969089,-1550.6328019187636,0,0,0,0,"2021-07-30T00:01:02"]
["2021-07-30","Usage","None","None","PM2015",-800,0,"-",{"$f":"IF(ISNA(VLOOKUP($E63,StockCode[],COLUMN(StockCodes!$B$3),0))=TRUE,\"Invalid Stock Code\",VLOOKUP($E63,StockCode[],COLUMN(StockCodes!$B$3),0))","v":"Boxes"},{"$f":"IF(ISNA(VLOOKUP($E63,StockCode[],COLUMN(StockCodes!$C$3),0))=TRUE,\"-\",VLOOKUP($E63,StockCode[],COLUMN(StockCodes!$C$3),0))","v":"Units"},1018.68,218.67999999999995,{"$f":"IF($K63=0,0,((SUMIFS(StockOpenQty,StockCodeOnly,$E63)*SUMIFS(StockOpenCost,StockCodeOnly,$E63))+SUMIFS(MoveAmount,MoveDate,\"<\"&$T63,MoveCode,$E63))/$K63)","v":1.0542738862020355},1.0542738862020355,-843.41910896162847,0,0,0,0,"2021-07-30T00:01:03"]
["2021-07-30","Usage","None","None","RM1000",-620,0,"-",{"$f":"IF(ISNA(VLOOKUP($E64,StockCode[],COLUMN(StockCodes!$B$3),0))=TRUE,\"Invalid Stock Code\",VLOOKUP($E64,StockCode[],COLUMN(StockCodes!$B$3),0))","v":"Meat"},{"$f":"IF(ISNA(VLOOKUP($E64,StockCode[],COLUMN(StockCodes!$C$3),0))=TRUE,\"-\",VLOOKUP($E64,StockCode[],COLUMN(StockCodes!$C$3),0))","v":"Kg"},1180,560,{"$f":"IF($K64=0,0,((SUMIFS(StockOpenQty,StockCodeOnly,$E64)*SUMIFS(StockOpenCost,StockCodeOnly,$E64))+SUMIFS(MoveAmount,MoveDate,\"<\"&$T64,MoveCode,$E64))/$K64)","v":46.676620930858213},46.676620930858213,-28939.504977132092,0,0,0,0,"2021-07-30T00:01:04"]
["2021-07-30","Usage","None","None","RM1005",-50,0,"-",{"$f":"IF(ISNA(VLOOKUP($E65,StockCode[],COLUMN(StockCodes!$B$3),0))=TRUE,\"Invalid Stock Code\",VLOOKUP($E65,StockCode[],COLUMN(StockCodes!$B$3),0))","v":"Bread Rolls"},{"$f":"IF(ISNA(VLOOKUP($E65,StockCode[],COLUMN(StockCodes!$C$3),0))=TRUE,\"-\",VLOOKUP($E65,StockCode[],COLUMN(StockCodes!$C$3),0))","v":"Dozen"},57.14,7.1400000000000006,{"$f":"IF($K65=0,0,((SUMIFS(StockOpenQty,StockCodeOnly,$E65)*SUMIFS(StockOpenCost,StockCodeOnly,$E65))+SUMIFS(MoveAmount,MoveDate,\"<\"&$T65,MoveCode,$E65))/$K65)","v":41.258511957241353},41.258511957241353,-2062.9255978620677,0,0,0,0,"2021-07-30T00:01:05"]
["2021-07-30","Usage","None","None","RM1010",-12,0,"-",{"$f":"IF(ISNA(VLOOKUP($E66,StockCode[],COLUMN(StockCodes!$B$3),0))=TRUE,\"Invalid Stock Code\",VLOOKUP($E66,StockCode[],COLUMN(StockCodes!$B$3),0))","v":"Lettuce"},{"$f":"IF(ISNA(VLOOKUP($E66,StockCode[],COLUMN(StockCodes!$C$3),0))=TRUE,\"-\",VLOOKUP($E66,StockCode[],COLUMN(StockCodes!$C$3),0))","v":"Kg"},16.440000000000001,4.4400000000000013,{"$f":"IF($K66=0,0,((SUMIFS(StockOpenQty,StockCodeOnly,$E66)*SUMIFS(StockOpenCost,StockCodeOnly,$E66))+SUMIFS(MoveAmount,MoveDate,\"<\"&$T66,MoveCode,$E66))/$K66)","v":5.1362703128241547},5.1362703128241547,-61.635243753889853,0,0,0,0,"2021-07-30T00:01:06"]
["2021-07-30","Usage","None","None","RM1020",-7,0,"-",{"$f":"IF(ISNA(VLOOKUP($E67,StockCode[],COLUMN(StockCodes!$B$3),0))=TRUE,\"Invalid Stock Code\",VLOOKUP($E67,StockCode[],COLUMN(StockCodes!$B$3),0))","v":"Gurkins"},{"$f":"IF(ISNA(VLOOKUP($E67,StockCode[],COLUMN(StockCodes!$C$3),0))=TRUE,\"-\",VLOOKUP($E67,StockCode[],COLUMN(StockCodes!$C$3),0))","v":"Kg"},7.74,0.74000000000000021,{"$f":"IF($K67=0,0,((SUMIFS(StockOpenQty,StockCodeOnly,$E67)*SUMIFS(StockOpenCost,StockCodeOnly,$E67))+SUMIFS(MoveAmount,MoveDate,\"<\"&$T67,MoveCode,$E67))/$K67)","v":7.8221614042575514},7.8221614042575514,-54.755129829802861,0,0,0,0,"2021-07-30T00:01:07"]
["2021-07-30","Usage","None","None","RM1025",-14,0,"-",{"$f":"IF(ISNA(VLOOKUP($E68,StockCode[],COLUMN(StockCodes!$B$3),0))=TRUE,\"Invalid Stock Code\",VLOOKUP($E68,StockCode[],COLUMN(StockCodes!$B$3),0))","v":"Onions"},{"$f":"IF(ISNA(VLOOKUP($E68,StockCode[],COLUMN(StockCodes!$C$3),0))=TRUE,\"-\",VLOOKUP($E68,StockCode[],COLUMN(StockCodes!$C$3),0))","v":"Kg"},17.47,3.4699999999999989,{"$f":"IF($K68=0,0,((SUMIFS(StockOpenQty,StockCodeOnly,$E68)*SUMIFS(StockOpenCost,StockCodeOnly,$E68))+SUMIFS(MoveAmount,MoveDate,\"<\"&$T68,MoveCode,$E68))/$K68)","v":6.4505451838161001},6.4505451838161001,-90.307632573425394,0,0,0,0,"2021-07-30T00:01:08"]
["2021-07-31","Adjustment","None","None","PM2000",-0.89,0,{"$f":"IF(AND(ISBLANK(E69)=FALSE,ISNA(VLOOKUP(E69,StockCodeOnly,1,0))=TRUE),\"E2\",IF(AND(ISBLANK(B69)=FALSE,B69<>\"Purchase\",B69<>\"Usage\",B69<>\"Adjustment\"),\"E3\",IF(AND(B69=\"Usage\",F69>0),\"E4\",IF(OR(K69<0,L69<0),\"E5\",\"-\"))))","v":"-"},{"$f":"IF(ISNA(VLOOKUP($E69,StockCode[],COLUMN(StockCodes!$B$3),0))=TRUE,\"Invalid Stock Code\",VLOOKUP($E69,StockCode[],COLUMN(StockCodes!$B$3),0))","v":"Plastic Wrap"},{"$f":"IF(ISNA(VLOOKUP($E69,StockCode[],COLUMN(StockCodes!$C$3),0))=TRUE,\"-\",VLOOKUP($E69,StockCode[],COLUMN(StockCodes!$C$3),0))","v":"Rolls"},{"$f":"SUMIFS(StockOpenQty,StockCodeOnly,$E69)+SUMIFS(MoveQty,MoveDate,\"<\"&$T69,MoveCode,$E69)","v":5.8900000000000006},{"$f":"K69+F69","v":5.0000000000000009},{"$f":"IF($K69=0,0,((SUMIFS(StockOpenQty,StockCodeOnly,$E69)*SUMIFS(StockOpenCost,StockCodeOnly,$E69))+SUMIFS(MoveAmount,MoveDate,\"<\"&$T69,MoveCode,$E69))/$K69)","v":20.499325133101728},{"$f":"IF(B69<>\"Purchase\",M69,IF(L69=0,0,((K69*M69)+G69)/(F69+K69)))","v":20.499325133101728},{"$f":"IF(B69=\"Purchase\",G69,N69*F69)","v":-18.244399368460538},{"$f":"IF(B69<>\"Purchase\",0,IF(F69=0,0,G69/F69))","v":0},{"$f":"IF(B69<>\"Purchase\",0,IF(K69=0,0,M69-P69))","v":0},{"$f":"IF(B69<>\"Purchase\",0,IF(M69=0,0,Q69/M69))","v":0},{"$f":"Q69*F69","v":0},{"$f":"IF(ISBLANK($A69)=TRUE,TODAY()+((ROW($A69)-(86400*ROUNDDOWN(ROW($A69)/86400,0)))/86400),$A69+((ROW($A69)-(86400*ROUNDDOWN(ROW($A69)/86400,0)))/86400))","v":"2021-07-31T00:01:09"}]
["2021-07-31","Adjustment","None","None","PM2005",-0.47,0,"-",{"$f":"IF(ISNA(VLOOKUP($E70,StockCode[],COLUMN(StockCodes!$B$3),0))=TRUE,\"Invalid Stock Code\",VLOOKUP($E70,StockCode[],COLUMN(StockCodes!$B$3),0))","v":"Labels"},{"$f":"IF(ISNA(VLOOKUP($E70,StockCode[],COLUMN(StockCodes!$C$3),0))=TRUE,\"-\",VLOOKUP($E70,StockCode[],COLUMN(StockCodes!$C$3),0))","v":1000},0.46999999999999975,0,{"$f":"IF($K70=0,0,((SUMIFS(StockOpenQty,StockCodeOnly,$E70)*SUMIFS(StockOpenCost,StockCodeOnly,$E70))+SUMIFS(MoveAmount,MoveDate,\"<\"&$T70,MoveCode,$E70))/$K70)","v":387.65820047969061},387.65820047969061,-182.19935422545458,0,0,0,0,"2021-07-31T00:01:10"]
["2021-07-31","Adjustment","None","None","PM2015",-8.6800000000000068,0,"-",{"$f":"IF(ISNA(VLOOKUP($E71,StockCode[],COLUMN(StockCodes!$B$3),0))=TRUE,\"Invalid Stock Code\",VLOOKUP($E71,StockCode[],COLUMN(StockCodes!$B$3),0))","v":"Boxes"},{"$f":"IF(ISNA(VLOOKUP($E71,StockCode[],COLUMN(StockCodes!$C$3),0))=TRUE,\"-\",VLOOKUP($E71,StockCode[],COLUMN(StockCodes!$C$3),0))","v":"Units"},218.67999999999995,209.99999999999994,{"$f":"IF($K71=0,0,((SUMIFS(StockOpenQty,StockCodeOnly,$E71)*SUMIFS(StockOpenCost,StockCodeOnly,$E71))+SUMIFS(MoveAmount,MoveDate,\"<\"&$T71,MoveCode,$E71))/$K71)","v":1.0542738862020355},1.0542738862020355,-9.1510973322336753,0,0,0,0,"2021-07-31T00:01:11"]
["2021-07-31","Adjustment","None","None","RM1000",-60,0,"-",{"$f":"IF(ISNA(VLOOKUP($E72,StockCode[],COLUMN(StockCodes!$B$3),0))=TRUE,\"Invalid Stock Code\",VLOOKUP($E72,StockCode[],COLUMN(StockCodes!$B$3),0))","v":"Meat"},{"$f":"IF(ISNA(VLOOKUP($E72,StockCode[],COLUMN(StockCodes!$C$3),0))=TRUE,\"-\",VLOOKUP($E72,StockCode[],COLUMN(StockCodes!$C$3),0))","v":"Kg"},560,500,{"$f":"IF($K72=0,0,((SUMIFS(StockOpenQty,StockCodeOnly,$E72)*SUMIFS(StockOpenCost,StockCodeOnly,$E72))+SUMIFS(MoveAmount,MoveDate,\"<\"&$T72,MoveCode,$E72))/$K72)","v":46.676620930858213},46.676620930858213,-2800.5972558514927,0,0,0,0,"2021-07-31T00:01:12"]
["2021-07-31","Adjustment","None","None","RM1005",-3.14,0,"-",{"$f":"IF(ISNA(VLOOKUP($E73,StockCode[],COLUMN(StockCodes!$B$3),0))=TRUE,\"Invalid Stock Code\",VLOOKUP($E73,StockCode[],COLUMN(StockCodes!$B$3),0))","v":"Bread Rolls"},{"$f":"IF(ISNA(VLOOKUP($E73,StockCode[],COLUMN(StockCodes!$C$3),0))=TRUE,\"-\",VLOOKUP($E73,StockCode[],COLUMN(StockCodes!$C$3),0))","v":"Dozen"},7.1400000000000006,4,{"$f":"IF($K73=0,0,((SUMIFS(StockOpenQty,StockCodeOnly,$E73)*SUMIFS(StockOpenCost,StockCodeOnly,$E73))+SUMIFS(MoveAmount,MoveDate,\"<\"&$T73,MoveCode,$E73))/$K73)","v":41.258511957241311},41.258511957241311,-129.55172754573772,0,0,0,0,"2021-07-31T00:01:13"]
["2021-07-31","Adjustment","None","None","RM1010",-0.44,0,"-",{"$f":"IF(ISNA(VLOOKUP($E74,StockCode[],COLUMN(StockCodes!$B$3),0))=TRUE,\"Invalid Stock Code\",VLOOKUP($E74,StockCode[],COLUMN(StockCodes!$B$3),0))","v":"Lettuce"},{"$f":"IF(ISNA(VLOOKUP($E74,StockCode[],COLUMN(StockCodes!$C$3),0))=TRUE,\"-\",VLOOKUP($E74,StockCode[],COLUMN(StockCodes!$C$3),0))","v":"Kg"},4.4400000000000013,4.0000000000000009,{"$f":"IF($K74=0,0,((SUMIFS(StockOpenQty,StockCodeOnly,$E74)*SUMIFS(StockOpenCost,StockCodeOnly,$E74))+SUMIFS(MoveAmount,MoveDate,\"<\"&$T74,MoveCode,$E74))/$K74)","v":5.1362703128241556},5.1362703128241556,-2.2599589376426286,0,0,0,0,"2021-07-31T00:01:14"]
["2021-07-31","Adjustment","None","None","RM1020",75,0,"-",{"$f":"IF(ISNA(VLOOKUP($E75,StockCode[],COLUMN(StockCodes!$B$3),0))=TRUE,\"Invalid Stock Code\",VLOOKUP($E75,StockCode[],COLUMN(StockCodes!$B$3),0))","v":"Gurkins"},{"$f":"IF(ISNA(VLOOKUP($E75,StockCode[],COLUMN(StockCodes!$C$3),0))=TRUE,\"-\",VLOOKUP($E75,StockCode[],COLUMN(StockCodes!$C$3),0))","v":"Kg"},0.74000000000000021,75.739999999999995,{"$f":"IF($K75=0,0,((SUMIFS(StockOpenQty,StockCodeOnly,$E75)*SUMIFS(StockOpenCost,StockCodeOnly,$E75))+SUMIFS(MoveAmount,MoveDate,\"<\"&$T75,MoveCode,$E75))/$K75)","v":7.8221614042575585},7.8221614042575585,586.66210531931688,0,0,0,0,"2021-07-31T00:01:15"]
["2021-07-31","Adjustment","None","None","RM1025",-0.47,0,"-",{"$f":"IF(ISNA(VLOOKUP($E76,StockCode[],COLUMN(StockCodes!$B$3),0))=TRUE,\"Invalid Stock Code\",VLOOKUP($E76,StockCode[],COLUMN(StockCodes!$B$3),0))","v":"Onions"},{"$f":"IF(ISNA(VLOOKUP($E76,StockCode[],COLUMN(StockCodes!$C$3),0))=TRUE,\"-\",VLOOKUP($E76,StockCode[],COLUMN(StockCodes!$C$3),0))","v":"Kg"},3.4699999999999989,2.9999999999999991,{"$f":"IF($K76=0,0,((SUMIFS(StockOpenQty,StockCodeOnly,$E76)*SUMIFS(StockOpenCost,StockCodeOnly,$E76))+SUMIFS(MoveAmount,MoveDate,\"<\"&$T76,MoveCode,$E76))/$K76)","v":6.4505451838161036},6.4505451838161036,-3.0317562363935684,0,0,0,0,"2021-07-31T00:01:16"]
["2021-08-04","Purchase","XY Packaging","IN0009","PM2000",5,105,"-",{"$f":"IF(ISNA(VLOOKUP($E77,StockCode[],COLUMN(StockCodes!$B$3),0))=TRUE,\"Invalid Stock Code\",VLOOKUP($E77,StockCode[],COLUMN(StockCodes!$B$3),0))","v":"Plastic Wrap"},{"$f":"IF(ISNA(VLOOKUP($E77,StockCode[],COLUMN(StockCodes!$C$3),0))=TRUE,\"-\",VLOOKUP($E77,StockCode[],COLUMN(StockCodes!$C$3),0))","v":"Rolls"},5,10,{"$f":"IF($K77=0,0,((SUMIFS(StockOpenQty,StockCodeOnly,$E77)*SUMIFS(StockOpenCost,StockCodeOnly,$E77))+SUMIFS(MoveAmount,MoveDate,\"<\"&$T77,MoveCode,$E77))/$K77)","v":20.499325133101728},20.749662566550864,105,21,-0.50067486689827234,-2.4423968284194721E-2,-2.5033743344913617,"2021-08-04T00:01:17"]
["2021-08-04","Purchase","QS Printers",76868,"PM2005",2,750,"-",{"$f":"IF(ISNA(VLOOKUP($E78,StockCode[],COLUMN(StockCodes!$B$3),0))=TRUE,\"Invalid Stock Code\",VLOOKUP($E78,StockCode[],COLUMN(StockCodes!$B$3),0))","v":"Labels"},{"$f":"IF(ISNA(VLOOKUP($E78,StockCode[],COLUMN(StockCodes!$C$3),0))=TRUE,\"-\",VLOOKUP($E78,StockCode[],COLUMN(StockCodes!$C$3),0))","v":1000},0,2,{"$f":"IF($K78=0,0,((SUMIFS(StockOpenQty,StockCodeOnly,$E78)*SUMIFS(StockOpenCost,StockCodeOnly,$E78))+SUMIFS(MoveAmount,MoveDate,\"<\"&$T78,MoveCode,$E78))/$K78)","v":0},375,750,375,0,0,0,"2021-08-04T00:01:18"]
["2021-08-04","Purchase","ABC Packaging","INV999","PM2015",700,700,"-",{"$f":"IF(ISNA(VLOOKUP($E79,StockCode[],COLUMN(StockCodes!$B$3),0))=TRUE,\"Invalid Stock Code\",VLOOKUP($E79,StockCode[],COLUMN(StockCodes!$B$3),0))","v":"Boxes"},{"$f":"IF(ISNA(VLOOKUP($E79,StockCode[],COLUMN(StockCodes!$C$3),0))=TRUE,\"-\",VLOOKUP($E79,StockCode[],COLUMN(StockCodes!$C$3),0))","v":"Units"},209.99999999999994,910,{"$f":"IF($K79=0,0,((SUMIFS(StockOpenQty,StockCodeOnly,$E79)*SUMIFS(StockOpenCost,StockCodeOnly,$E79))+SUMIFS(MoveAmount,MoveDate,\"<\"&$T79,MoveCode,$E79))/$K79)","v":1.0542738862020355},1.0125247429697004,700,1,5.4273886202035548E-2,5.1479873410840399E-2,37.99172034142488,"2021-08-04T00:01:19"]
["2021-08-04","Purchase","WW Butchery",5765765,"RM1000",400,21760,"-",{"$f":"IF(ISNA(VLOOKUP($E80,StockCode[],COLUMN(StockCodes!$B$3),0))=TRUE,\"Invalid Stock Code\",VLOOKUP($E80,StockCode[],COLUMN(StockCodes!$B$3),0))","v":"Meat"},{"$f":"IF(ISNA(VLOOKUP($E80,StockCode[],COLUMN(StockCodes!$C$3),0))=TRUE,\"-\",VLOOKUP($E80,StockCode[],COLUMN(StockCodes!$C$3),0))","v":"Kg"},500,900,{"$f":"IF($K80=0,0,((SUMIFS(StockOpenQty,StockCodeOnly,$E80)*SUMIFS(StockOpenCost,StockCodeOnly,$E80))+SUMIFS(MoveAmount,MoveDate,\"<\"&$T80,MoveCode,$E80))/$K80)","v":46.676620930858221},50.109233850476791,21760,54.4,-7.7233790691417781,-0.16546568528562447,-3089.3516276567111,"2021-08-04T00:01:20"]
["2021-08-04","Purchase","Aurora Bakery",67887,"RM1005",45,1800,"-",{"$f":"IF(ISNA(VLOOKUP($E81,StockCode[],COLUMN(StockCodes!$B$3),0))=TRUE,\"Invalid Stock Code\",VLOOKUP($E81,StockCode[],COLUMN(StockCodes!$B$3),0))","v":"Bread Rolls"},{"$f":"IF(ISNA(VLOOKUP($E81,StockCode[],COLUMN(StockCodes!$C$3),0))=TRUE,\"-\",VLOOKUP($E81,StockCode[],COLUMN(StockCodes!$C$3),0))","v":"Dozen"},4,49,{"$f":"IF($K81=0,0,((SUMIFS(StockOpenQty,StockCodeOnly,$E81)*SUMIFS(StockOpenCost,StockCodeOnly,$E81))+SUMIFS(MoveAmount,MoveDate,\"<\"&$T81,MoveCode,$E81))/$K81)","v":41.258511957241296},40.102735669978884,1800,40,1.2585119572412964,3.0503086455119101E-2,56.633038075858337,"2021-08-04T00:01:21"]
["2021-08-04","Purchase","Fruit & Veg","IN0009","RM1010",11,59,"-",{"$f":"IF(ISNA(VLOOKUP($E82,StockCode[],COLUMN(StockCodes!$B$3),0))=TRUE,\"Invalid Stock Code\",VLOOKUP($E82,StockCode[],COLUMN(StockCodes!$B$3),0))","v":"Lettuce"},{"$f":"IF(ISNA(VLOOKUP($E82,StockCode[],COLUMN(StockCodes!$C$3),0))=TRUE,\"-\",VLOOKUP($E82,StockCode[],COLUMN(StockCodes!$C$3),0))","v":"Kg"},4.0000000000000009,15,{"$f":"IF($K82=0,0,((SUMIFS(StockOpenQty,StockCodeOnly,$E82)*SUMIFS(StockOpenCost,StockCodeOnly,$E82))+SUMIFS(MoveAmount,MoveDate,\"<\"&$T82,MoveCode,$E82))/$K82)","v":5.1362703128241565},5.3030054167531091,59,5.3636363636363633,-0.22736605081220684,-4.4266761086254158E-2,-2.5010265589342753,"2021-08-04T00:01:22"]
["2021-08-04","Purchase","Fruit & Veg",76868,"RM1020",9,75,"-",{"$f":"IF(ISNA(VLOOKUP($E83,StockCode[],COLUMN(StockCodes!$B$3),0))=TRUE,\"Invalid Stock Code\",VLOOKUP($E83,StockCode[],COLUMN(StockCodes!$B$3),0))","v":"Gurkins"},{"$f":"IF(ISNA(VLOOKUP($E83,StockCode[],COLUMN(StockCodes!$C$3),0))=TRUE,\"-\",VLOOKUP($E83,StockCode[],COLUMN(StockCodes!$C$3),0))","v":"Kg"},75.739999999999995,84.74,{"$f":"IF($K83=0,0,((SUMIFS(StockOpenQty,StockCodeOnly,$E83)*SUMIFS(StockOpenCost,StockCodeOnly,$E83))+SUMIFS(MoveAmount,MoveDate,\"<\"&$T83,MoveCode,$E83))/$K83)","v":7.8221614042575585},7.8764515548556462,75,8.3333333333333339,-0.51117192907577547,-6.5349192206331549E-2,-4.6005473616819792,"2021-08-04T00:01:23"]
["2021-08-04","Purchase","Fruit & Veg","INV999","RM1025",20,190,"-",{"$f":"IF(ISNA(VLOOKUP($E84,StockCode[],COLUMN(StockCodes!$B$3),0))=TRUE,\"Invalid Stock Code\",VLOOKUP($E84,StockCode[],COLUMN(StockCodes!$B$3),0))","v":"Onions"},{"$f":"IF(ISNA(VLOOKUP($E84,StockCode[],COLUMN(StockCodes!$C$3),0))=TRUE,\"-\",VLOOKUP($E84,StockCode[],COLUMN(StockCodes!$C$3),0))","v":"Kg"},2.9999999999999982,23,{"$f":"IF($K84=0,0,((SUMIFS(StockOpenQty,StockCodeOnly,$E84)*SUMIFS(StockOpenCost,StockCodeOnly,$E84))+SUMIFS(MoveAmount,MoveDate,\"<\"&$T84,MoveCode,$E84))/$K84)","v":6.4505451838161072},9.102245023976014,190,9.5,-3.0494548161838928,-0.47274373394588826,-60.989096323677856,"2021-08-04T00:01:24"]
["2021-08-06","Usage","None","None","PM2000",-1.1100000000000001,0,"-",{"$f":"IF(ISNA(VLOOKUP($E85,StockCode[],COLUMN(StockCodes!$B$3),0))=TRUE,\"Invalid Stock Code\",VLOOKUP($E85,StockCode[],COLUMN(StockCodes!$B$3),0))","v":"Plastic Wrap"},{"$f":"IF(ISNA(VLOOKUP($E85,StockCode[],COLUMN(StockCodes!$C$3),0))=TRUE,\"-\",VLOOKUP($E85,StockCode[],COLUMN(StockCodes!$C$3),0))","v":"Rolls"},10,8.89,{"$f":"IF($K85=0,0,((SUMIFS(StockOpenQty,StockCodeOnly,$E85)*SUMIFS(StockOpenCost,StockCodeOnly,$E85))+SUMIFS(MoveAmount,MoveDate,\"<\"&$T85,MoveCode,$E85))/$K85)","v":20.749662566550864},20.749662566550864,-23.032125448871462,0,0,0,0,"2021-08-06T00:01:25"]
["2021-08-06","Usage","None","None","PM2005",-0.53,0,"-",{"$f":"IF(ISNA(VLOOKUP($E86,StockCode[],COLUMN(StockCodes!$B$3),0))=TRUE,\"Invalid Stock Code\",VLOOKUP($E86,StockCode[],COLUMN(StockCodes!$B$3),0))","v":"Labels"},{"$f":"IF(ISNA(VLOOKUP($E86,StockCode[],COLUMN(StockCodes!$C$3),0))=TRUE,\"-\",VLOOKUP($E86,StockCode[],COLUMN(StockCodes!$C$3),0))","v":1000},1.9999999999999998,1.4699999999999998,{"$f":"IF($K86=0,0,((SUMIFS(StockOpenQty,StockCodeOnly,$E86)*SUMIFS(StockOpenCost,StockCodeOnly,$E86))+SUMIFS(MoveAmount,MoveDate,\"<\"&$T86,MoveCode,$E86))/$K86)","v":375},375,-198.75,0,0,0,0,"2021-08-06T00:01:26"]
["2021-08-06","Usage","None","None","PM2015",-526.32000000000005,0,"-",{"$f":"IF(ISNA(VLOOKUP($E87,StockCode[],COLUMN(StockCodes!$B$3),0))=TRUE,\"Invalid Stock Code\",VLOOKUP($E87,StockCode[],COLUMN(StockCodes!$B$3),0))","v":"Boxes"},{"$f":"IF(ISNA(VLOOKUP($E87,StockCode[],COLUMN(StockCodes!$C$3),0))=TRUE,\"-\",VLOOKUP($E87,StockCode[],COLUMN(StockCodes!$C$3),0))","v":"Units"},910,383.67999999999995,{"$f":"IF($K87=0,0,((SUMIFS(StockOpenQty,StockCodeOnly,$E87)*SUMIFS(StockOpenCost,StockCodeOnly,$E87))+SUMIFS(MoveAmount,MoveDate,\"<\"&$T87,MoveCode,$E87))/$K87)","v":1.0125247429697004},1.0125247429697004,-532.91202271981274,0,0,0,0,"2021-08-06T00:01:27"]
["2021-08-06","Usage","None","None","RM1000",-250,0,"-",{"$f":"IF(ISNA(VLOOKUP($E88,StockCode[],COLUMN(StockCodes!$B$3),0))=TRUE,\"Invalid Stock Code\",VLOOKUP($E88,StockCode[],COLUMN(StockCodes!$B$3),0))","v":"Meat"},{"$f":"IF(ISNA(VLOOKUP($E88,StockCode[],COLUMN(StockCodes!$C$3),0))=TRUE,\"-\",VLOOKUP($E88,StockCode[],COLUMN(StockCodes!$C$3),0))","v":"Kg"},900,650,{"$f":"IF($K88=0,0,((SUMIFS(StockOpenQty,StockCodeOnly,$E88)*SUMIFS(StockOpenCost,StockCodeOnly,$E88))+SUMIFS(MoveAmount,MoveDate,\"<\"&$T88,MoveCode,$E88))/$K88)","v":50.109233850476791},50.109233850476791,-12527.308462619198,0,0,0,0,"2021-08-06T00:01:28"]
["2021-08-06","Usage","None","None","RM1005",-43.86,0,"-",{"$f":"IF(ISNA(VLOOKUP($E89,StockCode[],COLUMN(StockCodes!$B$3),0))=TRUE,\"Invalid Stock Code\",VLOOKUP($E89,StockCode[],COLUMN(StockCodes!$B$3),0))","v":"Bread Rolls"},{"$f":"IF(ISNA(VLOOKUP($E89,StockCode[],COLUMN(StockCodes!$C$3),0))=TRUE,\"-\",VLOOKUP($E89,StockCode[],COLUMN(StockCodes!$C$3),0))","v":"Dozen"},49,5.1400000000000006,{"$f":"IF($K89=0,0,((SUMIFS(StockOpenQty,StockCodeOnly,$E89)*SUMIFS(StockOpenCost,StockCodeOnly,$E89))+SUMIFS(MoveAmount,MoveDate,\"<\"&$T89,MoveCode,$E89))/$K89)","v":40.102735669978884},40.102735669978884,-1758.9059864852738,0,0,0,0,"2021-08-06T00:01:29"]
["2021-08-06","Usage","None","None","RM1010",-5.56,0,"-",{"$f":"IF(ISNA(VLOOKUP($E90,StockCode[],COLUMN(StockCodes!$B$3),0))=TRUE,\"Invalid Stock Code\",VLOOKUP($E90,StockCode[],COLUMN(StockCodes!$B$3),0))","v":"Lettuce"},{"$f":"IF(ISNA(VLOOKUP($E90,StockCode[],COLUMN(StockCodes!$C$3),0))=TRUE,\"-\",VLOOKUP($E90,StockCode[],COLUMN(StockCodes!$C$3),0))","v":"Kg"},15,9.4400000000000013,{"$f":"IF($K90=0,0,((SUMIFS(StockOpenQty,StockCodeOnly,$E90)*SUMIFS(StockOpenCost,StockCodeOnly,$E90))+SUMIFS(MoveAmount,MoveDate,\"<\"&$T90,MoveCode,$E90))/$K90)","v":5.3030054167531091},5.3030054167531091,-29.484710117147284,0,0,0,0,"2021-08-06T00:01:30"]
["2021-08-06","Usage","None","None","RM1020",-5.26,0,"-",{"$f":"IF(ISNA(VLOOKUP($E91,StockCode[],COLUMN(StockCodes!$B$3),0))=TRUE,\"Invalid Stock Code\",VLOOKUP($E91,StockCode[],COLUMN(StockCodes!$B$3),0))","v":"Gurkins"},{"$f":"IF(ISNA(VLOOKUP($E91,StockCode[],COLUMN(StockCodes!$C$3),0))=TRUE,\"-\",VLOOKUP($E91,StockCode[],COLUMN(StockCodes!$C$3),0))","v":"Kg"},84.74,79.47999999999999,{"$f":"IF($K91=0,0,((SUMIFS(StockOpenQty,StockCodeOnly,$E91)*SUMIFS(StockOpenCost,StockCodeOnly,$E91))+SUMIFS(MoveAmount,MoveDate,\"<\"&$T91,MoveCode,$E91))/$K91)","v":7.8764515548556462},7.8764515548556462,-41.430135178540695,0,0,0,0,"2021-08-06T00:01:31"]
["2021-08-06","Usage","None","None","RM1025",-10.53,0,"-",{"$f":"IF(ISNA(VLOOKUP($E92,StockCode[],COLUMN(StockCodes!$B$3),0))=TRUE,\"Invalid Stock Code\",VLOOKUP($E92,StockCode[],COLUMN(StockCodes!$B$3),0))","v":"Onions"},{"$f":"IF(ISNA(VLOOKUP($E92,StockCode[],COLUMN(StockCodes!$C$3),0))=TRUE,\"-\",VLOOKUP($E92,StockCode[],COLUMN(StockCodes!$C$3),0))","v":"Kg"},23,12.47,{"$f":"IF($K92=0,0,((SUMIFS(StockOpenQty,StockCodeOnly,$E92)*SUMIFS(StockOpenCost,StockCodeOnly,$E92))+SUMIFS(MoveAmount,MoveDate,\"<\"&$T92,MoveCode,$E92))/$K92)","v":9.102245023976014},9.102245023976014,-95.846640102467418,0,0,0,0,"2021-08-06T00:01:32"]
["2021-08-11","Purchase","XY Packaging","IN0009","PM2000",6,125,"-",{"$f":"IF(ISNA(VLOOKUP($E93,StockCode[],COLUMN(StockCodes!$B$3),0))=TRUE,\"Invalid Stock Code\",VLOOKUP($E93,StockCode[],COLUMN(StockCodes!$B$3),0))","v":"Plastic Wrap"},{"$f":"IF(ISNA(VLOOKUP($E93,StockCode[],COLUMN(StockCodes!$C$3),0))=TRUE,\"-\",VLOOKUP($E93,StockCode[],COLUMN(StockCodes!$C$3),0))","v":"Rolls"},8.89,14.89,{"$f":"IF($K93=0,0,((SUMIFS(StockOpenQty,StockCodeOnly,$E93)*SUMIFS(StockOpenCost,StockCodeOnly,$E93))+SUMIFS(MoveAmount,MoveDate,\"<\"&$T93,MoveCode,$E93))/$K93)","v":20.749662566550864},20.783378120660657,125,20.833333333333332,-8.367076678246832E-2,-4.0323916841591605E-3,-0.50202460069480992,"2021-08-11T00:01:33"]
["2021-08-11","Purchase","QS Printers",76868,"PM2005",2,1800,"-",{"$f":"IF(ISNA(VLOOKUP($E94,StockCode[],COLUMN(StockCodes!$B$3),0))=TRUE,\"Invalid Stock Code\",VLOOKUP($E94,StockCode[],COLUMN(StockCodes!$B$3),0))","v":"Labels"},{"$f":"IF(ISNA(VLOOKUP($E94,StockCode[],COLUMN(StockCodes!$C$3),0))=TRUE,\"-\",VLOOKUP($E94,StockCode[],COLUMN(StockCodes!$C$3),0))","v":1000},1.4699999999999998,3.4699999999999998,{"$f":"IF($K94=0,0,((SUMIFS(StockOpenQty,StockCodeOnly,$E94)*SUMIFS(StockOpenCost,StockCodeOnly,$E94))+SUMIFS(MoveAmount,MoveDate,\"<\"&$T94,MoveCode,$E94))/$K94)","v":375},677.59365994236316,1800,900,-525,-1.4,-1050,"2021-08-11T00:01:34"]
["2021-08-11","Purchase","ABC Packaging","INV999","PM2015",600,595,"-",{"$f":"IF(ISNA(VLOOKUP($E95,StockCode[],COLUMN(StockCodes!$B$3),0))=TRUE,\"Invalid Stock Code\",VLOOKUP($E95,StockCode[],COLUMN(StockCodes!$B$3),0))","v":"Boxes"},{"$f":"IF(ISNA(VLOOKUP($E95,StockCode[],COLUMN(StockCodes!$C$3),0))=TRUE,\"-\",VLOOKUP($E95,StockCode[],COLUMN(StockCodes!$C$3),0))","v":"Units"},383.67999999999989,983.67999999999984,{"$f":"IF($K95=0,0,((SUMIFS(StockOpenQty,StockCodeOnly,$E95)*SUMIFS(StockOpenCost,StockCodeOnly,$E95))+SUMIFS(MoveAmount,MoveDate,\"<\"&$T95,MoveCode,$E95))/$K95)","v":1.0125247429697006},0.99980226636976932,595,0.9916666666666667,2.0858076303033934E-2,2.060006577405497E-2,12.514845781820361,"2021-08-11T00:01:35"]
["2021-08-11","Purchase","WW Butchery",5765765,"RM1000",600,35000,"-",{"$f":"IF(ISNA(VLOOKUP($E96,StockCode[],COLUMN(StockCodes!$B$3),0))=TRUE,\"Invalid Stock Code\",VLOOKUP($E96,StockCode[],COLUMN(StockCodes!$B$3),0))","v":"Meat"},{"$f":"IF(ISNA(VLOOKUP($E96,StockCode[],COLUMN(StockCodes!$C$3),0))=TRUE,\"-\",VLOOKUP($E96,StockCode[],COLUMN(StockCodes!$C$3),0))","v":"Kg"},650,1250,{"$f":"IF($K96=0,0,((SUMIFS(StockOpenQty,StockCodeOnly,$E96)*SUMIFS(StockOpenCost,StockCodeOnly,$E96))+SUMIFS(MoveAmount,MoveDate,\"<\"&$T96,MoveCode,$E96))/$K96)","v":50.109233850476784},54.05680160224793,35000,58.333333333333336,-8.2240994828565519,-0.16412343296640328,-4934.4596897139309,"2021-08-11T00:01:36"]
["2021-08-11","Purchase","Aurora Bakery",67887,"RM1005",40,1800,"-",{"$f":"IF(ISNA(VLOOKUP($E97,StockCode[],COLUMN(StockCodes!$B$3),0))=TRUE,\"Invalid Stock Code\",VLOOKUP($E97,StockCode[],COLUMN(StockCodes!$B$3),0))","v":"Bread Rolls"},{"$f":"IF(ISNA(VLOOKUP($E97,StockCode[],COLUMN(StockCodes!$C$3),0))=TRUE,\"-\",VLOOKUP($E97,StockCode[],COLUMN(StockCodes!$C$3),0))","v":"Dozen"},5.1400000000000006,45.14,{"$f":"IF($K97=0,0,((SUMIFS(StockOpenQty,StockCodeOnly,$E97)*SUMIFS(StockOpenCost,StockCodeOnly,$E97))+SUMIFS(MoveAmount,MoveDate,\"<\"&$T97,MoveCode,$E97))/$K97)","v":40.102735669978856},44.442358470174817,1800,45,-4.8972643300211445,-0.12211796148578626,-195.89057320084578,"2021-08-11T00:01:37"]
["2021-08-11","Purchase","Fruit & Veg","IN0009","RM1010",10,49,"-",{"$f":"IF(ISNA(VLOOKUP($E98,StockCode[],COLUMN(StockCodes!$B$3),0))=TRUE,\"Invalid Stock Code\",VLOOKUP($E98,StockCode[],COLUMN(StockCodes!$B$3),0))","v":"Lettuce"},{"$f":"IF(ISNA(VLOOKUP($E98,StockCode[],COLUMN(StockCodes!$C$3),0))=TRUE,\"-\",VLOOKUP($E98,StockCode[],COLUMN(StockCodes!$C$3),0))","v":"Kg"},9.4400000000000013,19.440000000000001,{"$f":"IF($K98=0,0,((SUMIFS(StockOpenQty,StockCodeOnly,$E98)*SUMIFS(StockOpenCost,StockCodeOnly,$E98))+SUMIFS(MoveAmount,MoveDate,\"<\"&$T98,MoveCode,$E98))/$K98)","v":5.3030054167531082},5.0956981036085054,49,4.9000000000000004,0.40300541675310786,7.5995663794712384E-2,4.0300541675310786,"2021-08-11T00:01:38"]
["2021-08-11","Purchase","Fruit & Veg",76868,"RM1020",2,55,"-",{"$f":"IF(ISNA(VLOOKUP($E99,StockCode[],COLUMN(StockCodes!$B$3),0))=TRUE,\"Invalid Stock Code\",VLOOKUP($E99,StockCode[],COLUMN(StockCodes!$B$3),0))","v":"Gurkins"},{"$f":"IF(ISNA(VLOOKUP($E99,StockCode[],COLUMN(StockCodes!$C$3),0))=TRUE,\"-\",VLOOKUP($E99,StockCode[],COLUMN(StockCodes!$C$3),0))","v":"Kg"},79.47999999999999,81.47999999999999,{"$f":"IF($K99=0,0,((SUMIFS(StockOpenQty,StockCodeOnly,$E99)*SUMIFS(StockOpenCost,StockCodeOnly,$E99))+SUMIFS(MoveAmount,MoveDate,\"<\"&$T99,MoveCode,$E99))/$K99)","v":7.8764515548556471},8.3581292290123574,55,27.5,-19.623548445144351,-2.4914199380870814,-39.247096890288702,"2021-08-11T00:01:39"]
["2021-08-11","Purchase","Fruit & Veg","INV999","RM1025",15,640,"-",{"$f":"IF(ISNA(VLOOKUP($E100,StockCode[],COLUMN(StockCodes!$B$3),0))=TRUE,\"Invalid Stock Code\",VLOOKUP($E100,StockCode[],COLUMN(StockCodes!$B$3),0))","v":"Onions"},{"$f":"IF(ISNA(VLOOKUP($E100,StockCode[],COLUMN(StockCodes!$C$3),0))=TRUE,\"-\",VLOOKUP($E100,StockCode[],COLUMN(StockCodes!$C$3),0))","v":"Kg"},12.469999999999999,27.47,{"$f":"IF($K100=0,0,((SUMIFS(StockOpenQty,StockCodeOnly,$E100)*SUMIFS(StockOpenCost,StockCodeOnly,$E100))+SUMIFS(MoveAmount,MoveDate,\"<\"&$T100,MoveCode,$E100))/$K100)","v":9.102245023976014},27.430105404040077,640,42.666666666666664,-33.564421642690647,-3.6874882574880568,-503.46632464035969,"2021-08-11T00:01:40"]
["2021-08-13","Usage","None","None","PM2000",-2,0,{"$f":"IF(AND(ISBLANK(E101)=FALSE,ISNA(VLOOKUP(E101,StockCodeOnly,1,0))=TRUE),\"E2\",IF(AND(ISBLANK(B101)=FALSE,B101<>\"Purchase\",B101<>\"Usage\",B101<>\"Adjustment\"),\"E3\",IF(AND(B101=\"Usage\",F101>0),\"E4\",IF(OR(K101<0,L101<0),\"E5\",\"-\"))))","v":"-"},{"$f":"IF(ISNA(VLOOKUP($E101,StockCode[],COLUMN(StockCodes!$B$3),0))=TRUE,\"Invalid Stock Code\",VLOOKUP($E101,StockCode[],COLUMN(StockCodes!$B$3),0))","v":"Plastic Wrap"},{"$f":"IF(ISNA(VLOOKUP($E101,StockCode[],COLUMN(StockCodes!$C$3),0))=TRUE,\"-\",VLOOKUP($E101,StockCode[],COLUMN(StockCodes!$C$3),0))","v":"Rolls"},{"$f":"SUMIFS(StockOpenQty,StockCodeOnly,$E101)+SUMIFS(MoveQty,MoveDate,\"<\"&$T101,MoveCode,$E101)","v":14.89},{"$f":"K101+F101","v":12.89},{"$f":"IF($K101=0,0,((SUMIFS(StockOpenQty,StockCodeOnly,$E101)*SUMIFS(StockOpenCost,StockCodeOnly,$E101))+SUMIFS(MoveAmount,MoveDate,\"<\"&$T101,MoveCode,$E101))/$K101)","v":20.783378120660657},{"$f":"IF(B101<>\"Purchase\",M101,IF(L101=0,0,((K101*M101)+G101)/(F101+K101)))","v":20.783378120660657},{"$f":"IF(B101=\"Purchase\",G101,N101*F101)","v":-41.566756241321315},{"$f":"IF(B101<>\"Purchase\",0,IF(F101=0,0,G101/F101))","v":0},{"$f":"IF(B101<>\"Purchase\",0,IF(K101=0,0,M101-P101))","v":0},{"$f":"IF(B101<>\"Purchase\",0,IF(M101=0,0,Q101/M101))","v":0},{"$f":"Q101*F101","v":0},{"$f":"IF(ISBLANK($A101)=TRUE,TODAY()+((ROW($A101)-(86400*ROUNDDOWN(ROW($A101)/86400,0)))/86400),$A101+((ROW($A101)-(86400*ROUNDDOWN(ROW($A101)/86400,0)))/86400))","v":"2021-08-13T00:01:41"}]
["2021-08-13","Usage","None","None","PM2005",-1,0,"-",{"$f":"IF(ISNA(VLOOKUP($E102,StockCode[],COLUMN(StockCodes!$B$3),0))=TRUE,\"Invalid Stock Code\",VLOOKUP($E102,StockCode[],COLUMN(StockCodes!$B$3),0))","v":"Labels"},{"$f":"IF(ISNA(VLOOKUP($E102,StockCode[],COLUMN(StockCodes!$C$3),0))=TRUE,\"-\",VLOOKUP($E102,StockCode[],COLUMN(StockCodes!$C$3),0))","v":1000},3.4699999999999998,2.4699999999999998,{"$f":"IF($K102=0,0,((SUMIFS(StockOpenQty,StockCodeOnly,$E102)*SUMIFS(StockOpenCost,StockCodeOnly,$E102))+SUMIFS(MoveAmount,MoveDate,\"<\"&$T102,MoveCode,$E102))/$K102)","v":677.59365994236316},677.59365994236316,-677.59365994236316,0,0,0,0,"2021-08-13T00:01:42"]
["2021-08-13","Usage","None","None","PM2015",-635,0,"-",{"$f":"IF(ISNA(VLOOKUP($E103,StockCode[],COLUMN(StockCodes!$B$3),0))=TRUE,\"Invalid Stock Code\",VLOOKUP($E103,StockCode[],COLUMN(StockCodes!$B$3),0))","v":"Boxes"},{"$f":"IF(ISNA(VLOOKUP($E103,StockCode[],COLUMN(StockCodes!$C$3),0))=TRUE,\"-\",VLOOKUP($E103,StockCode[],COLUMN(StockCodes!$C$3),0))","v":"Units"},983.67999999999984,348.67999999999984,{"$f":"IF($K103=0,0,((SUMIFS(StockOpenQty,StockCodeOnly,$E103)*SUMIFS(StockOpenCost,StockCodeOnly,$E103))+SUMIFS(MoveAmount,MoveDate,\"<\"&$T103,MoveCode,$E103))/$K103)","v":0.99980226636976943},0.99980226636976943,-634.87443914480355,0,0,0,0,"2021-08-13T00:01:43"]
["2021-08-13","Usage","None","None","RM1000",-350,0,"-",{"$f":"IF(ISNA(VLOOKUP($E104,StockCode[],COLUMN(StockCodes!$B$3),0))=TRUE,\"Invalid Stock Code\",VLOOKUP($E104,StockCode[],COLUMN(StockCodes!$B$3),0))","v":"Meat"},{"$f":"IF(ISNA(VLOOKUP($E104,StockCode[],COLUMN(StockCodes!$C$3),0))=TRUE,\"-\",VLOOKUP($E104,StockCode[],COLUMN(StockCodes!$C$3),0))","v":"Kg"},1250,900,{"$f":"IF($K104=0,0,((SUMIFS(StockOpenQty,StockCodeOnly,$E104)*SUMIFS(StockOpenCost,StockCodeOnly,$E104))+SUMIFS(MoveAmount,MoveDate,\"<\"&$T104,MoveCode,$E104))/$K104)","v":54.05680160224793},54.05680160224793,-18919.880560786776,0,0,0,0,"2021-08-13T00:01:44"]
["2021-08-13","Usage","None","None","RM1005",-42,0,"-",{"$f":"IF(ISNA(VLOOKUP($E105,StockCode[],COLUMN(StockCodes!$B$3),0))=TRUE,\"Invalid Stock Code\",VLOOKUP($E105,StockCode[],COLUMN(StockCodes!$B$3),0))","v":"Bread Rolls"},{"$f":"IF(ISNA(VLOOKUP($E105,StockCode[],COLUMN(StockCodes!$C$3),0))=TRUE,\"-\",VLOOKUP($E105,StockCode[],COLUMN(StockCodes!$C$3),0))","v":"Dozen"},45.14,3.1400000000000006,{"$f":"IF($K105=0,0,((SUMIFS(StockOpenQty,StockCodeOnly,$E105)*SUMIFS(StockOpenCost,StockCodeOnly,$E105))+SUMIFS(MoveAmount,MoveDate,\"<\"&$T105,MoveCode,$E105))/$K105)","v":44.442358470174817},44.442358470174817,-1866.5790557473424,0,0,0,0,"2021-08-13T00:01:45"]
["2021-08-13","Usage","None","None","RM1010",-8,0,"-",{"$f":"IF(ISNA(VLOOKUP($E106,StockCode[],COLUMN(StockCodes!$B$3),0))=TRUE,\"Invalid Stock Code\",VLOOKUP($E106,StockCode[],COLUMN(StockCodes!$B$3),0))","v":"Lettuce"},{"$f":"IF(ISNA(VLOOKUP($E106,StockCode[],COLUMN(StockCodes!$C$3),0))=TRUE,\"-\",VLOOKUP($E106,StockCode[],COLUMN(StockCodes!$C$3),0))","v":"Kg"},19.440000000000001,11.440000000000001,{"$f":"IF($K106=0,0,((SUMIFS(StockOpenQty,StockCodeOnly,$E106)*SUMIFS(StockOpenCost,StockCodeOnly,$E106))+SUMIFS(MoveAmount,MoveDate,\"<\"&$T106,MoveCode,$E106))/$K106)","v":5.0956981036085054},5.0956981036085054,-40.765584828868043,0,0,0,0,"2021-08-13T00:01:46"]
["2021-08-13","Usage","None","None","RM1020",-3,0,"-",{"$f":"IF(ISNA(VLOOKUP($E107,StockCode[],COLUMN(StockCodes!$B$3),0))=TRUE,\"Invalid Stock Code\",VLOOKUP($E107,StockCode[],COLUMN(StockCodes!$B$3),0))","v":"Gurkins"},{"$f":"IF(ISNA(VLOOKUP($E107,StockCode[],COLUMN(StockCodes!$C$3),0))=TRUE,\"-\",VLOOKUP($E107,StockCode[],COLUMN(StockCodes!$C$3),0))","v":"Kg"},81.47999999999999,78.47999999999999,{"$f":"IF($K107=0,0,((SUMIFS(StockOpenQty,StockCodeOnly,$E107)*SUMIFS(StockOpenCost,StockCodeOnly,$E107))+SUMIFS(MoveAmount,MoveDate,\"<\"&$T107,MoveCode,$E107))/$K107)","v":8.3581292290123574},8.3581292290123574,-25.074387687037074,0,0,0,0,"2021-08-13T00:01:47"]
["2021-08-13","Usage","None","None","RM1025",-10,0,"-",{"$f":"IF(ISNA(VLOOKUP($E108,StockCode[],COLUMN(StockCodes!$B$3),0))=TRUE,\"Invalid Stock Code\",VLOOKUP($E108,StockCode[],COLUMN(StockCodes!$B$3),0))","v":"Onions"},{"$f":"IF(ISNA(VLOOKUP($E108,StockCode[],COLUMN(StockCodes!$C$3),0))=TRUE,\"-\",VLOOKUP($E108,StockCode[],COLUMN(StockCodes!$C$3),0))","v":"Kg"},27.47,17.47,{"$f":"IF($K108=0,0,((SUMIFS(StockOpenQty,StockCodeOnly,$E108)*SUMIFS(StockOpenCost,StockCodeOnly,$E108))+SUMIFS(MoveAmount,MoveDate,\"<\"&$T108,MoveCode,$E108))/$K108)","v":27.430105404040077},27.430105404040077,-274.3010540404008,0,0,0,0,"2021-08-13T00:01:48"]
["2021-08-18","Purchase","XY Packaging","IN0009","PM2000",4,78,"-",{"$f":"IF(ISNA(VLOOKUP($E109,StockCode[],COLUMN(StockCodes!$B$3),0))=TRUE,\"Invalid Stock Code\",VLOOKUP($E109,StockCode[],COLUMN(StockCodes!$B$3),0))","v":"Plastic Wrap"},{"$f":"IF(ISNA(VLOOKUP($E109,StockCode[],COLUMN(StockCodes!$C$3),0))=TRUE,\"-\",VLOOKUP($E109,StockCode[],COLUMN(StockCodes!$C$3),0))","v":"Rolls"},12.89,16.89,{"$f":"IF($K109=0,0,((SUMIFS(StockOpenQty,StockCodeOnly,$E109)*SUMIFS(StockOpenCost,StockCodeOnly,$E109))+SUMIFS(MoveAmount,MoveDate,\"<\"&$T109,MoveCode,$E109))/$K109)","v":20.783378120660654},20.479440140634448,78,19.5,1.2833781206606538,6.1750217563758508E-2,5.1335124826426153,"2021-08-18T00:01:49"]
["2021-08-18","Purchase","QS Printers",76868,"PM2005",2,800,"-",{"$f":"IF(ISNA(VLOOKUP($E110,StockCode[],COLUMN(StockCodes!$B$3),0))=TRUE,\"Invalid Stock Code\",VLOOKUP($E110,StockCode[],COLUMN(StockCodes!$B$3),0))","v":"Labels"},{"$f":"IF(ISNA(VLOOKUP($E110,StockCode[],COLUMN(StockCodes!$C$3),0))=TRUE,\"-\",VLOOKUP($E110,StockCode[],COLUMN(StockCodes!$C$3),0))","v":1000},2.4699999999999998,4.47,{"$f":"IF($K110=0,0,((SUMIFS(StockOpenQty,StockCodeOnly,$E110)*SUMIFS(StockOpenCost,StockCodeOnly,$E110))+SUMIFS(MoveAmount,MoveDate,\"<\"&$T110,MoveCode,$E110))/$K110)","v":677.59365994236316},553.39068010237963,800,400,277.59365994236316,0.40967570441254658,555.18731988472632,"2021-08-18T00:01:50"]
["2021-08-18","Purchase","ABC Packaging","INV999","PM2015",500,595,"-",{"$f":"IF(ISNA(VLOOKUP($E111,StockCode[],COLUMN(StockCodes!$B$3),0))=TRUE,\"Invalid Stock Code\",VLOOKUP($E111,StockCode[],COLUMN(StockCodes!$B$3),0))","v":"Boxes"},{"$f":"IF(ISNA(VLOOKUP($E111,StockCode[],COLUMN(StockCodes!$C$3),0))=TRUE,\"-\",VLOOKUP($E111,StockCode[],COLUMN(StockCodes!$C$3),0))","v":"Units"},348.67999999999989,848.67999999999984,{"$f":"IF($K111=0,0,((SUMIFS(StockOpenQty,StockCodeOnly,$E111)*SUMIFS(StockOpenCost,StockCodeOnly,$E111))+SUMIFS(MoveAmount,MoveDate,\"<\"&$T111,MoveCode,$E111))/$K111)","v":0.99980226636976943},1.1118573010296122,595,1.19,-0.19019773363023051,-0.19023534955649651,-95.098866815115258,"2021-08-18T00:01:51"]
["2021-08-18","Purchase","WW Butchery",5765765,"RM1000",500,23200,"-",{"$f":"IF(ISNA(VLOOKUP($E112,StockCode[],COLUMN(StockCodes!$B$3),0))=TRUE,\"Invalid Stock Code\",VLOOKUP($E112,StockCode[],COLUMN(StockCodes!$B$3),0))","v":"Meat"},{"$f":"IF(ISNA(VLOOKUP($E112,StockCode[],COLUMN(StockCodes!$C$3),0))=TRUE,\"-\",VLOOKUP($E112,StockCode[],COLUMN(StockCodes!$C$3),0))","v":"Kg"},900,1400,{"$f":"IF($K112=0,0,((SUMIFS(StockOpenQty,StockCodeOnly,$E112)*SUMIFS(StockOpenCost,StockCodeOnly,$E112))+SUMIFS(MoveAmount,MoveDate,\"<\"&$T112,MoveCode,$E112))/$K112)","v":54.056801602247923},51.322229601445102,23200,46.4,7.6568016022479242,0.1416436299466434,3828.4008011239621,"2021-08-18T00:01:52"]
["2021-08-18","Purchase","Aurora Bakery",67887,"RM1005",40,1600,"-",{"$f":"IF(ISNA(VLOOKUP($E113,StockCode[],COLUMN(StockCodes!$B$3),0))=TRUE,\"Invalid Stock Code\",VLOOKUP($E113,StockCode[],COLUMN(StockCodes!$B$3),0))","v":"Bread Rolls"},{"$f":"IF(ISNA(VLOOKUP($E113,StockCode[],COLUMN(StockCodes!$C$3),0))=TRUE,\"-\",VLOOKUP($E113,StockCode[],COLUMN(StockCodes!$C$3),0))","v":"Dozen"},3.1400000000000006,43.14,{"$f":"IF($K113=0,0,((SUMIFS(StockOpenQty,StockCodeOnly,$E113)*SUMIFS(StockOpenCost,StockCodeOnly,$E113))+SUMIFS(MoveAmount,MoveDate,\"<\"&$T113,MoveCode,$E113))/$K113)","v":44.44235847017481},40.323342735195851,1600,40,4.4423584701748098,9.9957757038390951E-2,177.69433880699239,"2021-08-18T00:01:53"]
["2021-08-18","Purchase","Fruit & Veg","IN0009","RM1010",7,42,"-",{"$f":"IF(ISNA(VLOOKUP($E114,StockCode[],COLUMN(StockCodes!$B$3),0))=TRUE,\"Invalid Stock Code\",VLOOKUP($E114,StockCode[],COLUMN(StockCodes!$B$3),0))","v":"Lettuce"},{"$f":"IF(ISNA(VLOOKUP($E114,StockCode[],COLUMN(StockCodes!$C$3),0))=TRUE,\"-\",VLOOKUP($E114,StockCode[],COLUMN(StockCodes!$C$3),0))","v":"Kg"},11.440000000000001,18.440000000000001,{"$f":"IF($K114=0,0,((SUMIFS(StockOpenQty,StockCodeOnly,$E114)*SUMIFS(StockOpenCost,StockCodeOnly,$E114))+SUMIFS(MoveAmount,MoveDate,\"<\"&$T114,MoveCode,$E114))/$K114)","v":5.0956981036085054},5.4389797345597231,42,6,-0.90430189639149461,-0.17746378965251405,-6.3301132747404623,"2021-08-18T00:01:54"]
["2021-08-18","Purchase","Fruit & Veg",76868,"RM1020",1,12,"-",{"$f":"IF(ISNA(VLOOKUP($E115,StockCode[],COLUMN(StockCodes!$B$3),0))=TRUE,\"Invalid Stock Code\",VLOOKUP($E115,StockCode[],COLUMN(StockCodes!$B$3),0))","v":"Gurkins"},{"$f":"IF(ISNA(VLOOKUP($E115,StockCode[],COLUMN(StockCodes!$C$3),0))=TRUE,\"-\",VLOOKUP($E115,StockCode[],COLUMN(StockCodes!$C$3),0))","v":"Kg"},78.47999999999999,79.47999999999999,{"$f":"IF($K115=0,0,((SUMIFS(StockOpenQty,StockCodeOnly,$E115)*SUMIFS(StockOpenCost,StockCodeOnly,$E115))+SUMIFS(MoveAmount,MoveDate,\"<\"&$T115,MoveCode,$E115))/$K115)","v":8.3581292290123574},8.4039504515964989,12,12,-3.6418707709876426,-0.43572798065219509,-3.6418707709876426,"2021-08-18T00:01:55"]
["2021-08-18","Purchase","Fruit & Veg","INV999","RM1025",1,9,"-",{"$f":"IF(ISNA(VLOOKUP($E116,StockCode[],COLUMN(StockCodes!$B$3),0))=TRUE,\"Invalid Stock Code\",VLOOKUP($E116,StockCode[],COLUMN(StockCodes!$B$3),0))","v":"Onions"},{"$f":"IF(ISNA(VLOOKUP($E116,StockCode[],COLUMN(StockCodes!$C$3),0))=TRUE,\"-\",VLOOKUP($E116,StockCode[],COLUMN(StockCodes!$C$3),0))","v":"Kg"},17.47,18.47,{"$f":"IF($K116=0,0,((SUMIFS(StockOpenQty,StockCodeOnly,$E116)*SUMIFS(StockOpenCost,StockCodeOnly,$E116))+SUMIFS(MoveAmount,MoveDate,\"<\"&$T116,MoveCode,$E116))/$K116)","v":27.430105404040077},26.432265371336229,9,9,18.430105404040077,0.67189334975452109,18.430105404040077,"2021-08-18T00:01:56"]
["2021-08-20","Usage","None","None","PM2000",-3,0,"-",{"$f":"IF(ISNA(VLOOKUP($E117,StockCode[],COLUMN(StockCodes!$B$3),0))=TRUE,\"Invalid Stock Code\",VLOOKUP($E117,StockCode[],COLUMN(StockCodes!$B$3),0))","v":"Plastic Wrap"},{"$f":"IF(ISNA(VLOOKUP($E117,StockCode[],COLUMN(StockCodes!$C$3),0))=TRUE,\"-\",VLOOKUP($E117,StockCode[],COLUMN(StockCodes!$C$3),0))","v":"Rolls"},16.89,13.89,{"$f":"IF($K117=0,0,((SUMIFS(StockOpenQty,StockCodeOnly,$E117)*SUMIFS(StockOpenCost,StockCodeOnly,$E117))+SUMIFS(MoveAmount,MoveDate,\"<\"&$T117,MoveCode,$E117))/$K117)","v":20.479440140634448},20.479440140634448,-61.438320421903342,0,0,0,0,"2021-08-20T00:01:57"]
["2021-08-20","Usage","None","None","PM2005",-2,0,"-",{"$f":"IF(ISNA(VLOOKUP($E118,StockCode[],COLUMN(StockCodes!$B$3),0))=TRUE,\"Invalid Stock Code\",VLOOKUP($E118,StockCode[],COLUMN(StockCodes!$B$3),0))","v":"Labels"},{"$f":"IF(ISNA(VLOOKUP($E118,StockCode[],COLUMN(StockCodes!$C$3),0))=TRUE,\"-\",VLOOKUP($E118,StockCode[],COLUMN(StockCodes!$C$3),0))","v":1000},4.47,2.4699999999999998,{"$f":"IF($K118=0,0,((SUMIFS(StockOpenQty,StockCodeOnly,$E118)*SUMIFS(StockOpenCost,StockCodeOnly,$E118))+SUMIFS(MoveAmount,MoveDate,\"<\"&$T118,MoveCode,$E118))/$K118)","v":553.39068010237963},553.39068010237963,-1106.7813602047593,0,0,0,0,"2021-08-20T00:01:58"]
["2021-08-20","Usage","None","None","PM2015",-620,0,"-",{"$f":"IF(ISNA(VLOOKUP($E119,StockCode[],COLUMN(StockCodes!$B$3),0))=TRUE,\"Invalid Stock Code\",VLOOKUP($E119,StockCode[],COLUMN(StockCodes!$B$3),0))","v":"Boxes"},{"$f":"IF(ISNA(VLOOKUP($E119,StockCode[],COLUMN(StockCodes!$C$3),0))=TRUE,\"-\",VLOOKUP($E119,StockCode[],COLUMN(StockCodes!$C$3),0))","v":"Units"},848.67999999999984,228.67999999999984,{"$f":"IF($K119=0,0,((SUMIFS(StockOpenQty,StockCodeOnly,$E119)*SUMIFS(StockOpenCost,StockCodeOnly,$E119))+SUMIFS(MoveAmount,MoveDate,\"<\"&$T119,MoveCode,$E119))/$K119)","v":1.1118573010296122},1.1118573010296122,-689.35152663835959,0,0,0,0,"2021-08-20T00:01:59"]
["2021-08-20","Usage","None","None","RM1000",-400,0,"-",{"$f":"IF(ISNA(VLOOKUP($E120,StockCode[],COLUMN(StockCodes!$B$3),0))=TRUE,\"Invalid Stock Code\",VLOOKUP($E120,StockCode[],COLUMN(StockCodes!$B$3),0))","v":"Meat"},{"$f":"IF(ISNA(VLOOKUP($E120,StockCode[],COLUMN(StockCodes!$C$3),0))=TRUE,\"-\",VLOOKUP($E120,StockCode[],COLUMN(StockCodes!$C$3),0))","v":"Kg"},1400,1000,{"$f":"IF($K120=0,0,((SUMIFS(StockOpenQty,StockCodeOnly,$E120)*SUMIFS(StockOpenCost,StockCodeOnly,$E120))+SUMIFS(MoveAmount,MoveDate,\"<\"&$T120,MoveCode,$E120))/$K120)","v":51.322229601445102},51.322229601445102,-20528.891840578042,0,0,0,0,"2021-08-20T00:02:00"]
["2021-08-20","Usage","None","None","RM1005",-40,0,"-",{"$f":"IF(ISNA(VLOOKUP($E121,StockCode[],COLUMN(StockCodes!$B$3),0))=TRUE,\"Invalid Stock Code\",VLOOKUP($E121,StockCode[],COLUMN(StockCodes!$B$3),0))","v":"Bread Rolls"},{"$f":"IF(ISNA(VLOOKUP($E121,StockCode[],COLUMN(StockCodes!$C$3),0))=TRUE,\"-\",VLOOKUP($E121,StockCode[],COLUMN(StockCodes!$C$3),0))","v":"Dozen"},43.14,3.1400000000000006,{"$f":"IF($K121=0,0,((SUMIFS(StockOpenQty,StockCodeOnly,$E121)*SUMIFS(StockOpenCost,StockCodeOnly,$E121))+SUMIFS(MoveAmount,MoveDate,\"<\"&$T121,MoveCode,$E121))/$K121)","v":40.323342735195851},40.323342735195851,-1612.9337094078342,0,0,0,0,"2021-08-20T00:02:01"]
["2021-08-20","Usage","None","None","RM1010",-12,0,"-",{"$f":"IF(ISNA(VLOOKUP($E122,StockCode[],COLUMN(StockCodes!$B$3),0))=TRUE,\"Invalid Stock Code\",VLOOKUP($E122,StockCode[],COLUMN(StockCodes!$B$3),0))","v":"Lettuce"},{"$f":"IF(ISNA(VLOOKUP($E122,StockCode[],COLUMN(StockCodes!$C$3),0))=TRUE,\"-\",VLOOKUP($E122,StockCode[],COLUMN(StockCodes!$C$3),0))","v":"Kg"},18.440000000000001,6.4400000000000013,{"$f":"IF($K122=0,0,((SUMIFS(StockOpenQty,StockCodeOnly,$E122)*SUMIFS(StockOpenCost,StockCodeOnly,$E122))+SUMIFS(MoveAmount,MoveDate,\"<\"&$T122,MoveCode,$E122))/$K122)","v":5.4389797345597231},5.4389797345597231,-65.267756814716677,0,0,0,0,"2021-08-20T00:02:02"]
["2021-08-20","Usage","None","None","RM1020",-2,0,"-",{"$f":"IF(ISNA(VLOOKUP($E123,StockCode[],COLUMN(StockCodes!$B$3),0))=TRUE,\"Invalid Stock Code\",VLOOKUP($E123,StockCode[],COLUMN(StockCodes!$B$3),0))","v":"Gurkins"},{"$f":"IF(ISNA(VLOOKUP($E123,StockCode[],COLUMN(StockCodes!$C$3),0))=TRUE,\"-\",VLOOKUP($E123,StockCode[],COLUMN(StockCodes!$C$3),0))","v":"Kg"},79.47999999999999,77.47999999999999,{"$f":"IF($K123=0,0,((SUMIFS(StockOpenQty,StockCodeOnly,$E123)*SUMIFS(StockOpenCost,StockCodeOnly,$E123))+SUMIFS(MoveAmount,MoveDate,\"<\"&$T123,MoveCode,$E123))/$K123)","v":8.4039504515964989},8.4039504515964989,-16.807900903192998,0,0,0,0,"2021-08-20T00:02:03"]
["2021-08-20","Usage","None","None","RM1025",-14,0,"-",{"$f":"IF(ISNA(VLOOKUP($E124,StockCode[],COLUMN(StockCodes!$B$3),0))=TRUE,\"Invalid Stock Code\",VLOOKUP($E124,StockCode[],COLUMN(StockCodes!$B$3),0))","v":"Onions"},{"$f":"IF(ISNA(VLOOKUP($E124,StockCode[],COLUMN(StockCodes!$C$3),0))=TRUE,\"-\",VLOOKUP($E124,StockCode[],COLUMN(StockCodes!$C$3),0))","v":"Kg"},18.47,4.4699999999999989,{"$f":"IF($K124=0,0,((SUMIFS(StockOpenQty,StockCodeOnly,$E124)*SUMIFS(StockOpenCost,StockCodeOnly,$E124))+SUMIFS(MoveAmount,MoveDate,\"<\"&$T124,MoveCode,$E124))/$K124)","v":26.432265371336229},26.432265371336229,-370.0517151987072,0,0,0,0,"2021-08-20T00:02:04"]
["2021-08-25","Purchase","XY Packaging","IN0009","PM2000",2,42,"-",{"$f":"IF(ISNA(VLOOKUP($E125,StockCode[],COLUMN(StockCodes!$B$3),0))=TRUE,\"Invalid Stock Code\",VLOOKUP($E125,StockCode[],COLUMN(StockCodes!$B$3),0))","v":"Plastic Wrap"},{"$f":"IF(ISNA(VLOOKUP($E125,StockCode[],COLUMN(StockCodes!$C$3),0))=TRUE,\"-\",VLOOKUP($E125,StockCode[],COLUMN(StockCodes!$C$3),0))","v":"Rolls"},13.89,15.89,{"$f":"IF($K125=0,0,((SUMIFS(StockOpenQty,StockCodeOnly,$E125)*SUMIFS(StockOpenCost,StockCodeOnly,$E125))+SUMIFS(MoveAmount,MoveDate,\"<\"&$T125,MoveCode,$E125))/$K125)","v":20.479440140634452},20.544960576048616,42,21,-0.52055985936554805,-2.5418656749931112E-2,-1.0411197187310961,"2021-08-25T00:02:05"]
["2021-08-25","Purchase","QS Printers",76868,"PM2005",1,410,"-",{"$f":"IF(ISNA(VLOOKUP($E126,StockCode[],COLUMN(StockCodes!$B$3),0))=TRUE,\"Invalid Stock Code\",VLOOKUP($E126,StockCode[],COLUMN(StockCodes!$B$3),0))","v":"Labels"},{"$f":"IF(ISNA(VLOOKUP($E126,StockCode[],COLUMN(StockCodes!$C$3),0))=TRUE,\"-\",VLOOKUP($E126,StockCode[],COLUMN(StockCodes!$C$3),0))","v":1000},2.4699999999999998,3.4699999999999998,{"$f":"IF($K126=0,0,((SUMIFS(StockOpenQty,StockCodeOnly,$E126)*SUMIFS(StockOpenCost,StockCodeOnly,$E126))+SUMIFS(MoveAmount,MoveDate,\"<\"&$T126,MoveCode,$E126))/$K126)","v":553.39068010237963},512.06771753685234,410,410,143.39068010237963,0.25911292918025247,143.39068010237963,"2021-08-25T00:02:06"]
["2021-08-25","Purchase","ABC Packaging","INV999","PM2015",400,390,"-",{"$f":"IF(ISNA(VLOOKUP($E127,StockCode[],COLUMN(StockCodes!$B$3),0))=TRUE,\"Invalid Stock Code\",VLOOKUP($E127,StockCode[],COLUMN(StockCodes!$B$3),0))","v":"Boxes"},{"$f":"IF(ISNA(VLOOKUP($E127,StockCode[],COLUMN(StockCodes!$C$3),0))=TRUE,\"-\",VLOOKUP($E127,StockCode[],COLUMN(StockCodes!$C$3),0))","v":"Units"},228.67999999999989,628.67999999999984,{"$f":"IF($K127=0,0,((SUMIFS(StockOpenQty,StockCodeOnly,$E127)*SUMIFS(StockOpenCost,StockCodeOnly,$E127))+SUMIFS(MoveAmount,MoveDate,\"<\"&$T127,MoveCode,$E127))/$K127)","v":1.111857301029612},1.0247813316782015,390,0.97499999999999998,0.13685730102961202,0.12308890799464842,54.742920411844807,"2021-08-25T00:02:07"]
["2021-08-25","Purchase","WW Butchery",5765765,"RM1000",380,18300,"-",{"$f":"IF(ISNA(VLOOKUP($E128,StockCode[],COLUMN(StockCodes!$B$3),0))=TRUE,\"Invalid Stock Code\",VLOOKUP($E128,StockCode[],COLUMN(StockCodes!$B$3),0))","v":"Meat"},{"$f":"IF(ISNA(VLOOKUP($E128,StockCode[],COLUMN(StockCodes!$C$3),0))=TRUE,\"-\",VLOOKUP($E128,StockCode[],COLUMN(StockCodes!$C$3),0))","v":"Kg"},1000,1380,{"$f":"IF($K128=0,0,((SUMIFS(StockOpenQty,StockCodeOnly,$E128)*SUMIFS(StockOpenCost,StockCodeOnly,$E128))+SUMIFS(MoveAmount,MoveDate,\"<\"&$T128,MoveCode,$E128))/$K128)","v":51.322229601445095},50.450891015539916,18300,48.157894736842103,3.1643348646029921,6.1656223612582356E-2,1202.4472485491369,"2021-08-25T00:02:08"]
["2021-08-25","Purchase","Aurora Bakery",67887,"RM1005",32,1340,"-",{"$f":"IF(ISNA(VLOOKUP($E129,StockCode[],COLUMN(StockCodes!$B$3),0))=TRUE,\"Invalid Stock Code\",VLOOKUP($E129,StockCode[],COLUMN(StockCodes!$B$3),0))","v":"Bread Rolls"},{"$f":"IF(ISNA(VLOOKUP($E129,StockCode[],COLUMN(StockCodes!$C$3),0))=TRUE,\"-\",VLOOKUP($E129,StockCode[],COLUMN(StockCodes!$C$3),0))","v":"Dozen"},3.1400000000000006,35.14,{"$f":"IF($K129=0,0,((SUMIFS(StockOpenQty,StockCodeOnly,$E129)*SUMIFS(StockOpenCost,StockCodeOnly,$E129))+SUMIFS(MoveAmount,MoveDate,\"<\"&$T129,MoveCode,$E129))/$K129)","v":40.32334273519578},41.736348781687958,1340,41.875,-1.5516572648042199,-3.8480372894528735E-2,-49.653032473735038,"2021-08-25T00:02:09"]
["2021-08-25","Purchase","Fruit & Veg","IN0009","RM1010",4,18,"-",{"$f":"IF(ISNA(VLOOKUP($E130,StockCode[],COLUMN(StockCodes!$B$3),0))=TRUE,\"Invalid Stock Code\",VLOOKUP($E130,StockCode[],COLUMN(StockCodes!$B$3),0))","v":"Lettuce"},{"$f":"IF(ISNA(VLOOKUP($E130,StockCode[],COLUMN(StockCodes!$C$3),0))=TRUE,\"-\",VLOOKUP($E130,StockCode[],COLUMN(StockCodes!$C$3),0))","v":"Kg"},6.4400000000000013,10.440000000000001,{"$f":"IF($K130=0,0,((SUMIFS(StockOpenQty,StockCodeOnly,$E130)*SUMIFS(StockOpenCost,StockCodeOnly,$E130))+SUMIFS(MoveAmount,MoveDate,\"<\"&$T130,MoveCode,$E130))/$K130)","v":5.4389797345597239},5.0792173841536998,18,4.5,0.93897973455972394,0.17263894707924166,3.7559189382388958,"2021-08-25T00:02:10"]
["2021-08-25","Purchase","Fruit & Veg",76868,"RM1020",1,3.8,"-",{"$f":"IF(ISNA(VLOOKUP($E131,StockCode[],COLUMN(StockCodes!$B$3),0))=TRUE,\"Invalid Stock Code\",VLOOKUP($E131,StockCode[],COLUMN(StockCodes!$B$3),0))","v":"Gurkins"},{"$f":"IF(ISNA(VLOOKUP($E131,StockCode[],COLUMN(StockCodes!$C$3),0))=TRUE,\"-\",VLOOKUP($E131,StockCode[],COLUMN(StockCodes!$C$3),0))","v":"Kg"},77.47999999999999,78.47999999999999,{"$f":"IF($K131=0,0,((SUMIFS(StockOpenQty,StockCodeOnly,$E131)*SUMIFS(StockOpenCost,StockCodeOnly,$E131))+SUMIFS(MoveAmount,MoveDate,\"<\"&$T131,MoveCode,$E131))/$K131)","v":8.4039504515965007},8.3452864550165238,3.8,3.8,4.6039504515965008,0.54783169868902393,4.6039504515965008,"2021-08-25T00:02:11"]
["2021-08-25","Purchase","Fruit & Veg","INV999","RM1025",1,9,"-",{"$f":"IF(ISNA(VLOOKUP($E132,StockCode[],COLUMN(StockCodes!$B$3),0))=TRUE,\"Invalid Stock Code\",VLOOKUP($E132,StockCode[],COLUMN(StockCodes!$B$3),0))","v":"Onions"},{"$f":"IF(ISNA(VLOOKUP($E132,StockCode[],COLUMN(StockCodes!$C$3),0))=TRUE,\"-\",VLOOKUP($E132,StockCode[],COLUMN(StockCodes!$C$3),0))","v":"Kg"},4.4699999999999989,5.4699999999999989,{"$f":"IF($K132=0,0,((SUMIFS(StockOpenQty,StockCodeOnly,$E132)*SUMIFS(StockOpenCost,StockCodeOnly,$E132))+SUMIFS(MoveAmount,MoveDate,\"<\"&$T132,MoveCode,$E132))/$K132)","v":26.432265371336236},23.245379563048076,9,9,17.432265371336236,0.65950705043390612,17.432265371336236,"2021-08-25T00:02:12"]
["2021-08-27","Usage","None","None","PM2000",-7,0,{"$f":"IF(AND(ISBLANK(E133)=FALSE,ISNA(VLOOKUP(E133,StockCodeOnly,1,0))=TRUE),\"E2\",IF(AND(ISBLANK(B133)=FALSE,B133<>\"Purchase\",B133<>\"Usage\",B133<>\"Adjustment\"),\"E3\",IF(AND(B133=\"Usage\",F133>0),\"E4\",IF(OR(K133<0,L133<0),\"E5\",\"-\"))))","v":"-"},{"$f":"IF(ISNA(VLOOKUP($E133,StockCode[],COLUMN(StockCodes!$B$3),0))=TRUE,\"Invalid Stock Code\",VLOOKUP($E133,StockCode[],COLUMN(StockCodes!$B$3),0))","v":"Plastic Wrap"},{"$f":"IF(ISNA(VLOOKUP($E133,StockCode[],COLUMN(StockCodes!$C$3),0))=TRUE,\"-\",VLOOKUP($E133,StockCode[],COLUMN(StockCodes!$C$3),0))","v":"Rolls"},{"$f":"SUMIFS(StockOpenQty,StockCodeOnly,$E133)+SUMIFS(MoveQty,MoveDate,\"<\"&$T133,MoveCode,$E133)","v":15.89},{"$f":"K133+F133","v":8.89},{"$f":"IF($K133=0,0,((SUMIFS(StockOpenQty,StockCodeOnly,$E133)*SUMIFS(StockOpenCost,StockCodeOnly,$E133))+SUMIFS(MoveAmount,MoveDate,\"<\"&$T133,MoveCode,$E133))/$K133)","v":20.544960576048616},{"$f":"IF(B133<>\"Purchase\",M133,IF(L133=0,0,((K133*M133)+G133)/(F133+K133)))","v":20.544960576048616},{"$f":"IF(B133=\"Purchase\",G133,N133*F133)","v":-143.81472403234031},{"$f":"IF(B133<>\"Purchase\",0,IF(F133=0,0,G133/F133))","v":0},{"$f":"IF(B133<>\"Purchase\",0,IF(K133=0,0,M133-P133))","v":0},{"$f":"IF(B133<>\"Purchase\",0,IF(M133=0,0,Q133/M133))","v":0},{"$f":"Q133*F133","v":0},{"$f":"IF(ISBLANK($A133)=TRUE,TODAY()+((ROW($A133)-(86400*ROUNDDOWN(ROW($A133)/86400,0)))/86400),$A133+((ROW($A133)-(86400*ROUNDDOWN(ROW($A133)/86400,0)))/86400))","v":"2021-08-27T00:02:13"}]
["2021-08-27","Usage","None","None","PM2005",-3,0,"-",{"$f":"IF(ISNA(VLOOKUP($E134,StockCode[],COLUMN(StockCodes!$B$3),0))=TRUE,\"Invalid Stock Code\",VLOOKUP($E134,StockCode[],COLUMN(StockCodes!$B$3),0))","v":"Labels"},{"$f":"IF(ISNA(VLOOKUP($E134,StockCode[],COLUMN(StockCodes!$C$3),0))=TRUE,\"-\",VLOOKUP($E134,StockCode[],COLUMN(StockCodes!$C$3),0))","v":1000},3.4699999999999998,0.46999999999999975,{"$f":"IF($K134=0,0,((SUMIFS(StockOpenQty,StockCodeOnly,$E134)*SUMIFS(StockOpenCost,StockCodeOnly,$E134))+SUMIFS(MoveAmount,MoveDate,\"<\"&$T134,MoveCode,$E134))/$K134)","v":512.06771753685234},512.06771753685234,-1536.203152610557,0,0,0,0,"2021-08-27T00:02:14"]
["2021-08-27","Usage","None","None","PM2015",-610,0,"-",{"$f":"IF(ISNA(VLOOKUP($E135,StockCode[],COLUMN(StockCodes!$B$3),0))=TRUE,\"Invalid Stock Code\",VLOOKUP($E135,StockCode[],COLUMN(StockCodes!$B$3),0))","v":"Boxes"},{"$f":"IF(ISNA(VLOOKUP($E135,StockCode[],COLUMN(StockCodes!$C$3),0))=TRUE,\"-\",VLOOKUP($E135,StockCode[],COLUMN(StockCodes!$C$3),0))","v":"Units"},628.67999999999984,18.679999999999836,{"$f":"IF($K135=0,0,((SUMIFS(StockOpenQty,StockCodeOnly,$E135)*SUMIFS(StockOpenCost,StockCodeOnly,$E135))+SUMIFS(MoveAmount,MoveDate,\"<\"&$T135,MoveCode,$E135))/$K135)","v":1.0247813316782015},1.0247813316782015,-625.11661232370295,0,0,0,0,"2021-08-27T00:02:15"]
["2021-08-27","Usage","None","None","RM1000",-620,0,"-",{"$f":"IF(ISNA(VLOOKUP($E136,StockCode[],COLUMN(StockCodes!$B$3),0))=TRUE,\"Invalid Stock Code\",VLOOKUP($E136,StockCode[],COLUMN(StockCodes!$B$3),0))","v":"Meat"},{"$f":"IF(ISNA(VLOOKUP($E136,StockCode[],COLUMN(StockCodes!$C$3),0))=TRUE,\"-\",VLOOKUP($E136,StockCode[],COLUMN(StockCodes!$C$3),0))","v":"Kg"},1380,760,{"$f":"IF($K136=0,0,((SUMIFS(StockOpenQty,StockCodeOnly,$E136)*SUMIFS(StockOpenCost,StockCodeOnly,$E136))+SUMIFS(MoveAmount,MoveDate,\"<\"&$T136,MoveCode,$E136))/$K136)","v":50.450891015539916},50.450891015539916,-31279.552429634747,0,0,0,0,"2021-08-27T00:02:16"]
["2021-08-27","Usage","None","None","RM1005",-25,0,"-",{"$f":"IF(ISNA(VLOOKUP($E137,StockCode[],COLUMN(StockCodes!$B$3),0))=TRUE,\"Invalid Stock Code\",VLOOKUP($E137,StockCode[],COLUMN(StockCodes!$B$3),0))","v":"Bread Rolls"},{"$f":"IF(ISNA(VLOOKUP($E137,StockCode[],COLUMN(StockCodes!$C$3),0))=TRUE,\"-\",VLOOKUP($E137,StockCode[],COLUMN(StockCodes!$C$3),0))","v":"Dozen"},35.14,10.14,{"$f":"IF($K137=0,0,((SUMIFS(StockOpenQty,StockCodeOnly,$E137)*SUMIFS(StockOpenCost,StockCodeOnly,$E137))+SUMIFS(MoveAmount,MoveDate,\"<\"&$T137,MoveCode,$E137))/$K137)","v":41.736348781687958},41.736348781687958,-1043.4087195421989,0,0,0,0,"2021-08-27T00:02:17"]
["2021-08-27","Usage","None","None","RM1010",-9,0,"-",{"$f":"IF(ISNA(VLOOKUP($E138,StockCode[],COLUMN(StockCodes!$B$3),0))=TRUE,\"Invalid Stock Code\",VLOOKUP($E138,StockCode[],COLUMN(StockCodes!$B$3),0))","v":"Lettuce"},{"$f":"IF(ISNA(VLOOKUP($E138,StockCode[],COLUMN(StockCodes!$C$3),0))=TRUE,\"-\",VLOOKUP($E138,StockCode[],COLUMN(StockCodes!$C$3),0))","v":"Kg"},10.440000000000001,1.4400000000000013,{"$f":"IF($K138=0,0,((SUMIFS(StockOpenQty,StockCodeOnly,$E138)*SUMIFS(StockOpenCost,StockCodeOnly,$E138))+SUMIFS(MoveAmount,MoveDate,\"<\"&$T138,MoveCode,$E138))/$K138)","v":5.0792173841536998},5.0792173841536998,-45.712956457383299,0,0,0,0,"2021-08-27T00:02:18"]
["2021-08-27","Usage","None","None","RM1020",-1,0,"-",{"$f":"IF(ISNA(VLOOKUP($E139,StockCode[],COLUMN(StockCodes!$B$3),0))=TRUE,\"Invalid Stock Code\",VLOOKUP($E139,StockCode[],COLUMN(StockCodes!$B$3),0))","v":"Gurkins"},{"$f":"IF(ISNA(VLOOKUP($E139,StockCode[],COLUMN(StockCodes!$C$3),0))=TRUE,\"-\",VLOOKUP($E139,StockCode[],COLUMN(StockCodes!$C$3),0))","v":"Kg"},78.47999999999999,77.47999999999999,{"$f":"IF($K139=0,0,((SUMIFS(StockOpenQty,StockCodeOnly,$E139)*SUMIFS(StockOpenCost,StockCodeOnly,$E139))+SUMIFS(MoveAmount,MoveDate,\"<\"&$T139,MoveCode,$E139))/$K139)","v":8.3452864550165238},8.3452864550165238,-8.3452864550165238,0,0,0,0,"2021-08-27T00:02:19"]
["2021-08-27","Usage","None","None","RM1025",-4,0,"-",{"$f":"IF(ISNA(VLOOKUP($E140,StockCode[],COLUMN(StockCodes!$B$3),0))=TRUE,\"Invalid Stock Code\",VLOOKUP($E140,StockCode[],COLUMN(StockCodes!$B$3),0))","v":"Onions"},{"$f":"IF(ISNA(VLOOKUP($E140,StockCode[],COLUMN(StockCodes!$C$3),0))=TRUE,\"-\",VLOOKUP($E140,StockCode[],COLUMN(StockCodes!$C$3),0))","v":"Kg"},5.4699999999999989,1.4699999999999989,{"$f":"IF($K140=0,0,((SUMIFS(StockOpenQty,StockCodeOnly,$E140)*SUMIFS(StockOpenCost,StockCodeOnly,$E140))+SUMIFS(MoveAmount,MoveDate,\"<\"&$T140,MoveCode,$E140))/$K140)","v":23.245379563048072},23.245379563048072,-92.981518252192288,0,0,0,0,"2021-08-27T00:02:20"]
["2021-08-31","Adjustment","None","None","PM2000",-0.39000000000000057,0,"-",{"$f":"IF(ISNA(VLOOKUP($E141,StockCode[],COLUMN(StockCodes!$B$3),0))=TRUE,\"Invalid Stock Code\",VLOOKUP($E141,StockCode[],COLUMN(StockCodes!$B$3),0))","v":"Plastic Wrap"},{"$f":"IF(ISNA(VLOOKUP($E141,StockCode[],COLUMN(StockCodes!$C$3),0))=TRUE,\"-\",VLOOKUP($E141,StockCode[],COLUMN(StockCodes!$C$3),0))","v":"Rolls"},8.89,8.5,{"$f":"IF($K141=0,0,((SUMIFS(StockOpenQty,StockCodeOnly,$E141)*SUMIFS(StockOpenCost,StockCodeOnly,$E141))+SUMIFS(MoveAmount,MoveDate,\"<\"&$T141,MoveCode,$E141))/$K141)","v":20.544960576048616},20.544960576048616,-8.0125346246589721,0,0,0,0,"2021-08-31T00:02:21"]
["2021-08-31","Adjustment","None","None","PM2005",-0.47,0,"-",{"$f":"IF(ISNA(VLOOKUP($E142,StockCode[],COLUMN(StockCodes!$B$3),0))=TRUE,\"Invalid Stock Code\",VLOOKUP($E142,StockCode[],COLUMN(StockCodes!$B$3),0))","v":"Labels"},{"$f":"IF(ISNA(VLOOKUP($E142,StockCode[],COLUMN(StockCodes!$C$3),0))=TRUE,\"-\",VLOOKUP($E142,StockCode[],COLUMN(StockCodes!$C$3),0))","v":1000},0.46999999999999975,0,{"$f":"IF($K142=0,0,((SUMIFS(StockOpenQty,StockCodeOnly,$E142)*SUMIFS(StockOpenCost,StockCodeOnly,$E142))+SUMIFS(MoveAmount,MoveDate,\"<\"&$T142,MoveCode,$E142))/$K142)","v":512.06771753685268},512.06771753685268,-240.67182724232075,0,0,0,0,"2021-08-31T00:02:22"]
["2021-08-31","Adjustment","None","None","PM2015",-0.68,0,"-",{"$f":"IF(ISNA(VLOOKUP($E143,StockCode[],COLUMN(StockCodes!$B$3),0))=TRUE,\"Invalid Stock Code\",VLOOKUP($E143,StockCode[],COLUMN(StockCodes!$B$3),0))","v":"Boxes"},{"$f":"IF(ISNA(VLOOKUP($E143,StockCode[],COLUMN(StockCodes!$C$3),0))=TRUE,\"-\",VLOOKUP($E143,StockCode[],COLUMN(StockCodes!$C$3),0))","v":"Units"},18.679999999999836,17.999999999999837,{"$f":"IF($K143=0,0,((SUMIFS(StockOpenQty,StockCodeOnly,$E143)*SUMIFS(StockOpenCost,StockCodeOnly,$E143))+SUMIFS(MoveAmount,MoveDate,\"<\"&$T143,MoveCode,$E143))/$K143)","v":1.0247813316781984},1.0247813316781984,-0.69685130554117491,0,0,0,0,"2021-08-31T00:02:23"]
["2021-08-31","Adjustment","None","None","RM1000",-160,0,"-",{"$f":"IF(ISNA(VLOOKUP($E144,StockCode[],COLUMN(StockCodes!$B$3),0))=TRUE,\"Invalid Stock Code\",VLOOKUP($E144,StockCode[],COLUMN(StockCodes!$B$3),0))","v":"Meat"},{"$f":"IF(ISNA(VLOOKUP($E144,StockCode[],COLUMN(StockCodes!$C$3),0))=TRUE,\"-\",VLOOKUP($E144,StockCode[],COLUMN(StockCodes!$C$3),0))","v":"Kg"},760,600,{"$f":"IF($K144=0,0,((SUMIFS(StockOpenQty,StockCodeOnly,$E144)*SUMIFS(StockOpenCost,StockCodeOnly,$E144))+SUMIFS(MoveAmount,MoveDate,\"<\"&$T144,MoveCode,$E144))/$K144)","v":50.450891015539924},50.450891015539924,-8072.1425624863878,0,0,0,0,"2021-08-31T00:02:24"]
["2021-08-31","Adjustment","None","None","RM1005",-0.14000000000000057,0,"-",{"$f":"IF(ISNA(VLOOKUP($E145,StockCode[],COLUMN(StockCodes!$B$3),0))=TRUE,\"Invalid Stock Code\",VLOOKUP($E145,StockCode[],COLUMN(StockCodes!$B$3),0))","v":"Bread Rolls"},{"$f":"IF(ISNA(VLOOKUP($E145,StockCode[],COLUMN(StockCodes!$C$3),0))=TRUE,\"-\",VLOOKUP($E145,StockCode[],COLUMN(StockCodes!$C$3),0))","v":"Dozen"},10.14,10,{"$f":"IF($K145=0,0,((SUMIFS(StockOpenQty,StockCodeOnly,$E145)*SUMIFS(StockOpenCost,StockCodeOnly,$E145))+SUMIFS(MoveAmount,MoveDate,\"<\"&$T145,MoveCode,$E145))/$K145)","v":41.736348781687951},41.736348781687951,-5.8430888294363372,0,0,0,0,"2021-08-31T00:02:25"]
["2021-08-31","Adjustment","None","None","RM1010",-0.44,0,"-",{"$f":"IF(ISNA(VLOOKUP($E146,StockCode[],COLUMN(StockCodes!$B$3),0))=TRUE,\"Invalid Stock Code\",VLOOKUP($E146,StockCode[],COLUMN(StockCodes!$B$3),0))","v":"Lettuce"},{"$f":"IF(ISNA(VLOOKUP($E146,StockCode[],COLUMN(StockCodes!$C$3),0))=TRUE,\"-\",VLOOKUP($E146,StockCode[],COLUMN(StockCodes!$C$3),0))","v":"Kg"},1.4400000000000013,1.0000000000000013,{"$f":"IF($K146=0,0,((SUMIFS(StockOpenQty,StockCodeOnly,$E146)*SUMIFS(StockOpenCost,StockCodeOnly,$E146))+SUMIFS(MoveAmount,MoveDate,\"<\"&$T146,MoveCode,$E146))/$K146)","v":5.0792173841536972},5.0792173841536972,-2.2348556490276268,0,0,0,0,"2021-08-31T00:02:26"]
["2021-08-31","Adjustment","None","None","RM1020",0.26,0,"-",{"$f":"IF(ISNA(VLOOKUP($E147,StockCode[],COLUMN(StockCodes!$B$3),0))=TRUE,\"Invalid Stock Code\",VLOOKUP($E147,StockCode[],COLUMN(StockCodes!$B$3),0))","v":"Gurkins"},{"$f":"IF(ISNA(VLOOKUP($E147,StockCode[],COLUMN(StockCodes!$C$3),0))=TRUE,\"-\",VLOOKUP($E147,StockCode[],COLUMN(StockCodes!$C$3),0))","v":"Kg"},77.47999999999999,77.739999999999995,{"$f":"IF($K147=0,0,((SUMIFS(StockOpenQty,StockCodeOnly,$E147)*SUMIFS(StockOpenCost,StockCodeOnly,$E147))+SUMIFS(MoveAmount,MoveDate,\"<\"&$T147,MoveCode,$E147))/$K147)","v":8.3452864550165238},8.3452864550165238,2.169774478304296,0,0,0,0,"2021-08-31T00:02:27"]
["2021-08-31","Adjustment","None","None","RM1025",-0.47,0,"-",{"$f":"IF(ISNA(VLOOKUP($E148,StockCode[],COLUMN(StockCodes!$B$3),0))=TRUE,\"Invalid Stock Code\",VLOOKUP($E148,StockCode[],COLUMN(StockCodes!$B$3),0))","v":"Onions"},{"$f":"IF(ISNA(VLOOKUP($E148,StockCode[],COLUMN(StockCodes!$C$3),0))=TRUE,\"-\",VLOOKUP($E148,StockCode[],COLUMN(StockCodes!$C$3),0))","v":"Kg"},1.4699999999999989,0.99999999999999889,{"$f":"IF($K148=0,0,((SUMIFS(StockOpenQty,StockCodeOnly,$E148)*SUMIFS(StockOpenCost,StockCodeOnly,$E148))+SUMIFS(MoveAmount,MoveDate,\"<\"&$T148,MoveCode,$E148))/$K148)","v":23.245379563048079},23.245379563048079,-10.925328394632597,0,0,0,0,"2021-08-31T00:02:28"]

{"sheet":"StockCount","index":5,"n_rows":12,"n_cols":11,"rows_kept":12,"cut":false,"hidden":true,"merged":[]}
["Stock Count Variance Report",null,null,null,null,null,null,null,null,"Count Date","2021-08-31"]
["Calculate Stock Count Variances"]
["© www.excel-skills.com",null,null,null,null,{"$f":"SUBTOTAL(109,SCount[[#Data],[Count Value]])","v":30925.991495864688},null,null,{"$f":"SUBTOTAL(109,SCount[[#Data],[Theoretical Stock Value]])","v":31558.063491967641},null,{"$f":"SUBTOTAL(109,SCount[[#Data],[Variance Value]])","v":-632.07199610295118}]
["Stock Code","Description","UOM","Error Code","Quantity Counted","Count Value","Theoretical Stock Qty","Average Cost","Theoretical Stock Value","Quantity Variance","Variance Value"]
["PM2000",{"$f":"IF(ISNA(VLOOKUP($A5,StockCode[],COLUMN(StockCodes!$B$5),0))=TRUE,\"Invalid Stock Code\",VLOOKUP($A5,StockCode[],COLUMN(StockCodes!$B$5),0))","v":"Plastic Wrap"},{"$f":"IF(ISNA(VLOOKUP($A5,StockCode[],COLUMN(StockCodes!$C$5),0))=TRUE,\"-\",VLOOKUP($A5,StockCode[],COLUMN(StockCodes!$C$5),0))","v":"Rolls"},{"$f":"IF(AND(ISBLANK(A5)=FALSE,COUNTIF(CountCode,A5)>1)=TRUE,\"E1\",IF(AND(ISBLANK(A5)=FALSE,ISNA(VLOOKUP(A5,StockCodeOnly,1,0))=TRUE),\"E2\",\"-\"))","v":"-"},8.5,{"$f":"E5*H5","v":174.63216489641326},{"$f":"SUMIFS(StockCode[Opening Quantity],StockCode[Stock Code],$A5)+SUMIFS(MoveQty,MoveDate,\"<\"&$K$1+1,MoveCode,$A5)","v":8.5},{"$f":"IF($G5=0,0,I5/G5)","v":20.54496057604862},{"$f":"(SUMIFS(StockOpenQty,StockCodeOnly,$A5)*SUMIFS(StockOpenCost,StockCodeOnly,$A5))+SUMIFS(MoveAmount,MoveDate,\"<\"&$K$1+1,MoveCode,$A5)","v":174.63216489641326},{"$f":"E5-G5","v":0},{"$f":"J5*H5","v":0}]
["PM2005",{"$f":"IF(ISNA(VLOOKUP($A6,StockCode[],COLUMN(StockCodes!$B$5),0))=TRUE,\"Invalid Stock Code\",VLOOKUP($A6,StockCode[],COLUMN(StockCodes!$B$5),0))","v":"Labels"},{"$f":"IF(ISNA(VLOOKUP($A6,StockCode[],COLUMN(StockCodes!$C$5),0))=TRUE,\"-\",VLOOKUP($A6,StockCode[],COLUMN(StockCodes!$C$5),0))","v":1000},"-",0,0,{"$f":"SUMIFS(StockCode[Opening Quantity],StockCode[Stock Code],$A6)+SUMIFS(MoveQty,MoveDate,\"<\"&$K$1+1,MoveCode,$A6)","v":0},0,0,0,0]
["PM2015",{"$f":"IF(ISNA(VLOOKUP($A7,StockCode[],COLUMN(StockCodes!$B$5),0))=TRUE,\"Invalid Stock Code\",VLOOKUP($A7,StockCode[],COLUMN(StockCodes!$B$5),0))","v":"Boxes"},{"$f":"IF(ISNA(VLOOKUP($A7,StockCode[],COLUMN(StockCodes!$C$5),0))=TRUE,\"-\",VLOOKUP($A7,StockCode[],COLUMN(StockCodes!$C$5),0))","v":"Units"},"-",18,18.44606397020755,{"$f":"SUMIFS(StockCode[Opening Quantity],StockCode[Stock Code],$A7)+SUMIFS(MoveQty,MoveDate,\"<\"&$K$1+1,MoveCode,$A7)","v":17.999999999999886},1.0247813316781973,18.446063970207433,1.1368683772161603E-13,1.1650414895464079E-13]
["RM1000",{"$f":"IF(ISNA(VLOOKUP($A8,StockCode[],COLUMN(StockCodes!$B$5),0))=TRUE,\"Invalid Stock Code\",VLOOKUP($A8,StockCode[],COLUMN(StockCodes!$B$5),0))","v":"Meat"},{"$f":"IF(ISNA(VLOOKUP($A8,StockCode[],COLUMN(StockCodes!$C$5),0))=TRUE,\"-\",VLOOKUP($A8,StockCode[],COLUMN(StockCodes!$C$5),0))","v":"Kg"},"-",600,30270.534609323957,{"$f":"SUMIFS(StockCode[Opening Quantity],StockCode[Stock Code],$A8)+SUMIFS(MoveQty,MoveDate,\"<\"&$K$1+1,MoveCode,$A8)","v":600},50.450891015539931,30270.534609323957,0,0]
["RM1005",{"$f":"IF(ISNA(VLOOKUP($A9,StockCode[],COLUMN(StockCodes!$B$5),0))=TRUE,\"Invalid Stock Code\",VLOOKUP($A9,StockCode[],COLUMN(StockCodes!$B$5),0))","v":"Bread Rolls"},{"$f":"IF(ISNA(VLOOKUP($A9,StockCode[],COLUMN(StockCodes!$C$5),0))=TRUE,\"-\",VLOOKUP($A9,StockCode[],COLUMN(StockCodes!$C$5),0))","v":"Dozen"},"-",10,417.36348781687957,{"$f":"SUMIFS(StockCode[Opening Quantity],StockCode[Stock Code],$A9)+SUMIFS(MoveQty,MoveDate,\"<\"&$K$1+1,MoveCode,$A9)","v":10},41.736348781687958,417.36348781687957,0,0]
["RM1010",{"$f":"IF(ISNA(VLOOKUP($A10,StockCode[],COLUMN(StockCodes!$B$5),0))=TRUE,\"Invalid Stock Code\",VLOOKUP($A10,StockCode[],COLUMN(StockCodes!$B$5),0))","v":"Lettuce"},{"$f":"IF(ISNA(VLOOKUP($A10,StockCode[],COLUMN(StockCodes!$C$5),0))=TRUE,\"-\",VLOOKUP($A10,StockCode[],COLUMN(StockCodes!$C$5),0))","v":"Kg"},"-",1,5.0792173841536918,{"$f":"SUMIFS(StockCode[Opening Quantity],StockCode[Stock Code],$A10)+SUMIFS(MoveQty,MoveDate,\"<\"&$K$1+1,MoveCode,$A10)","v":1.0000000000000018},5.0792173841536918,5.0792173841537007,-1.7763568394002505E-15,-9.0225025391420598E-15]
["RM1020",{"$f":"IF(ISNA(VLOOKUP($A11,StockCode[],COLUMN(StockCodes!$B$5),0))=TRUE,\"Invalid Stock Code\",VLOOKUP($A11,StockCode[],COLUMN(StockCodes!$B$5),0))","v":"Gurkins"},{"$f":"IF(ISNA(VLOOKUP($A11,StockCode[],COLUMN(StockCodes!$C$5),0))=TRUE,\"-\",VLOOKUP($A11,StockCode[],COLUMN(StockCodes!$C$5),0))","v":"Kg"},"-",2,16.690572910033044,{"$f":"SUMIFS(StockCode[Opening Quantity],StockCode[Stock Code],$A11)+SUMIFS(MoveQty,MoveDate,\"<\"&$K$1+1,MoveCode,$A11)","v":77.739999999999995},8.345286455016522,648.76256901298439,-75.739999999999995,-632.07199610295129]
["RM1025",{"$f":"IF(ISNA(VLOOKUP($A12,StockCode[],COLUMN(StockCodes!$B$5),0))=TRUE,\"Invalid Stock Code\",VLOOKUP($A12,StockCode[],COLUMN(StockCodes!$B$5),0))","v":"Onions"},{"$f":"IF(ISNA(VLOOKUP($A12,StockCode[],COLUMN(StockCodes!$C$5),0))=TRUE,\"-\",VLOOKUP($A12,StockCode[],COLUMN(StockCodes!$C$5),0))","v":"Kg"},"-",1,23.24537956304809,{"$f":"SUMIFS(StockCode[Opening Quantity],StockCode[Stock Code],$A12)+SUMIFS(MoveQty,MoveDate,\"<\"&$K$1+1,MoveCode,$A12)","v":0.99999999999999822},23.24537956304809,23.245379563048047,1.7763568394002505E-15,4.129208897127528E-14]

{"sheet":"Dashboard","index":6,"n_rows":216,"n_cols":10,"rows_kept":216,"cut":false,"hidden":true,"merged":[[12,6,12,7],[13,7,13,8],[14,7,14,8],[15,1,24,9],[42,1,43,2],[42,5,43,7],[25,1,33,4],[25,5,33,9],[13,1,13,5],[14,1,14,5],[34,1,35,2],[34,5,35,7],[11,6,11,7],[1,6,1,9],[2,6,2,9],[3,6,3,9],[4,6,4,9],[5,6,5,9],[6,6,6,7],[7,6,7,7],[8,6,8,7],[9,6,9,7],[10,6,10,7],[1,1,4,1],[3,2,3,3],[1,2,2,5],[4,2,4,3],[5,1,12,1],[5,2,12,3],[5,4,12,5]]}
[]
[null,"INVENTORY\nDASHBOARD","Dashboard Filters",null,null,null,"SELECTED STOCK CODE:"]
[null,null,null,null,null,null,{"$f":"IF(ISBLANK($C$5),\"ALL\",C56&\" \"&C57)","v":"ALL"}]
[null,null,"STOCK CODE",null,"FROM DATE","TO DATE","UNIT OF MEASURE:"]
[null,null,null,null,null,"2021-08-31",{"$f":"C58","v":""}]
[null,null,null,null,null,null,"Stock Movement"]
[null,null,null,null,null,null,null,null,"Qty","Value"]
[null,null,null,null,null,null,"Opening Balance",null,{"$f":"C66","v":988},{"$f":"D66","v":18190}]
[null,null,null,null,null,null,"Purchases",null,{"$f":"C67","v":8686},{"$f":"D67","v":212244.59999999998}]
[null,null,null,null,null,null,"Usage",null,-8796.34,-187979.80578980054]
[null,null,null,null,null,null,"Adjustments",null,-161.41999999999999,-10896.7307182318]
[null,null,null,null,null,null,"Closing Balance",null,716.24000000000012,31558.063491967645]
[]
[null,"Interactive Inventory Reports",null,null,null,null,"BASIS","MEASUREMENT",null,"TYPE"]
[null,{"$f":"$F$71","v":"All Transactions By Amount"},null,null,null,null,"Balance","Amount",null,"All"]
[]
[]
[]
[]
[]
[]
[]
[]
[]
[]
[]
[]
[]
[]
[]
[]
[]
[]
[]
[null,"Top Products By Usage",null,null,null,"Top Products By Adjustment"]
[null,null,null,"Qty","Value",null,null,null,"Qty","Value"]
[null,{"$f":"IF(ISNA(MATCH(ROW(1:1),$G$194:$G$198,0)),\"\",OFFSET($B$193,MATCH(ROW(1:1),$G$194:$G$198,0),1,1,1))","v":"RM1000 Meat"},null,{"$f":"IF(ISNA(MATCH(ROW(1:1),$G$194:$G$198,0)),\"\",OFFSET($B$193,MATCH(ROW(1:1),$G$194:$G$198,0),2,1,1))","v":3240},{"$f":"IF(ISNA(MATCH(ROW(1:1),$G$194:$G$198,0)),\"\",OFFSET($B$193,MATCH(ROW(1:1),$G$194:$G$198,0),3,1,1))","v":159696.72557233815},{"$f":"IF(ISNA(MATCH(ROW(1:1),$H$200:$H$204,0)),\"\",OFFSET($B$199,MATCH(ROW(1:1),$H$200:$H$204,0),1,1,1))","v":"RM1000 Meat"},null,null,{"$f":"IF(ISNA(MATCH(ROW(1:1),$H$200:$H$204,0)),\"\",OFFSET($B$199,MATCH(ROW(1:1),$H$200:$H$204,0),2,1,1))","v":-220},{"$f":"IF(ISNA(MATCH(ROW(1:1),$H$200:$H$204,0)),\"\",OFFSET($B$199,MATCH(ROW(1:1),$H$200:$H$204,0),3,1,1))","v":-10872.739818337881}]
[null,{"$f":"IF(ISNA(MATCH(ROW(2:2),$G$194:$G$198,0)),\"\",OFFSET($B$193,MATCH(ROW(2:2),$G$194:$G$198,0),1,1,1))","v":"RM1005 Bread Rolls"},null,{"$f":"IF(ISNA(MATCH(ROW(2:2),$G$194:$G$198,0)),\"\",OFFSET($B$193,MATCH(ROW(2:2),$G$194:$G$198,0),2,1,1))","v":350.72},{"$f":"IF(ISNA(MATCH(ROW(2:2),$G$194:$G$198,0)),\"\",OFFSET($B$193,MATCH(ROW(2:2),$G$194:$G$198,0),3,1,1))","v":14327.241695807948},{"$f":"IF(ISNA(MATCH(ROW(2:2),$H$200:$H$204,0)),\"\",OFFSET($B$199,MATCH(ROW(2:2),$H$200:$H$204,0),1,1,1))","v":"RM1020 Gurkins"},null,null,{"$f":"IF(ISNA(MATCH(ROW(2:2),$H$200:$H$204,0)),\"\",OFFSET($B$199,MATCH(ROW(2:2),$H$200:$H$204,0),2,1,1))","v":75.260000000000005},{"$f":"IF(ISNA(MATCH(ROW(2:2),$H$200:$H$204,0)),\"\",OFFSET($B$199,MATCH(ROW(2:2),$H$200:$H$204,0),3,1,1))","v":588.83187979762113}]
[null,{"$f":"IF(ISNA(MATCH(ROW(3:3),$G$194:$G$198,0)),\"\",OFFSET($B$193,MATCH(ROW(3:3),$G$194:$G$198,0),1,1,1))","v":"PM2005 Labels"},null,{"$f":"IF(ISNA(MATCH(ROW(3:3),$G$194:$G$198,0)),\"\",OFFSET($B$193,MATCH(ROW(3:3),$G$194:$G$198,0),2,1,1))","v":14.06},{"$f":"IF(ISNA(MATCH(ROW(3:3),$G$194:$G$198,0)),\"\",OFFSET($B$193,MATCH(ROW(3:3),$G$194:$G$198,0),3,1,1))","v":6397.1288185322246},{"$f":"IF(ISNA(MATCH(ROW(3:3),$H$200:$H$204,0)),\"\",OFFSET($B$199,MATCH(ROW(3:3),$H$200:$H$204,0),1,1,1))","v":"PM2005 Labels"},null,null,{"$f":"IF(ISNA(MATCH(ROW(3:3),$H$200:$H$204,0)),\"\",OFFSET($B$199,MATCH(ROW(3:3),$H$200:$H$204,0),2,1,1))","v":-0.94},{"$f":"IF(ISNA(MATCH(ROW(3:3),$H$200:$H$204,0)),\"\",OFFSET($B$199,MATCH(ROW(3:3),$H$200:$H$204,0),3,1,1))","v":-422.87118146777533}]
[null,{"$f":"IF(ISNA(MATCH(ROW(4:4),$G$194:$G$198,0)),\"\",OFFSET($B$193,MATCH(ROW(4:4),$G$194:$G$198,0),1,1,1))","v":"PM2015 Boxes"},null,{"$f":"IF(ISNA(MATCH(ROW(4:4),$G$194:$G$198,0)),\"\",OFFSET($B$193,MATCH(ROW(4:4),$G$194:$G$198,0),2,1,1))","v":4972.6400000000003},{"$f":"IF(ISNA(MATCH(ROW(4:4),$G$194:$G$198,0)),\"\",OFFSET($B$193,MATCH(ROW(4:4),$G$194:$G$198,0),3,1,1))","v":5251.7059873920171},{"$f":"IF(ISNA(MATCH(ROW(4:4),$H$200:$H$204,0)),\"\",OFFSET($B$199,MATCH(ROW(4:4),$H$200:$H$204,0),1,1,1))","v":"RM1005 Bread Rolls"},null,null,{"$f":"IF(ISNA(MATCH(ROW(4:4),$H$200:$H$204,0)),\"\",OFFSET($B$199,MATCH(ROW(4:4),$H$200:$H$204,0),2,1,1))","v":-3.2800000000000007},{"$f":"IF(ISNA(MATCH(ROW(4:4),$H$200:$H$204,0)),\"\",OFFSET($B$199,MATCH(ROW(4:4),$H$200:$H$204,0),3,1,1))","v":-135.39481637517406}]
[null,{"$f":"IF(ISNA(MATCH(ROW(5:5),$G$194:$G$198,0)),\"\",OFFSET($B$193,MATCH(ROW(5:5),$G$194:$G$198,0),1,1,1))","v":"RM1025 Onions"},null,{"$f":"IF(ISNA(MATCH(ROW(5:5),$G$194:$G$198,0)),\"\",OFFSET($B$193,MATCH(ROW(5:5),$G$194:$G$198,0),2,1,1))","v":87.06},{"$f":"IF(ISNA(MATCH(ROW(5:5),$G$194:$G$198,0)),\"\",OFFSET($B$193,MATCH(ROW(5:5),$G$194:$G$198,0),3,1,1))","v":1118.7975358059257},{"$f":"IF(ISNA(MATCH(ROW(5:5),$H$200:$H$204,0)),\"\",OFFSET($B$199,MATCH(ROW(5:5),$H$200:$H$204,0),1,1,1))","v":"PM2000 Plastic Wrap"},null,null,{"$f":"IF(ISNA(MATCH(ROW(5:5),$H$200:$H$204,0)),\"\",OFFSET($B$199,MATCH(ROW(5:5),$H$200:$H$204,0),2,1,1))","v":-1.2800000000000007},{"$f":"IF(ISNA(MATCH(ROW(5:5),$H$200:$H$204,0)),\"\",OFFSET($B$199,MATCH(ROW(5:5),$H$200:$H$204,0),3,1,1))","v":-26.25693399311951}]
[]
[null,"Top Products Purchased",null,null,null,"Top Products By Price Variance"]
[null,null,null,"Qty","Value",null,null,null,"Value","%"]
[null,{"$f":"IF(ISNA(MATCH(ROW(1:1),$G$206:$G$210,0)),\"\",OFFSET($B$205,MATCH(ROW(1:1),$G$206:$G$210,0),1,1,1))","v":"RM1000 Meat"},null,{"$f":"IF(ISNA(MATCH(ROW(1:1),$G$206:$G$210,0)),\"\",OFFSET($B$205,MATCH(ROW(1:1),$G$206:$G$210,0),2,1,1))","v":3760},{"$f":"IF(ISNA(MATCH(ROW(1:1),$G$206:$G$210,0)),\"\",OFFSET($B$205,MATCH(ROW(1:1),$G$206:$G$210,0),3,1,1))","v":185840},{"$f":"IF(ISNA(MATCH(ROW(1:1),$H$212:$H$216,0)),\"\",OFFSET($B$211,MATCH(ROW(1:1),$H$212:$H$216,0),1,1,1))","v":"RM1000 Meat"},null,null,{"$f":"IF(ISNA(MATCH(ROW(1:1),$H$212:$H$216,0)),\"\",OFFSET($B$211,MATCH(ROW(1:1),$H$212:$H$216,0),2,1,1))","v":1239.3677980620982},{"$f":"IF(ISNA(MATCH(ROW(1:1),$H$212:$H$216,0)),\"\",OFFSET($B$211,MATCH(ROW(1:1),$H$212:$H$216,0),3,1,1))","v":6.669004509589422E-3}]
[null,{"$f":"IF(ISNA(MATCH(ROW(2:2),$G$206:$G$210,0)),\"\",OFFSET($B$205,MATCH(ROW(2:2),$G$206:$G$210,0),1,1,1))","v":"RM1005 Bread Rolls"},null,{"$f":"IF(ISNA(MATCH(ROW(2:2),$G$206:$G$210,0)),\"\",OFFSET($B$205,MATCH(ROW(2:2),$G$206:$G$210,0),2,1,1))","v":314},{"$f":"IF(ISNA(MATCH(ROW(2:2),$G$206:$G$210,0)),\"\",OFFSET($B$205,MATCH(ROW(2:2),$G$206:$G$210,0),3,1,1))","v":13080},{"$f":"IF(ISNA(MATCH(ROW(2:2),$H$212:$H$216,0)),\"\",OFFSET($B$211,MATCH(ROW(2:2),$H$212:$H$216,0),1,1,1))","v":"PM2005 Labels"},null,null,{"$f":"IF(ISNA(MATCH(ROW(2:2),$H$212:$H$216,0)),\"\",OFFSET($B$211,MATCH(ROW(2:2),$H$212:$H$216,0),2,1,1))","v":-506.07857025502551},{"$f":"IF(ISNA(MATCH(ROW(2:2),$H$212:$H$216,0)),\"\",OFFSET($B$211,MATCH(ROW(2:2),$H$212:$H$216,0),3,1,1))","v":-7.8219253517005483E-2}]
[null,{"$f":"IF(ISNA(MATCH(ROW(3:3),$G$206:$G$210,0)),\"\",OFFSET($B$205,MATCH(ROW(3:3),$G$206:$G$210,0),1,1,1))","v":"PM2005 Labels"},null,{"$f":"IF(ISNA(MATCH(ROW(3:3),$G$206:$G$210,0)),\"\",OFFSET($B$205,MATCH(ROW(3:3),$G$206:$G$210,0),2,1,1))","v":14},{"$f":"IF(ISNA(MATCH(ROW(3:3),$G$206:$G$210,0)),\"\",OFFSET($B$205,MATCH(ROW(3:3),$G$206:$G$210,0),3,1,1))","v":6470},{"$f":"IF(ISNA(MATCH(ROW(3:3),$H$212:$H$216,0)),\"\",OFFSET($B$211,MATCH(ROW(3:3),$H$212:$H$216,0),1,1,1))","v":"RM1005 Bread Rolls"},null,null,{"$f":"IF(ISNA(MATCH(ROW(3:3),$H$212:$H$216,0)),\"\",OFFSET($B$211,MATCH(ROW(3:3),$H$212:$H$216,0),2,1,1))","v":-479.73982629394027},{"$f":"IF(ISNA(MATCH(ROW(3:3),$H$212:$H$216,0)),\"\",OFFSET($B$211,MATCH(ROW(3:3),$H$212:$H$216,0),3,1,1))","v":-3.6677356750301246E-2}]
[null,{"$f":"IF(ISNA(MATCH(ROW(4:4),$G$206:$G$210,0)),\"\",OFFSET($B$205,MATCH(ROW(4:4),$G$206:$G$210,0),1,1,1))","v":"PM2015 Boxes"},null,{"$f":"IF(ISNA(MATCH(ROW(4:4),$G$206:$G$210,0)),\"\",OFFSET($B$205,MATCH(ROW(4:4),$G$206:$G$210,0),2,1,1))","v":4400},{"$f":"IF(ISNA(MATCH(ROW(4:4),$G$206:$G$210,0)),\"\",OFFSET($B$205,MATCH(ROW(4:4),$G$206:$G$210,0),3,1,1))","v":4560},{"$f":"IF(ISNA(MATCH(ROW(4:4),$H$212:$H$216,0)),\"\",OFFSET($B$211,MATCH(ROW(4:4),$H$212:$H$216,0),1,1,1))","v":"RM1025 Onions"},null,null,{"$f":"IF(ISNA(MATCH(ROW(4:4),$H$212:$H$216,0)),\"\",OFFSET($B$211,MATCH(ROW(4:4),$H$212:$H$216,0),2,1,1))","v":-409.80759601286627},{"$f":"IF(ISNA(MATCH(ROW(4:4),$H$212:$H$216,0)),\"\",OFFSET($B$211,MATCH(ROW(4:4),$H$212:$H$216,0),3,1,1))","v":-0.40736341551974781}]
[null,{"$f":"IF(ISNA(MATCH(ROW(5:5),$G$206:$G$210,0)),\"\",OFFSET($B$205,MATCH(ROW(5:5),$G$206:$G$210,0),1,1,1))","v":"RM1025 Onions"},null,{"$f":"IF(ISNA(MATCH(ROW(5:5),$G$206:$G$210,0)),\"\",OFFSET($B$205,MATCH(ROW(5:5),$G$206:$G$210,0),2,1,1))","v":74},{"$f":"IF(ISNA(MATCH(ROW(5:5),$G$206:$G$210,0)),\"\",OFFSET($B$205,MATCH(ROW(5:5),$G$206:$G$210,0),3,1,1))","v":1006},{"$f":"IF(ISNA(MATCH(ROW(5:5),$H$212:$H$216,0)),\"\",OFFSET($B$211,MATCH(ROW(5:5),$H$212:$H$216,0),1,1,1))","v":"PM2015 Boxes"},null,null,{"$f":"IF(ISNA(MATCH(ROW(5:5),$H$212:$H$216,0)),\"\",OFFSET($B$211,MATCH(ROW(5:5),$H$212:$H$216,0),2,1,1))","v":191.92091908510588},{"$f":"IF(ISNA(MATCH(ROW(5:5),$H$212:$H$216,0)),\"\",OFFSET($B$211,MATCH(ROW(5:5),$H$212:$H$216,0),3,1,1))","v":4.2087920851996904E-2}]
[]
[]
[]
["Dashboard Data (not printed)"]
["Arrows",null,"\u0097","\u0096","\u0098"]
["Date Selection",null,{"$f":"IF(ISBLANK($E$5)=TRUE,IF(MIN(MoveDate)=0,DATE(YEAR($E$5),MONTH($E$5),1),DATE(YEAR(MIN(MoveDate)),MONTH(MIN(MoveDate)),1)),$E$5)","v":"2021-07-01"},{"$f":"IF(ISBLANK($F$5)=TRUE,DATE(YEAR(TODAY()),MONTH(TODAY())+1,0),$F$5)","v":"2021-08-31"}]
["Stock Selection",null,{"$f":"IF(ISBLANK($C$5),\"*\",$C$5)","v":"*"}]
["Stock Description",null,{"$f":"IF($C$56=\"*\",\"ALL STOCK\",IF(ISNA(VLOOKUP($C$56,StockMaster,COLUMN(StockCodes!$B$5),0)),\"NONE\",VLOOKUP($C$56,StockMaster,COLUMN(StockCodes!$B$5),0)))","v":"ALL STOCK"}]
["Unit of Measure",null,{"$f":"IF($C$56=\"*\",\"\",IF(ISNA(VLOOKUP($C$56,StockMaster,COLUMN(StockCodes!$C$5),0)),\"\",VLOOKUP($C$56,StockMaster,COLUMN(StockCodes!$C$5),0)))","v":""}]
[{"$f":"\"Chart 1 : \"&A60","v":"Chart 1 : Quantity On Hand"},null,"F","Value","Rest","Gap"]
["Quantity On Hand",null,{"$f":"SUMIFS(StockCode[Opening Quantity],StockCode[Stock Code],$C$56)+SUMIFS(MoveQty,MoveDate,\"<\"&$D$55+1,MoveCode,$C$56)","v":716.24000000000012},{"$f":"IF($C59=\"F\",130,(100+F60)*(C60/100))","v":130},{"$f":"IF($C59=\"F\",0,(100+F60)-D60)","v":0},30]
[{"$f":"\"Chart 2 : \"&A62","v":"Chart 2 : Average Cost"},null,"F","Value","Rest","Gap"]
["Average Cost",null,{"$f":"IF(C60=0,0,C64/C60)","v":44.060738707650565},{"$f":"IF($C61=\"F\",130,(100+F62)*(C62/100))","v":130},{"$f":"IF($C61=\"F\",0,(100+F62)-D62)","v":0},30]
[{"$f":"\"Chart 3 : \"&A64","v":"Chart 3 : Valuation"},null,"F","Value","Rest","Gap"]
["Valuation",null,{"$f":"SUMIFS(StockCode[Opening Value],StockCode[Stock Code],$C$56)+SUMIFS(MoveAmount,MoveDate,\"<\"&$D$55+1,MoveCode,$C$56)","v":31558.063491967645},{"$f":"IF($C63=\"F\",130,(100+F64)*(C64/100))","v":130},{"$f":"IF($C63=\"F\",0,(100+F64)-D64)","v":0},30]
["Movements Section:",null,"Qty","Value"]
["Opening Balance",null,{"$f":"SUMIFS(StockCode[Opening Quantity],StockCode[Stock Code],$C$56)+SUMIFS(MoveQty,MoveDate,\"<\"&$C$55,MoveCode,$C$56)","v":988},{"$f":"SUMIFS(StockCode[Opening Value],StockCode[Stock Code],$C$56)+SUMIFS(MoveAmount,MoveDate,\"<\"&$C$55,MoveCode,$C$56)","v":18190}]
["Purchases",null,{"$f":"SUMIFS(MoveQty,MoveDate,\">\"&$C$55,MoveDate,\"<\"&$D$55+1,MoveCode,$C$56,MoveType,\"Purchase\")","v":8686},{"$f":"SUMIFS(MoveAmount,MoveDate,\">\"&$C$55,MoveDate,\"<\"&$D$55+1,MoveCode,$C$56,MoveType,\"Purchase\")","v":212244.59999999998}]
["Usage",null,{"$f":"SUMIFS(MoveQty,MoveDate,\">\"&$C$55,MoveDate,\"<\"&$D$55+1,MoveCode,$C$56,MoveType,\"Usage\")","v":-8796.34},{"$f":"SUMIFS(MoveAmount,MoveDate,\">\"&$C$55,MoveDate,\"<\"&$D$55+1,MoveCode,$C$56,MoveType,\"Usage\")","v":-187979.80578980054}]
["Adjustments",null,{"$f":"SUMIFS(MoveQty,MoveDate,\">\"&$C$55,MoveDate,\"<\"&$D$55+1,MoveCode,$C$56,MoveType,\"Adjustment\")","v":-161.41999999999999},{"$f":"SUMIFS(MoveAmount,MoveDate,\">\"&$C$55,MoveDate,\"<\"&$D$55+1,MoveCode,$C$56,MoveType,\"Adjustment\")","v":-10896.7307182318}]
["Closing Balance",null,{"$f":"SUMIFS(StockCode[Opening Quantity],StockCode[Stock Code],$C$56)+SUMIFS(MoveQty,MoveDate,\"<\"&$D$55+1,MoveCode,$C$56)","v":716.24000000000012},{"$f":"SUMIFS(StockCode[Opening Value],StockCode[Stock Code],$C$56)+SUMIFS(MoveAmount,MoveDate,\"<\"&$D$55+1,MoveCode,$C$56)","v":31558.063491967645}]
["Interactive Charts:",null,{"$f":"IF(ISBLANK($H$15),\"Amount\",$H$15)","v":"Amount"},{"$f":"IF(ISBLANK($J$15),\"*\",IF($J$15=\"All\",\"*\",$J$15))","v":"*"},{"$f":"IF(ISBLANK($G$15),\"Movement\",$G$15)","v":"Balance"},{"$f":"IF($D$71=\"*\",\"All\",$D$71)&\" Transactions By \"&$C$71","v":"All Transactions By Amount"}]
["Number of Days",null,90,{"$f":"$C$72&\"-Day \"&$E$71&\" Report\"","v":"90-Day Balance Report"}]
[null,"Date","Value","Qty","Cost","Amount","Qty Bal","Cost Bal","Val Bal"]
[null,{"$f":"IF($D$55-$C$72+ROW($C74)-ROW($C$73)>$D$55,\"\",$D$55-$C$72+ROW($C74)-ROW($C$73))","v":"2021-06-03"},{"$f":"IF(ISNUMBER(B74),IF($E$71=\"Movement\",IF($C$71=\"Quantity\",D74,IF($C$71=\"Cost\",E74,F74)),IF($C$71=\"Quantity\",G74,IF($C$71=\"Cost\",H74,I74))),\"\")","v":18190},{"$f":"SUMIFS(MoveQty,MoveDate,\">\"&$B74,MoveDate,\"<\"&$B74+1,MoveCode,$C$56,MoveType,$D$71)","v":0},{"$f":"IF(D74=0,0,F74/D74)","v":0},{"$f":"SUMIFS(MoveAmount,MoveDate,\">\"&$B74,MoveDate,\"<\"&$B74+1,MoveCode,$C$56,MoveType,$D$71)","v":0},{"$f":"SUMIFS(StockCode[Opening Quantity],StockCode[Stock Code],$C$56)+SUMIFS(MoveQty,MoveDate,\"<\"&$B74+1,MoveCode,$C$56,MoveType,$D$71)","v":988},{"$f":"IF(G74=0,0,I74/G74)","v":18.410931174089068},{"$f":"SUMIFS(StockCode[Opening Value],StockCode[Stock Code],$C$56)+SUMIFS(MoveAmount,MoveDate,\"<\"&$B74+1,MoveCode,$C$56,MoveType,$D$71)","v":18190}]
[null,{"$f":"IF($D$55-$C$72+ROW($C75)-ROW($C$73)>$D$55,\"\",$D$55-$C$72+ROW($C75)-ROW($C$73))","v":"2021-06-04"},{"$f":"IF(ISNUMBER(B75),IF($E$71=\"Movement\",IF($C$71=\"Quantity\",D75,IF($C$71=\"Cost\",E75,F75)),IF($C$71=\"Quantity\",G75,IF($C$71=\"Cost\",H75,I75))),\"\")","v":18190},{"$f":"SUMIFS(MoveQty,MoveDate,\">\"&$B75,MoveDate,\"<\"&$B75+1,MoveCode,$C$56,MoveType,$D$71)","v":0},{"$f":"IF(D75=0,0,F75/D75)","v":0},{"$f":"SUMIFS(MoveAmount,MoveDate,\">\"&$B75,MoveDate,\"<\"&$B75+1,MoveCode,$C$56,MoveType,$D$71)","v":0},{"$f":"SUMIFS(StockCode[Opening Quantity],StockCode[Stock Code],$C$56)+SUMIFS(MoveQty,MoveDate,\"<\"&$B75+1,MoveCode,$C$56,MoveType,$D$71)","v":988},{"$f":"IF(G75=0,0,I75/G75)","v":18.410931174089068},{"$f":"SUMIFS(StockCode[Opening Value],StockCode[Stock Code],$C$56)+SUMIFS(MoveAmount,MoveDate,\"<\"&$B75+1,MoveCode,$C$56,MoveType,$D$71)","v":18190}]
[null,"2021-06-05",18190,{"$f":"SUMIFS(MoveQty,MoveDate,\">\"&$B76,MoveDate,\"<\"&$B76+1,MoveCode,$C$56,MoveType,$D$71)","v":0},0,{"$f":"SUMIFS(MoveAmount,MoveDate,\">\"&$B76,MoveDate,\"<\"&$B76+1,MoveCode,$C$56,MoveType,$D$71)","v":0},{"$f":"SUMIFS(StockCode[Opening Quantity],StockCode[Stock Code],$C$56)+SUMIFS(MoveQty,MoveDate,\"<\"&$B76+1,MoveCode,$C$56,MoveType,$D$71)","v":988},18.410931174089068,{"$f":"SUMIFS(StockCode[Opening Value],StockCode[Stock Code],$C$56)+SUMIFS(MoveAmount,MoveDate,\"<\"&$B76+1,MoveCode,$C$56,MoveType,$D$71)","v":18190}]
[null,"2021-06-06",18190,{"$f":"SUMIFS(MoveQty,MoveDate,\">\"&$B77,MoveDate,\"<\"&$B77+1,MoveCode,$C$56,MoveType,$D$71)","v":0},0,{"$f":"SUMIFS(MoveAmount,MoveDate,\">\"&$B77,MoveDate,\"<\"&$B77+1,MoveCode,$C$56,MoveType,$D$71)","v":0},{"$f":"SUMIFS(StockCode[Opening Quantity],StockCode[Stock Code],$C$56)+SUMIFS(MoveQty,MoveDate,\"<\"&$B77+1,MoveCode,$C$56,MoveType,$D$71)","v":988},18.410931174089068,{"$f":"SUMIFS(StockCode[Opening Value],StockCode[Stock Code],$C$56)+SUMIFS(MoveAmount,MoveDate,\"<\"&$B77+1,MoveCode,$C$56,MoveType,$D$71)","v":18190}]
[null,"2021-06-07",18190,{"$f":"SUMIFS(MoveQty,MoveDate,\">\"&$B78,MoveDate,\"<\"&$B78+1,MoveCode,$C$56,MoveType,$D$71)","v":0},0,{"$f":"SUMIFS(MoveAmount,MoveDate,\">\"&$B78,MoveDate,\"<\"&$B78+1,MoveCode,$C$56,MoveType,$D$71)","v":0},{"$f":"SUMIFS(StockCode[Opening Quantity],StockCode[Stock Code],$C$56)+SUMIFS(MoveQty,MoveDate,\"<\"&$B78+1,MoveCode,$C$56,MoveType,$D$71)","v":988},18.410931174089068,{"$f":"SUMIFS(StockCode[Opening Value],StockCode[Stock Code],$C$56)+SUMIFS(MoveAmount,MoveDate,\"<\"&$B78+1,MoveCode,$C$56,MoveType,$D$71)","v":18190}]
[null,"2021-06-08",18190,{"$f":"SUMIFS(MoveQty,MoveDate,\">\"&$B79,MoveDate,\"<\"&$B79+1,MoveCode,$C$56,MoveType,$D$71)","v":0},0,{"$f":"SUMIFS(MoveAmount,MoveDate,\">\"&$B79,MoveDate,\"<\"&$B79+1,MoveCode,$C$56,MoveType,$D$71)","v":0},{"$f":"SUMIFS(StockCode[Opening Quantity],StockCode[Stock Code],$C$56)+SUMIFS(MoveQty,MoveDate,\"<\"&$B79+1,MoveCode,$C$56,MoveType,$D$71)","v":988},18.410931174089068,{"$f":"SUMIFS(StockCode[Opening Value],StockCode[Stock Code],$C$56)+SUMIFS(MoveAmount,MoveDate,\"<\"&$B79+1,MoveCode,$C$56,MoveType,$D$71)","v":18190}]
[null,"2021-06-09",18190,{"$f":"SUMIFS(MoveQty,MoveDate,\">\"&$B80,MoveDate,\"<\"&$B80+1,MoveCode,$C$56,MoveType,$D$71)","v":0},0,{"$f":"SUMIFS(MoveAmount,MoveDate,\">\"&$B80,MoveDate,\"<\"&$B80+1,MoveCode,$C$56,MoveType,$D$71)","v":0},{"$f":"SUMIFS(StockCode[Opening Quantity],StockCode[Stock Code],$C$56)+SUMIFS(MoveQty,MoveDate,\"<\"&$B80+1,MoveCode,$C$56,MoveType,$D$71)","v":988},18.410931174089068,{"$f":"SUMIFS(StockCode[Opening Value],StockCode[Stock Code],$C$56)+SUMIFS(MoveAmount,MoveDate,\"<\"&$B80+1,MoveCode,$C$56,MoveType,$D$71)","v":18190}]
[null,"2021-06-10",18190,{"$f":"SUMIFS(MoveQty,MoveDate,\">\"&$B81,MoveDate,\"<\"&$B81+1,MoveCode,$C$56,MoveType,$D$71)","v":0},0,{"$f":"SUMIFS(MoveAmount,MoveDate,\">\"&$B81,MoveDate,\"<\"&$B81+1,MoveCode,$C$56,MoveType,$D$71)","v":0},{"$f":"SUMIFS(StockCode[Opening Quantity],StockCode[Stock Code],$C$56)+SUMIFS(MoveQty,MoveDate,\"<\"&$B81+1,MoveCode,$C$56,MoveType,$D$71)","v":988},18.410931174089068,{"$f":"SUMIFS(StockCode[Opening Value],StockCode[Stock Code],$C$56)+SUMIFS(MoveAmount,MoveDate,\"<\"&$B81+1,MoveCode,$C$56,MoveType,$D$71)","v":18190}]
[null,"2021-06-11",18190,{"$f":"SUMIFS(MoveQty,MoveDate,\">\"&$B82,MoveDate,\"<\"&$B82+1,MoveCode,$C$56,MoveType,$D$71)","v":0},0,{"$f":"SUMIFS(MoveAmount,MoveDate,\">\"&$B82,MoveDate,\"<\"&$B82+1,MoveCode,$C$56,MoveType,$D$71)","v":0},{"$f":"SUMIFS(StockCode[Opening Quantity],StockCode[Stock Code],$C$56)+SUMIFS(MoveQty,MoveDate,\"<\"&$B82+1,MoveCode,$C$56,MoveType,$D$71)","v":988},18.410931174089068,{"$f":"SUMIFS(StockCode[Opening Value],StockCode[Stock Code],$C$56)+SUMIFS(MoveAmount,MoveDate,\"<\"&$B82+1,MoveCode,$C$56,MoveType,$D$71)","v":18190}]
[null,"2021-06-12",18190,{"$f":"SUMIFS(MoveQty,MoveDate,\">\"&$B83,MoveDate,\"<\"&$B83+1,MoveCode,$C$56,MoveType,$D$71)","v":0},0,{"$f":"SUMIFS(MoveAmount,MoveDate,\">\"&$B83,MoveDate,\"<\"&$B83+1,MoveCode,$C$56,MoveType,$D$71)","v":0},{"$f":"SUMIFS(StockCode[Opening Quantity],StockCode[Stock Code],$C$56)+SUMIFS(MoveQty,MoveDate,\"<\"&$B83+1,MoveCode,$C$56,MoveType,$D$71)","v":988},18.410931174089068,{"$f":"SUMIFS(StockCode[Opening Value],StockCode[Stock Code],$C$56)+SUMIFS(MoveAmount,MoveDate,\"<\"&$B83+1,MoveCode,$C$56,MoveType,$D$71)","v":18190}]
[null,"2021-06-13",18190,{"$f":"SUMIFS(MoveQty,MoveDate,\">\"&$B84,MoveDate,\"<\"&$B84+1,MoveCode,$C$56,MoveType,$D$71)","v":0},0,{"$f":"SUMIFS(MoveAmount,MoveDate,\">\"&$B84,MoveDate,\"<\"&$B84+1,MoveCode,$C$56,MoveType,$D$71)","v":0},{"$f":"SUMIFS(StockCode[Opening Quantity],StockCode[Stock Code],$C$56)+SUMIFS(MoveQty,MoveDate,\"<\"&$B84+1,MoveCode,$C$56,MoveType,$D$71)","v":988},18.410931174089068,{"$f":"SUMIFS(StockCode[Opening Value],StockCode[Stock Code],$C$56)+SUMIFS(MoveAmount,MoveDate,\"<\"&$B84+1,MoveCode,$C$56,MoveType,$D$71)","v":18190}]
[null,"2021-06-14",18190,{"$f":"SUMIFS(MoveQty,MoveDate,\">\"&$B85,MoveDate,\"<\"&$B85+1,MoveCode,$C$56,MoveType,$D$71)","v":0},0,{"$f":"SUMIFS(MoveAmount,MoveDate,\">\"&$B85,MoveDate,\"<\"&$B85+1,MoveCode,$C$56,MoveType,$D$71)","v":0},{"$f":"SUMIFS(StockCode[Opening Quantity],StockCode[Stock Code],$C$56)+SUMIFS(MoveQty,MoveDate,\"<\"&$B85+1,MoveCode,$C$56,MoveType,$D$71)","v":988},18.410931174089068,{"$f":"SUMIFS(StockCode[Opening Value],StockCode[Stock Code],$C$56)+SUMIFS(MoveAmount,MoveDate,\"<\"&$B85+1,MoveCode,$C$56,MoveType,$D$71)","v":18190}]
[null,"2021-06-15",18190,{"$f":"SUMIFS(MoveQty,MoveDate,\">\"&$B86,MoveDate,\"<\"&$B86+1,MoveCode,$C$56,MoveType,$D$71)","v":0},0,{"$f":"SUMIFS(MoveAmount,MoveDate,\">\"&$B86,MoveDate,\"<\"&$B86+1,MoveCode,$C$56,MoveType,$D$71)","v":0},{"$f":"SUMIFS(StockCode[Opening Quantity],StockCode[Stock Code],$C$56)+SUMIFS(MoveQty,MoveDate,\"<\"&$B86+1,MoveCode,$C$56,MoveType,$D$71)","v":988},18.410931174089068,{"$f":"SUMIFS(StockCode[Opening Value],StockCode[Stock Code],$C$56)+SUMIFS(MoveAmount,MoveDate,\"<\"&$B86+1,MoveCode,$C$56,MoveType,$D$71)","v":18190}]
[null,"2021-06-16",18190,{"$f":"SUMIFS(MoveQty,MoveDate,\">\"&$B87,MoveDate,\"<\"&$B87+1,MoveCode,$C$56,MoveType,$D$71)","v":0},0,{"$f":"SUMIFS(MoveAmount,MoveDate,\">\"&$B87,MoveDate,\"<\"&$B87+1,MoveCode,$C$56,MoveType,$D$71)","v":0},{"$f":"SUMIFS(StockCode[Opening Quantity],StockCode[Stock Code],$C$56)+SUMIFS(MoveQty,MoveDate,\"<\"&$B87+1,MoveCode,$C$56,MoveType,$D$71)","v":988},18.410931174089068,{"$f":"SUMIFS(StockCode[Opening Value],StockCode[Stock Code],$C$56)+SUMIFS(MoveAmount,MoveDate,\"<\"&$B87+1,MoveCode,$C$56,MoveType,$D$71)","v":18190}]
[null,"2021-06-17",18190,{"$f":"SUMIFS(MoveQty,MoveDate,\">\"&$B88,MoveDate,\"<\"&$B88+1,MoveCode,$C$56,MoveType,$D$71)","v":0},0,{"$f":"SUMIFS(MoveAmount,MoveDate,\">\"&$B88,MoveDate,\"<\"&$B88+1,MoveCode,$C$56,MoveType,$D$71)","v":0},{"$f":"SUMIFS(StockCode[Opening Quantity],StockCode[Stock Code],$C$56)+SUMIFS(MoveQty,MoveDate,\"<\"&$B88+1,MoveCode,$C$56,MoveType,$D$71)","v":988},18.410931174089068,{"$f":"SUMIFS(StockCode[Opening Value],StockCode[Stock Code],$C$56)+SUMIFS(MoveAmount,MoveDate,\"<\"&$B88+1,MoveCode,$C$56,MoveType,$D$71)","v":18190}]
[null,"2021-06-18",18190,{"$f":"SUMIFS(MoveQty,MoveDate,\">\"&$B89,MoveDate,\"<\"&$B89+1,MoveCode,$C$56,MoveType,$D$71)","v":0},0,{"$f":"SUMIFS(MoveAmount,MoveDate,\">\"&$B89,MoveDate,\"<\"&$B89+1,MoveCode,$C$56,MoveType,$D$71)","v":0},{"$f":"SUMIFS(StockCode[Opening Quantity],StockCode[Stock Code],$C$56)+SUMIFS(MoveQty,MoveDate,\"<\"&$B89+1,MoveCode,$C$56,MoveType,$D$71)","v":988},18.410931174089068,{"$f":"SUMIFS(StockCode[Opening Value],StockCode[Stock Code],$C$56)+SUMIFS(MoveAmount,MoveDate,\"<\"&$B89+1,MoveCode,$C$56,MoveType,$D$71)","v":18190}]
[null,"2021-06-19",18190,{"$f":"SUMIFS(MoveQty,MoveDate,\">\"&$B90,MoveDate,\"<\"&$B90+1,MoveCode,$C$56,MoveType,$D$71)","v":0},0,{"$f":"SUMIFS(MoveAmount,MoveDate,\">\"&$B90,MoveDate,\"<\"&$B90+1,MoveCode,$C$56,MoveType,$D$71)","v":0},{"$f":"SUMIFS(StockCode[Opening Quantity],StockCode[Stock Code],$C$56)+SUMIFS(MoveQty,MoveDate,\"<\"&$B90+1,MoveCode,$C$56,MoveType,$D$71)","v":988},18.410931174089068,{"$f":"SUMIFS(StockCode[Opening Value],StockCode[Stock Code],$C$56)+SUMIFS(MoveAmount,MoveDate,\"<\"&$B90+1,MoveCode,$C$56,MoveType,$D$71)","v":18190}]
[null,"2021-06-20",18190,{"$f":"SUMIFS(MoveQty,MoveDate,\">\"&$B91,MoveDate,\"<\"&$B91+1,MoveCode,$C$56,MoveType,$D$71)","v":0},0,{"$f":"SUMIFS(MoveAmount,MoveDate,\">\"&$B91,MoveDate,\"<\"&$B91+1,MoveCode,$C$56,MoveType,$D$71)","v":0},{"$f":"SUMIFS(StockCode[Opening Quantity],StockCode[Stock Code],$C$56)+SUMIFS(MoveQty,MoveDate,\"<\"&$B91+1,MoveCode,$C$56,MoveType,$D$71)","v":988},18.410931174089068,{"$f":"SUMIFS(StockCode[Opening Value],StockCode[Stock Code],$C$56)+SUMIFS(MoveAmount,MoveDate,\"<\"&$B91+1,MoveCode,$C$56,MoveType,$D$71)","v":18190}]
[null,"2021-06-21",18190,{"$f":"SUMIFS(MoveQty,MoveDate,\">\"&$B92,MoveDate,\"<\"&$B92+1,MoveCode,$C$56,MoveType,$D$71)","v":0},0,{"$f":"SUMIFS(MoveAmount,MoveDate,\">\"&$B92,MoveDate,\"<\"&$B92+1,MoveCode,$C$56,MoveType,$D$71)","v":0},{"$f":"SUMIFS(StockCode[Opening Quantity],StockCode[Stock Code],$C$56)+SUMIFS(MoveQty,MoveDate,\"<\"&$B92+1,MoveCode,$C$56,MoveType,$D$71)","v":988},18.410931174089068,{"$f":"SUMIFS(StockCode[Opening Value],StockCode[Stock Code],$C$56)+SUMIFS(MoveAmount,MoveDate,\"<\"&$B92+1,MoveCode,$C$56,MoveType,$D$71)","v":18190}]
[null,"2021-06-22",18190,{"$f":"SUMIFS(MoveQty,MoveDate,\">\"&$B93,MoveDate,\"<\"&$B93+1,MoveCode,$C$56,MoveType,$D$71)","v":0},0,{"$f":"SUMIFS(MoveAmount,MoveDate,\">\"&$B93,MoveDate,\"<\"&$B93+1,MoveCode,$C$56,MoveType,$D$71)","v":0},{"$f":"SUMIFS(StockCode[Opening Quantity],StockCode[Stock Code],$C$56)+SUMIFS(MoveQty,MoveDate,\"<\"&$B93+1,MoveCode,$C$56,MoveType,$D$71)","v":988},18.410931174089068,{"$f":"SUMIFS(StockCode[Opening Value],StockCode[Stock Code],$C$56)+SUMIFS(MoveAmount,MoveDate,\"<\"&$B93+1,MoveCode,$C$56,MoveType,$D$71)","v":18190}]
[null,"2021-06-23",18190,{"$f":"SUMIFS(MoveQty,MoveDate,\">\"&$B94,MoveDate,\"<\"&$B94+1,MoveCode,$C$56,MoveType,$D$71)","v":0},0,{"$f":"SUMIFS(MoveAmount,MoveDate,\">\"&$B94,MoveDate,\"<\"&$B94+1,MoveCode,$C$56,MoveType,$D$71)","v":0},{"$f":"SUMIFS(StockCode[Opening Quantity],StockCode[Stock Code],$C$56)+SUMIFS(MoveQty,MoveDate,\"<\"&$B94+1,MoveCode,$C$56,MoveType,$D$71)","v":988},18.410931174089068,{"$f":"SUMIFS(StockCode[Opening Value],StockCode[Stock Code],$C$56)+SUMIFS(MoveAmount,MoveDate,\"<\"&$B94+1,MoveCode,$C$56,MoveType,$D$71)","v":18190}]
[null,"2021-06-24",18190,{"$f":"SUMIFS(MoveQty,MoveDate,\">\"&$B95,MoveDate,\"<\"&$B95+1,MoveCode,$C$56,MoveType,$D$71)","v":0},0,{"$f":"SUMIFS(MoveAmount,MoveDate,\">\"&$B95,MoveDate,\"<\"&$B95+1,MoveCode,$C$56,MoveType,$D$71)","v":0},{"$f":"SUMIFS(StockCode[Opening Quantity],StockCode[Stock Code],$C$56)+SUMIFS(MoveQty,MoveDate,\"<\"&$B95+1,MoveCode,$C$56,MoveType,$D$71)","v":988},18.410931174089068,{"$f":"SUMIFS(StockCode[Opening Value],StockCode[Stock Code],$C$56)+SUMIFS(MoveAmount,MoveDate,\"<\"&$B95+1,MoveCode,$C$56,MoveType,$D$71)","v":18190}]
[null,"2021-06-25",18190,{"$f":"SUMIFS(MoveQty,MoveDate,\">\"&$B96,MoveDate,\"<\"&$B96+1,MoveCode,$C$56,MoveType,$D$71)","v":0},0,{"$f":"SUMIFS(MoveAmount,MoveDate,\">\"&$B96,MoveDate,\"<\"&$B96+1,MoveCode,$C$56,MoveType,$D$71)","v":0},{"$f":"SUMIFS(StockCode[Opening Quantity],StockCode[Stock Code],$C$56)+SUMIFS(MoveQty,MoveDate,\"<\"&$B96+1,MoveCode,$C$56,MoveType,$D$71)","v":988},18.410931174089068,{"$f":"SUMIFS(StockCode[Opening Value],StockCode[Stock Code],$C$56)+SUMIFS(MoveAmount,MoveDate,\"<\"&$B96+1,MoveCode,$C$56,MoveType,$D$71)","v":18190}]
[null,"2021-06-26",18190,{"$f":"SUMIFS(MoveQty,MoveDate,\">\"&$B97,MoveDate,\"<\"&$B97+1,MoveCode,$C$56,MoveType,$D$71)","v":0},0,{"$f":"SUMIFS(MoveAmount,MoveDate,\">\"&$B97,MoveDate,\"<\"&$B97+1,MoveCode,$C$56,MoveType,$D$71)","v":0},{"$f":"SUMIFS(StockCode[Opening Quantity],StockCode[Stock Code],$C$56)+SUMIFS(MoveQty,MoveDate,\"<\"&$B97+1,MoveCode,$C$56,MoveType,$D$71)","v":988},18.410931174089068,{"$f":"SUMIFS(StockCode[Opening Value],StockCode[Stock Code],$C$56)+SUMIFS(MoveAmount,MoveDate,\"<\"&$B97+1,MoveCode,$C$56,MoveType,$D$71)","v":18190}]
[null,"2021-06-27",18190,{"$f":"SUMIFS(MoveQty,MoveDate,\">\"&$B98,MoveDate,\"<\"&$B98+1,MoveCode,$C$56,MoveType,$D$71)","v":0},0,{"$f":"SUMIFS(MoveAmount,MoveDate,\">\"&$B98,MoveDate,\"<\"&$B98+1,MoveCode,$C$56,MoveType,$D$71)","v":0},{"$f":"SUMIFS(StockCode[Opening Quantity],StockCode[Stock Code],$C$56)+SUMIFS(MoveQty,MoveDate,\"<\"&$B98+1,MoveCode,$C$56,MoveType,$D$71)","v":988},18.410931174089068,{"$f":"SUMIFS(StockCode[Opening Value],StockCode[Stock Code],$C$56)+SUMIFS(MoveAmount,MoveDate,\"<\"&$B98+1,MoveCode,$C$56,MoveType,$D$71)","v":18190}]
[null,"2021-06-28",18190,{"$f":"SUMIFS(MoveQty,MoveDate,\">\"&$B99,MoveDate,\"<\"&$B99+1,MoveCode,$C$56,MoveType,$D$71)","v":0},0,{"$f":"SUMIFS(MoveAmount,MoveDate,\">\"&$B99,MoveDate,\"<\"&$B99+1,MoveCode,$C$56,MoveType,$D$71)","v":0},{"$f":"SUMIFS(StockCode[Opening Quantity],StockCode[Stock Code],$C$56)+SUMIFS(MoveQty,MoveDate,\"<\"&$B99+1,MoveCode,$C$56,MoveType,$D$71)","v":988},18.410931174089068,{"$f":"SUMIFS(StockCode[Opening Value],StockCode[Stock Code],$C$56)+SUMIFS(MoveAmount,MoveDate,\"<\"&$B99+1,MoveCode,$C$56,MoveType,$D$71)","v":18190}]
[null,"2021-06-29",18190,{"$f":"SUMIFS(MoveQty,MoveDate,\">\"&$B100,MoveDate,\"<\"&$B100+1,MoveCode,$C$56,MoveType,$D$71)","v":0},0,{"$f":"SUMIFS(MoveAmount,MoveDate,\">\"&$B100,MoveDate,\"<\"&$B100+1,MoveCode,$C$56,MoveType,$D$71)","v":0},{"$f":"SUMIFS(StockCode[Opening Quantity],StockCode[Stock Code],$C$56)+SUMIFS(MoveQty,MoveDate,\"<\"&$B100+1,MoveCode,$C$56,MoveType,$D$71)","v":988},18.410931174089068,{"$f":"SUMIFS(StockCode[Opening Value],StockCode[Stock Code],$C$56)+SUMIFS(MoveAmount,MoveDate,\"<\"&$B100+1,MoveCode,$C$56,MoveType,$D$71)","v":18190}]
[null,"2021-06-30",18190,{"$f":"SUMIFS(MoveQty,MoveDate,\">\"&$B101,MoveDate,\"<\"&$B101+1,MoveCode,$C$56,MoveType,$D$71)","v":0},0,{"$f":"SUMIFS(MoveAmount,MoveDate,\">\"&$B101,MoveDate,\"<\"&$B101+1,MoveCode,$C$56,MoveType,$D$71)","v":0},{"$f":"SUMIFS(StockCode[Opening Quantity],StockCode[Stock Code],$C$56)+SUMIFS(MoveQty,MoveDate,\"<\"&$B101+1,MoveCode,$C$56,MoveType,$D$71)","v":988},18.410931174089068,{"$f":"SUMIFS(StockCode[Opening Value],StockCode[Stock Code],$C$56)+SUMIFS(MoveAmount,MoveDate,\"<\"&$B101+1,MoveCode,$C$56,MoveType,$D$71)","v":18190}]
[null,"2021-07-01",18190,{"$f":"SUMIFS(MoveQty,MoveDate,\">\"&$B102,MoveDate,\"<\"&$B102+1,MoveCode,$C$56,MoveType,$D$71)","v":0},0,{"$f":"SUMIFS(MoveAmount,MoveDate,\">\"&$B102,MoveDate,\"<\"&$B102+1,MoveCode,$C$56,MoveType,$D$71)","v":0},{"$f":"SUMIFS(StockCode[Opening Quantity],StockCode[Stock Code],$C$56)+SUMIFS(MoveQty,MoveDate,\"<\"&$B102+1,MoveCode,$C$56,MoveType,$D$71)","v":988},18.410931174089068,{"$f":"SUMIFS(StockCode[Opening Value],StockCode[Stock Code],$C$56)+SUMIFS(MoveAmount,MoveDate,\"<\"&$B102+1,MoveCode,$C$56,MoveType,$D$71)","v":18190}]
[null,"2021-07-02",18190,{"$f":"SUMIFS(MoveQty,MoveDate,\">\"&$B103,MoveDate,\"<\"&$B103+1,MoveCode,$C$56,MoveType,$D$71)","v":0},0,{"$f":"SUMIFS(MoveAmount,MoveDate,\">\"&$B103,MoveDate,\"<\"&$B103+1,MoveCode,$C$56,MoveType,$D$71)","v":0},{"$f":"SUMIFS(StockCode[Opening Quantity],StockCode[Stock Code],$C$56)+SUMIFS(MoveQty,MoveDate,\"<\"&$B103+1,MoveCode,$C$56,MoveType,$D$71)","v":988},18.410931174089068,{"$f":"SUMIFS(StockCode[Opening Value],StockCode[Stock Code],$C$56)+SUMIFS(MoveAmount,MoveDate,\"<\"&$B103+1,MoveCode,$C$56,MoveType,$D$71)","v":18190}]
[null,"2021-07-03",18190,{"$f":"SUMIFS(MoveQty,MoveDate,\">\"&$B104,MoveDate,\"<\"&$B104+1,MoveCode,$C$56,MoveType,$D$71)","v":0},0,{"$f":"SUMIFS(MoveAmount,MoveDate,\">\"&$B104,MoveDate,\"<\"&$B104+1,MoveCode,$C$56,MoveType,$D$71)","v":0},{"$f":"SUMIFS(StockCode[Opening Quantity],StockCode[Stock Code],$C$56)+SUMIFS(MoveQty,MoveDate,\"<\"&$B104+1,MoveCode,$C$56,MoveType,$D$71)","v":988},18.410931174089068,{"$f":"SUMIFS(StockCode[Opening Value],StockCode[Stock Code],$C$56)+SUMIFS(MoveAmount,MoveDate,\"<\"&$B104+1,MoveCode,$C$56,MoveType,$D$71)","v":18190}]
[null,"2021-07-04",18190,{"$f":"SUMIFS(MoveQty,MoveDate,\">\"&$B105,MoveDate,\"<\"&$B105+1,MoveCode,$C$56,MoveType,$D$71)","v":0},0,{"$f":"SUMIFS(MoveAmount,MoveDate,\">\"&$B105,MoveDate,\"<\"&$B105+1,MoveCode,$C$56,MoveType,$D$71)","v":0},{"$f":"SUMIFS(StockCode[Opening Quantity],StockCode[Stock Code],$C$56)+SUMIFS(MoveQty,MoveDate,\"<\"&$B105+1,MoveCode,$C$56,MoveType,$D$71)","v":988},18.410931174089068,{"$f":"SUMIFS(StockCode[Opening Value],StockCode[Stock Code],$C$56)+SUMIFS(MoveAmount,MoveDate,\"<\"&$B105+1,MoveCode,$C$56,MoveType,$D$71)","v":18190}]
[null,"2021-07-05",18190,{"$f":"SUMIFS(MoveQty,MoveDate,\">\"&$B106,MoveDate,\"<\"&$B106+1,MoveCode,$C$56,MoveType,$D$71)","v":0},0,{"$f":"SUMIFS(MoveAmount,MoveDate,\">\"&$B106,MoveDate,\"<\"&$B106+1,MoveCode,$C$56,MoveType,$D$71)","v":0},{"$f":"SUMIFS(StockCode[Opening Quantity],StockCode[Stock Code],$C$56)+SUMIFS(MoveQty,MoveDate,\"<\"&$B106+1,MoveCode,$C$56,MoveType,$D$71)","v":988},18.410931174089068,{"$f":"SUMIFS(StockCode[Opening Value],StockCode[Stock Code],$C$56)+SUMIFS(MoveAmount,MoveDate,\"<\"&$B106+1,MoveCode,$C$56,MoveType,$D$71)","v":18190}]
[null,"2021-07-06",18190,{"$f":"SUMIFS(MoveQty,MoveDate,\">\"&$B107,MoveDate,\"<\"&$B107+1,MoveCode,$C$56,MoveType,$D$71)","v":0},0,{"$f":"SUMIFS(MoveAmount,MoveDate,\">\"&$B107,MoveDate,\"<\"&$B107+1,MoveCode,$C$56,MoveType,$D$71)","v":0},{"$f":"SUMIFS(StockCode[Opening Quantity],StockCode[Stock Code],$C$56)+SUMIFS(MoveQty,MoveDate,\"<\"&$B107+1,MoveCode,$C$56,MoveType,$D$71)","v":988},18.410931174089068,{"$f":"SUMIFS(StockCode[Opening Value],StockCode[Stock Code],$C$56)+SUMIFS(MoveAmount,MoveDate,\"<\"&$B107+1,MoveCode,$C$56,MoveType,$D$71)","v":18190}]
[null,"2021-07-07",43439,{"$f":"SUMIFS(MoveQty,MoveDate,\">\"&$B108,MoveDate,\"<\"&$B108+1,MoveCode,$C$56,MoveType,$D$71)","v":1192},21.18204697986577,{"$f":"SUMIFS(MoveAmount,MoveDate,\">\"&$B108,MoveDate,\"<\"&$B108+1,MoveCode,$C$56,MoveType,$D$71)","v":25249},{"$f":"SUMIFS(StockCode[Opening Quantity],StockCode[Stock Code],$C$56)+SUMIFS(MoveQty,MoveDate,\"<\"&$B108+1,MoveCode,$C$56,MoveType,$D$71)","v":2180},19.926146788990824,{"$f":"SUMIFS(StockCode[Opening Value],StockCode[Stock Code],$C$56)+SUMIFS(MoveAmount,MoveDate,\"<\"&$B108+1,MoveCode,$C$56,MoveType,$D$71)","v":43439}]
[null,"2021-07-08",43439,{"$f":"SUMIFS(MoveQty,MoveDate,\">\"&$B109,MoveDate,\"<\"&$B109+1,MoveCode,$C$56,MoveType,$D$71)","v":0},0,{"$f":"SUMIFS(MoveAmount,MoveDate,\">\"&$B109,MoveDate,\"<\"&$B109+1,MoveCode,$C$56,MoveType,$D$71)","v":0},{"$f":"SUMIFS(StockCode[Opening Quantity],StockCode[Stock Code],$C$56)+SUMIFS(MoveQty,MoveDate,\"<\"&$B109+1,MoveCode,$C$56,MoveType,$D$71)","v":2180},19.926146788990824,{"$f":"SUMIFS(StockCode[Opening Value],StockCode[Stock Code],$C$56)+SUMIFS(MoveAmount,MoveDate,\"<\"&$B109+1,MoveCode,$C$56,MoveType,$D$71)","v":43439}]
[null,"2021-07-09",27739.237693078856,{"$f":"SUMIFS(MoveQty,MoveDate,\">\"&$B110,MoveDate,\"<\"&$B110+1,MoveCode,$C$56,MoveType,$D$71)","v":-843.17},18.619925171580046,{"$f":"SUMIFS(MoveAmount,MoveDate,\">\"&$B110,MoveDate,\"<\"&$B110+1,MoveCode,$C$56,MoveType,$D$71)","v":-15699.762306921146},{"$f":"SUMIFS(StockCode[Opening Quantity],StockCode[Stock Code],$C$56)+SUMIFS(MoveQty,MoveDate,\"<\"&$B110+1,MoveCode,$C$56,MoveType,$D$71)","v":1336.8300000000002},20.750011365004415,{"$f":"SUMIFS(StockCode[Opening Value],StockCode[Stock Code],$C$56)+SUMIFS(MoveAmount,MoveDate,\"<\"&$B110+1,MoveCode,$C$56,MoveType,$D$71)","v":27739.237693078856}]
[null,"2021-07-10",27739.237693078856,{"$f":"SUMIFS(MoveQty,MoveDate,\">\"&$B111,MoveDate,\"<\"&$B111+1,MoveCode,$C$56,MoveType,$D$71)","v":0},0,{"$f":"SUMIFS(MoveAmount,MoveDate,\">\"&$B111,MoveDate,\"<\"&$B111+1,MoveCode,$C$56,MoveType,$D$71)","v":0},{"$f":"SUMIFS(StockCode[Opening Quantity],StockCode[Stock Code],$C$56)+SUMIFS(MoveQty,MoveDate,\"<\"&$B111+1,MoveCode,$C$56,MoveType,$D$71)","v":1336.8300000000002},20.750011365004415,{"$f":"SUMIFS(StockCode[Opening Value],StockCode[Stock Code],$C$56)+SUMIFS(MoveAmount,MoveDate,\"<\"&$B111+1,MoveCode,$C$56,MoveType,$D$71)","v":27739.237693078856}]
[null,"2021-07-11",27739.237693078856,{"$f":"SUMIFS(MoveQty,MoveDate,\">\"&$B112,MoveDate,\"<\"&$B112+1,MoveCode,$C$56,MoveType,$D$71)","v":0},0,{"$f":"SUMIFS(MoveAmount,MoveDate,\">\"&$B112,MoveDate,\"<\"&$B112+1,MoveCode,$C$56,MoveType,$D$71)","v":0},{"$f":"SUMIFS(StockCode[Opening Quantity],StockCode[Stock Code],$C$56)+SUMIFS(MoveQty,MoveDate,\"<\"&$B112+1,MoveCode,$C$56,MoveType,$D$71)","v":1336.8300000000002},20.750011365004415,{"$f":"SUMIFS(StockCode[Opening Value],StockCode[Stock Code],$C$56)+SUMIFS(MoveAmount,MoveDate,\"<\"&$B112+1,MoveCode,$C$56,MoveType,$D$71)","v":27739.237693078856}]
[null,"2021-07-12",27739.237693078856,{"$f":"SUMIFS(MoveQty,MoveDate,\">\"&$B113,MoveDate,\"<\"&$B113+1,MoveCode,$C$56,MoveType,$D$71)","v":0},0,{"$f":"SUMIFS(MoveAmount,MoveDate,\">\"&$B113,MoveDate,\"<\"&$B113+1,MoveCode,$C$56,MoveType,$D$71)","v":0},{"$f":"SUMIFS(StockCode[Opening Quantity],StockCode[Stock Code],$C$56)+SUMIFS(MoveQty,MoveDate,\"<\"&$B113+1,MoveCode,$C$56,MoveType,$D$71)","v":1336.8300000000002},20.750011365004415,{"$f":"SUMIFS(StockCode[Opening Value],StockCode[Stock Code],$C$56)+SUMIFS(MoveAmount,MoveDate,\"<\"&$B113+1,MoveCode,$C$56,MoveType,$D$71)","v":27739.237693078856}]
[null,"2021-07-13",27739.237693078856,{"$f":"SUMIFS(MoveQty,MoveDate,\">\"&$B114,MoveDate,\"<\"&$B114+1,MoveCode,$C$56,MoveType,$D$71)","v":0},0,{"$f":"SUMIFS(MoveAmount,MoveDate,\">\"&$B114,MoveDate,\"<\"&$B114+1,MoveCode,$C$56,MoveType,$D$71)","v":0},{"$f":"SUMIFS(StockCode[Opening Quantity],StockCode[Stock Code],$C$56)+SUMIFS(MoveQty,MoveDate,\"<\"&$B114+1,MoveCode,$C$56,MoveType,$D$71)","v":1336.8300000000002},20.750011365004415,{"$f":"SUMIFS(StockCode[Opening Value],StockCode[Stock Code],$C$56)+SUMIFS(MoveAmount,MoveDate,\"<\"&$B114+1,MoveCode,$C$56,MoveType,$D$71)","v":27739.237693078856}]
[null,"2021-07-14",55534.23769307886,{"$f":"SUMIFS(MoveQty,MoveDate,\">\"&$B115,MoveDate,\"<\"&$B115+1,MoveCode,$C$56,MoveType,$D$71)","v":1275},21.8,{"$f":"SUMIFS(MoveAmount,MoveDate,\">\"&$B115,MoveDate,\"<\"&$B115+1,MoveCode,$C$56,MoveType,$D$71)","v":27795},{"$f":"SUMIFS(StockCode[Opening Quantity],StockCode[Stock Code],$C$56)+SUMIFS(MoveQty,MoveDate,\"<\"&$B115+1,MoveCode,$C$56,MoveType,$D$71)","v":2611.83},21.262577462192738,{"$f":"SUMIFS(StockCode[Opening Value],StockCode[Stock Code],$C$56)+SUMIFS(MoveAmount,MoveDate,\"<\"&$B115+1,MoveCode,$C$56,MoveType,$D$71)","v":55534.23769307886}]
[null,"2021-07-15",55534.23769307886,{"$f":"SUMIFS(MoveQty,MoveDate,\">\"&$B116,MoveDate,\"<\"&$B116+1,MoveCode,$C$56,MoveType,$D$71)","v":0},0,{"$f":"SUMIFS(MoveAmount,MoveDate,\">\"&$B116,MoveDate,\"<\"&$B116+1,MoveCode,$C$56,MoveType,$D$71)","v":0},{"$f":"SUMIFS(StockCode[Opening Quantity],StockCode[Stock Code],$C$56)+SUMIFS(MoveQty,MoveDate,\"<\"&$B116+1,MoveCode,$C$56,MoveType,$D$71)","v":2611.83},21.262577462192738,{"$f":"SUMIFS(StockCode[Opening Value],StockCode[Stock Code],$C$56)+SUMIFS(MoveAmount,MoveDate,\"<\"&$B116+1,MoveCode,$C$56,MoveType,$D$71)","v":55534.23769307886}]
[null,"2021-07-16",36048.983216569788,{"$f":"SUMIFS(MoveQty,MoveDate,\">\"&$B117,MoveDate,\"<\"&$B117+1,MoveCode,$C$56,MoveType,$D$71)","v":-1065},18.296013592966268,{"$f":"SUMIFS(MoveAmount,MoveDate,\">\"&$B117,MoveDate,\"<\"&$B117+1,MoveCode,$C$56,MoveType,$D$71)","v":-19485.254476509075},{"$f":"SUMIFS(StockCode[Opening Quantity],StockCode[Stock Code],$C$56)+SUMIFS(MoveQty,MoveDate,\"<\"&$B117+1,MoveCode,$C$56,MoveType,$D$71)","v":1546.8300000000002},23.305071156216123,{"$f":"SUMIFS(StockCode[Opening Value],StockCode[Stock Code],$C$56)+SUMIFS(MoveAmount,MoveDate,\"<\"&$B117+1,MoveCode,$C$56,MoveType,$D$71)","v":36048.983216569788}]
[null,"2021-07-17",36048.983216569788,{"$f":"SUMIFS(MoveQty,MoveDate,\">\"&$B118,MoveDate,\"<\"&$B118+1,MoveCode,$C$56,MoveType,$D$71)","v":0},0,{"$f":"SUMIFS(MoveAmount,MoveDate,\">\"&$B118,MoveDate,\"<\"&$B118+1,MoveCode,$C$56,MoveType,$D$71)","v":0},{"$f":"SUMIFS(StockCode[Opening Quantity],StockCode[Stock Code],$C$56)+SUMIFS(MoveQty,MoveDate,\"<\"&$B118+1,MoveCode,$C$56,MoveType,$D$71)","v":1546.8300000000002},23.305071156216123,{"$f":"SUMIFS(StockCode[Opening Value],StockCode[Stock Code],$C$56)+SUMIFS(MoveAmount,MoveDate,\"<\"&$B118+1,MoveCode,$C$56,MoveType,$D$71)","v":36048.983216569788}]
[null,"2021-07-18",36048.983216569788,{"$f":"SUMIFS(MoveQty,MoveDate,\">\"&$B119,MoveDate,\"<\"&$B119+1,MoveCode,$C$56,MoveType,$D$71)","v":0},0,{"$f":"SUMIFS(MoveAmount,MoveDate,\">\"&$B119,MoveDate,\"<\"&$B119+1,MoveCode,$C$56,MoveType,$D$71)","v":0},{"$f":"SUMIFS(StockCode[Opening Quantity],StockCode[Stock Code],$C$56)+SUMIFS(MoveQty,MoveDate,\"<\"&$B119+1,MoveCode,$C$56,MoveType,$D$71)","v":1546.8300000000002},23.305071156216123,{"$f":"SUMIFS(StockCode[Opening Value],StockCode[Stock Code],$C$56)+SUMIFS(MoveAmount,MoveDate,\"<\"&$B119+1,MoveCode,$C$56,MoveType,$D$71)","v":36048.983216569788}]
[null,"2021-07-19",36048.983216569788,{"$f":"SUMIFS(MoveQty,MoveDate,\">\"&$B120,MoveDate,\"<\"&$B120+1,MoveCode,$C$56,MoveType,$D$71)","v":0},0,{"$f":"SUMIFS(MoveAmount,MoveDate,\">\"&$B120,MoveDate,\"<\"&$B120+1,MoveCode,$C$56,MoveType,$D$71)","v":0},{"$f":"SUMIFS(StockCode[Opening Quantity],StockCode[Stock Code],$C$56)+SUMIFS(MoveQty,MoveDate,\"<\"&$B120+1,MoveCode,$C$56,MoveType,$D$71)","v":1546.8300000000002},23.305071156216123,{"$f":"SUMIFS(StockCode[Opening Value],StockCode[Stock Code],$C$56)+SUMIFS(MoveAmount,MoveDate,\"<\"&$B120+1,MoveCode,$C$56,MoveType,$D$71)","v":36048.983216569788}]
[null,"2021-07-20",36048.983216569788,{"$f":"SUMIFS(MoveQty,MoveDate,\">\"&$B121,MoveDate,\"<\"&$B121+1,MoveCode,$C$56,MoveType,$D$71)","v":0},0,{"$f":"SUMIFS(MoveAmount,MoveDate,\">\"&$B121,MoveDate,\"<\"&$B121+1,MoveCode,$C$56,MoveType,$D$71)","v":0},{"$f":"SUMIFS(StockCode[Opening Quantity],StockCode[Stock Code],$C$56)+SUMIFS(MoveQty,MoveDate,\"<\"&$B121+1,MoveCode,$C$56,MoveType,$D$71)","v":1546.8300000000002},23.305071156216123,{"$f":"SUMIFS(StockCode[Opening Value],StockCode[Stock Code],$C$56)+SUMIFS(MoveAmount,MoveDate,\"<\"&$B121+1,MoveCode,$C$56,MoveType,$D$71)","v":36048.983216569788}]
[null,"2021-07-21",62384.983216569788,{"$f":"SUMIFS(MoveQty,MoveDate,\">\"&$B122,MoveDate,\"<\"&$B122+1,MoveCode,$C$56,MoveType,$D$71)","v":1055},24.963033175355449,{"$f":"SUMIFS(MoveAmount,MoveDate,\">\"&$B122,MoveDate,\"<\"&$B122+1,MoveCode,$C$56,MoveType,$D$71)","v":26336},{"$f":"SUMIFS(StockCode[Opening Quantity],StockCode[Stock Code],$C$56)+SUMIFS(MoveQty,MoveDate,\"<\"&$B122+1,MoveCode,$C$56,MoveType,$D$71)","v":2601.83},23.977347949931314,{"$f":"SUMIFS(StockCode[Opening Value],StockCode[Stock Code],$C$56)+SUMIFS(MoveAmount,MoveDate,\"<\"&$B122+1,MoveCode,$C$56,MoveType,$D$71)","v":62384.983216569788}]
[null,"2021-07-22",62384.983216569788,{"$f":"SUMIFS(MoveQty,MoveDate,\">\"&$B123,MoveDate,\"<\"&$B123+1,MoveCode,$C$56,MoveType,$D$71)","v":0},0,{"$f":"SUMIFS(MoveAmount,MoveDate,\">\"&$B123,MoveDate,\"<\"&$B123+1,MoveCode,$C$56,MoveType,$D$71)","v":0},{"$f":"SUMIFS(StockCode[Opening Quantity],StockCode[Stock Code],$C$56)+SUMIFS(MoveQty,MoveDate,\"<\"&$B123+1,MoveCode,$C$56,MoveType,$D$71)","v":2601.83},23.977347949931314,{"$f":"SUMIFS(StockCode[Opening Value],StockCode[Stock Code],$C$56)+SUMIFS(MoveAmount,MoveDate,\"<\"&$B123+1,MoveCode,$C$56,MoveType,$D$71)","v":62384.983216569788}]
[null,"2021-07-23",40251.835088728723,{"$f":"SUMIFS(MoveQty,MoveDate,\">\"&$B124,MoveDate,\"<\"&$B124+1,MoveCode,$C$56,MoveType,$D$71)","v":-1108},19.975765458340316,{"$f":"SUMIFS(MoveAmount,MoveDate,\">\"&$B124,MoveDate,\"<\"&$B124+1,MoveCode,$C$56,MoveType,$D$71)","v":-22133.148127841068},{"$f":"SUMIFS(StockCode[Opening Quantity],StockCode[Stock Code],$C$56)+SUMIFS(MoveQty,MoveDate,\"<\"&$B124+1,MoveCode,$C$56,MoveType,$D$71)","v":1493.8300000000002},26.945392105345803,{"$f":"SUMIFS(StockCode[Opening Value],StockCode[Stock Code],$C$56)+SUMIFS(MoveAmount,MoveDate,\"<\"&$B124+1,MoveCode,$C$56,MoveType,$D$71)","v":40251.835088728723}]
[null,"2021-07-24",40251.835088728723,{"$f":"SUMIFS(MoveQty,MoveDate,\">\"&$B125,MoveDate,\"<\"&$B125+1,MoveCode,$C$56,MoveType,$D$71)","v":0},0,{"$f":"SUMIFS(MoveAmount,MoveDate,\">\"&$B125,MoveDate,\"<\"&$B125+1,MoveCode,$C$56,MoveType,$D$71)","v":0},{"$f":"SUMIFS(StockCode[Opening Quantity],StockCode[Stock Code],$C$56)+SUMIFS(MoveQty,MoveDate,\"<\"&$B125+1,MoveCode,$C$56,MoveType,$D$71)","v":1493.8300000000002},26.945392105345803,{"$f":"SUMIFS(StockCode[Opening Value],StockCode[Stock Code],$C$56)+SUMIFS(MoveAmount,MoveDate,\"<\"&$B125+1,MoveCode,$C$56,MoveType,$D$71)","v":40251.835088728723}]
[null,"2021-07-25",40251.835088728723,{"$f":"SUMIFS(MoveQty,MoveDate,\">\"&$B126,MoveDate,\"<\"&$B126+1,MoveCode,$C$56,MoveType,$D$71)","v":0},0,{"$f":"SUMIFS(MoveAmount,MoveDate,\">\"&$B126,MoveDate,\"<\"&$B126+1,MoveCode,$C$56,MoveType,$D$71)","v":0},{"$f":"SUMIFS(StockCode[Opening Quantity],StockCode[Stock Code],$C$56)+SUMIFS(MoveQty,MoveDate,\"<\"&$B126+1,MoveCode,$C$56,MoveType,$D$71)","v":1493.8300000000002},26.945392105345803,{"$f":"SUMIFS(StockCode[Opening Value],StockCode[Stock Code],$C$56)+SUMIFS(MoveAmount,MoveDate,\"<\"&$B126+1,MoveCode,$C$56,MoveType,$D$71)","v":40251.835088728723}]
[null,"2021-07-26",40251.835088728723,{"$f":"SUMIFS(MoveQty,MoveDate,\">\"&$B127,MoveDate,\"<\"&$B127+1,MoveCode,$C$56,MoveType,$D$71)","v":0},0,{"$f":"SUMIFS(MoveAmount,MoveDate,\">\"&$B127,MoveDate,\"<\"&$B127+1,MoveCode,$C$56,MoveType,$D$71)","v":0},{"$f":"SUMIFS(StockCode[Opening Quantity],StockCode[Stock Code],$C$56)+SUMIFS(MoveQty,MoveDate,\"<\"&$B127+1,MoveCode,$C$56,MoveType,$D$71)","v":1493.8300000000002},26.945392105345803,{"$f":"SUMIFS(StockCode[Opening Value],StockCode[Stock Code],$C$56)+SUMIFS(MoveAmount,MoveDate,\"<\"&$B127+1,MoveCode,$C$56,MoveType,$D$71)","v":40251.835088728723}]
[null,"2021-07-27",40251.835088728723,{"$f":"SUMIFS(MoveQty,MoveDate,\">\"&$B128,MoveDate,\"<\"&$B128+1,MoveCode,$C$56,MoveType,$D$71)","v":0},0,{"$f":"SUMIFS(MoveAmount,MoveDate,\">\"&$B128,MoveDate,\"<\"&$B128+1,MoveCode,$C$56,MoveType,$D$71)","v":0},{"$f":"SUMIFS(StockCode[Opening Quantity],StockCode[Stock Code],$C$56)+SUMIFS(MoveQty,MoveDate,\"<\"&$B128+1,MoveCode,$C$56,MoveType,$D$71)","v":1493.8300000000002},26.945392105345803,{"$f":"SUMIFS(StockCode[Opening Value],StockCode[Stock Code],$C$56)+SUMIFS(MoveAmount,MoveDate,\"<\"&$B128+1,MoveCode,$C$56,MoveType,$D$71)","v":40251.835088728723}]
[null,"2021-07-28",60764.635088728726,{"$f":"SUMIFS(MoveQty,MoveDate,\">\"&$B129,MoveDate,\"<\"&$B129+1,MoveCode,$C$56,MoveType,$D$71)","v":821},24.985140073081606,{"$f":"SUMIFS(MoveAmount,MoveDate,\">\"&$B129,MoveDate,\"<\"&$B129+1,MoveCode,$C$56,MoveType,$D$71)","v":20512.8},{"$f":"SUMIFS(StockCode[Opening Quantity],StockCode[Stock Code],$C$56)+SUMIFS(MoveQty,MoveDate,\"<\"&$B129+1,MoveCode,$C$56,MoveType,$D$71)","v":2314.83},26.250150157345779,{"$f":"SUMIFS(StockCode[Opening Value],StockCode[Stock Code],$C$56)+SUMIFS(MoveAmount,MoveDate,\"<\"&$B129+1,MoveCode,$C$56,MoveType,$D$71)","v":60764.635088728726}]
[null,"2021-07-29",60764.635088728726,{"$f":"SUMIFS(MoveQty,MoveDate,\">\"&$B130,MoveDate,\"<\"&$B130+1,MoveCode,$C$56,MoveType,$D$71)","v":0},0,{"$f":"SUMIFS(MoveAmount,MoveDate,\">\"&$B130,MoveDate,\"<\"&$B130+1,MoveCode,$C$56,MoveType,$D$71)","v":0},{"$f":"SUMIFS(StockCode[Opening Quantity],StockCode[Stock Code],$C$56)+SUMIFS(MoveQty,MoveDate,\"<\"&$B130+1,MoveCode,$C$56,MoveType,$D$71)","v":2314.83},26.250150157345779,{"$f":"SUMIFS(StockCode[Opening Value],StockCode[Stock Code],$C$56)+SUMIFS(MoveAmount,MoveDate,\"<\"&$B130+1,MoveCode,$C$56,MoveType,$D$71)","v":60764.635088728726}]
[null,"2021-07-30",27017.959320765345,{"$f":"SUMIFS(MoveQty,MoveDate,\">\"&$B131,MoveDate,\"<\"&$B131+1,MoveCode,$C$56,MoveType,$D$71)","v":-1514},22.289746213978454,{"$f":"SUMIFS(MoveAmount,MoveDate,\">\"&$B131,MoveDate,\"<\"&$B131+1,MoveCode,$C$56,MoveType,$D$71)","v":-33746.675767963381},{"$f":"SUMIFS(StockCode[Opening Quantity],StockCode[Stock Code],$C$56)+SUMIFS(MoveQty,MoveDate,\"<\"&$B131+1,MoveCode,$C$56,MoveType,$D$71)","v":800.83000000000015},33.737446550160882,{"$f":"SUMIFS(StockCode[Opening Value],StockCode[Stock Code],$C$56)+SUMIFS(MoveAmount,MoveDate,\"<\"&$B131+1,MoveCode,$C$56,MoveType,$D$71)","v":27017.959320765345}]
[null,"2021-07-31",24459.585876587247,{"$f":"SUMIFS(MoveQty,MoveDate,\">\"&$B132,MoveDate,\"<\"&$B132+1,MoveCode,$C$56,MoveType,$D$71)","v":0.90999999999999548},-2811.399389206716,{"$f":"SUMIFS(MoveAmount,MoveDate,\">\"&$B132,MoveDate,\"<\"&$B132+1,MoveCode,$C$56,MoveType,$D$71)","v":-2558.3734441780989},{"$f":"SUMIFS(StockCode[Opening Quantity],StockCode[Stock Code],$C$56)+SUMIFS(MoveQty,MoveDate,\"<\"&$B132+1,MoveCode,$C$56,MoveType,$D$71)","v":801.74000000000024},30.508127169141169,{"$f":"SUMIFS(StockCode[Opening Value],StockCode[Stock Code],$C$56)+SUMIFS(MoveAmount,MoveDate,\"<\"&$B132+1,MoveCode,$C$56,MoveType,$D$71)","v":24459.585876587247}]
[null,"2021-08-01",24459.585876587247,{"$f":"SUMIFS(MoveQty,MoveDate,\">\"&$B133,MoveDate,\"<\"&$B133+1,MoveCode,$C$56,MoveType,$D$71)","v":0},0,{"$f":"SUMIFS(MoveAmount,MoveDate,\">\"&$B133,MoveDate,\"<\"&$B133+1,MoveCode,$C$56,MoveType,$D$71)","v":0},{"$f":"SUMIFS(StockCode[Opening Quantity],StockCode[Stock Code],$C$56)+SUMIFS(MoveQty,MoveDate,\"<\"&$B133+1,MoveCode,$C$56,MoveType,$D$71)","v":801.74000000000024},30.508127169141169,{"$f":"SUMIFS(StockCode[Opening Value],StockCode[Stock Code],$C$56)+SUMIFS(MoveAmount,MoveDate,\"<\"&$B133+1,MoveCode,$C$56,MoveType,$D$71)","v":24459.585876587247}]
[null,"2021-08-02",24459.585876587247,{"$f":"SUMIFS(MoveQty,MoveDate,\">\"&$B134,MoveDate,\"<\"&$B134+1,MoveCode,$C$56,MoveType,$D$71)","v":0},0,{"$f":"SUMIFS(MoveAmount,MoveDate,\">\"&$B134,MoveDate,\"<\"&$B134+1,MoveCode,$C$56,MoveType,$D$71)","v":0},{"$f":"SUMIFS(StockCode[Opening Quantity],StockCode[Stock Code],$C$56)+SUMIFS(MoveQty,MoveDate,\"<\"&$B134+1,MoveCode,$C$56,MoveType,$D$71)","v":801.74000000000024},30.508127169141169,{"$f":"SUMIFS(StockCode[Opening Value],StockCode[Stock Code],$C$56)+SUMIFS(MoveAmount,MoveDate,\"<\"&$B134+1,MoveCode,$C$56,MoveType,$D$71)","v":24459.585876587247}]
[null,"2021-08-03",24459.585876587247,{"$f":"SUMIFS(MoveQty,MoveDate,\">\"&$B135,MoveDate,\"<\"&$B135+1,MoveCode,$C$56,MoveType,$D$71)","v":0},0,{"$f":"SUMIFS(MoveAmount,MoveDate,\">\"&$B135,MoveDate,\"<\"&$B135+1,MoveCode,$C$56,MoveType,$D$71)","v":0},{"$f":"SUMIFS(StockCode[Opening Quantity],StockCode[Stock Code],$C$56)+SUMIFS(MoveQty,MoveDate,\"<\"&$B135+1,MoveCode,$C$56,MoveType,$D$71)","v":801.74000000000024},30.508127169141169,{"$f":"SUMIFS(StockCode[Opening Value],StockCode[Stock Code],$C$56)+SUMIFS(MoveAmount,MoveDate,\"<\"&$B135+1,MoveCode,$C$56,MoveType,$D$71)","v":24459.585876587247}]
[null,"2021-08-04",49898.585876587247,{"$f":"SUMIFS(MoveQty,MoveDate,\">\"&$B136,MoveDate,\"<\"&$B136+1,MoveCode,$C$56,MoveType,$D$71)","v":1192},21.341442953020135,{"$f":"SUMIFS(MoveAmount,MoveDate,\">\"&$B136,MoveDate,\"<\"&$B136+1,MoveCode,$C$56,MoveType,$D$71)","v":25439},{"$f":"SUMIFS(StockCode[Opening Quantity],StockCode[Stock Code],$C$56)+SUMIFS(MoveQty,MoveDate,\"<\"&$B136+1,MoveCode,$C$56,MoveType,$D$71)","v":1993.7400000000002},25.027629418373127,{"$f":"SUMIFS(StockCode[Opening Value],StockCode[Stock Code],$C$56)+SUMIFS(MoveAmount,MoveDate,\"<\"&$B136+1,MoveCode,$C$56,MoveType,$D$71)","v":49898.585876587247}]
[null,"2021-08-05",49898.585876587247,{"$f":"SUMIFS(MoveQty,MoveDate,\">\"&$B137,MoveDate,\"<\"&$B137+1,MoveCode,$C$56,MoveType,$D$71)","v":0},0,{"$f":"SUMIFS(MoveAmount,MoveDate,\">\"&$B137,MoveDate,\"<\"&$B137+1,MoveCode,$C$56,MoveType,$D$71)","v":0},{"$f":"SUMIFS(StockCode[Opening Quantity],StockCode[Stock Code],$C$56)+SUMIFS(MoveQty,MoveDate,\"<\"&$B137+1,MoveCode,$C$56,MoveType,$D$71)","v":1993.7400000000002},25.027629418373127,{"$f":"SUMIFS(StockCode[Opening Value],StockCode[Stock Code],$C$56)+SUMIFS(MoveAmount,MoveDate,\"<\"&$B137+1,MoveCode,$C$56,MoveType,$D$71)","v":49898.585876587247}]
[null,"2021-08-06",34690.915793915934,{"$f":"SUMIFS(MoveQty,MoveDate,\">\"&$B138,MoveDate,\"<\"&$B138+1,MoveCode,$C$56,MoveType,$D$71)","v":-843.17},18.036303571843533,{"$f":"SUMIFS(MoveAmount,MoveDate,\">\"&$B138,MoveDate,\"<\"&$B138+1,MoveCode,$C$56,MoveType,$D$71)","v":-15207.67008267131},{"$f":"SUMIFS(StockCode[Opening Quantity],StockCode[Stock Code],$C$56)+SUMIFS(MoveQty,MoveDate,\"<\"&$B138+1,MoveCode,$C$56,MoveType,$D$71)","v":1150.5700000000002},30.151069290800152,{"$f":"SUMIFS(StockCode[Opening Value],StockCode[Stock Code],$C$56)+SUMIFS(MoveAmount,MoveDate,\"<\"&$B138+1,MoveCode,$C$56,MoveType,$D$71)","v":34690.915793915934}]
[null,{"$f":"IF($D$55-$C$72+ROW($C139)-ROW($C$73)>$D$55,\"\",$D$55-$C$72+ROW($C139)-ROW($C$73))","v":"2021-08-07"},{"$f":"IF(ISNUMBER(B139),IF($E$71=\"Movement\",IF($C$71=\"Quantity\",D139,IF($C$71=\"Cost\",E139,F139)),IF($C$71=\"Quantity\",G139,IF($C$71=\"Cost\",H139,I139))),\"\")","v":34690.915793915934},{"$f":"SUMIFS(MoveQty,MoveDate,\">\"&$B139,MoveDate,\"<\"&$B139+1,MoveCode,$C$56,MoveType,$D$71)","v":0},{"$f":"IF(D139=0,0,F139/D139)","v":0},{"$f":"SUMIFS(MoveAmount,MoveDate,\">\"&$B139,MoveDate,\"<\"&$B139+1,MoveCode,$C$56,MoveType,$D$71)","v":0},{"$f":"SUMIFS(StockCode[Opening Quantity],StockCode[Stock Code],$C$56)+SUMIFS(MoveQty,MoveDate,\"<\"&$B139+1,MoveCode,$C$56,MoveType,$D$71)","v":1150.5700000000002},{"$f":"IF(G139=0,0,I139/G139)","v":30.151069290800152},{"$f":"SUMIFS(StockCode[Opening Value],StockCode[Stock Code],$C$56)+SUMIFS(MoveAmount,MoveDate,\"<\"&$B139+1,MoveCode,$C$56,MoveType,$D$71)","v":34690.915793915934}]
[null,"2021-08-08",34690.915793915934,{"$f":"SUMIFS(MoveQty,MoveDate,\">\"&$B140,MoveDate,\"<\"&$B140+1,MoveCode,$C$56,MoveType,$D$71)","v":0},0,{"$f":"SUMIFS(MoveAmount,MoveDate,\">\"&$B140,MoveDate,\"<\"&$B140+1,MoveCode,$C$56,MoveType,$D$71)","v":0},{"$f":"SUMIFS(StockCode[Opening Quantity],StockCode[Stock Code],$C$56)+SUMIFS(MoveQty,MoveDate,\"<\"&$B140+1,MoveCode,$C$56,MoveType,$D$71)","v":1150.5700000000002},30.151069290800152,{"$f":"SUMIFS(StockCode[Opening Value],StockCode[Stock Code],$C$56)+SUMIFS(MoveAmount,MoveDate,\"<\"&$B140+1,MoveCode,$C$56,MoveType,$D$71)","v":34690.915793915934}]
[null,"2021-08-09",34690.915793915934,{"$f":"SUMIFS(MoveQty,MoveDate,\">\"&$B141,MoveDate,\"<\"&$B141+1,MoveCode,$C$56,MoveType,$D$71)","v":0},0,{"$f":"SUMIFS(MoveAmount,MoveDate,\">\"&$B141,MoveDate,\"<\"&$B141+1,MoveCode,$C$56,MoveType,$D$71)","v":0},{"$f":"SUMIFS(StockCode[Opening Quantity],StockCode[Stock Code],$C$56)+SUMIFS(MoveQty,MoveDate,\"<\"&$B141+1,MoveCode,$C$56,MoveType,$D$71)","v":1150.5700000000002},30.151069290800152,{"$f":"SUMIFS(StockCode[Opening Value],StockCode[Stock Code],$C$56)+SUMIFS(MoveAmount,MoveDate,\"<\"&$B141+1,MoveCode,$C$56,MoveType,$D$71)","v":34690.915793915934}]
[null,"2021-08-10",34690.915793915934,{"$f":"SUMIFS(MoveQty,MoveDate,\">\"&$B142,MoveDate,\"<\"&$B142+1,MoveCode,$C$56,MoveType,$D$71)","v":0},0,{"$f":"SUMIFS(MoveAmount,MoveDate,\">\"&$B142,MoveDate,\"<\"&$B142+1,MoveCode,$C$56,MoveType,$D$71)","v":0},{"$f":"SUMIFS(StockCode[Opening Quantity],StockCode[Stock Code],$C$56)+SUMIFS(MoveQty,MoveDate,\"<\"&$B142+1,MoveCode,$C$56,MoveType,$D$71)","v":1150.5700000000002},30.151069290800152,{"$f":"SUMIFS(StockCode[Opening Value],StockCode[Stock Code],$C$56)+SUMIFS(MoveAmount,MoveDate,\"<\"&$B142+1,MoveCode,$C$56,MoveType,$D$71)","v":34690.915793915934}]
[null,"2021-08-11",74754.915793915934,{"$f":"SUMIFS(MoveQty,MoveDate,\">\"&$B143,MoveDate,\"<\"&$B143+1,MoveCode,$C$56,MoveType,$D$71)","v":1275},31.422745098039215,{"$f":"SUMIFS(MoveAmount,MoveDate,\">\"&$B143,MoveDate,\"<\"&$B143+1,MoveCode,$C$56,MoveType,$D$71)","v":40064},{"$f":"SUMIFS(StockCode[Opening Quantity],StockCode[Stock Code],$C$56)+SUMIFS(MoveQty,MoveDate,\"<\"&$B143+1,MoveCode,$C$56,MoveType,$D$71)","v":2425.5700000000002},30.819525222490356,{"$f":"SUMIFS(StockCode[Opening Value],StockCode[Stock Code],$C$56)+SUMIFS(MoveAmount,MoveDate,\"<\"&$B143+1,MoveCode,$C$56,MoveType,$D$71)","v":74754.915793915934}]
[null,"2021-08-12",74754.915793915934,{"$f":"SUMIFS(MoveQty,MoveDate,\">\"&$B144,MoveDate,\"<\"&$B144+1,MoveCode,$C$56,MoveType,$D$71)","v":0},0,{"$f":"SUMIFS(MoveAmount,MoveDate,\">\"&$B144,MoveDate,\"<\"&$B144+1,MoveCode,$C$56,MoveType,$D$71)","v":0},{"$f":"SUMIFS(StockCode[Opening Quantity],StockCode[Stock Code],$C$56)+SUMIFS(MoveQty,MoveDate,\"<\"&$B144+1,MoveCode,$C$56,MoveType,$D$71)","v":2425.5700000000002},30.819525222490356,{"$f":"SUMIFS(StockCode[Opening Value],StockCode[Stock Code],$C$56)+SUMIFS(MoveAmount,MoveDate,\"<\"&$B144+1,MoveCode,$C$56,MoveType,$D$71)","v":74754.915793915934}]
[null,"2021-08-13",52274.28029549701,{"$f":"SUMIFS(MoveQty,MoveDate,\">\"&$B145,MoveDate,\"<\"&$B145+1,MoveCode,$C$56,MoveType,$D$71)","v":-1051},21.389757848162617,{"$f":"SUMIFS(MoveAmount,MoveDate,\">\"&$B145,MoveDate,\"<\"&$B145+1,MoveCode,$C$56,MoveType,$D$71)","v":-22480.635498418909},{"$f":"SUMIFS(StockCode[Opening Quantity],StockCode[Stock Code],$C$56)+SUMIFS(MoveQty,MoveDate,\"<\"&$B145+1,MoveCode,$C$56,MoveType,$D$71)","v":1374.5700000000002},38.029551274578232,{"$f":"SUMIFS(StockCode[Opening Value],StockCode[Stock Code],$C$56)+SUMIFS(MoveAmount,MoveDate,\"<\"&$B145+1,MoveCode,$C$56,MoveType,$D$71)","v":52274.28029549701}]
[null,"2021-08-14",52274.28029549701,{"$f":"SUMIFS(MoveQty,MoveDate,\">\"&$B146,MoveDate,\"<\"&$B146+1,MoveCode,$C$56,MoveType,$D$71)","v":0},0,{"$f":"SUMIFS(MoveAmount,MoveDate,\">\"&$B146,MoveDate,\"<\"&$B146+1,MoveCode,$C$56,MoveType,$D$71)","v":0},{"$f":"SUMIFS(StockCode[Opening Quantity],StockCode[Stock Code],$C$56)+SUMIFS(MoveQty,MoveDate,\"<\"&$B146+1,MoveCode,$C$56,MoveType,$D$71)","v":1374.5700000000002},38.029551274578232,{"$f":"SUMIFS(StockCode[Opening Value],StockCode[Stock Code],$C$56)+SUMIFS(MoveAmount,MoveDate,\"<\"&$B146+1,MoveCode,$C$56,MoveType,$D$71)","v":52274.28029549701}]
[null,"2021-08-15",52274.28029549701,{"$f":"SUMIFS(MoveQty,MoveDate,\">\"&$B147,MoveDate,\"<\"&$B147+1,MoveCode,$C$56,MoveType,$D$71)","v":0},0,{"$f":"SUMIFS(MoveAmount,MoveDate,\">\"&$B147,MoveDate,\"<\"&$B147+1,MoveCode,$C$56,MoveType,$D$71)","v":0},{"$f":"SUMIFS(StockCode[Opening Quantity],StockCode[Stock Code],$C$56)+SUMIFS(MoveQty,MoveDate,\"<\"&$B147+1,MoveCode,$C$56,MoveType,$D$71)","v":1374.5700000000002},38.029551274578232,{"$f":"SUMIFS(StockCode[Opening Value],StockCode[Stock Code],$C$56)+SUMIFS(MoveAmount,MoveDate,\"<\"&$B147+1,MoveCode,$C$56,MoveType,$D$71)","v":52274.28029549701}]
[null,"2021-08-16",52274.28029549701,{"$f":"SUMIFS(MoveQty,MoveDate,\">\"&$B148,MoveDate,\"<\"&$B148+1,MoveCode,$C$56,MoveType,$D$71)","v":0},0,{"$f":"SUMIFS(MoveAmount,MoveDate,\">\"&$B148,MoveDate,\"<\"&$B148+1,MoveCode,$C$56,MoveType,$D$71)","v":0},{"$f":"SUMIFS(StockCode[Opening Quantity],StockCode[Stock Code],$C$56)+SUMIFS(MoveQty,MoveDate,\"<\"&$B148+1,MoveCode,$C$56,MoveType,$D$71)","v":1374.5700000000002},38.029551274578232,{"$f":"SUMIFS(StockCode[Opening Value],StockCode[Stock Code],$C$56)+SUMIFS(MoveAmount,MoveDate,\"<\"&$B148+1,MoveCode,$C$56,MoveType,$D$71)","v":52274.28029549701}]
[null,"2021-08-17",52274.28029549701,{"$f":"SUMIFS(MoveQty,MoveDate,\">\"&$B149,MoveDate,\"<\"&$B149+1,MoveCode,$C$56,MoveType,$D$71)","v":0},0,{"$f":"SUMIFS(MoveAmount,MoveDate,\">\"&$B149,MoveDate,\"<\"&$B149+1,MoveCode,$C$56,MoveType,$D$71)","v":0},{"$f":"SUMIFS(StockCode[Opening Quantity],StockCode[Stock Code],$C$56)+SUMIFS(MoveQty,MoveDate,\"<\"&$B149+1,MoveCode,$C$56,MoveType,$D$71)","v":1374.5700000000002},38.029551274578232,{"$f":"SUMIFS(StockCode[Opening Value],StockCode[Stock Code],$C$56)+SUMIFS(MoveAmount,MoveDate,\"<\"&$B149+1,MoveCode,$C$56,MoveType,$D$71)","v":52274.28029549701}]
[null,"2021-08-18",78610.28029549701,{"$f":"SUMIFS(MoveQty,MoveDate,\">\"&$B150,MoveDate,\"<\"&$B150+1,MoveCode,$C$56,MoveType,$D$71)","v":1055},24.963033175355449,{"$f":"SUMIFS(MoveAmount,MoveDate,\">\"&$B150,MoveDate,\"<\"&$B150+1,MoveCode,$C$56,MoveType,$D$71)","v":26336},{"$f":"SUMIFS(StockCode[Opening Quantity],StockCode[Stock Code],$C$56)+SUMIFS(MoveQty,MoveDate,\"<\"&$B150+1,MoveCode,$C$56,MoveType,$D$71)","v":2429.5700000000002},32.355635069373186,{"$f":"SUMIFS(StockCode[Opening Value],StockCode[Stock Code],$C$56)+SUMIFS(MoveAmount,MoveDate,\"<\"&$B150+1,MoveCode,$C$56,MoveType,$D$71)","v":78610.28029549701}]
[null,"2021-08-19",78610.28029549701,{"$f":"SUMIFS(MoveQty,MoveDate,\">\"&$B151,MoveDate,\"<\"&$B151+1,MoveCode,$C$56,MoveType,$D$71)","v":0},0,{"$f":"SUMIFS(MoveAmount,MoveDate,\">\"&$B151,MoveDate,\"<\"&$B151+1,MoveCode,$C$56,MoveType,$D$71)","v":0},{"$f":"SUMIFS(StockCode[Opening Quantity],StockCode[Stock Code],$C$56)+SUMIFS(MoveQty,MoveDate,\"<\"&$B151+1,MoveCode,$C$56,MoveType,$D$71)","v":2429.5700000000002},32.355635069373186,{"$f":"SUMIFS(StockCode[Opening Value],StockCode[Stock Code],$C$56)+SUMIFS(MoveAmount,MoveDate,\"<\"&$B151+1,MoveCode,$C$56,MoveType,$D$71)","v":78610.28029549701}]
[null,"2021-08-20",54158.756165329483,{"$f":"SUMIFS(MoveQty,MoveDate,\">\"&$B152,MoveDate,\"<\"&$B152+1,MoveCode,$C$56,MoveType,$D$71)","v":-1093},22.371019332266709,{"$f":"SUMIFS(MoveAmount,MoveDate,\">\"&$B152,MoveDate,\"<\"&$B152+1,MoveCode,$C$56,MoveType,$D$71)","v":-24451.524130167512},{"$f":"SUMIFS(StockCode[Opening Quantity],StockCode[Stock Code],$C$56)+SUMIFS(MoveQty,MoveDate,\"<\"&$B152+1,MoveCode,$C$56,MoveType,$D$71)","v":1336.5700000000002},40.520703117180155,{"$f":"SUMIFS(StockCode[Opening Value],StockCode[Stock Code],$C$56)+SUMIFS(MoveAmount,MoveDate,\"<\"&$B152+1,MoveCode,$C$56,MoveType,$D$71)","v":54158.756165329483}]
[null,"2021-08-21",54158.756165329483,{"$f":"SUMIFS(MoveQty,MoveDate,\">\"&$B153,MoveDate,\"<\"&$B153+1,MoveCode,$C$56,MoveType,$D$71)","v":0},0,{"$f":"SUMIFS(MoveAmount,MoveDate,\">\"&$B153,MoveDate,\"<\"&$B153+1,MoveCode,$C$56,MoveType,$D$71)","v":0},{"$f":"SUMIFS(StockCode[Opening Quantity],StockCode[Stock Code],$C$56)+SUMIFS(MoveQty,MoveDate,\"<\"&$B153+1,MoveCode,$C$56,MoveType,$D$71)","v":1336.5700000000002},40.520703117180155,{"$f":"SUMIFS(StockCode[Opening Value],StockCode[Stock Code],$C$56)+SUMIFS(MoveAmount,MoveDate,\"<\"&$B153+1,MoveCode,$C$56,MoveType,$D$71)","v":54158.756165329483}]
[null,"2021-08-22",54158.756165329483,{"$f":"SUMIFS(MoveQty,MoveDate,\">\"&$B154,MoveDate,\"<\"&$B154+1,MoveCode,$C$56,MoveType,$D$71)","v":0},0,{"$f":"SUMIFS(MoveAmount,MoveDate,\">\"&$B154,MoveDate,\"<\"&$B154+1,MoveCode,$C$56,MoveType,$D$71)","v":0},{"$f":"SUMIFS(StockCode[Opening Quantity],StockCode[Stock Code],$C$56)+SUMIFS(MoveQty,MoveDate,\"<\"&$B154+1,MoveCode,$C$56,MoveType,$D$71)","v":1336.5700000000002},40.520703117180155,{"$f":"SUMIFS(StockCode[Opening Value],StockCode[Stock Code],$C$56)+SUMIFS(MoveAmount,MoveDate,\"<\"&$B154+1,MoveCode,$C$56,MoveType,$D$71)","v":54158.756165329483}]
[null,"2021-08-23",54158.756165329483,{"$f":"SUMIFS(MoveQty,MoveDate,\">\"&$B155,MoveDate,\"<\"&$B155+1,MoveCode,$C$56,MoveType,$D$71)","v":0},0,{"$f":"SUMIFS(MoveAmount,MoveDate,\">\"&$B155,MoveDate,\"<\"&$B155+1,MoveCode,$C$56,MoveType,$D$71)","v":0},{"$f":"SUMIFS(StockCode[Opening Quantity],StockCode[Stock Code],$C$56)+SUMIFS(MoveQty,MoveDate,\"<\"&$B155+1,MoveCode,$C$56,MoveType,$D$71)","v":1336.5700000000002},40.520703117180155,{"$f":"SUMIFS(StockCode[Opening Value],StockCode[Stock Code],$C$56)+SUMIFS(MoveAmount,MoveDate,\"<\"&$B155+1,MoveCode,$C$56,MoveType,$D$71)","v":54158.756165329483}]
[null,"2021-08-24",54158.756165329483,{"$f":"SUMIFS(MoveQty,MoveDate,\">\"&$B156,MoveDate,\"<\"&$B156+1,MoveCode,$C$56,MoveType,$D$71)","v":0},0,{"$f":"SUMIFS(MoveAmount,MoveDate,\">\"&$B156,MoveDate,\"<\"&$B156+1,MoveCode,$C$56,MoveType,$D$71)","v":0},{"$f":"SUMIFS(StockCode[Opening Quantity],StockCode[Stock Code],$C$56)+SUMIFS(MoveQty,MoveDate,\"<\"&$B156+1,MoveCode,$C$56,MoveType,$D$71)","v":1336.5700000000002},40.520703117180155,{"$f":"SUMIFS(StockCode[Opening Value],StockCode[Stock Code],$C$56)+SUMIFS(MoveAmount,MoveDate,\"<\"&$B156+1,MoveCode,$C$56,MoveType,$D$71)","v":54158.756165329483}]
[null,"2021-08-25",74671.556165329486,{"$f":"SUMIFS(MoveQty,MoveDate,\">\"&$B157,MoveDate,\"<\"&$B157+1,MoveCode,$C$56,MoveType,$D$71)","v":821},24.985140073081606,{"$f":"SUMIFS(MoveAmount,MoveDate,\">\"&$B157,MoveDate,\"<\"&$B157+1,MoveCode,$C$56,MoveType,$D$71)","v":20512.8},{"$f":"SUMIFS(StockCode[Opening Quantity],StockCode[Stock Code],$C$56)+SUMIFS(MoveQty,MoveDate,\"<\"&$B157+1,MoveCode,$C$56,MoveType,$D$71)","v":2157.5700000000002},34.609100129001369,{"$f":"SUMIFS(StockCode[Opening Value],StockCode[Stock Code],$C$56)+SUMIFS(MoveAmount,MoveDate,\"<\"&$B157+1,MoveCode,$C$56,MoveType,$D$71)","v":74671.556165329486}]
[null,"2021-08-26",74671.556165329486,{"$f":"SUMIFS(MoveQty,MoveDate,\">\"&$B158,MoveDate,\"<\"&$B158+1,MoveCode,$C$56,MoveType,$D$71)","v":0},0,{"$f":"SUMIFS(MoveAmount,MoveDate,\">\"&$B158,MoveDate,\"<\"&$B158+1,MoveCode,$C$56,MoveType,$D$71)","v":0},{"$f":"SUMIFS(StockCode[Opening Quantity],StockCode[Stock Code],$C$56)+SUMIFS(MoveQty,MoveDate,\"<\"&$B158+1,MoveCode,$C$56,MoveType,$D$71)","v":2157.5700000000002},34.609100129001369,{"$f":"SUMIFS(StockCode[Opening Value],StockCode[Stock Code],$C$56)+SUMIFS(MoveAmount,MoveDate,\"<\"&$B158+1,MoveCode,$C$56,MoveType,$D$71)","v":74671.556165329486}]
[null,"2021-08-27",39896.420766021343,{"$f":"SUMIFS(MoveQty,MoveDate,\">\"&$B159,MoveDate,\"<\"&$B159+1,MoveCode,$C$56,MoveType,$D$71)","v":-1279},27.189316183978221,{"$f":"SUMIFS(MoveAmount,MoveDate,\">\"&$B159,MoveDate,\"<\"&$B159+1,MoveCode,$C$56,MoveType,$D$71)","v":-34775.135399308143},{"$f":"SUMIFS(StockCode[Opening Quantity],StockCode[Stock Code],$C$56)+SUMIFS(MoveQty,MoveDate,\"<\"&$B159+1,MoveCode,$C$56,MoveType,$D$71)","v":878.57000000000016},45.410634059917065,{"$f":"SUMIFS(StockCode[Opening Value],StockCode[Stock Code],$C$56)+SUMIFS(MoveAmount,MoveDate,\"<\"&$B159+1,MoveCode,$C$56,MoveType,$D$71)","v":39896.420766021343}]
[null,"2021-08-28",39896.420766021343,{"$f":"SUMIFS(MoveQty,MoveDate,\">\"&$B160,MoveDate,\"<\"&$B160+1,MoveCode,$C$56,MoveType,$D$71)","v":0},0,{"$f":"SUMIFS(MoveAmount,MoveDate,\">\"&$B160,MoveDate,\"<\"&$B160+1,MoveCode,$C$56,MoveType,$D$71)","v":0},{"$f":"SUMIFS(StockCode[Opening Quantity],StockCode[Stock Code],$C$56)+SUMIFS(MoveQty,MoveDate,\"<\"&$B160+1,MoveCode,$C$56,MoveType,$D$71)","v":878.57000000000016},45.410634059917065,{"$f":"SUMIFS(StockCode[Opening Value],StockCode[Stock Code],$C$56)+SUMIFS(MoveAmount,MoveDate,\"<\"&$B160+1,MoveCode,$C$56,MoveType,$D$71)","v":39896.420766021343}]
[null,"2021-08-29",39896.420766021343,{"$f":"SUMIFS(MoveQty,MoveDate,\">\"&$B161,MoveDate,\"<\"&$B161+1,MoveCode,$C$56,MoveType,$D$71)","v":0},0,{"$f":"SUMIFS(MoveAmount,MoveDate,\">\"&$B161,MoveDate,\"<\"&$B161+1,MoveCode,$C$56,MoveType,$D$71)","v":0},{"$f":"SUMIFS(StockCode[Opening Quantity],StockCode[Stock Code],$C$56)+SUMIFS(MoveQty,MoveDate,\"<\"&$B161+1,MoveCode,$C$56,MoveType,$D$71)","v":878.57000000000016},45.410634059917065,{"$f":"SUMIFS(StockCode[Opening Value],StockCode[Stock Code],$C$56)+SUMIFS(MoveAmount,MoveDate,\"<\"&$B161+1,MoveCode,$C$56,MoveType,$D$71)","v":39896.420766021343}]
[null,"2021-08-30",39896.420766021343,{"$f":"SUMIFS(MoveQty,MoveDate,\">\"&$B162,MoveDate,\"<\"&$B162+1,MoveCode,$C$56,MoveType,$D$71)","v":0},0,{"$f":"SUMIFS(MoveAmount,MoveDate,\">\"&$B162,MoveDate,\"<\"&$B162+1,MoveCode,$C$56,MoveType,$D$71)","v":0},{"$f":"SUMIFS(StockCode[Opening Quantity],StockCode[Stock Code],$C$56)+SUMIFS(MoveQty,MoveDate,\"<\"&$B162+1,MoveCode,$C$56,MoveType,$D$71)","v":878.57000000000016},45.410634059917065,{"$f":"SUMIFS(StockCode[Opening Value],StockCode[Stock Code],$C$56)+SUMIFS(MoveAmount,MoveDate,\"<\"&$B162+1,MoveCode,$C$56,MoveType,$D$71)","v":39896.420766021343}]
[null,"2021-08-31",31558.063491967645,{"$f":"SUMIFS(MoveQty,MoveDate,\">\"&$B163,MoveDate,\"<\"&$B163+1,MoveCode,$C$56,MoveType,$D$71)","v":-162.33000000000001},51.366705316661736,{"$f":"SUMIFS(MoveAmount,MoveDate,\">\"&$B163,MoveDate,\"<\"&$B163+1,MoveCode,$C$56,MoveType,$D$71)","v":-8338.3572740537002},{"$f":"SUMIFS(StockCode[Opening Quantity],StockCode[Stock Code],$C$56)+SUMIFS(MoveQty,MoveDate,\"<\"&$B163+1,MoveCode,$C$56,MoveType,$D$71)","v":716.24000000000012},44.060738707650565,{"$f":"SUMIFS(StockCode[Opening Value],StockCode[Stock Code],$C$56)+SUMIFS(MoveAmount,MoveDate,\"<\"&$B163+1,MoveCode,$C$56,MoveType,$D$71)","v":31558.063491967645}]
["Number of Weeks",null,13,{"$f":"$C164&\"-Week \"&$E$71&\" Report\"","v":"13-Week Balance Report"}]
[null,"Date","Value","Qty","Cost","Amount","Qty Bal","Cost Bal","Val Bal"]
[null,{"$f":"$D$55+IF(WEEKDAY($D$55,2)<>7,7-WEEKDAY($D$55,2),0)-(7*$C$164)+((ROW($C166)-ROW($C$165))*7)","v":"2021-06-13"},{"$f":"IF(ISNUMBER(B166),IF($E$71=\"Movement\",IF($C$71=\"Quantity\",D166,IF($C$71=\"Cost\",E166,F166)),IF($C$71=\"Quantity\",G166,IF($C$71=\"Cost\",H166,I166))),\"\")","v":18190},{"$f":"SUMIFS(MoveQty,MoveDate,\">\"&B166-6,MoveDate,\"<\"&$B166+1,MoveCode,$C$56,MoveType,$D$71)","v":0},{"$f":"IF(D166=0,0,F166/D166)","v":0},{"$f":"SUMIFS(MoveAmount,MoveDate,\">\"&B166-6,MoveDate,\"<\"&$B166+1,MoveCode,$C$56,MoveType,$D$71)","v":0},{"$f":"SUMIFS(StockCode[Opening Quantity],StockCode[Stock Code],$C$56)+SUMIFS(MoveQty,MoveDate,\"<\"&$B166+1,MoveCode,$C$56,MoveType,$D$71)","v":988},{"$f":"IF(G166=0,0,I166/G166)","v":18.410931174089068},{"$f":"SUMIFS(StockCode[Opening Value],StockCode[Stock Code],$C$56)+SUMIFS(MoveAmount,MoveDate,\"<\"&$B166+1,MoveCode,$C$56,MoveType,$D$71)","v":18190}]
[null,{"$f":"$D$55+IF(WEEKDAY($D$55,2)<>7,7-WEEKDAY($D$55,2),0)-(7*$C$164)+((ROW($C167)-ROW($C$165))*7)","v":"2021-06-20"},{"$f":"IF(ISNUMBER(B167),IF($E$71=\"Movement\",IF($C$71=\"Quantity\",D167,IF($C$71=\"Cost\",E167,F167)),IF($C$71=\"Quantity\",G167,IF($C$71=\"Cost\",H167,I167))),\"\")","v":18190},{"$f":"SUMIFS(MoveQty,MoveDate,\">\"&B167-6,MoveDate,\"<\"&$B167+1,MoveCode,$C$56,MoveType,$D$71)","v":0},{"$f":"IF(D167=0,0,F167/D167)","v":0},{"$f":"SUMIFS(MoveAmount,MoveDate,\">\"&B167-6,MoveDate,\"<\"&$B167+1,MoveCode,$C$56,MoveType,$D$71)","v":0},{"$f":"SUMIFS(StockCode[Opening Quantity],StockCode[Stock Code],$C$56)+SUMIFS(MoveQty,MoveDate,\"<\"&$B167+1,MoveCode,$C$56,MoveType,$D$71)","v":988},{"$f":"IF(G167=0,0,I167/G167)","v":18.410931174089068},{"$f":"SUMIFS(StockCode[Opening Value],StockCode[Stock Code],$C$56)+SUMIFS(MoveAmount,MoveDate,\"<\"&$B167+1,MoveCode,$C$56,MoveType,$D$71)","v":18190}]
[null,"2021-06-27",18190,{"$f":"SUMIFS(MoveQty,MoveDate,\">\"&B168-6,MoveDate,\"<\"&$B168+1,MoveCode,$C$56,MoveType,$D$71)","v":0},0,{"$f":"SUMIFS(MoveAmount,MoveDate,\">\"&B168-6,MoveDate,\"<\"&$B168+1,MoveCode,$C$56,MoveType,$D$71)","v":0},{"$f":"SUMIFS(StockCode[Opening Quantity],StockCode[Stock Code],$C$56)+SUMIFS(MoveQty,MoveDate,\"<\"&$B168+1,MoveCode,$C$56,MoveType,$D$71)","v":988},18.410931174089068,{"$f":"SUMIFS(StockCode[Opening Value],StockCode[Stock Code],$C$56)+SUMIFS(MoveAmount,MoveDate,\"<\"&$B168+1,MoveCode,$C$56,MoveType,$D$71)","v":18190}]
[null,"2021-07-04",18190,{"$f":"SUMIFS(MoveQty,MoveDate,\">\"&B169-6,MoveDate,\"<\"&$B169+1,MoveCode,$C$56,MoveType,$D$71)","v":0},0,{"$f":"SUMIFS(MoveAmount,MoveDate,\">\"&B169-6,MoveDate,\"<\"&$B169+1,MoveCode,$C$56,MoveType,$D$71)","v":0},{"$f":"SUMIFS(StockCode[Opening Quantity],StockCode[Stock Code],$C$56)+SUMIFS(MoveQty,MoveDate,\"<\"&$B169+1,MoveCode,$C$56,MoveType,$D$71)","v":988},18.410931174089068,{"$f":"SUMIFS(StockCode[Opening Value],StockCode[Stock Code],$C$56)+SUMIFS(MoveAmount,MoveDate,\"<\"&$B169+1,MoveCode,$C$56,MoveType,$D$71)","v":18190}]
[null,"2021-07-11",27739.237693078856,{"$f":"SUMIFS(MoveQty,MoveDate,\">\"&B170-6,MoveDate,\"<\"&$B170+1,MoveCode,$C$56,MoveType,$D$71)","v":348.8300000000001},27.375047137800227,{"$f":"SUMIFS(MoveAmount,MoveDate,\">\"&B170-6,MoveDate,\"<\"&$B170+1,MoveCode,$C$56,MoveType,$D$71)","v":9549.237693078856},{"$f":"SUMIFS(StockCode[Opening Quantity],StockCode[Stock Code],$C$56)+SUMIFS(MoveQty,MoveDate,\"<\"&$B170+1,MoveCode,$C$56,MoveType,$D$71)","v":1336.8300000000002},20.750011365004415,{"$f":"SUMIFS(StockCode[Opening Value],StockCode[Stock Code],$C$56)+SUMIFS(MoveAmount,MoveDate,\"<\"&$B170+1,MoveCode,$C$56,MoveType,$D$71)","v":27739.237693078856}]
[null,"2021-07-18",36048.983216569788,{"$f":"SUMIFS(MoveQty,MoveDate,\">\"&B171-6,MoveDate,\"<\"&$B171+1,MoveCode,$C$56,MoveType,$D$71)","v":210},39.570216778528199,{"$f":"SUMIFS(MoveAmount,MoveDate,\">\"&B171-6,MoveDate,\"<\"&$B171+1,MoveCode,$C$56,MoveType,$D$71)","v":8309.7455234909212},{"$f":"SUMIFS(StockCode[Opening Quantity],StockCode[Stock Code],$C$56)+SUMIFS(MoveQty,MoveDate,\"<\"&$B171+1,MoveCode,$C$56,MoveType,$D$71)","v":1546.8300000000002},23.305071156216123,{"$f":"SUMIFS(StockCode[Opening Value],StockCode[Stock Code],$C$56)+SUMIFS(MoveAmount,MoveDate,\"<\"&$B171+1,MoveCode,$C$56,MoveType,$D$71)","v":36048.983216569788}]
[null,"2021-07-25",40251.835088728723,{"$f":"SUMIFS(MoveQty,MoveDate,\">\"&B172-6,MoveDate,\"<\"&$B172+1,MoveCode,$C$56,MoveType,$D$71)","v":-53},-79.29909192752703,{"$f":"SUMIFS(MoveAmount,MoveDate,\">\"&B172-6,MoveDate,\"<\"&$B172+1,MoveCode,$C$56,MoveType,$D$71)","v":4202.8518721589326},{"$f":"SUMIFS(StockCode[Opening Quantity],StockCode[Stock Code],$C$56)+SUMIFS(MoveQty,MoveDate,\"<\"&$B172+1,MoveCode,$C$56,MoveType,$D$71)","v":1493.8300000000002},26.945392105345803,{"$f":"SUMIFS(StockCode[Opening Value],StockCode[Stock Code],$C$56)+SUMIFS(MoveAmount,MoveDate,\"<\"&$B172+1,MoveCode,$C$56,MoveType,$D$71)","v":40251.835088728723}]
[null,"2021-08-01",24459.585876587247,{"$f":"SUMIFS(MoveQty,MoveDate,\">\"&B173-6,MoveDate,\"<\"&$B173+1,MoveCode,$C$56,MoveType,$D$71)","v":-692.09},22.818201696515597,{"$f":"SUMIFS(MoveAmount,MoveDate,\">\"&B173-6,MoveDate,\"<\"&$B173+1,MoveCode,$C$56,MoveType,$D$71)","v":-15792.249212141482},{"$f":"SUMIFS(StockCode[Opening Quantity],StockCode[Stock Code],$C$56)+SUMIFS(MoveQty,MoveDate,\"<\"&$B173+1,MoveCode,$C$56,MoveType,$D$71)","v":801.74000000000024},30.508127169141169,{"$f":"SUMIFS(StockCode[Opening Value],StockCode[Stock Code],$C$56)+SUMIFS(MoveAmount,MoveDate,\"<\"&$B173+1,MoveCode,$C$56,MoveType,$D$71)","v":24459.585876587247}]
[null,"2021-08-08",34690.915793915934,{"$f":"SUMIFS(MoveQty,MoveDate,\">\"&B174-6,MoveDate,\"<\"&$B174+1,MoveCode,$C$56,MoveType,$D$71)","v":348.8300000000001},29.330418591659811,{"$f":"SUMIFS(MoveAmount,MoveDate,\">\"&B174-6,MoveDate,\"<\"&$B174+1,MoveCode,$C$56,MoveType,$D$71)","v":10231.329917328694},{"$f":"SUMIFS(StockCode[Opening Quantity],StockCode[Stock Code],$C$56)+SUMIFS(MoveQty,MoveDate,\"<\"&$B174+1,MoveCode,$C$56,MoveType,$D$71)","v":1150.5700000000002},30.151069290800152,{"$f":"SUMIFS(StockCode[Opening Value],StockCode[Stock Code],$C$56)+SUMIFS(MoveAmount,MoveDate,\"<\"&$B174+1,MoveCode,$C$56,MoveType,$D$71)","v":34690.915793915934}]
[null,"2021-08-15",52274.28029549701,{"$f":"SUMIFS(MoveQty,MoveDate,\">\"&B175-6,MoveDate,\"<\"&$B175+1,MoveCode,$C$56,MoveType,$D$71)","v":224},78.497162953486992,{"$f":"SUMIFS(MoveAmount,MoveDate,\">\"&B175-6,MoveDate,\"<\"&$B175+1,MoveCode,$C$56,MoveType,$D$71)","v":17583.364501581087},{"$f":"SUMIFS(StockCode[Opening Quantity],StockCode[Stock Code],$C$56)+SUMIFS(MoveQty,MoveDate,\"<\"&$B175+1,MoveCode,$C$56,MoveType,$D$71)","v":1374.5700000000002},38.029551274578232,{"$f":"SUMIFS(StockCode[Opening Value],StockCode[Stock Code],$C$56)+SUMIFS(MoveAmount,MoveDate,\"<\"&$B175+1,MoveCode,$C$56,MoveType,$D$71)","v":52274.28029549701}]
[null,"2021-08-22",54158.756165329483,{"$f":"SUMIFS(MoveQty,MoveDate,\">\"&B176-6,MoveDate,\"<\"&$B176+1,MoveCode,$C$56,MoveType,$D$71)","v":-38},-49.591470258749538,{"$f":"SUMIFS(MoveAmount,MoveDate,\">\"&B176-6,MoveDate,\"<\"&$B176+1,MoveCode,$C$56,MoveType,$D$71)","v":1884.4758698324824},{"$f":"SUMIFS(StockCode[Opening Quantity],StockCode[Stock Code],$C$56)+SUMIFS(MoveQty,MoveDate,\"<\"&$B176+1,MoveCode,$C$56,MoveType,$D$71)","v":1336.5700000000002},40.520703117180155,{"$f":"SUMIFS(StockCode[Opening Value],StockCode[Stock Code],$C$56)+SUMIFS(MoveAmount,MoveDate,\"<\"&$B176+1,MoveCode,$C$56,MoveType,$D$71)","v":54158.756165329483}]
[null,"2021-08-29",39896.420766021343,{"$f":"SUMIFS(MoveQty,MoveDate,\">\"&B177-6,MoveDate,\"<\"&$B177+1,MoveCode,$C$56,MoveType,$D$71)","v":-458},31.140470304166239,{"$f":"SUMIFS(MoveAmount,MoveDate,\">\"&B177-6,MoveDate,\"<\"&$B177+1,MoveCode,$C$56,MoveType,$D$71)","v":-14262.335399308138},{"$f":"SUMIFS(StockCode[Opening Quantity],StockCode[Stock Code],$C$56)+SUMIFS(MoveQty,MoveDate,\"<\"&$B177+1,MoveCode,$C$56,MoveType,$D$71)","v":878.57000000000016},45.410634059917065,{"$f":"SUMIFS(StockCode[Opening Value],StockCode[Stock Code],$C$56)+SUMIFS(MoveAmount,MoveDate,\"<\"&$B177+1,MoveCode,$C$56,MoveType,$D$71)","v":39896.420766021343}]
[null,"2021-09-05",31558.063491967645,{"$f":"SUMIFS(MoveQty,MoveDate,\">\"&B178-6,MoveDate,\"<\"&$B178+1,MoveCode,$C$56,MoveType,$D$71)","v":-162.33000000000001},51.366705316661736,{"$f":"SUMIFS(MoveAmount,MoveDate,\">\"&B178-6,MoveDate,\"<\"&$B178+1,MoveCode,$C$56,MoveType,$D$71)","v":-8338.3572740537002},{"$f":"SUMIFS(StockCode[Opening Quantity],StockCode[Stock Code],$C$56)+SUMIFS(MoveQty,MoveDate,\"<\"&$B178+1,MoveCode,$C$56,MoveType,$D$71)","v":716.24000000000012},44.060738707650565,{"$f":"SUMIFS(StockCode[Opening Value],StockCode[Stock Code],$C$56)+SUMIFS(MoveAmount,MoveDate,\"<\"&$B178+1,MoveCode,$C$56,MoveType,$D$71)","v":31558.063491967645}]
["Number of Months",null,12,{"$f":"$C$179&\"-Month \"&$E$71&\" Report\"","v":"12-Month Balance Report"}]
[null,"Date","Value","Qty","Cost","Amount","Qty Bal","Cost Bal","Val Bal"]
[null,{"$f":"DATE(YEAR($D$55),MONTH($D$55)-$C$179+1+ROW($C181)-ROW($C$180),0)","v":"2020-09-30"},{"$f":"IF(ISNUMBER(B181),IF($E$71=\"Movement\",IF($C$71=\"Quantity\",D181,IF($C$71=\"Cost\",E181,F181)),IF($C$71=\"Quantity\",G181,IF($C$71=\"Cost\",H181,I181))),\"\")","v":18190},{"$f":"SUMIFS(MoveQty,MoveDate,\">\"&DATE(YEAR(B181),MONTH(B181),1),MoveDate,\"<\"&$B181+1,MoveCode,$C$56,MoveType,$D$71)","v":0},{"$f":"IF(D181=0,0,F181/D181)","v":0},{"$f":"SUMIFS(MoveAmount,MoveDate,\">\"&DATE(YEAR(B181),MONTH(B181),1),MoveDate,\"<\"&$B181+1,MoveCode,$C$56,MoveType,$D$71)","v":0},{"$f":"SUMIFS(StockCode[Opening Quantity],StockCode[Stock Code],$C$56)+SUMIFS(MoveQty,MoveDate,\"<\"&$B181+1,MoveCode,$C$56,MoveType,$D$71)","v":988},{"$f":"IF(G181=0,0,I181/G181)","v":18.410931174089068},{"$f":"SUMIFS(StockCode[Opening Value],StockCode[Stock Code],$C$56)+SUMIFS(MoveAmount,MoveDate,\"<\"&$B181+1,MoveCode,$C$56,MoveType,$D$71)","v":18190}]
[null,"2020-10-31",{"$f":"IF(ISNUMBER(B182),IF($E$71=\"Movement\",IF($C$71=\"Quantity\",D182,IF($C$71=\"Cost\",E182,F182)),IF($C$71=\"Quantity\",G182,IF($C$71=\"Cost\",H182,I182))),\"\")","v":18190},{"$f":"SUMIFS(MoveQty,MoveDate,\">\"&DATE(YEAR(B182),MONTH(B182),1),MoveDate,\"<\"&$B182+1,MoveCode,$C$56,MoveType,$D$71)","v":0},{"$f":"IF(D182=0,0,F182/D182)","v":0},{"$f":"SUMIFS(MoveAmount,MoveDate,\">\"&DATE(YEAR(B182),MONTH(B182),1),MoveDate,\"<\"&$B182+1,MoveCode,$C$56,MoveType,$D$71)","v":0},{"$f":"SUMIFS(StockCode[Opening Quantity],StockCode[Stock Code],$C$56)+SUMIFS(MoveQty,MoveDate,\"<\"&$B182+1,MoveCode,$C$56,MoveType,$D$71)","v":988},{"$f":"IF(G182=0,0,I182/G182)","v":18.410931174089068},{"$f":"SUMIFS(StockCode[Opening Value],StockCode[Stock Code],$C$56)+SUMIFS(MoveAmount,MoveDate,\"<\"&$B182+1,MoveCode,$C$56,MoveType,$D$71)","v":18190}]
[null,"2020-11-30",18190,{"$f":"SUMIFS(MoveQty,MoveDate,\">\"&DATE(YEAR(B183),MONTH(B183),1),MoveDate,\"<\"&$B183+1,MoveCode,$C$56,MoveType,$D$71)","v":0},0,{"$f":"SUMIFS(MoveAmount,MoveDate,\">\"&DATE(YEAR(B183),MONTH(B183),1),MoveDate,\"<\"&$B183+1,MoveCode,$C$56,MoveType,$D$71)","v":0},{"$f":"SUMIFS(StockCode[Opening Quantity],StockCode[Stock Code],$C$56)+SUMIFS(MoveQty,MoveDate,\"<\"&$B183+1,MoveCode,$C$56,MoveType,$D$71)","v":988},18.410931174089068,{"$f":"SUMIFS(StockCode[Opening Value],StockCode[Stock Code],$C$56)+SUMIFS(MoveAmount,MoveDate,\"<\"&$B183+1,MoveCode,$C$56,MoveType,$D$71)","v":18190}]
[null,"2020-12-31",18190,{"$f":"SUMIFS(MoveQty,MoveDate,\">\"&DATE(YEAR(B184),MONTH(B184),1),MoveDate,\"<\"&$B184+1,MoveCode,$C$56,MoveType,$D$71)","v":0},0,{"$f":"SUMIFS(MoveAmount,MoveDate,\">\"&DATE(YEAR(B184),MONTH(B184),1),MoveDate,\"<\"&$B184+1,MoveCode,$C$56,MoveType,$D$71)","v":0},{"$f":"SUMIFS(StockCode[Opening Quantity],StockCode[Stock Code],$C$56)+SUMIFS(MoveQty,MoveDate,\"<\"&$B184+1,MoveCode,$C$56,MoveType,$D$71)","v":988},18.410931174089068,{"$f":"SUMIFS(StockCode[Opening Value],StockCode[Stock Code],$C$56)+SUMIFS(MoveAmount,MoveDate,\"<\"&$B184+1,MoveCode,$C$56,MoveType,$D$71)","v":18190}]
[null,"2021-01-31",18190,{"$f":"SUMIFS(MoveQty,MoveDate,\">\"&DATE(YEAR(B185),MONTH(B185),1),MoveDate,\"<\"&$B185+1,MoveCode,$C$56,MoveType,$D$71)","v":0},0,{"$f":"SUMIFS(MoveAmount,MoveDate,\">\"&DATE(YEAR(B185),MONTH(B185),1),MoveDate,\"<\"&$B185+1,MoveCode,$C$56,MoveType,$D$71)","v":0},{"$f":"SUMIFS(StockCode[Opening Quantity],StockCode[Stock Code],$C$56)+SUMIFS(MoveQty,MoveDate,\"<\"&$B185+1,MoveCode,$C$56,MoveType,$D$71)","v":988},18.410931174089068,{"$f":"SUMIFS(StockCode[Opening Value],StockCode[Stock Code],$C$56)+SUMIFS(MoveAmount,MoveDate,\"<\"&$B185+1,MoveCode,$C$56,MoveType,$D$71)","v":18190}]
[null,"2021-02-28",18190,{"$f":"SUMIFS(MoveQty,MoveDate,\">\"&DATE(YEAR(B186),MONTH(B186),1),MoveDate,\"<\"&$B186+1,MoveCode,$C$56,MoveType,$D$71)","v":0},0,{"$f":"SUMIFS(MoveAmount,MoveDate,\">\"&DATE(YEAR(B186),MONTH(B186),1),MoveDate,\"<\"&$B186+1,MoveCode,$C$56,MoveType,$D$71)","v":0},{"$f":"SUMIFS(StockCode[Opening Quantity],StockCode[Stock Code],$C$56)+SUMIFS(MoveQty,MoveDate,\"<\"&$B186+1,MoveCode,$C$56,MoveType,$D$71)","v":988},18.410931174089068,{"$f":"SUMIFS(StockCode[Opening Value],StockCode[Stock Code],$C$56)+SUMIFS(MoveAmount,MoveDate,\"<\"&$B186+1,MoveCode,$C$56,MoveType,$D$71)","v":18190}]
[null,"2021-03-31",18190,{"$f":"SUMIFS(MoveQty,MoveDate,\">\"&DATE(YEAR(B187),MONTH(B187),1),MoveDate,\"<\"&$B187+1,MoveCode,$C$56,MoveType,$D$71)","v":0},0,{"$f":"SUMIFS(MoveAmount,MoveDate,\">\"&DATE(YEAR(B187),MONTH(B187),1),MoveDate,\"<\"&$B187+1,MoveCode,$C$56,MoveType,$D$71)","v":0},{"$f":"SUMIFS(StockCode[Opening Quantity],StockCode[Stock Code],$C$56)+SUMIFS(MoveQty,MoveDate,\"<\"&$B187+1,MoveCode,$C$56,MoveType,$D$71)","v":988},18.410931174089068,{"$f":"SUMIFS(StockCode[Opening Value],StockCode[Stock Code],$C$56)+SUMIFS(MoveAmount,MoveDate,\"<\"&$B187+1,MoveCode,$C$56,MoveType,$D$71)","v":18190}]
[null,"2021-04-30",18190,{"$f":"SUMIFS(MoveQty,MoveDate,\">\"&DATE(YEAR(B188),MONTH(B188),1),MoveDate,\"<\"&$B188+1,MoveCode,$C$56,MoveType,$D$71)","v":0},0,{"$f":"SUMIFS(MoveAmount,MoveDate,\">\"&DATE(YEAR(B188),MONTH(B188),1),MoveDate,\"<\"&$B188+1,MoveCode,$C$56,MoveType,$D$71)","v":0},{"$f":"SUMIFS(StockCode[Opening Quantity],StockCode[Stock Code],$C$56)+SUMIFS(MoveQty,MoveDate,\"<\"&$B188+1,MoveCode,$C$56,MoveType,$D$71)","v":988},18.410931174089068,{"$f":"SUMIFS(StockCode[Opening Value],StockCode[Stock Code],$C$56)+SUMIFS(MoveAmount,MoveDate,\"<\"&$B188+1,MoveCode,$C$56,MoveType,$D$71)","v":18190}]
[null,"2021-05-31",18190,{"$f":"SUMIFS(MoveQty,MoveDate,\">\"&DATE(YEAR(B189),MONTH(B189),1),MoveDate,\"<\"&$B189+1,MoveCode,$C$56,MoveType,$D$71)","v":0},0,{"$f":"SUMIFS(MoveAmount,MoveDate,\">\"&DATE(YEAR(B189),MONTH(B189),1),MoveDate,\"<\"&$B189+1,MoveCode,$C$56,MoveType,$D$71)","v":0},{"$f":"SUMIFS(StockCode[Opening Quantity],StockCode[Stock Code],$C$56)+SUMIFS(MoveQty,MoveDate,\"<\"&$B189+1,MoveCode,$C$56,MoveType,$D$71)","v":988},18.410931174089068,{"$f":"SUMIFS(StockCode[Opening Value],StockCode[Stock Code],$C$56)+SUMIFS(MoveAmount,MoveDate,\"<\"&$B189+1,MoveCode,$C$56,MoveType,$D$71)","v":18190}]
[null,"2021-06-30",18190,{"$f":"SUMIFS(MoveQty,MoveDate,\">\"&DATE(YEAR(B190),MONTH(B190),1),MoveDate,\"<\"&$B190+1,MoveCode,$C$56,MoveType,$D$71)","v":0},0,{"$f":"SUMIFS(MoveAmount,MoveDate,\">\"&DATE(YEAR(B190),MONTH(B190),1),MoveDate,\"<\"&$B190+1,MoveCode,$C$56,MoveType,$D$71)","v":0},{"$f":"SUMIFS(StockCode[Opening Quantity],StockCode[Stock Code],$C$56)+SUMIFS(MoveQty,MoveDate,\"<\"&$B190+1,MoveCode,$C$56,MoveType,$D$71)","v":988},18.410931174089068,{"$f":"SUMIFS(StockCode[Opening Value],StockCode[Stock Code],$C$56)+SUMIFS(MoveAmount,MoveDate,\"<\"&$B190+1,MoveCode,$C$56,MoveType,$D$71)","v":18190}]
[null,"2021-07-31",24459.585876587247,{"$f":"SUMIFS(MoveQty,MoveDate,\">\"&DATE(YEAR(B191),MONTH(B191),1),MoveDate,\"<\"&$B191+1,MoveCode,$C$56,MoveType,$D$71)","v":-186.25999999999979},-33.66039877905753,{"$f":"SUMIFS(MoveAmount,MoveDate,\">\"&DATE(YEAR(B191),MONTH(B191),1),MoveDate,\"<\"&$B191+1,MoveCode,$C$56,MoveType,$D$71)","v":6269.5858765872481},{"$f":"SUMIFS(StockCode[Opening Quantity],StockCode[Stock Code],$C$56)+SUMIFS(MoveQty,MoveDate,\"<\"&$B191+1,MoveCode,$C$56,MoveType,$D$71)","v":801.74000000000024},30.508127169141169,{"$f":"SUMIFS(StockCode[Opening Value],StockCode[Stock Code],$C$56)+SUMIFS(MoveAmount,MoveDate,\"<\"&$B191+1,MoveCode,$C$56,MoveType,$D$71)","v":24459.585876587247}]
[null,"2021-08-31",31558.063491967645,{"$f":"SUMIFS(MoveQty,MoveDate,\">\"&DATE(YEAR(B192),MONTH(B192),1),MoveDate,\"<\"&$B192+1,MoveCode,$C$56,MoveType,$D$71)","v":-85.499999999999844},-83.023130004449627,{"$f":"SUMIFS(MoveAmount,MoveDate,\">\"&DATE(YEAR(B192),MONTH(B192),1),MoveDate,\"<\"&$B192+1,MoveCode,$C$56,MoveType,$D$71)","v":7098.4776153804296},{"$f":"SUMIFS(StockCode[Opening Quantity],StockCode[Stock Code],$C$56)+SUMIFS(MoveQty,MoveDate,\"<\"&$B192+1,MoveCode,$C$56,MoveType,$D$71)","v":716.24000000000012},44.060738707650565,{"$f":"SUMIFS(StockCode[Opening Value],StockCode[Stock Code],$C$56)+SUMIFS(MoveAmount,MoveDate,\"<\"&$B192+1,MoveCode,$C$56,MoveType,$D$71)","v":31558.063491967645}]
["Top 5 Usage",null,"Full","Qty","Value","rank","sequence"]
[null,{"$f":"IF(ISERROR(INDEX(StockMaster,SMALL(IF(DBUsageValue>=LARGE(DBUsageValue,MIN(5,CodeCount)),ROW(DBUsageValue)-ROW(StockCodes!$A$5)),ROW(1:1)),COLUMN(StockCodes!$A$5))),\"\",INDEX(StockMaster,SMALL(IF(DBUsageValue>=LARGE(DBUsageValue,MIN(5,CodeCount)),ROW(DBUsageValue)-ROW(StockCodes!$A$5)),ROW(1:1)),COLUMN(StockCodes!$A$5)))","v":"PM2005"},{"$f":"B194&\" \"&IF(ISNA(VLOOKUP($B194,StockMaster,COLUMN(StockCodes!$B$5),0)),\"\",VLOOKUP($B194,StockMaster,COLUMN(StockCodes!$B$5),0))","v":"PM2005 Labels"},{"$f":"IF(ISNA(VLOOKUP($B194,StockMaster,COLUMN(StockCodes!$T$5),0)),\"\",VLOOKUP($B194,StockMaster,COLUMN(StockCodes!$T$5),0))","v":14.06},{"$f":"IF(ISNA(VLOOKUP($B194,StockMaster,COLUMN(StockCodes!$W$5),0)),\"\",VLOOKUP($B194,StockMaster,COLUMN(StockCodes!$W$5),0))","v":6397.1288185322246},{"$f":"IF(ISNUMBER(E194)=FALSE,\"\",RANK(E194,$E$194:$E$198,0))","v":3},{"$f":"IF(ISNUMBER(F194)=FALSE,\"\",F194+COUNTIF($F$194:$F194,$F194)-1)","v":3}]
[null,{"$f":"IF(ISERROR(INDEX(StockMaster,SMALL(IF(DBUsageValue>=LARGE(DBUsageValue,MIN(5,CodeCount)),ROW(DBUsageValue)-ROW(StockCodes!$A$5)),ROW(2:2)),COLUMN(StockCodes!$A$5))),\"\",INDEX(StockMaster,SMALL(IF(DBUsageValue>=LARGE(DBUsageValue,MIN(5,CodeCount)),ROW(DBUsageValue)-ROW(StockCodes!$A$5)),ROW(2:2)),COLUMN(StockCodes!$A$5)))","v":"PM2015"},{"$f":"B195&\" \"&IF(ISNA(VLOOKUP($B195,StockMaster,COLUMN(StockCodes!$B$5),0)),\"\",VLOOKUP($B195,StockMaster,COLUMN(StockCodes!$B$5),0))","v":"PM2015 Boxes"},{"$f":"IF(ISNA(VLOOKUP($B195,StockMaster,COLUMN(StockCodes!$T$5),0)),\"\",VLOOKUP($B195,StockMaster,COLUMN(StockCodes!$T$5),0))","v":4972.6400000000003},{"$f":"IF(ISNA(VLOOKUP($B195,StockMaster,COLUMN(StockCodes!$W$5),0)),\"\",VLOOKUP($B195,StockMaster,COLUMN(StockCodes!$W$5),0))","v":5251.7059873920171},{"$f":"IF(ISNUMBER(E195)=FALSE,\"\",RANK(E195,$E$194:$E$198,0))","v":4},{"$f":"IF(ISNUMBER(F195)=FALSE,\"\",F195+COUNTIF($F$194:$F195,$F195)-1)","v":4}]
[null,{"$f":"IF(ISERROR(INDEX(StockMaster,SMALL(IF(DBUsageValue>=LARGE(DBUsageValue,MIN(5,CodeCount)),ROW(DBUsageValue)-ROW(StockCodes!$A$5)),ROW(3:3)),COLUMN(StockCodes!$A$5))),\"\",INDEX(StockMaster,SMALL(IF(DBUsageValue>=LARGE(DBUsageValue,MIN(5,CodeCount)),ROW(DBUsageValue)-ROW(StockCodes!$A$5)),ROW(3:3)),COLUMN(StockCodes!$A$5)))","v":"RM1000"},{"$f":"B196&\" \"&IF(ISNA(VLOOKUP($B196,StockMaster,COLUMN(StockCodes!$B$5),0)),\"\",VLOOKUP($B196,StockMaster,COLUMN(StockCodes!$B$5),0))","v":"RM1000 Meat"},{"$f":"IF(ISNA(VLOOKUP($B196,StockMaster,COLUMN(StockCodes!$T$5),0)),\"\",VLOOKUP($B196,StockMaster,COLUMN(StockCodes!$T$5),0))","v":3240},{"$f":"IF(ISNA(VLOOKUP($B196,StockMaster,COLUMN(StockCodes!$W$5),0)),\"\",VLOOKUP($B196,StockMaster,COLUMN(StockCodes!$W$5),0))","v":159696.72557233815},1,{"$f":"IF(ISNUMBER(F196)=FALSE,\"\",F196+COUNTIF($F$194:$F196,$F196)-1)","v":1}]
[null,{"$f":"IF(ISERROR(INDEX(StockMaster,SMALL(IF(DBUsageValue>=LARGE(DBUsageValue,MIN(5,CodeCount)),ROW(DBUsageValue)-ROW(StockCodes!$A$5)),ROW(4:4)),COLUMN(StockCodes!$A$5))),\"\",INDEX(StockMaster,SMALL(IF(DBUsageValue>=LARGE(DBUsageValue,MIN(5,CodeCount)),ROW(DBUsageValue)-ROW(StockCodes!$A$5)),ROW(4:4)),COLUMN(StockCodes!$A$5)))","v":"RM1005"},{"$f":"B197&\" \"&IF(ISNA(VLOOKUP($B197,StockMaster,COLUMN(StockCodes!$B$5),0)),\"\",VLOOKUP($B197,StockMaster,COLUMN(StockCodes!$B$5),0))","v":"RM1005 Bread Rolls"},{"$f":"IF(ISNA(VLOOKUP($B197,StockMaster,COLUMN(StockCodes!$T$5),0)),\"\",VLOOKUP($B197,StockMaster,COLUMN(StockCodes!$T$5),0))","v":350.72},{"$f":"IF(ISNA(VLOOKUP($B197,StockMaster,COLUMN(StockCodes!$W$5),0)),\"\",VLOOKUP($B197,StockMaster,COLUMN(StockCodes!$W$5),0))","v":14327.241695807948},2,{"$f":"IF(ISNUMBER(F197)=FALSE,\"\",F197+COUNTIF($F$194:$F197,$F197)-1)","v":2}]
[null,{"$f":"IF(ISERROR(INDEX(StockMaster,SMALL(IF(DBUsageValue>=LARGE(DBUsageValue,MIN(5,CodeCount)),ROW(DBUsageValue)-ROW(StockCodes!$A$5)),ROW(5:5)),COLUMN(StockCodes!$A$5))),\"\",INDEX(StockMaster,SMALL(IF(DBUsageValue>=LARGE(DBUsageValue,MIN(5,CodeCount)),ROW(DBUsageValue)-ROW(StockCodes!$A$5)),ROW(5:5)),COLUMN(StockCodes!$A$5)))","v":"RM1025"},{"$f":"B198&\" \"&IF(ISNA(VLOOKUP($B198,StockMaster,COLUMN(StockCodes!$B$5),0)),\"\",VLOOKUP($B198,StockMaster,COLUMN(StockCodes!$B$5),0))","v":"RM1025 Onions"},{"$f":"IF(ISNA(VLOOKUP($B198,StockMaster,COLUMN(StockCodes!$T$5),0)),\"\",VLOOKUP($B198,StockMaster,COLUMN(StockCodes!$T$5),0))","v":87.06},{"$f":"IF(ISNA(VLOOKUP($B198,StockMaster,COLUMN(StockCodes!$W$5),0)),\"\",VLOOKUP($B198,StockMaster,COLUMN(StockCodes!$W$5),0))","v":1118.7975358059257},5,{"$f":"IF(ISNUMBER(F198)=FALSE,\"\",F198+COUNTIF($F$194:$F198,$F198)-1)","v":5}]
["Top 5 Adjustment",null,"Full","Qty","Value","ABS Value","rank","sequence"]
[null,{"$f":"IF(ISERROR(INDEX(StockMaster,SMALL(IF(DBAdjustValueABS>=LARGE(DBAdjustValueABS,MIN(5,CodeCount)),ROW(DBAdjustValueABS)-ROW(StockCodes!$A$5)),ROW(1:1)),COLUMN(StockCodes!$A$5))),\"\",INDEX(StockMaster,SMALL(IF(DBAdjustValueABS>=LARGE(DBAdjustValueABS,MIN(5,CodeCount)),ROW(DBAdjustValueABS)-ROW(StockCodes!$A$5)),ROW(1:1)),COLUMN(StockCodes!$A$5)))","v":"PM2000"},{"$f":"B200&\" \"&IF(ISNA(VLOOKUP($B200,StockMaster,COLUMN(StockCodes!$B$5),0)),\"\",VLOOKUP($B200,StockMaster,COLUMN(StockCodes!$B$5),0))","v":"PM2000 Plastic Wrap"},{"$f":"IF(ISNA(VLOOKUP($B200,StockMaster,COLUMN(StockCodes!$U$5),0)),\"\",VLOOKUP($B200,StockMaster,COLUMN(StockCodes!$U$5),0))","v":-1.2800000000000007},{"$f":"IF(ISNA(VLOOKUP($B200,StockMaster,COLUMN(StockCodes!$X$5),0)),\"\",VLOOKUP($B200,StockMaster,COLUMN(StockCodes!$X$5),0))","v":-26.25693399311951},{"$f":"IF(ISNUMBER(E200)=FALSE,\"\",ABS(E200))","v":26.25693399311951},{"$f":"IF(ISNUMBER(F200)=FALSE,\"\",RANK(F200,$F$200:$F$204,0))","v":5},{"$f":"IF(ISNUMBER(G200)=FALSE,\"\",G200+COUNTIF($G$200:$G200,$G200)-1)","v":5}]
[null,{"$f":"IF(ISERROR(INDEX(StockMaster,SMALL(IF(DBAdjustValueABS>=LARGE(DBAdjustValueABS,MIN(5,CodeCount)),ROW(DBAdjustValueABS)-ROW(StockCodes!$A$5)),ROW(2:2)),COLUMN(StockCodes!$A$5))),\"\",INDEX(StockMaster,SMALL(IF(DBAdjustValueABS>=LARGE(DBAdjustValueABS,MIN(5,CodeCount)),ROW(DBAdjustValueABS)-ROW(StockCodes!$A$5)),ROW(2:2)),COLUMN(StockCodes!$A$5)))","v":"PM2005"},{"$f":"B201&\" \"&IF(ISNA(VLOOKUP($B201,StockMaster,COLUMN(StockCodes!$B$5),0)),\"\",VLOOKUP($B201,StockMaster,COLUMN(StockCodes!$B$5),0))","v":"PM2005 Labels"},{"$f":"IF(ISNA(VLOOKUP($B201,StockMaster,COLUMN(StockCodes!$U$5),0)),\"\",VLOOKUP($B201,StockMaster,COLUMN(StockCodes!$U$5),0))","v":-0.94},{"$f":"IF(ISNA(VLOOKUP($B201,StockMaster,COLUMN(StockCodes!$X$5),0)),\"\",VLOOKUP($B201,StockMaster,COLUMN(StockCodes!$X$5),0))","v":-422.87118146777533},{"$f":"IF(ISNUMBER(E201)=FALSE,\"\",ABS(E201))","v":422.87118146777533},{"$f":"IF(ISNUMBER(F201)=FALSE,\"\",RANK(F201,$F$200:$F$204,0))","v":3},{"$f":"IF(ISNUMBER(G201)=FALSE,\"\",G201+COUNTIF($G$200:$G201,$G201)-1)","v":3}]
[null,{"$f":"IF(ISERROR(INDEX(StockMaster,SMALL(IF(DBAdjustValueABS>=LARGE(DBAdjustValueABS,MIN(5,CodeCount)),ROW(DBAdjustValueABS)-ROW(StockCodes!$A$5)),ROW(3:3)),COLUMN(StockCodes!$A$5))),\"\",INDEX(StockMaster,SMALL(IF(DBAdjustValueABS>=LARGE(DBAdjustValueABS,MIN(5,CodeCount)),ROW(DBAdjustValueABS)-ROW(StockCodes!$A$5)),ROW(3:3)),COLUMN(StockCodes!$A$5)))","v":"RM1000"},{"$f":"B202&\" \"&IF(ISNA(VLOOKUP($B202,StockMaster,COLUMN(StockCodes!$B$5),0)),\"\",VLOOKUP($B202,StockMaster,COLUMN(StockCodes!$B$5),0))","v":"RM1000 Meat"},{"$f":"IF(ISNA(VLOOKUP($B202,StockMaster,COLUMN(StockCodes!$U$5),0)),\"\",VLOOKUP($B202,StockMaster,COLUMN(StockCodes!$U$5),0))","v":-220},{"$f":"IF(ISNA(VLOOKUP($B202,StockMaster,COLUMN(StockCodes!$X$5),0)),\"\",VLOOKUP($B202,StockMaster,COLUMN(StockCodes!$X$5),0))","v":-10872.739818337881},10872.739818337881,1,{"$f":"IF(ISNUMBER(G202)=FALSE,\"\",G202+COUNTIF($G$200:$G202,$G202)-1)","v":1}]
[null,{"$f":"IF(ISERROR(INDEX(StockMaster,SMALL(IF(DBAdjustValueABS>=LARGE(DBAdjustValueABS,MIN(5,CodeCount)),ROW(DBAdjustValueABS)-ROW(StockCodes!$A$5)),ROW(4:4)),COLUMN(StockCodes!$A$5))),\"\",INDEX(StockMaster,SMALL(IF(DBAdjustValueABS>=LARGE(DBAdjustValueABS,MIN(5,CodeCount)),ROW(DBAdjustValueABS)-ROW(StockCodes!$A$5)),ROW(4:4)),COLUMN(StockCodes!$A$5)))","v":"RM1005"},{"$f":"B203&\" \"&IF(ISNA(VLOOKUP($B203,StockMaster,COLUMN(StockCodes!$B$5),0)),\"\",VLOOKUP($B203,StockMaster,COLUMN(StockCodes!$B$5),0))","v":"RM1005 Bread Rolls"},{"$f":"IF(ISNA(VLOOKUP($B203,StockMaster,COLUMN(StockCodes!$U$5),0)),\"\",VLOOKUP($B203,StockMaster,COLUMN(StockCodes!$U$5),0))","v":-3.2800000000000007},{"$f":"IF(ISNA(VLOOKUP($B203,StockMaster,COLUMN(StockCodes!$X$5),0)),\"\",VLOOKUP($B203,StockMaster,COLUMN(StockCodes!$X$5),0))","v":-135.39481637517406},135.39481637517406,4,{"$f":"IF(ISNUMBER(G203)=FALSE,\"\",G203+COUNTIF($G$200:$G203,$G203)-1)","v":4}]
[null,{"$f":"IF(ISERROR(INDEX(StockMaster,SMALL(IF(DBAdjustValueABS>=LARGE(DBAdjustValueABS,MIN(5,CodeCount)),ROW(DBAdjustValueABS)-ROW(StockCodes!$A$5)),ROW(5:5)),COLUMN(StockCodes!$A$5))),\"\",INDEX(StockMaster,SMALL(IF(DBAdjustValueABS>=LARGE(DBAdjustValueABS,MIN(5,CodeCount)),ROW(DBAdjustValueABS)-ROW(StockCodes!$A$5)),ROW(5:5)),COLUMN(StockCodes!$A$5)))","v":"RM1020"},{"$f":"B204&\" \"&IF(ISNA(VLOOKUP($B204,StockMaster,COLUMN(StockCodes!$B$5),0)),\"\",VLOOKUP($B204,StockMaster,COLUMN(StockCodes!$B$5),0))","v":"RM1020 Gurkins"},{"$f":"IF(ISNA(VLOOKUP($B204,StockMaster,COLUMN(StockCodes!$U$5),0)),\"\",VLOOKUP($B204,StockMaster,COLUMN(StockCodes!$U$5),0))","v":75.260000000000005},{"$f":"IF(ISNA(VLOOKUP($B204,StockMaster,COLUMN(StockCodes!$X$5),0)),\"\",VLOOKUP($B204,StockMaster,COLUMN(StockCodes!$X$5),0))","v":588.83187979762113},588.83187979762113,2,{"$f":"IF(ISNUMBER(G204)=FALSE,\"\",G204+COUNTIF($G$200:$G204,$G204)-1)","v":2}]
["Top 5 Purchases",null,"Full","Qty","Value","rank","sequence"]
[null,{"$f":"IF(ISERROR(INDEX(StockMaster,SMALL(IF(DBPurchValue>=LARGE(DBPurchValue,MIN(5,CodeCount)),ROW(DBPurchValue)-ROW(StockCodes!$A$5)),ROW(1:1)),COLUMN(StockCodes!$A$5))),\"\",INDEX(StockMaster,SMALL(IF(DBPurchValue>=LARGE(DBPurchValue,MIN(5,CodeCount)),ROW(DBPurchValue)-ROW(StockCodes!$A$5)),ROW(1:1)),COLUMN(StockCodes!$A$5)))","v":"PM2005"},{"$f":"B206&\" \"&IF(ISNA(VLOOKUP($B206,StockMaster,COLUMN(StockCodes!$B$5),0)),\"\",VLOOKUP($B206,StockMaster,COLUMN(StockCodes!$B$5),0))","v":"PM2005 Labels"},{"$f":"IF(ISNA(VLOOKUP($B206,StockMaster,COLUMN(StockCodes!$S$5),0)),\"\",VLOOKUP($B206,StockMaster,COLUMN(StockCodes!$S$5),0))","v":14},{"$f":"IF(ISNA(VLOOKUP($B206,StockMaster,COLUMN(StockCodes!$V$5),0)),\"\",VLOOKUP($B206,StockMaster,COLUMN(StockCodes!$V$5),0))","v":6470},{"$f":"IF(ISNUMBER(E206)=FALSE,\"\",RANK(E206,$E$206:$E$210,0))","v":3},{"$f":"IF(ISNUMBER(F206)=FALSE,\"\",F206+COUNTIF($F$206:$F206,$F206)-1)","v":3}]
[null,{"$f":"IF(ISERROR(INDEX(StockMaster,SMALL(IF(DBPurchValue>=LARGE(DBPurchValue,MIN(5,CodeCount)),ROW(DBPurchValue)-ROW(StockCodes!$A$5)),ROW(2:2)),COLUMN(StockCodes!$A$5))),\"\",INDEX(StockMaster,SMALL(IF(DBPurchValue>=LARGE(DBPurchValue,MIN(5,CodeCount)),ROW(DBPurchValue)-ROW(StockCodes!$A$5)),ROW(2:2)),COLUMN(StockCodes!$A$5)))","v":"PM2015"},{"$f":"B207&\" \"&IF(ISNA(VLOOKUP($B207,StockMaster,COLUMN(StockCodes!$B$5),0)),\"\",VLOOKUP($B207,StockMaster,COLUMN(StockCodes!$B$5),0))","v":"PM2015 Boxes"},{"$f":"IF(ISNA(VLOOKUP($B207,StockMaster,COLUMN(StockCodes!$S$5),0)),\"\",VLOOKUP($B207,StockMaster,COLUMN(StockCodes!$S$5),0))","v":4400},{"$f":"IF(ISNA(VLOOKUP($B207,StockMaster,COLUMN(StockCodes!$V$5),0)),\"\",VLOOKUP($B207,StockMaster,COLUMN(StockCodes!$V$5),0))","v":4560},{"$f":"IF(ISNUMBER(E207)=FALSE,\"\",RANK(E207,$E$206:$E$210,0))","v":4},{"$f":"IF(ISNUMBER(F207)=FALSE,\"\",F207+COUNTIF($F$206:$F207,$F207)-1)","v":4}]
[null,{"$f":"IF(ISERROR(INDEX(StockMaster,SMALL(IF(DBPurchValue>=LARGE(DBPurchValue,MIN(5,CodeCount)),ROW(DBPurchValue)-ROW(StockCodes!$A$5)),ROW(3:3)),COLUMN(StockCodes!$A$5))),\"\",INDEX(StockMaster,SMALL(IF(DBPurchValue>=LARGE(DBPurchValue,MIN(5,CodeCount)),ROW(DBPurchValue)-ROW(StockCodes!$A$5)),ROW(3:3)),COLUMN(StockCodes!$A$5)))","v":"RM1000"},{"$f":"B208&\" \"&IF(ISNA(VLOOKUP($B208,StockMaster,COLUMN(StockCodes!$B$5),0)),\"\",VLOOKUP($B208,StockMaster,COLUMN(StockCodes!$B$5),0))","v":"RM1000 Meat"},{"$f":"IF(ISNA(VLOOKUP($B208,StockMaster,COLUMN(StockCodes!$S$5),0)),\"\",VLOOKUP($B208,StockMaster,COLUMN(StockCodes!$S$5),0))","v":3760},{"$f":"IF(ISNA(VLOOKUP($B208,StockMaster,COLUMN(StockCodes!$V$5),0)),\"\",VLOOKUP($B208,StockMaster,COLUMN(StockCodes!$V$5),0))","v":185840},1,{"$f":"IF(ISNUMBER(F208)=FALSE,\"\",F208+COUNTIF($F$206:$F208,$F208)-1)","v":1}]
[null,{"$f":"IF(ISERROR(INDEX(StockMaster,SMALL(IF(DBPurchValue>=LARGE(DBPurchValue,MIN(5,CodeCount)),ROW(DBPurchValue)-ROW(StockCodes!$A$5)),ROW(4:4)),COLUMN(StockCodes!$A$5))),\"\",INDEX(StockMaster,SMALL(IF(DBPurchValue>=LARGE(DBPurchValue,MIN(5,CodeCount)),ROW(DBPurchValue)-ROW(StockCodes!$A$5)),ROW(4:4)),COLUMN(StockCodes!$A$5)))","v":"RM1005"},{"$f":"B209&\" \"&IF(ISNA(VLOOKUP($B209,StockMaster,COLUMN(StockCodes!$B$5),0)),\"\",VLOOKUP($B209,StockMaster,COLUMN(StockCodes!$B$5),0))","v":"RM1005 Bread Rolls"},{"$f":"IF(ISNA(VLOOKUP($B209,StockMaster,COLUMN(StockCodes!$S$5),0)),\"\",VLOOKUP($B209,StockMaster,COLUMN(StockCodes!$S$5),0))","v":314},{"$f":"IF(ISNA(VLOOKUP($B209,StockMaster,COLUMN(StockCodes!$V$5),0)),\"\",VLOOKUP($B209,StockMaster,COLUMN(StockCodes!$V$5),0))","v":13080},2,{"$f":"IF(ISNUMBER(F209)=FALSE,\"\",F209+COUNTIF($F$206:$F209,$F209)-1)","v":2}]
[null,{"$f":"IF(ISERROR(INDEX(StockMaster,SMALL(IF(DBPurchValue>=LARGE(DBPurchValue,MIN(5,CodeCount)),ROW(DBPurchValue)-ROW(StockCodes!$A$5)),ROW(5:5)),COLUMN(StockCodes!$A$5))),\"\",INDEX(StockMaster,SMALL(IF(DBPurchValue>=LARGE(DBPurchValue,MIN(5,CodeCount)),ROW(DBPurchValue)-ROW(StockCodes!$A$5)),ROW(5:5)),COLUMN(StockCodes!$A$5)))","v":"RM1025"},{"$f":"B210&\" \"&IF(ISNA(VLOOKUP($B210,StockMaster,COLUMN(StockCodes!$B$5),0)),\"\",VLOOKUP($B210,StockMaster,COLUMN(StockCodes!$B$5),0))","v":"RM1025 Onions"},{"$f":"IF(ISNA(VLOOKUP($B210,StockMaster,COLUMN(StockCodes!$S$5),0)),\"\",VLOOKUP($B210,StockMaster,COLUMN(StockCodes!$S$5),0))","v":74},{"$f":"IF(ISNA(VLOOKUP($B210,StockMaster,COLUMN(StockCodes!$V$5),0)),\"\",VLOOKUP($B210,StockMaster,COLUMN(StockCodes!$V$5),0))","v":1006},5,{"$f":"IF(ISNUMBER(F210)=FALSE,\"\",F210+COUNTIF($F$206:$F210,$F210)-1)","v":5}]
["Top 5 Price Variance",null,"Full","Variance","%","ABS Value","rank","sequence","Purchases"]
[null,{"$f":"IF(ISERROR(INDEX(StockMaster,SMALL(IF(DBPriceVarABS>=LARGE(DBPriceVarABS,MIN(5,CodeCount)),ROW(DBPriceVarABS)-ROW(StockCodes!$A$5)),ROW(1:1)),COLUMN(StockCodes!$A$5))),\"\",INDEX(StockMaster,SMALL(IF(DBPriceVarABS>=LARGE(DBPriceVarABS,MIN(5,CodeCount)),ROW(DBPriceVarABS)-ROW(StockCodes!$A$5)),ROW(1:1)),COLUMN(StockCodes!$A$5)))","v":"PM2005"},{"$f":"B212&\" \"&IF(ISNA(VLOOKUP($B212,StockMaster,COLUMN(StockCodes!$B$5),0)),\"\",VLOOKUP($B212,StockMaster,COLUMN(StockCodes!$B$5),0))","v":"PM2005 Labels"},{"$f":"IF(ISNA(VLOOKUP($B212,StockMaster,COLUMN(StockCodes!$Z$5),0)),\"\",VLOOKUP($B212,StockMaster,COLUMN(StockCodes!$Z$5),0))","v":-506.07857025502551},{"$f":"IF(ISNUMBER(D212)=FALSE,\"\",IF(I212=0,0,D212/I212))","v":-7.8219253517005483E-2},{"$f":"IF(ISNUMBER(D212)=FALSE,\"\",ABS(D212))","v":506.07857025502551},{"$f":"IF(ISNUMBER(F212)=FALSE,\"\",RANK(F212,$F$212:$F$216,0))","v":2},{"$f":"IF(ISNUMBER(G212)=FALSE,\"\",G212+COUNTIF($G$212:$G212,$G212)-1)","v":2},{"$f":"IF(ISNA(VLOOKUP($B212,StockMaster,COLUMN(StockCodes!$V$5),0)),\"\",VLOOKUP($B212,StockMaster,COLUMN(StockCodes!$V$5),0))","v":6470}]
[null,{"$f":"IF(ISERROR(INDEX(StockMaster,SMALL(IF(DBPriceVarABS>=LARGE(DBPriceVarABS,MIN(5,CodeCount)),ROW(DBPriceVarABS)-ROW(StockCodes!$A$5)),ROW(2:2)),COLUMN(StockCodes!$A$5))),\"\",INDEX(StockMaster,SMALL(IF(DBPriceVarABS>=LARGE(DBPriceVarABS,MIN(5,CodeCount)),ROW(DBPriceVarABS)-ROW(StockCodes!$A$5)),ROW(2:2)),COLUMN(StockCodes!$A$5)))","v":"PM2015"},{"$f":"B213&\" \"&IF(ISNA(VLOOKUP($B213,StockMaster,COLUMN(StockCodes!$B$5),0)),\"\",VLOOKUP($B213,StockMaster,COLUMN(StockCodes!$B$5),0))","v":"PM2015 Boxes"},{"$f":"IF(ISNA(VLOOKUP($B213,StockMaster,COLUMN(StockCodes!$Z$5),0)),\"\",VLOOKUP($B213,StockMaster,COLUMN(StockCodes!$Z$5),0))","v":191.92091908510588},4.2087920851996904E-2,{"$f":"IF(ISNUMBER(D213)=FALSE,\"\",ABS(D213))","v":191.92091908510588},{"$f":"IF(ISNUMBER(F213)=FALSE,\"\",RANK(F213,$F$212:$F$216,0))","v":5},{"$f":"IF(ISNUMBER(G213)=FALSE,\"\",G213+COUNTIF($G$212:$G213,$G213)-1)","v":5},{"$f":"IF(ISNA(VLOOKUP($B213,StockMaster,COLUMN(StockCodes!$V$5),0)),\"\",VLOOKUP($B213,StockMaster,COLUMN(StockCodes!$V$5),0))","v":4560}]
[null,{"$f":"IF(ISERROR(INDEX(StockMaster,SMALL(IF(DBPriceVarABS>=LARGE(DBPriceVarABS,MIN(5,CodeCount)),ROW(DBPriceVarABS)-ROW(StockCodes!$A$5)),ROW(3:3)),COLUMN(StockCodes!$A$5))),\"\",INDEX(StockMaster,SMALL(IF(DBPriceVarABS>=LARGE(DBPriceVarABS,MIN(5,CodeCount)),ROW(DBPriceVarABS)-ROW(StockCodes!$A$5)),ROW(3:3)),COLUMN(StockCodes!$A$5)))","v":"RM1000"},{"$f":"B214&\" \"&IF(ISNA(VLOOKUP($B214,StockMaster,COLUMN(StockCodes!$B$5),0)),\"\",VLOOKUP($B214,StockMaster,COLUMN(StockCodes!$B$5),0))","v":"RM1000 Meat"},{"$f":"IF(ISNA(VLOOKUP($B214,StockMaster,COLUMN(StockCodes!$Z$5),0)),\"\",VLOOKUP($B214,StockMaster,COLUMN(StockCodes!$Z$5),0))","v":1239.3677980620982},6.669004509589422E-3,1239.3677980620982,1,{"$f":"IF(ISNUMBER(G214)=FALSE,\"\",G214+COUNTIF($G$212:$G214,$G214)-1)","v":1},{"$f":"IF(ISNA(VLOOKUP($B214,StockMaster,COLUMN(StockCodes!$V$5),0)),\"\",VLOOKUP($B214,StockMaster,COLUMN(StockCodes!$V$5),0))","v":185840}]
[null,{"$f":"IF(ISERROR(INDEX(StockMaster,SMALL(IF(DBPriceVarABS>=LARGE(DBPriceVarABS,MIN(5,CodeCount)),ROW(DBPriceVarABS)-ROW(StockCodes!$A$5)),ROW(4:4)),COLUMN(StockCodes!$A$5))),\"\",INDEX(StockMaster,SMALL(IF(DBPriceVarABS>=LARGE(DBPriceVarABS,MIN(5,CodeCount)),ROW(DBPriceVarABS)-ROW(StockCodes!$A$5)),ROW(4:4)),COLUMN(StockCodes!$A$5)))","v":"RM1005"},{"$f":"B215&\" \"&IF(ISNA(VLOOKUP($B215,StockMaster,COLUMN(StockCodes!$B$5),0)),\"\",VLOOKUP($B215,StockMaster,COLUMN(StockCodes!$B$5),0))","v":"RM1005 Bread Rolls"},{"$f":"IF(ISNA(VLOOKUP($B215,StockMaster,COLUMN(StockCodes!$Z$5),0)),\"\",VLOOKUP($B215,StockMaster,COLUMN(StockCodes!$Z$5),0))","v":-479.73982629394027},-3.6677356750301246E-2,479.73982629394027,3,{"$f":"IF(ISNUMBER(G215)=FALSE,\"\",G215+COUNTIF($G$212:$G215,$G215)-1)","v":3},{"$f":"IF(ISNA(VLOOKUP($B215,StockMaster,COLUMN(StockCodes!$V$5),0)),\"\",VLOOKUP($B215,StockMaster,COLUMN(StockCodes!$V$5),0))","v":13080}]
[null,{"$f":"IF(ISERROR(INDEX(StockMaster,SMALL(IF(DBPriceVarABS>=LARGE(DBPriceVarABS,MIN(5,CodeCount)),ROW(DBPriceVarABS)-ROW(StockCodes!$A$5)),ROW(5:5)),COLUMN(StockCodes!$A$5))),\"\",INDEX(StockMaster,SMALL(IF(DBPriceVarABS>=LARGE(DBPriceVarABS,MIN(5,CodeCount)),ROW(DBPriceVarABS)-ROW(StockCodes!$A$5)),ROW(5:5)),COLUMN(StockCodes!$A$5)))","v":"RM1025"},{"$f":"B216&\" \"&IF(ISNA(VLOOKUP($B216,StockMaster,COLUMN(StockCodes!$B$5),0)),\"\",VLOOKUP($B216,StockMaster,COLUMN(StockCodes!$B$5),0))","v":"RM1025 Onions"},{"$f":"IF(ISNA(VLOOKUP($B216,StockMaster,COLUMN(StockCodes!$Z$5),0)),\"\",VLOOKUP($B216,StockMaster,COLUMN(StockCodes!$Z$5),0))","v":-409.80759601286627},{"$f":"IF(ISNUMBER(D216)=FALSE,\"\",IF(I216=0,0,D216/I216))","v":-0.40736341551974781},409.80759601286627,4,{"$f":"IF(ISNUMBER(G216)=FALSE,\"\",G216+COUNTIF($G$212:$G216,$G216)-1)","v":4},{"$f":"IF(ISNA(VLOOKUP($B216,StockMaster,COLUMN(StockCodes!$V$5),0)),\"\",VLOOKUP($B216,StockMaster,COLUMN(StockCodes!$V$5),0))","v":1006}]

{"sheet":"Sales","index":7,"n_rows":48,"n_cols":5,"rows_kept":48,"cut":false,"hidden":true,"merged":[]}
["Sales Data"]
["Record Inventory Related Sales Transactions"]
["© www.excel-skills.com",null,null,null,{"$f":"SUBTOTAL(109,Sale[[#Data],[Exclusive Sales Amount]])","v":292757}]
["Invoice Number","Invoice Date","Customer","Description","Exclusive Sales Amount"]
["Cash","2021-07-01","Cash Sales","Daily Sales",4800]
["Cash","2021-07-02","Cash Sales","Daily Sales",4200]
["Cash","2021-07-05","Cash Sales","Daily Sales",5300]
["Cash","2021-07-06","Cash Sales","Daily Sales",4500]
["Cash","2021-07-07","Cash Sales","Daily Sales",4800]
["Cash","2021-07-08","Cash Sales","Daily Sales",4250]
["Cash","2021-07-09","Cash Sales","Daily Sales",3800]
["Cash","2021-07-12","Cash Sales","Daily Sales",4700]
["Cash","2021-07-13","Cash Sales","Daily Sales",4230]
["Cash","2021-07-14","Cash Sales","Daily Sales",5820]
["Cash","2021-07-15","Cash Sales","Daily Sales",5750]
["Cash","2021-07-16","Cash Sales","Daily Sales",3720]
["Cash","2021-07-19","Cash Sales","Daily Sales",6320]
["Cash","2021-07-20","Cash Sales","Daily Sales",6900]
["Cash","2021-07-21","Cash Sales","Daily Sales",7100]
["Cash","2021-07-22","Cash Sales","Daily Sales",6640]
["Cash","2021-07-23","Cash Sales","Daily Sales",7500]
["Cash","2021-07-26","Cash Sales","Daily Sales",6518]
["Cash","2021-07-27","Cash Sales","Daily Sales",7730]
["Cash","2021-07-28","Cash Sales","Daily Sales",8240]
["Cash","2021-07-29","Cash Sales","Daily Sales",8105]
["Cash","2021-07-30","Cash Sales","Daily Sales",7290]
["Cash","2021-08-02","Cash Sales","Daily Sales",6420]
["Cash","2021-08-03","Cash Sales","Daily Sales",7800]
["Cash","2021-08-04","Cash Sales","Daily Sales",7924]
["Cash","2021-08-05","Cash Sales","Daily Sales",8120]
["Cash","2021-08-06","Cash Sales","Daily Sales",7430]
["Cash","2021-08-09","Cash Sales","Daily Sales",6300]
["Cash","2021-08-10","Cash Sales","Daily Sales",7400]
["Cash","2021-08-11","Cash Sales","Daily Sales",6800]
["Cash","2021-08-12","Cash Sales","Daily Sales",8200]
["Cash","2021-08-13","Cash Sales","Daily Sales",7800]
["Cash","2021-08-16","Cash Sales","Daily Sales",7200]
["Cash","2021-08-17","Cash Sales","Daily Sales",6540]
["Cash","2021-08-18","Cash Sales","Daily Sales",6420]
["Cash","2021-08-19","Cash Sales","Daily Sales",7830]
["Cash","2021-08-20","Cash Sales","Daily Sales",8205]
["Cash","2021-08-23","Cash Sales","Daily Sales",7840]
["Cash","2021-08-24","Cash Sales","Daily Sales",7910]
["Cash","2021-08-25","Cash Sales","Daily Sales",7005]
["Cash","2021-08-26","Cash Sales","Daily Sales",8350]
["Cash","2021-08-27","Cash Sales","Daily Sales",7960]
["Cash","2021-08-30","Cash Sales","Daily Sales",7870]
["Cash","2021-08-31","Cash Sales","Daily Sales",7220]

{"sheet":"Profitability","index":8,"n_rows":47,"n_cols":11,"rows_kept":47,"cut":false,"hidden":true,"merged":[[5,0,5,1]]}
["Profitability Report",null,null,null,{"$f":"IF(AND(ISBLANK(E3)=FALSE,E3<E2),\"Error! The From date cannot be after the To date!\",\"\")","v":""}]
["Calculation of sales, cost of sales and gross profit",null,null,"From Date","2021-08-16",{"$f":"IF(ISBLANK(E2)=TRUE,IF(MIN(MoveDate)=0,DATE(YEAR($E$3),MONTH($E$3),1),DATE(YEAR(MIN(MoveDate)),MONTH(MIN(MoveDate)),1)),E2)","v":"2021-08-16"}]
[null,null,null,"To Date","2021-08-31",{"$f":"IF(ISBLANK(E3)=TRUE,DATE(YEAR(TODAY()),MONTH(TODAY())+1,0),E3)","v":"2021-08-31"}]
["© www.excel-skills.com"]
[null,null,null,{"$f":"$F$3","v":"2021-08-31"},{"$f":"F3","v":"2021-08-31"}]
[null,null,"Date Range","Month-to-Date","Year-to-Date"]
[]
["Sales",null,{"$f":"SUMIFS(SaleAmount,SaleDate,\">=\"&$F$2,SaleDate,\"<\"&$F$3+1)","v":90350},{"$f":"SUMIFS(SaleAmount,SaleDate,\">=\"&DATE(YEAR($F$3),MONTH($F$3),1),SaleDate,\"<\"&$F$3+1)","v":164544},{"$f":"SUMIFS(SaleAmount,SaleDate,\">=\"&DATE(YEAR($F$3),1,1),SaleDate,\"<\"&$F$3+1)","v":292757}]
[]
["Cost of Sales",null,{"$f":"-SUMIFS(MoveAmount,MoveDate,\">=\"&$F$2,MoveDate,\"<\"&$F$3+1,MoveType,\"<>\"&\"Purchase\")","v":67565.016803529361},{"$f":"-SUMIFS(MoveAmount,MoveDate,\">=\"&DATE(YEAR($F$3),MONTH($F$3),1),MoveDate,\"<\"&$F$3+1,MoveType,\"<>\"&\"Purchase\")","v":105253.32238461962},{"$f":"-SUMIFS(MoveAmount,MoveDate,\">=\"&DATE(YEAR($F$3),1,1),MoveDate,\"<\"&$F$3+1,MoveType,\"<>\"&\"Purchase\")","v":198876.53650803232}]
[]
["Gross Profit",null,{"$f":"SUM(C8,-C10)","v":22784.983196470639},{"$f":"SUM(D8,-D10)","v":59290.67761538038},{"$f":"SUM(E8,-E10)","v":93880.463491967676}]
[]
["Gross Profit %",null,{"$f":"IF(C8=0,0,C12/C8)","v":0.25218575757023398},{"$f":"IF(D8=0,0,D12/D8)","v":0.36033327022182748},{"$f":"IF(E8=0,0,E12/E8)","v":0.32067709223679597}]
[]
["Day","Sales","Cost of Sales","Gross Profit","Gross Profit %",null,"Month","Sales","Cost of Sales","Gross Profit","Gross Profit %"]
[{"$f":"DATE(YEAR(F3),MONTH(F3),1)","v":"2021-08-01"},{"$f":"IF(ISNUMBER($A17)<>TRUE,\"\",SUMIFS(SaleAmount,SaleDate,$A17))","v":0},{"$f":"IF(ISNUMBER($A17)<>TRUE,\"\",-SUMIFS(MoveAmount,MoveDate,\">\"&$A17,MoveDate,\"<\"&$A17+1,MoveType,\"<>\"&\"Purchase\"))","v":0},{"$f":"IF(ISNUMBER($A17)<>TRUE,\"\",$B17-$C17)","v":0},{"$f":"IF(ISNUMBER($A17)<>TRUE,\"\",IF($B17=0,0,$D17/$B17))","v":0},null,{"$f":"F3","v":"2021-08-31"},{"$f":"SUMIFS(SaleAmount,SaleDate,\">=\"&DATE(YEAR($G17),MONTH($G17),1),SaleDate,\"<\"&$G17+1)","v":164544},{"$f":"-SUMIFS(MoveAmount,MoveDate,\">=\"&DATE(YEAR($G17),MONTH($G17),1),MoveDate,\"<\"&$G17+1,MoveType,\"<>Purchase\")","v":105253.32238461962},{"$f":"H17-I17","v":59290.67761538038},{"$f":"IF(H17=0,0,J17/H17)","v":0.36033327022182748}]
[{"$f":"A17+1","v":"2021-08-02"},{"$f":"IF(ISNUMBER($A18)<>TRUE,\"\",SUMIFS(SaleAmount,SaleDate,$A18))","v":6420},{"$f":"IF(ISNUMBER($A18)<>TRUE,\"\",-SUMIFS(MoveAmount,MoveDate,\">\"&$A18,MoveDate,\"<\"&$A18+1,MoveType,\"<>\"&\"Purchase\"))","v":0},6420,1,null,{"$f":"DATE(YEAR(G17),MONTH(G17),0)","v":"2021-07-31"},{"$f":"SUMIFS(SaleAmount,SaleDate,\">=\"&DATE(YEAR($G18),MONTH($G18),1),SaleDate,\"<\"&$G18+1)","v":128213},{"$f":"-SUMIFS(MoveAmount,MoveDate,\">=\"&DATE(YEAR($G18),MONTH($G18),1),MoveDate,\"<\"&$G18+1,MoveType,\"<>Purchase\")","v":93623.214123412748},{"$f":"H18-I18","v":34589.785876587252},{"$f":"IF(H18=0,0,J18/H18)","v":0.26978376511420255}]
["2021-08-03",{"$f":"IF(ISNUMBER($A19)<>TRUE,\"\",SUMIFS(SaleAmount,SaleDate,$A19))","v":7800},{"$f":"IF(ISNUMBER($A19)<>TRUE,\"\",-SUMIFS(MoveAmount,MoveDate,\">\"&$A19,MoveDate,\"<\"&$A19+1,MoveType,\"<>\"&\"Purchase\"))","v":0},7800,1,null,{"$f":"DATE(YEAR(G18),MONTH(G18),0)","v":"2021-06-30"},{"$f":"SUMIFS(SaleAmount,SaleDate,\">=\"&DATE(YEAR($G19),MONTH($G19),1),SaleDate,\"<\"&$G19+1)","v":0},{"$f":"-SUMIFS(MoveAmount,MoveDate,\">=\"&DATE(YEAR($G19),MONTH($G19),1),MoveDate,\"<\"&$G19+1,MoveType,\"<>Purchase\")","v":0},0,0]
["2021-08-04",{"$f":"IF(ISNUMBER($A20)<>TRUE,\"\",SUMIFS(SaleAmount,SaleDate,$A20))","v":7924},{"$f":"IF(ISNUMBER($A20)<>TRUE,\"\",-SUMIFS(MoveAmount,MoveDate,\">\"&$A20,MoveDate,\"<\"&$A20+1,MoveType,\"<>\"&\"Purchase\"))","v":0},7924,1,null,{"$f":"DATE(YEAR(G19),MONTH(G19),0)","v":"2021-05-31"},{"$f":"SUMIFS(SaleAmount,SaleDate,\">=\"&DATE(YEAR($G20),MONTH($G20),1),SaleDate,\"<\"&$G20+1)","v":0},{"$f":"-SUMIFS(MoveAmount,MoveDate,\">=\"&DATE(YEAR($G20),MONTH($G20),1),MoveDate,\"<\"&$G20+1,MoveType,\"<>Purchase\")","v":0},0,0]
["2021-08-05",{"$f":"IF(ISNUMBER($A21)<>TRUE,\"\",SUMIFS(SaleAmount,SaleDate,$A21))","v":8120},{"$f":"IF(ISNUMBER($A21)<>TRUE,\"\",-SUMIFS(MoveAmount,MoveDate,\">\"&$A21,MoveDate,\"<\"&$A21+1,MoveType,\"<>\"&\"Purchase\"))","v":0},8120,1,null,{"$f":"DATE(YEAR(G20),MONTH(G20),0)","v":"2021-04-30"},{"$f":"SUMIFS(SaleAmount,SaleDate,\">=\"&DATE(YEAR($G21),MONTH($G21),1),SaleDate,\"<\"&$G21+1)","v":0},{"$f":"-SUMIFS(MoveAmount,MoveDate,\">=\"&DATE(YEAR($G21),MONTH($G21),1),MoveDate,\"<\"&$G21+1,MoveType,\"<>Purchase\")","v":0},0,0]
["2021-08-06",{"$f":"IF(ISNUMBER($A22)<>TRUE,\"\",SUMIFS(SaleAmount,SaleDate,$A22))","v":7430},{"$f":"IF(ISNUMBER($A22)<>TRUE,\"\",-SUMIFS(MoveAmount,MoveDate,\">\"&$A22,MoveDate,\"<\"&$A22+1,MoveType,\"<>\"&\"Purchase\"))","v":15207.67008267131},-7777.6700826713095,-1.0467927432935813,null,"2021-03-31",{"$f":"SUMIFS(SaleAmount,SaleDate,\">=\"&DATE(YEAR($G22),MONTH($G22),1),SaleDate,\"<\"&$G22+1)","v":0},{"$f":"-SUMIFS(MoveAmount,MoveDate,\">=\"&DATE(YEAR($G22),MONTH($G22),1),MoveDate,\"<\"&$G22+1,MoveType,\"<>Purchase\")","v":0},0,0]
["2021-08-07",{"$f":"IF(ISNUMBER($A23)<>TRUE,\"\",SUMIFS(SaleAmount,SaleDate,$A23))","v":0},{"$f":"IF(ISNUMBER($A23)<>TRUE,\"\",-SUMIFS(MoveAmount,MoveDate,\">\"&$A23,MoveDate,\"<\"&$A23+1,MoveType,\"<>\"&\"Purchase\"))","v":0},0,0,null,"2021-02-28",{"$f":"SUMIFS(SaleAmount,SaleDate,\">=\"&DATE(YEAR($G23),MONTH($G23),1),SaleDate,\"<\"&$G23+1)","v":0},{"$f":"-SUMIFS(MoveAmount,MoveDate,\">=\"&DATE(YEAR($G23),MONTH($G23),1),MoveDate,\"<\"&$G23+1,MoveType,\"<>Purchase\")","v":0},0,0]
["2021-08-08",{"$f":"IF(ISNUMBER($A24)<>TRUE,\"\",SUMIFS(SaleAmount,SaleDate,$A24))","v":0},{"$f":"IF(ISNUMBER($A24)<>TRUE,\"\",-SUMIFS(MoveAmount,MoveDate,\">\"&$A24,MoveDate,\"<\"&$A24+1,MoveType,\"<>\"&\"Purchase\"))","v":0},0,0,null,"2021-01-31",{"$f":"SUMIFS(SaleAmount,SaleDate,\">=\"&DATE(YEAR($G24),MONTH($G24),1),SaleDate,\"<\"&$G24+1)","v":0},{"$f":"-SUMIFS(MoveAmount,MoveDate,\">=\"&DATE(YEAR($G24),MONTH($G24),1),MoveDate,\"<\"&$G24+1,MoveType,\"<>Purchase\")","v":0},0,0]
["2021-08-09",{"$f":"IF(ISNUMBER($A25)<>TRUE,\"\",SUMIFS(SaleAmount,SaleDate,$A25))","v":6300},{"$f":"IF(ISNUMBER($A25)<>TRUE,\"\",-SUMIFS(MoveAmount,MoveDate,\">\"&$A25,MoveDate,\"<\"&$A25+1,MoveType,\"<>\"&\"Purchase\"))","v":0},6300,1,null,"2020-12-31",{"$f":"SUMIFS(SaleAmount,SaleDate,\">=\"&DATE(YEAR($G25),MONTH($G25),1),SaleDate,\"<\"&$G25+1)","v":0},{"$f":"-SUMIFS(MoveAmount,MoveDate,\">=\"&DATE(YEAR($G25),MONTH($G25),1),MoveDate,\"<\"&$G25+1,MoveType,\"<>Purchase\")","v":0},0,0]
["2021-08-10",{"$f":"IF(ISNUMBER($A26)<>TRUE,\"\",SUMIFS(SaleAmount,SaleDate,$A26))","v":7400},{"$f":"IF(ISNUMBER($A26)<>TRUE,\"\",-SUMIFS(MoveAmount,MoveDate,\">\"&$A26,MoveDate,\"<\"&$A26+1,MoveType,\"<>\"&\"Purchase\"))","v":0},7400,1,null,"2020-11-30",{"$f":"SUMIFS(SaleAmount,SaleDate,\">=\"&DATE(YEAR($G26),MONTH($G26),1),SaleDate,\"<\"&$G26+1)","v":0},{"$f":"-SUMIFS(MoveAmount,MoveDate,\">=\"&DATE(YEAR($G26),MONTH($G26),1),MoveDate,\"<\"&$G26+1,MoveType,\"<>Purchase\")","v":0},0,0]
["2021-08-11",{"$f":"IF(ISNUMBER($A27)<>TRUE,\"\",SUMIFS(SaleAmount,SaleDate,$A27))","v":6800},{"$f":"IF(ISNUMBER($A27)<>TRUE,\"\",-SUMIFS(MoveAmount,MoveDate,\">\"&$A27,MoveDate,\"<\"&$A27+1,MoveType,\"<>\"&\"Purchase\"))","v":0},6800,1,null,"2020-10-31",{"$f":"SUMIFS(SaleAmount,SaleDate,\">=\"&DATE(YEAR($G27),MONTH($G27),1),SaleDate,\"<\"&$G27+1)","v":0},{"$f":"-SUMIFS(MoveAmount,MoveDate,\">=\"&DATE(YEAR($G27),MONTH($G27),1),MoveDate,\"<\"&$G27+1,MoveType,\"<>Purchase\")","v":0},0,0]
["2021-08-12",{"$f":"IF(ISNUMBER($A28)<>TRUE,\"\",SUMIFS(SaleAmount,SaleDate,$A28))","v":8200},{"$f":"IF(ISNUMBER($A28)<>TRUE,\"\",-SUMIFS(MoveAmount,MoveDate,\">\"&$A28,MoveDate,\"<\"&$A28+1,MoveType,\"<>\"&\"Purchase\"))","v":0},8200,1,null,"2020-09-30",null,{"$f":"-SUMIFS(MoveAmount,MoveDate,\">=\"&DATE(YEAR($G28),MONTH($G28),1),MoveDate,\"<\"&$G28+1,MoveType,\"<>Purchase\")","v":0},0,0]
["2021-08-13",{"$f":"IF(ISNUMBER($A29)<>TRUE,\"\",SUMIFS(SaleAmount,SaleDate,$A29))","v":7800},{"$f":"IF(ISNUMBER($A29)<>TRUE,\"\",-SUMIFS(MoveAmount,MoveDate,\">\"&$A29,MoveDate,\"<\"&$A29+1,MoveType,\"<>\"&\"Purchase\"))","v":22480.635498418909},-14680.635498418909,-1.8821327562075525]
["2021-08-14",{"$f":"IF(ISNUMBER($A30)<>TRUE,\"\",SUMIFS(SaleAmount,SaleDate,$A30))","v":0},{"$f":"IF(ISNUMBER($A30)<>TRUE,\"\",-SUMIFS(MoveAmount,MoveDate,\">\"&$A30,MoveDate,\"<\"&$A30+1,MoveType,\"<>\"&\"Purchase\"))","v":0},0,0]
["2021-08-15",{"$f":"IF(ISNUMBER($A31)<>TRUE,\"\",SUMIFS(SaleAmount,SaleDate,$A31))","v":0},{"$f":"IF(ISNUMBER($A31)<>TRUE,\"\",-SUMIFS(MoveAmount,MoveDate,\">\"&$A31,MoveDate,\"<\"&$A31+1,MoveType,\"<>\"&\"Purchase\"))","v":0},0,0]
["2021-08-16",{"$f":"IF(ISNUMBER($A32)<>TRUE,\"\",SUMIFS(SaleAmount,SaleDate,$A32))","v":7200},{"$f":"IF(ISNUMBER($A32)<>TRUE,\"\",-SUMIFS(MoveAmount,MoveDate,\">\"&$A32,MoveDate,\"<\"&$A32+1,MoveType,\"<>\"&\"Purchase\"))","v":0},7200,1]
["2021-08-17",{"$f":"IF(ISNUMBER($A33)<>TRUE,\"\",SUMIFS(SaleAmount,SaleDate,$A33))","v":6540},{"$f":"IF(ISNUMBER($A33)<>TRUE,\"\",-SUMIFS(MoveAmount,MoveDate,\">\"&$A33,MoveDate,\"<\"&$A33+1,MoveType,\"<>\"&\"Purchase\"))","v":0},6540,1]
["2021-08-18",{"$f":"IF(ISNUMBER($A34)<>TRUE,\"\",SUMIFS(SaleAmount,SaleDate,$A34))","v":6420},{"$f":"IF(ISNUMBER($A34)<>TRUE,\"\",-SUMIFS(MoveAmount,MoveDate,\">\"&$A34,MoveDate,\"<\"&$A34+1,MoveType,\"<>\"&\"Purchase\"))","v":0},6420,1]
["2021-08-19",{"$f":"IF(ISNUMBER($A35)<>TRUE,\"\",SUMIFS(SaleAmount,SaleDate,$A35))","v":7830},{"$f":"IF(ISNUMBER($A35)<>TRUE,\"\",-SUMIFS(MoveAmount,MoveDate,\">\"&$A35,MoveDate,\"<\"&$A35+1,MoveType,\"<>\"&\"Purchase\"))","v":0},7830,1]
["2021-08-20",{"$f":"IF(ISNUMBER($A36)<>TRUE,\"\",SUMIFS(SaleAmount,SaleDate,$A36))","v":8205},{"$f":"IF(ISNUMBER($A36)<>TRUE,\"\",-SUMIFS(MoveAmount,MoveDate,\">\"&$A36,MoveDate,\"<\"&$A36+1,MoveType,\"<>\"&\"Purchase\"))","v":24451.524130167512},-16246.524130167512,-1.9800760670527133]
["2021-08-21",{"$f":"IF(ISNUMBER($A37)<>TRUE,\"\",SUMIFS(SaleAmount,SaleDate,$A37))","v":0},{"$f":"IF(ISNUMBER($A37)<>TRUE,\"\",-SUMIFS(MoveAmount,MoveDate,\">\"&$A37,MoveDate,\"<\"&$A37+1,MoveType,\"<>\"&\"Purchase\"))","v":0},0,0]
["2021-08-22",{"$f":"IF(ISNUMBER($A38)<>TRUE,\"\",SUMIFS(SaleAmount,SaleDate,$A38))","v":0},{"$f":"IF(ISNUMBER($A38)<>TRUE,\"\",-SUMIFS(MoveAmount,MoveDate,\">\"&$A38,MoveDate,\"<\"&$A38+1,MoveType,\"<>\"&\"Purchase\"))","v":0},0,0]
["2021-08-23",{"$f":"IF(ISNUMBER($A39)<>TRUE,\"\",SUMIFS(SaleAmount,SaleDate,$A39))","v":7840},{"$f":"IF(ISNUMBER($A39)<>TRUE,\"\",-SUMIFS(MoveAmount,MoveDate,\">\"&$A39,MoveDate,\"<\"&$A39+1,MoveType,\"<>\"&\"Purchase\"))","v":0},7840,1]
["2021-08-24",{"$f":"IF(ISNUMBER($A40)<>TRUE,\"\",SUMIFS(SaleAmount,SaleDate,$A40))","v":7910},{"$f":"IF(ISNUMBER($A40)<>TRUE,\"\",-SUMIFS(MoveAmount,MoveDate,\">\"&$A40,MoveDate,\"<\"&$A40+1,MoveType,\"<>\"&\"Purchase\"))","v":0},7910,1]
["2021-08-25",{"$f":"IF(ISNUMBER($A41)<>TRUE,\"\",SUMIFS(SaleAmount,SaleDate,$A41))","v":7005},{"$f":"IF(ISNUMBER($A41)<>TRUE,\"\",-SUMIFS(MoveAmount,MoveDate,\">\"&$A41,MoveDate,\"<\"&$A41+1,MoveType,\"<>\"&\"Purchase\"))","v":0},7005,1]
["2021-08-26",{"$f":"IF(ISNUMBER($A42)<>TRUE,\"\",SUMIFS(SaleAmount,SaleDate,$A42))","v":8350},{"$f":"IF(ISNUMBER($A42)<>TRUE,\"\",-SUMIFS(MoveAmount,MoveDate,\">\"&$A42,MoveDate,\"<\"&$A42+1,MoveType,\"<>\"&\"Purchase\"))","v":0},8350,1]
["2021-08-27",{"$f":"IF(ISNUMBER($A43)<>TRUE,\"\",SUMIFS(SaleAmount,SaleDate,$A43))","v":7960},{"$f":"IF(ISNUMBER($A43)<>TRUE,\"\",-SUMIFS(MoveAmount,MoveDate,\">\"&$A43,MoveDate,\"<\"&$A43+1,MoveType,\"<>\"&\"Purchase\"))","v":34775.135399308143},-26815.135399308143,-3.3687356029281585]
["2021-08-28",{"$f":"IF(ISNUMBER($A44)<>TRUE,\"\",SUMIFS(SaleAmount,SaleDate,$A44))","v":0},{"$f":"IF(ISNUMBER($A44)<>TRUE,\"\",-SUMIFS(MoveAmount,MoveDate,\">\"&$A44,MoveDate,\"<\"&$A44+1,MoveType,\"<>\"&\"Purchase\"))","v":0},0,0]
[{"$f":"IF(MONTH(A44)<>MONTH(DATE(YEAR(A44),MONTH(A44),DAY(A44)+1)),\"\",A44+1)","v":"2021-08-29"},{"$f":"IF(ISNUMBER($A45)<>TRUE,\"\",SUMIFS(SaleAmount,SaleDate,$A45))","v":0},{"$f":"IF(ISNUMBER($A45)<>TRUE,\"\",-SUMIFS(MoveAmount,MoveDate,\">\"&$A45,MoveDate,\"<\"&$A45+1,MoveType,\"<>\"&\"Purchase\"))","v":0},0,0]
[{"$f":"IF(ISNUMBER(A45)<>TRUE,\"\",IF(MONTH(A45)<>MONTH(DATE(YEAR(A45),MONTH(A45),DAY(A45)+1)),\"\",A45+1))","v":"2021-08-30"},{"$f":"IF(ISNUMBER($A46)<>TRUE,\"\",SUMIFS(SaleAmount,SaleDate,$A46))","v":7870},{"$f":"IF(ISNUMBER($A46)<>TRUE,\"\",-SUMIFS(MoveAmount,MoveDate,\">\"&$A46,MoveDate,\"<\"&$A46+1,MoveType,\"<>\"&\"Purchase\"))","v":0},7870,1]
[{"$f":"IF(ISNUMBER(A46)<>TRUE,\"\",IF(MONTH(A46)<>MONTH(DATE(YEAR(A46),MONTH(A46),DAY(A46)+1)),\"\",A46+1))","v":"2021-08-31"},{"$f":"IF(ISNUMBER($A47)<>TRUE,\"\",SUMIFS(SaleAmount,SaleDate,$A47))","v":7220},{"$f":"IF(ISNUMBER($A47)<>TRUE,\"\",-SUMIFS(MoveAmount,MoveDate,\">\"&$A47,MoveDate,\"<\"&$A47+1,MoveType,\"<>\"&\"Purchase\"))","v":8338.3572740537002},-1118.3572740537002,-0.15489712937031858]